Workbook

Sheet Information
A1: =Main!A1 -> ERA, DBNGP Tariff Model, June 2016 [Final Decision]
A2: Information
A3: Prior to using this model
B4: The Excel VBA macro must be enabled prior to opening this model to allow the use of macro to perform computation.
A6: Annual update of Trailing Average DRP
B7: For each year prior to the variation year (of tariff variation) there will be an annual update of the Trailing Average Debt Risk Premium (DRP).
B8: Annual update of Trailing Average DRP is updated by entering the annual DRP at Input Sheet Cells(Z11:AC11).
B9: The actual September CPI must also be updated at at Input Sheet Row 17.
B10: After entry of the annual update, click on the [Calculate] button .
B11: The X-Factor (price change) and the revised tariffs at 31-December-2015 $ for the variation year will be computed.
B12: This model will also apply the tariff variation mechanism based on the document:
B13: "Final Decision on Proposed Revisions to the Access Arrangement for the Dampier to Bunbury Natural Gas Pipeline 2016-2020.pdf", June 2016
B14: The Reference Tariff will be presented in the Main sheet.
A16: Worksheets
B18: Worksheet | C18: Description
B19: Main | C19: Summary of outputs
B20: WACC | C20: Contains the relevant parameters related to computing the WACC
B21: Inputs | C21: Contains general inputs of assumptions, capital expenditures, redundant and disposed assets, operating expenditures, approved depreciations
B23: CoS_Tariff_Revenue | C23: Computations of total revenue building block (cost of service), inflationary gain, tariff, tariff revenue and Credit Foncier Check
B24: Tax_Core | C24: Contains calculation of tax, imputation credit and cost of raising equity
B25: Asset | C25: Contains regulatory and non-regulatory shippers' asset base. Includes opening capital base, capital expenditure account. Objective is to compute Opening Asset Base and Depreciation of regulatory assets. Computations are in Real 31-December-2015 $m
B26: Shippers_Asset | C26: Contains non-regulatory shippers' asset base. Includes initial capital base, capital expenditure account, Computations are in Real 31-December-2015 $m
B27: Tax_Asset | C27: Contains regulatory and non-regulatory shippers' asset base. Includes initial capital base, capital expenditure account. Objective is to compute Tax Depreciation of regulatory assets. Computations are in nominal $m
B29: SolverSheet | C29: Contains inputs, target outputs and settings for Solver to compute the X-Factor and tariffs after the annual update of Trailing Average DRP and Cost Pass Through
B30: Tariff_Variation | C30: The forecast tariffs are recalculated to produce the Reference Tariffs based on the proxy CPI (actual September CPIs)

Sheet Main
A1: ERA, DBNGP Tariff Model, June 2016 [Final Decision]
A2: Main Summary
A3: Ref | B3: =COLUMN() -> 2 | C3: =COLUMN() -> 3 | D3: =COLUMN() -> 4 | E3: =COLUMN() -> 5 | F3: =COLUMN() -> 6 | G3: =COLUMN() -> 7 | H3: =COLUMN() -> 8
A4: WACC
A5: =ROW() -> 5 | C5: Post-tax WACC | D5: =Inputs!Y6 -> 2016 | E5: =Inputs!Z6 -> 2017 | F5: =Inputs!AA6 -> 2018 | G5: =Inputs!AB6 -> 2019 | H5: =Inputs!AC6 -> 2020 | T5: Instruction for Annual Update of DRP:
A6: =ROW() -> 6 | C6: ="Real at "&Inputs!$E$28 -> Real at 31/12/2015 | D6: =WACC!O$35 -> 0.04333037563 | E6: =WACC!P$35 -> 0.04333037563 | F6: =WACC!Q$35 -> 0.04333037563 | G6: =WACC!R$35 -> 0.04333037563 | H6: =WACC!S$35 -> 0.04333037563 | T6: (1) Excal VBA Macro must be enabled
A7: =ROW() -> 7 | C7: Nominal (Vanila) | D7: =WACC!O$34 -> 0.05825 | E7: =WACC!P$34 -> 0.05825 | F7: =WACC!Q$34 -> 0.05825 | G7: =WACC!R$34 -> 0.05825 | H7: =WACC!S$34 -> 0.05825
A8: =ROW() -> 8 | T8: (2) Update the current year Trailing Average DRP in the Input sheet
A9: Closing Regulated Asset Base | T9: (3) Click the "Calculate" button to recalculate the model
A10: =ROW() -> 10 | T10: Solver is used to calculate X-Factor (price change) and Cost of Raising Equity so that Delta=0
A11: =ROW() -> 11 | D11: December 2015 | E11: December 2020 | T11: ="(4) The output will be a new X-Faxtor to compute new tariffs starting 1 January of the following" -> (4) The output will be a new X-Faxtor to compute new tariffs starting 1 January of the following
A12: =ROW() -> 12 | D12: =Inputs!$E$28&" [m$]" -> 31/12/2015 [m$] | E12: =Inputs!$E$28&" [m$]" -> 31/12/2015 [m$] | T12: =" year in Real $ at "&Inputs!$E$28 -> year in Real $ at 31/12/2015
A13: =ROW() -> 13 | C13: Closing Asset Value of DBNGP including BEP Assets | D13: =Asset!$X$33 -> 3476.186331 | E13: =Asset!$AC$33 -> 3098.725579
A14: =ROW() -> 14 | C14: Closing Asset Value of DBNGP Assets | D14: =Asset!$X$47 -> 3456.549596 | E14: =Asset!$AC$47 -> 3080.941366 | V14: Recalculate for years: | W14: =Recalc_From_Year&" to 2019" -> 2016 to 2019
A15: =ROW() -> 15 | W15: ="X-Factor_"&Inputs!Y6 -> X-Factor_2016 | X15: ="X-Factor_"&Inputs!Z6 -> X-Factor_2017 | Y15: ="X-Factor_"&Inputs!AA6 -> X-Factor_2018 | Z15: ="X-Factor_"&Inputs!AB6 -> X-Factor_2019 | AA15: ="X-Factor_"&Inputs!AC6 -> X-Factor_2020
A16: Revenue Building Block | J16: Revenue Building Block | V16: X-Factor (price change) = | W16: =SolverSheet!I13 -> -0.03895135402 | X16: =SolverSheet!J13 -> 0 | Y16: =SolverSheet!K13 -> 0 | Z16: =SolverSheet!L13 -> 0 | AA16: =SolverSheet!M13 -> 0
A17: =ROW() -> 17 | V17: Delta = | W17: =SolverSheet!F16 -> 0
A18: =ROW() -> 18 | D18: ="Real " -> Real | E18: Nominal | F18: Real [%] | G18: Nominal [%] | K18: ="Real at "&Inputs!$E$28&" [m$]" -> Real at 31/12/2015 [m$] | L18: Nominal [m$] | T18: (5) The Reference Tariff will also be presented after the actual September CPI is updated
A19: =ROW() -> 19 | B19: ="PV of Total Revenue (CoS) [m$ "&Inputs!$E$28&"]" -> PV of Total Revenue (CoS) [m$ 31/12/2015] | J19: ="Total Revenue (CoS)" -> Total Revenue (CoS)
A20: =ROW() -> 20 | C20: Opex | D20: =SUM(CoS_Tariff_Revenue!$F$70:$F$71) -> 453.8649353 | E20: =SUM(CoS_Tariff_Revenue!$F$41:$F$42) -> 453.8649353 | F20: =D20/D$26 -> 0.2905823876 | G20: 0.2905823876 | J20: Opex | K20: =SUM(CoS_Tariff_Revenue!$AA$70:$AE$71) -> 514.6777774 | L20: =SUM(CoS_Tariff_Revenue!$AA$41:$AE$42) -> 537.2332397
A21: =ROW() -> 21 | C21: Depreciation | D21: =CoS_Tariff_Revenue!$F$72 -> 426.5896236 | E21: =CoS_Tariff_Revenue!$F$43 -> 426.5896236 | F21: 0.2731196479 | G21: 0.2731196479 | J21: Depreciation | K21: =SUM(CoS_Tariff_Revenue!$AA$72:$AE$72) -> 482.4046626 | L21: =SUM(CoS_Tariff_Revenue!$AA$43:$AE$43) -> 503.064931 | T21: Notes on colour codes
A22: =ROW() -> 22 | C22: Inflationary Gains on RAB | E22: =CoS_Tariff_Revenue!$F$44 -> -206.971012 | F22: 0 | G22: -0.1325110758 | J22: Inflationary Gains on RAB | L22: =SUM(CoS_Tariff_Revenue!$AA$44:$AE$44) -> -244.2397588
A23: =ROW() -> 23 | C23: Return on Asset | D23: =CoS_Tariff_Revenue!$F$73 -> 636.1102084 | E23: =CoS_Tariff_Revenue!$F$45 -> 843.0812204 | F23: 0.4072630616 | G23: 0.5397741374 | J23: Return on Asset | K23: =SUM(CoS_Tariff_Revenue!$AA$73:$AE$73) -> 719.6891819 | L23: =SUM(CoS_Tariff_Revenue!$AA$45:$AE$45) -> 994.8927238 | T23: Number | U23: ===> | V23: Data entries
A24: =ROW() -> 24 | C24: Tax | D24: =CoS_Tariff_Revenue!$F$74 -> 75.58340809 | E24: =CoS_Tariff_Revenue!$F$46 -> 75.58340809 | F24: 0.04839150478 | G24: 0.04839150478 | J24: Tax | K24: =SUM(CoS_Tariff_Revenue!$AA$74:$AE$74) -> 85.5921319 | L24: =SUM(CoS_Tariff_Revenue!$AA$46:$AE$46) -> 89.30618498 | T24: Number | U24: ===> | V24: Number or texts that are linked to other sheet
A25: =ROW() -> 25 | C25: Imputation Credits | D25: =CoS_Tariff_Revenue!$F$75 -> -30.23336324 | E25: =CoS_Tariff_Revenue!$F$47 -> -30.23336324 | F25: -0.01935660191 | G25: -0.01935660191 | J25: Imputation Credits | K25: =SUM(CoS_Tariff_Revenue!$AA$75:$AE$75) -> -34.23685276 | L25: =SUM(CoS_Tariff_Revenue!$AA$47:$AE$47) -> -35.72247399 | T25: Number | U25: ===> | V25: Contains formula that is not consistent with the others in the same row
A26: =ROW() -> 26 | C26: Total Revenue (Cost of Service) | D26: =SUM(D20:D25) -> 1561.914812 | E26: =SUM(E20:E25) -> 1561.914812 | F26: 1 | G26: 1 | J26: Total Revenue (Cost of Service) | K26: =SUM(K20:K25) -> 1768.126901 | L26: =SUM(L20:L25) -> 1844.534847 | T26: -Number | U26: ===> | V26: Excel formatting for negative number
A27: =ROW() -> 27 | C27: Tariff Revenue | D27: =CoS_Tariff_Revenue!$F$78 -> 1561.914812 | E27: =CoS_Tariff_Revenue!$F$50 -> 1561.914812 | J27: Tariff Revenue | K27: =SUM(CoS_Tariff_Revenue!$AA$78:$AE$78) -> 1769.391014 | L27: =SUM(CoS_Tariff_Revenue!$AA$50:$AE$50) -> 1846.319964
A28: =ROW() -> 28 | C28: Check: | D28: =IF(ROUND(D26-D27,8)=0,"OK","Wrong") -> OK | E28: =IF(ROUND(E26-E27,8)=0,"OK","Wrong") -> OK | J28: Difference (CoS-Tariff Revenue) | K28: =K26-K27 -> -1.26411306 | L28: =L26-L27 -> -1.78511749
A29: =ROW() -> 29
A30: =ROW() -> 30
A31: Check on Building Block
A32: =ROW() -> 32
A33: =ROW() -> 33 | B33: ="PV of Regulatory Revenue [m$ "&Inputs!$E$28&"]" -> PV of Regulatory Revenue [m$ 31/12/2015]
A34: =ROW() -> 34 | C34: Asset Opening Value | D34: =-CoS_Tariff_Revenue!$F$101 -> 3476.186331
A35: =ROW() -> 35 | C35: Asset Residual Value | D35: =-CoS_Tariff_Revenue!$F$103 -> -2506.535494
A36: =ROW() -> 36 | C36: Opex | D36: =-CoS_Tariff_Revenue!$F$97 -> 453.8649353
A37: =ROW() -> 37 | C37: Capex | D37: =-CoS_Tariff_Revenue!$F$102 -> 93.04899452
A38: =ROW() -> 38 | C38: Tax | D38: =-CoS_Tariff_Revenue!$F$98 -> 75.58340809
A39: =ROW() -> 39 | C39: Imputation Credits | D39: =-CoS_Tariff_Revenue!$F$99 -> -30.23336324
A40: =ROW() -> 40 | C40: Regulatory Revenue | D40: =SUM(D34:D39) -> 1561.914812
A41: =ROW() -> 41 | C41: Check: | D41: =IF(ROUND(D26-D40,8)=0,"OK","Wrong") -> OK
A42: =ROW() -> 42
A43: PV of Forecast Revenue | J43: Total of Forecast Revenue
A44: =ROW() -> 44 | K44: ="Real at "&Inputs!$E$28&" [m$]" -> Real at 31/12/2015 [m$] | L44: Nominal [m$]
A45: =ROW() -> 45 | B45: ="PV of Forecast Revenue [m$ "&Inputs!$E$28&"]" -> PV of Forecast Revenue [m$ 31/12/2015] | J45: Total of Forecast Revenue
A46: =ROW() -> 46 | C46: Capacity Reservation | D46: =CoS_Tariff_Revenue!$F176 -> 1432.700583 | J46: Capacity Reservation | K46: =SUM(CoS_Tariff_Revenue!$AA$176:$AE$176) -> 1622.644263 | L46: =SUM(CoS_Tariff_Revenue!$AA$166:$AE$166) -> 1693.066817
A47: =ROW() -> 47 | C47: Commodity | D47: =CoS_Tariff_Revenue!$F177 -> 129.2142293 | J47: Commodity | K47: =SUM(CoS_Tariff_Revenue!$AA$177:$AE$177) -> 146.7467514 | L47: =SUM(CoS_Tariff_Revenue!$AA$167:$AE$167) -> 153.2531476
A48: =ROW() -> 48 | C48: Regulated Revenue | D48: =CoS_Tariff_Revenue!$F178 -> 1561.914812 | J48: Regulated Revenue | K48: =SUM(CoS_Tariff_Revenue!$AA$178:$AE$178) -> 1769.391014 | L48: =SUM(CoS_Tariff_Revenue!$AA$168:$AE$168) -> 1846.319964
A49: =ROW() -> 49 | C49: Check: | D49: =IF(ROUND(D26-D48,5)=0,"OK","Wrong") -> OK
A50: =ROW() -> 50
A51: =ROW() -> 51
A52: Forecast Tariff | D52: =CoS_Tariff_Revenue!AA$6 -> 2016 | E52: =CoS_Tariff_Revenue!AB$6 -> 2017 | F52: =CoS_Tariff_Revenue!AC$6 -> 2018 | G52: =CoS_Tariff_Revenue!AD$6 -> 2019 | H52: =CoS_Tariff_Revenue!AE$6 -> 2020
D53: Jul-Dec | E53: Jan-Dec | F53: Jan-Dec | G53: Jan-Dec | H53: Jan-Dec
A54: =ROW() -> 54 | B54: Full Haul T1 Service (T1 Service)
A55: =ROW() -> 55 | B55: ="Tariff [$/GJ/day "&Inputs!$E$28&"]" -> Tariff [$/GJ/day 31/12/2015]
A56: =ROW() -> 56 | C56: Capacity Reservation Tariff | D56: =CoS_Tariff_Revenue!Z$189 -> 1.148680145 | E56: =CoS_Tariff_Revenue!AB$189 -> 1.148680145 | F56: =CoS_Tariff_Revenue!AC$189 -> 1.148680145 | G56: =CoS_Tariff_Revenue!AD$189 -> 1.148680145 | H56: =CoS_Tariff_Revenue!AE$189 -> 1.148680145
A57: =ROW() -> 57 | C57: Comodity Tariff | D57: =CoS_Tariff_Revenue!Z$190 -> 0.126691954 | E57: =CoS_Tariff_Revenue!AB$190 -> 0.126691954 | F57: =CoS_Tariff_Revenue!AC$190 -> 0.126691954 | G57: =CoS_Tariff_Revenue!AD$190 -> 0.126691954 | H57: =CoS_Tariff_Revenue!AE$190 -> 0.126691954
A58: =ROW() -> 58 | C58: Total Tariff | D58: =CoS_Tariff_Revenue!Z$191 -> 1.275372099 | E58: =CoS_Tariff_Revenue!AB$191 -> 1.275372099 | F58: =CoS_Tariff_Revenue!AC$191 -> 1.275372099 | G58: =CoS_Tariff_Revenue!AD$191 -> 1.275372099 | H58: =CoS_Tariff_Revenue!AE$191 -> 1.275372099
A59: =ROW() -> 59 | B59: Part Haul T1 Service (P1 Service)
A60: =ROW() -> 60 | B60: ="Tariff [$/GJ/day/km "&Inputs!$E$28&"]" -> Tariff [$/GJ/day/km 31/12/2015]
A61: =ROW() -> 61 | C61: Capacity Reservation Tariff | D61: =CoS_Tariff_Revenue!Z$199 -> 0.0008210722977 | E61: =CoS_Tariff_Revenue!AB$199 -> 0.0008210722977 | F61: =CoS_Tariff_Revenue!AC$199 -> 0.0008210722977 | G61: =CoS_Tariff_Revenue!AD$199 -> 0.0008210722977 | H61: =CoS_Tariff_Revenue!AE$199 -> 0.0008210722977
A62: =ROW() -> 62 | C62: Comodity Tariff | D62: =CoS_Tariff_Revenue!Z$200 -> 9.05589378e-05 | E62: =CoS_Tariff_Revenue!AB$200 -> 9.05589378e-05 | F62: =CoS_Tariff_Revenue!AC$200 -> 9.05589378e-05 | G62: =CoS_Tariff_Revenue!AD$200 -> 9.05589378e-05 | H62: =CoS_Tariff_Revenue!AE$200 -> 9.05589378e-05
A63: =ROW() -> 63 | C63: Total Tariff | D63: =CoS_Tariff_Revenue!Z$201 -> 0.0009116312355 | E63: =CoS_Tariff_Revenue!AB$201 -> 0.0009116312355 | F63: =CoS_Tariff_Revenue!AC$201 -> 0.0009116312355 | G63: =CoS_Tariff_Revenue!AD$201 -> 0.0009116312355 | H63: =CoS_Tariff_Revenue!AE$201 -> 0.0009116312355
A64: =ROW() -> 64 | B64: Back Haul T1 Service (B1 Service)
A65: =ROW() -> 65 | B65: ="Tariff [$/GJ/day/km "&Inputs!$E$28&"]" -> Tariff [$/GJ/day/km 31/12/2015]
A66: =ROW() -> 66 | C66: Capacity Reservation Tariff | D66: =CoS_Tariff_Revenue!Z$209 -> 0.0008210722977 | E66: =CoS_Tariff_Revenue!AB$209 -> 0.0008210722977 | F66: =CoS_Tariff_Revenue!AC$209 -> 0.0008210722977 | G66: =CoS_Tariff_Revenue!AD$209 -> 0.0008210722977 | H66: =CoS_Tariff_Revenue!AE$209 -> 0.0008210722977
A67: =ROW() -> 67 | C67: Comodity Tariff | D67: =CoS_Tariff_Revenue!Z$210 -> 9.05589378e-05 | E67: =CoS_Tariff_Revenue!AB$210 -> 9.05589378e-05 | F67: =CoS_Tariff_Revenue!AC$210 -> 9.05589378e-05 | G67: =CoS_Tariff_Revenue!AD$210 -> 9.05589378e-05 | H67: =CoS_Tariff_Revenue!AE$210 -> 9.05589378e-05
A68: =ROW() -> 68 | C68: Total Tariff | D68: =CoS_Tariff_Revenue!Z$211 -> 0.0009116312355 | E68: =CoS_Tariff_Revenue!AB$211 -> 0.0009116312355 | F68: =CoS_Tariff_Revenue!AC$211 -> 0.0009116312355 | G68: =CoS_Tariff_Revenue!AD$211 -> 0.0009116312355 | H68: =CoS_Tariff_Revenue!AE$211 -> 0.0009116312355
A69: =ROW() -> 69
A70: Reference Tariff | D70: =IF(Tariff_Variation!E$58="","",Tariff_Variation!E$58) -> 2016 | E70: =IF(Tariff_Variation!F$58="","",Tariff_Variation!F$58) ->  | F70: =IF(Tariff_Variation!G$58="","",Tariff_Variation!G$58) ->  | G70: =IF(Tariff_Variation!H$58="","",Tariff_Variation!H$58) ->  | H70: =IF(Tariff_Variation!I$58="","",Tariff_Variation!I$58) -> 
D71: =IF(Tariff_Variation!E$59="","",Tariff_Variation!E$59) -> Jul-Dec | E71: =IF(Tariff_Variation!F$59="","",Tariff_Variation!F$59) ->  | F71: =IF(Tariff_Variation!G$59="","",Tariff_Variation!G$59) ->  | G71: =IF(Tariff_Variation!H$59="","",Tariff_Variation!H$59) ->  | H71: =IF(Tariff_Variation!I$59="","",Tariff_Variation!I$59) -> 
A72: =ROW() -> 72 | B72: Full Haul T1 Service (T1 Service)
A73: =ROW() -> 73 | B73: Tariff [$/GJ/day]
A74: =ROW() -> 74 | C74: Capacity Reservation Tariff | D74: =IF(Tariff_Variation!E$62="","",Tariff_Variation!E$62) -> 1.165954 | E74: =IF(Tariff_Variation!F$62="","",Tariff_Variation!F$62) ->  | F74: =IF(Tariff_Variation!G$62="","",Tariff_Variation!G$62) ->  | G74: =IF(Tariff_Variation!H$62="","",Tariff_Variation!H$62) ->  | H74: =IF(Tariff_Variation!I$62="","",Tariff_Variation!I$62) -> 
A75: =ROW() -> 75 | C75: Comodity Tariff | D75: =IF(Tariff_Variation!E$63="","",Tariff_Variation!E$63) -> 0.128597 | E75: =IF(Tariff_Variation!F$63="","",Tariff_Variation!F$63) ->  | F75: =IF(Tariff_Variation!G$63="","",Tariff_Variation!G$63) ->  | G75: =IF(Tariff_Variation!H$63="","",Tariff_Variation!H$63) ->  | H75: =IF(Tariff_Variation!I$63="","",Tariff_Variation!I$63) -> 
A76: =ROW() -> 76 | C76: Total Tariff | D76: =IF(Tariff_Variation!E$64="","",Tariff_Variation!E$64) -> 1.294551 | E76: =IF(Tariff_Variation!F$64="","",Tariff_Variation!F$64) ->  | F76: =IF(Tariff_Variation!G$64="","",Tariff_Variation!G$64) ->  | G76: =IF(Tariff_Variation!H$64="","",Tariff_Variation!H$64) ->  | H76: =IF(Tariff_Variation!I$64="","",Tariff_Variation!I$64) -> 
A77: =ROW() -> 77 | B77: Part Haul T1 Service (P1 Service)
A78: =ROW() -> 78 | B78: Tariff [$/GJ/day/km
A79: =ROW() -> 79 | C79: Capacity Reservation Tariff | D79: =IF(Tariff_Variation!E$68="","",Tariff_Variation!E$68) -> 0.000833 | E79: =IF(Tariff_Variation!F$68="","",Tariff_Variation!F$68) ->  | F79: =IF(Tariff_Variation!G$68="","",Tariff_Variation!G$68) ->  | G79: =IF(Tariff_Variation!H$68="","",Tariff_Variation!H$68) ->  | H79: =IF(Tariff_Variation!I$68="","",Tariff_Variation!I$68) -> 
A80: =ROW() -> 80 | C80: Comodity Tariff | D80: =IF(Tariff_Variation!E$69="","",Tariff_Variation!E$69) -> 9.2e-05 | E80: =IF(Tariff_Variation!F$69="","",Tariff_Variation!F$69) ->  | F80: =IF(Tariff_Variation!G$69="","",Tariff_Variation!G$69) ->  | G80: =IF(Tariff_Variation!H$69="","",Tariff_Variation!H$69) ->  | H80: =IF(Tariff_Variation!I$69="","",Tariff_Variation!I$69) -> 
A81: =ROW() -> 81 | C81: Total Tariff | D81: =IF(Tariff_Variation!E$70="","",Tariff_Variation!E$70) -> 0.000925 | E81: =IF(Tariff_Variation!F$70="","",Tariff_Variation!F$70) ->  | F81: =IF(Tariff_Variation!G$70="","",Tariff_Variation!G$70) ->  | G81: =IF(Tariff_Variation!H$70="","",Tariff_Variation!H$70) ->  | H81: =IF(Tariff_Variation!I$70="","",Tariff_Variation!I$70) -> 
A82: =ROW() -> 82 | B82: Back Haul T1 Service (B1 Service)
A83: =ROW() -> 83 | B83: Tariff [$/GJ/day/km
A84: =ROW() -> 84 | C84: Capacity Reservation Tariff | D84: =IF(Tariff_Variation!E$74="","",Tariff_Variation!E$74) -> 0.000833 | E84: =IF(Tariff_Variation!F$74="","",Tariff_Variation!F$74) ->  | F84: =IF(Tariff_Variation!G$74="","",Tariff_Variation!G$74) ->  | G84: =IF(Tariff_Variation!H$74="","",Tariff_Variation!H$74) ->  | H84: =IF(Tariff_Variation!I$74="","",Tariff_Variation!I$74) -> 
A85: =ROW() -> 85 | C85: Comodity Tariff | D85: =IF(Tariff_Variation!E$75="","",Tariff_Variation!E$75) -> 9.2e-05 | E85: =IF(Tariff_Variation!F$75="","",Tariff_Variation!F$75) ->  | F85: =IF(Tariff_Variation!G$75="","",Tariff_Variation!G$75) ->  | G85: =IF(Tariff_Variation!H$75="","",Tariff_Variation!H$75) ->  | H85: =IF(Tariff_Variation!I$75="","",Tariff_Variation!I$75) -> 
A86: =ROW() -> 86 | C86: Total Tariff | D86: =IF(Tariff_Variation!E$76="","",Tariff_Variation!E$76) -> 0.000925 | E86: =IF(Tariff_Variation!F$76="","",Tariff_Variation!F$76) ->  | F86: =IF(Tariff_Variation!G$76="","",Tariff_Variation!G$76) ->  | G86: =IF(Tariff_Variation!H$76="","",Tariff_Variation!H$76) ->  | H86: =IF(Tariff_Variation!I$76="","",Tariff_Variation!I$76) -> 

Sheet WACC
A1: =Main!A1 -> ERA, DBNGP Tariff Model, June 2016 [Final Decision]
A2: WACC
A3: Ref | B3: =COLUMN() -> 2 | C3: =COLUMN() -> 3 | D3: =COLUMN() -> 4 | E3: =COLUMN() -> 5 | F3: =COLUMN() -> 6 | G3: =COLUMN() -> 7 | H3: =COLUMN() -> 8 | I3: =COLUMN() -> 9 | J3: =COLUMN() -> 10 | K3: =COLUMN() -> 11 | L3: =COLUMN() -> 12 | M3: =COLUMN() -> 13 | O3: =COLUMN() -> 15 | P3: =COLUMN() -> 16 | Q3: =COLUMN() -> 17 | R3: =COLUMN() -> 18 | S3: =COLUMN() -> 19
A4: =ROW() -> 4 | C4: Determination of the Weighted Average Cost of Capital (WACC) | E4: DBNGP | G4: ERA | I4: DBNGP | K4: ERA | M4: ERA | O4: ERA | P4: ERA | Q4: ERA | R4: ERA | S4: ERA
A5: =ROW() -> 5 | E5: AA3 | G5: DD3 | I5: Post DD3 | K5: FD3 | M5: Selected | O5: FD4 2016 | P5: FD4 2017 | Q5: FD4 2018 | R5: FD4 2019 | S5: FD4 2020
A6: =ROW() -> 6 | E6: 2010-03-01 | G6: 2011-02-28 | I6: 2011-04-18 | K6: 31/09/2011 | M6: =K6 -> 31/09/2011 | O6: 2016-06-10
A7: =ROW() -> 7 | C7: Nominal Risk Free Rate (Rfn) | G7: 0.0546 | K7: 0.038 | M7: =K7 -> 0.038 | O7: 0.018 | P7: =O7 -> 0.018 | Q7: =P7 -> 0.018 | R7: 0.018 | S7: 0.018
A8: =ROW() -> 8 | C8: Real Risk Free Rate (Rfr) | G8: =((1+G7)/(G9+1))-1 -> 0.02737457379 | K8: =((1+K7)/(K9+1))-1 -> 0.0102189781 | M8: =K8 -> 0.0102189781 | O8: =((1+O7)/(O9+1))-1 -> 0.003647835946 | P8: =((1+P7)/(P9+1))-1 -> 0.003647835946 | Q8: 0.003647835946 | R8: 0.003647835946 | S8: 0.003647835946
A9: =ROW() -> 9 | C9: Inflation Rate for WACC (I) | E9: 0.0252 | G9: 0.0265 | I9: 0.0257 | K9: 0.0275 | M9: 0.0275 | O9: 0.0143 | P9: =O9 -> 0.0143 | Q9: =P9 -> 0.0143 | R9: 0.0143 | S9: 0.0143
A10: =ROW() -> 10 | C10: Debt Proportion (D) | E10: 0.6 | G10: 0.6 | I10: 0.6 | K10: 0.6 | M10: 0.6 | O10: 0.6 | P10: =O10 -> 0.6 | Q10: 0.6 | R10: 0.6 | S10: 0.6
A11: =ROW() -> 11 | C11: Equity Proportion (E) | E11: 0.4 | G11: =1-G10 -> 0.4 | I11: 0.4 | K11: =1-K10 -> 0.4 | M11: 0.4 | O11: =1-O10 -> 0.4 | P11: =1-P10 -> 0.4 | Q11: 0.4 | R11: 0.4 | S11: 0.4
A12: =ROW() -> 12 | C12: 5 year IRS (effective yield) | O12: 0.021 | P12: =O12 -> 0.021 | Q12: =P12 -> 0.021 | R12: =Q12 -> 0.021 | S12: =R12 -> 0.021
A13: =ROW() -> 13 | C13: Cost of Debt; Debt Risk Premium (Drp) | G13: 0.03124 | K13: 0.03143 | M13: =K13 -> 0.03143 | O13: 0.02716 | P13: =IF(P38="",O13,P38) -> 0.02716 | Q13: =IF(Q38="",P13,Q38) -> 0.02716 | R13: 0.02716 | S13: 0.02716
A14: =ROW() -> 14 | C14: Cost of Debt; Debt Issuing Cost (Disc) | G14: 0.00125 | K14: 0.00125 | M14: 0.00125 | O14: 0.00125 | P14: =O14 -> 0.00125 | Q14: =P14 -> 0.00125 | R14: 0.00125 | S14: 0.00125
A15: =ROW() -> 15 | C15: Cost of Debt; Hedging Cost | O15: 0.00114 | P15: =O15 -> 0.00114 | Q15: 0.00114 | R15: 0.00114 | S15: 0.00114
A16: =ROW() -> 16 | C16: Cost of Debt; 5 year Interest Rate Swap Spread | O16: =O13-O7 -> 0.00916 | P16: 0.00916 | Q16: 0.00916 | R16: 0.00916 | S16: 0.00916
A17: =ROW() -> 17 | C17: Cost of Debt; Risk Margin (DRm) | G17: =SUM(G13:G14) -> 0.03249 | K17: =SUM(K13:K14) -> 0.03268 | M17: 0.03268 | O17: =O12+O13+O14+O15-O7 -> 0.03255 | P17: =P12+P13+P14+P15-P7 -> 0.03255 | Q17: =Q12+Q13+Q14+Q15-Q7 -> 0.03255 | R17: =R12+R13+R14+R15-R7 -> 0.03255 | S17: =S12+S13+S14+S15-S7 -> 0.03255
A18: =ROW() -> 18 | C18: Australian Market Risk Premium (Rp) | G18: 0.06 | K18: 0.06 | M18: 0.06 | O18: 0.074 | P18: =O18 -> 0.074 | Q18: =P18 -> 0.074 | R18: 0.074 | S18: 0.074
A19: =ROW() -> 19 | C19: Equity Beta (Be) | G19: 0.8 | K19: 0.8 | M19: 0.8 | O19: 0.7 | P19: =O19 -> 0.7 | Q19: 0.7 | R19: 0.7 | S19: 0.7
A20: =ROW() -> 20 | C20: Corporate Tax Rate (T) | E20: 0.3 | G20: 0.3 | I20: 0.3 | K20: 0.3 | M20: 0.3 | O20: 0.3 | P20: =O20 -> 0.3 | Q20: 0.3 | R20: 0.3 | S20: 0.3
A21: =ROW() -> 21 | C21: Franking Credit (g) | E21: 0 | G21: 0.53 | I21: 0 | K21: 0.25 | M21: 0.25 | O21: 0.4 | P21: 0.4 | Q21: 0.4 | R21: 0.4 | S21: 0.4
A22: =ROW() -> 22 | C22: Imputation Adj (G) | E22: =(1-E20)/(1-E20*(1-E21)) -> 1 | G22: =(1-G20)/(1-G20*(1-G21)) -> 0.8149010477 | K22: =(1-K20)/(1-K20*(1-K21)) -> 0.9032258065 | M22: 0.9032258065 | O22: =(1-O20)/(1-O20*(1-O21)) -> 0.8536585366 | P22: =(1-P20)/(1-P20*(1-P21)) -> 0.8536585366 | Q22: 0.8536585366 | R22: 0.8536585366 | S22: 0.8536585366
A23: =ROW() -> 23 | B23: Debt
A24: =ROW() -> 24 | C24: Nominal Cost of Debt (DPn) | E24: 0.0973 | G24: =G7+G17 -> 0.08709 | I24: 0.0952 | K24: =K7+K17 -> 0.07068 | M24: 0.07068 | O24: =O7+O17 -> 0.05055 | P24: =P7+P17 -> 0.05055 | Q24: =Q7+Q17 -> 0.05055 | R24: =R7+R17 -> 0.05055 | S24: =S7+S17 -> 0.05055
A25: =ROW() -> 25 | B25: Equity
A26: =ROW() -> 26 | C26: Nominal Pre Tax Cost of Equity (EPn) | E26: 0.135 | G26: =G28/(1-G20*(1-G21)) -> 0.1194412107 | I26: 0.125 | K26: =K28/(1-K20*(1-K21)) -> 0.1109677419 | M26: 0.1109677419 | O26: =O28/(1-O20*(1-O21)) -> 0.08512195122 | P26: =P28/(1-P20*(1-P21)) -> 0.08512195122 | Q26: 0.08512195122 | R26: 0.08512195122 | S26: 0.08512195122
A27: =ROW() -> 27 | C27: Real Pre Tax Cost of Equity (EPr) | G27: =(1+G26)/(1+G9)-1 -> 0.09054185164 | K27: =(1+K26)/(1+K9)-1 -> 0.0812338121 | M27: 0.0812338121 | O27: =(1+O26)/(1+O9)-1 -> 0.06982347552 | P27: =(1+P26)/(1+P9)-1 -> 0.06982347552 | Q27: =(1+Q26)/(1+Q9)-1 -> 0.06982347552 | R27: =(1+R26)/(1+R9)-1 -> 0.06982347552 | S27: =(1+S26)/(1+S9)-1 -> 0.06982347552
A28: =ROW() -> 28 | C28: Nominal After Tax Cost of Equity (EAn) | G28: =G7+G18*G19 -> 0.1026 | K28: =K7+K18*K19 -> 0.086 | M28: 0.086 | O28: =O7+O18*O19 -> 0.0698 | P28: =P7+P18*P19 -> 0.0698 | Q28: 0.0698 | R28: 0.0698 | S28: 0.0698
A29: =ROW() -> 29 | C29: Real After Tax Cost of Equity (EAr) | G29: =(1+G28)/(1+G9)-1 -> 0.07413541159 | K29: =(1+K28)/(1+K9)-1 -> 0.05693430657 | M29: 0.05693430657 | O29: =(1+O28)/(1+O9)-1 -> 0.05471753919 | P29: =(1+P28)/(1+P9)-1 -> 0.05471753919 | Q29: =(1+Q28)/(1+Q9)-1 -> 0.05471753919 | R29: =(1+R28)/(1+R9)-1 -> 0.05471753919 | S29: =(1+S28)/(1+S9)-1 -> 0.05471753919
A30: =ROW() -> 30 | B30: WACC; Pre-tax Officer (Market Practise or Forward Transformation)
A31: =ROW() -> 31 | C31: Nominal Pre Tax WACC (WPn) | E31: =E26*(1/(1-E20*(1-E21))*E11)+E24*E10 -> 0.1355228571 | G31: =G26*G11+G24*G10 -> 0.1000304843 | I31: =I26*(1/(1-I20*(1-I21))*I11)+I24*I10 -> 0.1285485714 | K31: =K26*K11+K24*K10 -> 0.08679509677 | M31: 0.08679509677 | O31: =O26*O11+O24*O10 -> 0.06437878049 | P31: =P26*P11+P24*P10 -> 0.06437878049 | Q31: =Q26*Q11+Q24*Q10 -> 0.06437878049 | R31: =R26*R11+R24*R10 -> 0.06437878049 | S31: =S26*S11+S24*S10 -> 0.06437878049
A32: =ROW() -> 32 | C32: Real Pre Tax WACC (WPr) | E32: =(1+E31)/(1+E9)- 1 -> 0.1076110585 | G32: =(1+G31)/(1+G9)-1 -> 0.07163223018 | I32: =(1+I31)/(1+I9)- 1 -> 0.1002715915 | K32: =(1+K31)/(1+K9)-1 -> 0.05770812338 | M32: 0.05770812338 | O32: =(1+O31)/(1+O9)-1 -> 0.04937275016 | P32: =(1+P31)/(1+P9)-1 -> 0.04937275016 | Q32: =(1+Q31)/(1+Q9)-1 -> 0.04937275016 | R32: =(1+R31)/(1+R9)-1 -> 0.04937275016 | S32: =(1+S31)/(1+S9)-1 -> 0.04937275016
A33: =ROW() -> 33 | B33: WACC: Vanilla
A34: =ROW() -> 34 | C34: Nominal After Tax WACC (WVAn) | G34: =G10*G24+G11*G28 -> 0.093294 | K34: =K10*K24+K11*K28 -> 0.076808 | M34: 0.076808 | O34: =O10*O24+O11*O28 -> 0.05825 | P34: =P10*P24+P11*P28 -> 0.05825 | Q34: =Q10*Q24+Q11*Q28 -> 0.05825 | R34: =R10*R24+R11*R28 -> 0.05825 | S34: =S10*S24+S11*S28 -> 0.05825
A35: =ROW() -> 35 | C35: Real After Tax WACC (WVAr) | G35: =(1+G34)/(1+G9)-1 -> 0.06506965416 | K35: =(1+K34)/(1+K9)-1 -> 0.04798832117 | M35: 0.04798832117 | O35: =(1+O34)/(1+O9)-1 -> 0.04333037563 | P35: =(1+P34)/(1+P9)-1 -> 0.04333037563 | Q35: =(1+Q34)/(1+Q9)-1 -> 0.04333037563 | R35: =(1+R34)/(1+R9)-1 -> 0.04333037563 | S35: =(1+S34)/(1+S9)-1 -> 0.04333037563
A36: =ROW() -> 36
A37: =ROW() -> 37 | B37: Cost of Debt; Debt Risk Premium (Drp)
A38: =ROW() -> 38 | C38: Trailing Average DRP | O38: =O13 -> 0.02716 | P38: =IF(Inputs!Z12="","",Inputs!Z12) ->  | Q38: =IF(Inputs!AA12="","",Inputs!AA12) ->  | R38: =IF(Inputs!AB12="","",Inputs!AB12) ->  | S38: =IF(Inputs!AC12="","",Inputs!AC12) -> 
A39: =ROW() -> 39 | C39: Modelled DRP | O39: =IF(O38="",N39,O38) -> 0.02716 | P39: =IF(P38="",O39,P38) -> 0.02716 | Q39: 0.02716 | R39: 0.02716 | S39: 0.02716
A40: =ROW() -> 40
A41: =ROW() -> 41 | C41: Annual Update of Debt Risk Premium | O41: 2016 | P41: 2017 | Q41: 2018 | R41: 2019 | S41: 2020
A42: =ROW() -> 42 | C42: Trailing Average DRP | O42: =ROUND(AVERAGE(O45:O59),5) -> 0.02716 | P42: =IF(P48="","",ROUND(AVERAGE(P45:P59),5)) ->  | Q42: =IF(Q47="","",ROUND(AVERAGE(Q45:Q59),5)) ->  | R42: =IF(R46="","",ROUND(AVERAGE(R45:R59),5)) ->  | S42: =IF(S45="","",ROUND(AVERAGE(S45:S59),5)) ->  | T42: This number is automatically updated in the Inputs sheet at Row 11
A43: =ROW() -> 43
A44: =ROW() -> 44 | C44: Annual Debt Risk Premium, Year | O44: 2016 | P44: 2017 | Q44: 2018 | R44: 2019 | S44: 2020
A45: =ROW() -> 45 | C45: 2020 | S45: =IF(Inputs!AC$11="","",Inputs!AC$11) -> 
A46: =ROW() -> 46 | C46: =C45-1 -> 2019 | R46: =IF(Inputs!AB$11="","",Inputs!AB$11) ->  | S46: =R46 -> 
A47: =ROW() -> 47 | C47: 2018 | Q47: =IF(Inputs!AA$11="","",Inputs!AA$11) ->  | R47: =Q47 -> 
A48: =ROW() -> 48 | C48: 2017 | P48: =IF(Inputs!Z$11="","",Inputs!Z$11) -> 
A49: =ROW() -> 49 | C49: 2016 | O49: 0.02612 | P49: =O49 -> 0.02612 | Q49: 0.02612 | R49: 0.02612 | S49: 0.02612
A50: =ROW() -> 50 | C50: 2015 | O50: 0.0207 | P50: =O50 -> 0.0207 | Q50: 0.0207 | R50: 0.0207 | S50: 0.0207
A51: =ROW() -> 51 | C51: 2014 | O51: 0.02251 | P51: =O51 -> 0.02251 | Q51: 0.02251 | R51: 0.02251 | S51: 0.02251
A52: =ROW() -> 52 | C52: 2013 | O52: 0.03043 | P52: 0.03043 | Q52: 0.03043 | R52: 0.03043 | S52: 0.03043
A53: =ROW() -> 53 | C53: 2012 | O53: 0.03168 | P53: 0.03168 | Q53: 0.03168 | R53: 0.03168 | S53: 0.03168
A54: =ROW() -> 54 | C54: 2011 | O54: 0.02379 | P54: 0.02379 | Q54: 0.02379 | R54: 0.02379 | S54: 0.02379
A55: =ROW() -> 55 | C55: 2010 | O55: 0.02125 | P55: =O55 -> 0.02125 | Q55: =P55 -> 0.02125 | R55: =Q55 -> 0.02125
A56: =ROW() -> 56 | C56: 2009 | O56: 0.04624 | P56: 0.04624 | Q56: 0.04624
A57: =ROW() -> 57 | C57: 2008 | O57: 0.03756 | P57: 0.03756
A58: =ROW() -> 58 | C58: 2007 | O58: 0.0113

Sheet Inputs
A1: =Main!A1 -> ERA, DBNGP Tariff Model, June 2016 [Final Decision]
A2: Inputs
A3: Ref. | B3: =COLUMN() -> 2 | C3: =COLUMN() -> 3 | D3: =COLUMN() -> 4 | E3: =COLUMN() -> 5 | F3: =COLUMN() -> 6 | G3: =COLUMN() -> 7 | H3: =COLUMN() -> 8 | I3: =COLUMN() -> 9 | J3: =COLUMN() -> 10 | K3: =COLUMN() -> 11 | L3: =COLUMN() -> 12 | M3: =COLUMN() -> 13 | N3: =COLUMN() -> 14 | O3: =COLUMN() -> 15 | P3: =COLUMN() -> 16 | Q3: =COLUMN() -> 17 | R3: =COLUMN() -> 18 | S3: =COLUMN() -> 19 | T3: =COLUMN() -> 20 | U3: =COLUMN() -> 21 | V3: =COLUMN() -> 22 | W3: =COLUMN() -> 23 | X3: =COLUMN() -> 24 | Y3: =COLUMN() -> 25 | Z3: =COLUMN() -> 26 | AA3: =COLUMN() -> 27 | AB3: =COLUMN() -> 28 | AC3: =COLUMN() -> 29
A5: Regulatory Period | H5: AA1 | I5: AA1 | J5: AA1 | K5: AA1 | L5: AA1 | M5: AA1 | N5: AA2 | O5: AA2 | P5: AA2 | Q5: AA2 | R5: AA2 | S5: AA2 | T5: AA3 | U5: AA3 | V5: AA3 | W5: AA3 | X5: AA3 | Y5: AA4 | Z5: AA4 | AA5: AA4 | AB5: AA4 | AC5: AA4
A6: Year ending (31-December) | F6: =G6-1 -> 1997 | G6: =H6-1 -> 1998 | H6: 1999 | I6: =H6+1 -> 2000 | J6: =I6+1 -> 2001 | K6: 2002 | L6: 2003 | M6: 2004 | N6: 2005 | O6: 2006 | P6: 2007 | Q6: 2008 | R6: 2009 | S6: 2010 | T6: 2011 | U6: 2012 | V6: 2013 | W6: 2014 | X6: 2015 | Y6: 2016 | Z6: 2017 | AA6: 2018 | AB6: 2019 | AC6: 2020
A7: Days | F7: =IF(INT(F6/4)=F6/4,366,365) -> 365 | G7: 365 | H7: =IF(INT(H6/4)=H6/4,366,365) -> 365 | I7: =IF(INT(I6/4)=I6/4,366,365) -> 366 | J7: 365 | K7: 365 | L7: 365 | M7: =IF(INT(M6/4)=M6/4,366,365) -> 366 | N7: =IF(INT(N6/4)=N6/4,366,365) -> 365 | O7: 365 | P7: 365 | Q7: 366 | R7: 365 | S7: 365 | T7: 365 | U7: 366 | V7: 365 | W7: 365 | X7: 365 | Y7: 366 | Z7: 365 | AA7: 365 | AB7: 365 | AC7: 366
A8: Project Year | F8: 0 | G8: 0 | H8: 0 | I8: =H8+1 -> 1 | J8: 2 | K8: 3 | L8: 4 | M8: 5 | N8: 6 | O8: 7 | P8: 8 | Q8: 9 | R8: 10 | S8: 11 | T8: 12 | U8: 13 | V8: 14 | W8: 15 | X8: 16 | Y8: 17 | Z8: 18 | AA8: 19 | AB8: 20 | AC8: 21
A9: General Inputs
A10: =ROW() -> 10 | B10: Tariff Recalculation | D10: =IF(ISNUMBER($AC$12),$AC$6,IF(ISNUMBER($AB$12),$AB$6,IF(ISNUMBER($AA$12),$AA$6,IF(ISNUMBER(Z$12),$Z$6,$Y$6)))) -> 2016 | E10: =AC6 -> 2020
A11: =ROW() -> 11 | B11: Annual Debt Risk Premium (Annual Update)
A12: =ROW() -> 12 | B12: Trailing Average DRP (10 year ave, modelled) | Y12: =WACC!O13 -> 0.02716 | Z12: =IF(WACC!P42="","",WACC!P42) ->  | AA12: =IF(WACC!Q42="","",WACC!Q42) ->  | AB12: =IF(WACC!R42="","",WACC!R42) ->  | AC12: =IF(WACC!S42="","",WACC!S42) -> 
A13: =ROW() -> 13 | B13: X-Factor | Y13: =X_Factor_2016 -> -0.03895135402 | Z13: =X_Factor_2017 -> 0 | AA13: =X_Factor_2018 -> 0 | AB13: =X_Factor_2019 -> 0 | AC13: =X_Factor_2020 -> 0
A14: =ROW() -> 14
A15: CPI and Inflations
A16: =ROW() -> 16 | B16: CPI and Inflation
A17: =ROW() -> 17 | C17: Sepember CPI | W17: 106.4 | X17: 108
A18: =ROW() -> 18
A19: =ROW() -> 19 | C19: December CPI (pre Sep 2012 rebase) | F19: 117.6 | G19: 120.2 | H19: 124.1 | I19: 131.3 | J19: 135.4 | K19: 139.5 | L19: 142.8 | M19: 146.5 | N19: 150.6 | O19: 155.5 | P19: 160.1 | Q19: 166 | R19: 169.5 | S19: 174 | T19: 179.4
A20: =ROW() -> 20 | C20: December CPI | F20: =G20/(G21+1) -> 65.42073579 | G20: 66.8671126 | H20: 69.03667781 | I20: 73.04202899 | J20: 75.32285396 | K20: 77.60367893 | L20: 79.43946488 | M20: 81.49777035 | N20: 83.77859532 | O20: 86.50445931 | P20: 89.06343367 | Q20: 92.34559643 | R20: 94.29264214 | S20: =T20/(T21+1) -> 96.79598662 | T20: 99.8 | U20: 102 | V20: 104.8 | W20: 106.6 | X20: =108.4*1+109.5315*0 -> 108.4 | Y20: =X20*(1+Y21) -> 109.95012 | Z20: 111.5224067 | AA20: 113.1171771 | AB20: 114.7347528 | AC20: 116.3754597
A21: =ROW() -> 21 | C21: December Inflation | G21: =G19/F19-1 -> 0.02210884354 | H21: =H19/G19-1 -> 0.03244592346 | I21: 0.05801772764 | J21: 0.03122619954 | K21: 0.03028064993 | L21: 0.02365591398 | M21: 0.02591036415 | N21: 0.02798634812 | O21: 0.03253652058 | P21: 0.02958199357 | Q21: 0.03685196752 | R21: 0.02108433735 | S21: 0.02654867257 | T21: =T19/S19-1 -> 0.03103448276 | U21: =U20/T20-1 -> 0.02204408818 | V21: =V20/U20-1 -> 0.02745098039 | W21: =W20/V20-1 -> 0.01717557252 | X21: =X20/W20-1 -> 0.01688555347 | Y21: =WACC!O$9 -> 0.0143 | Z21: =WACC!P$9 -> 0.0143 | AA21: =WACC!Q$9 -> 0.0143 | AB21: =WACC!R$9 -> 0.0143 | AC21: =WACC!S$9 -> 0.0143
A22: =ROW() -> 22 | C22: Inflation Factors | F22: =F20/$X$20 -> 0.6035123227 | G22: 0.6168552823 | H22: =H20/$X$20 -> 0.6368697215 | I22: 0.6738194556 | J22: 0.6948602764 | K22: 0.7159010971 | L22: 0.7328363919 | M22: 0.7518244497 | N22: 0.7728652705 | O22: 0.7980116172 | P22: 0.8216183918 | Q22: 0.8518966461 | R22: 0.8698583223 | S22: 0.8929519061 | T22: 0.9206642066 | U22: 0.9409594096 | V22: 0.9667896679 | W22: 0.9833948339 | X22: =X20/$X$20 -> 1 | Y22: =Y20/$X$20 -> 1.0143 | Z22: 1.02880449 | AA22: 1.043516394 | AB22: 1.058438679 | AC22: 1.073574352
A23: Financial Parameters
A24: =ROW() -> 24 | B24: Modelled Inflation
A25: =ROW() -> 25 | C25: Selected CPI period | D25: Base period: | E25: 2015-12-31 | F25: 1997-12-31 | G25: 1998-12-31 | H25: 1999-12-31 | I25: 2000-12-31 | J25: 2001-12-31 | K25: 2002-12-31 | L25: 2003-12-31 | M25: 2004-12-31 | N25: 2005-12-31 | O25: 2006-12-31 | P25: 2007-12-31 | Q25: 2008-12-31 | R25: 2009-12-31 | S25: 2010-12-31 | T25: 2011-12-31 | U25: 2012-12-31 | V25: 2013-12-31 | W25: 2014-12-31 | X25: 2015-12-31 | Y25: 2016-12-31 | Z25: 2017-12-31 | AA25: 2018-12-31 | AB25: 2019-12-31 | AC25: 2020-12-31
A26: =ROW() -> 26 | C26: December CPI (modelled) | D26: Base CPI: | E26: =HLOOKUP($E$25,$H$25:$AC$26,2,FALSE) -> 108.4 | F26: =G26/(G27+1) -> 69.03667781 | G26: =H26/(H27+1) -> 69.03667781 | H26: =I26/(I27+1) -> 69.03667781 | I26: 73.04202899 | J26: 75.32285396 | K26: 77.60367893 | L26: 79.43946488 | M26: 81.49777035 | N26: 83.77859532 | O26: 86.50445931 | P26: 89.06343367 | Q26: 92.34559643 | R26: 94.29264214 | S26: 96.79598662 | T26: =T20 -> 99.8 | U26: =U20 -> 102 | V26: 104.8 | W26: 106.6 | X26: 108.4 | Y26: 109.95012 | Z26: 111.5224067 | AA26: 113.1171771 | AB26: 114.7347528 | AC26: =AC20 -> 116.3754597
A27: =ROW() -> 27 | C27: December Inflation | I27: =I21 -> 0.05801772764 | J27: 0.03122619954 | K27: 0.03028064993 | L27: 0.02365591398 | M27: 0.02591036415 | N27: 0.02798634812 | O27: 0.03253652058 | P27: 0.02958199357 | Q27: 0.03685196752 | R27: 0.02108433735 | S27: 0.02654867257 | T27: 0.03103448276 | U27: 0.02204408818 | V27: 0.02745098039 | W27: 0.01717557252 | X27: 0.01688555347 | Y27: 0.0143 | Z27: 0.0143 | AA27: 0.0143 | AB27: 0.0143 | AC27: =AC21 -> 0.0143
A28: =ROW() -> 28 | C28: ="Inflation Factor (convert " &$E$28& " $ to nominal $)" -> Inflation Factor (convert 31/12/2015 $ to nominal $) | D28: Real $ at | E28: =TEXT($E$25,"dd/mm/yyyy") -> 31/12/2015 | F28: =F$26/$E$26 -> 0.6368697215 | G28: 0.6368697215 | H28: =H$26/$E$26 -> 0.6368697215 | I28: 0.6738194556 | J28: 0.6948602764 | K28: 0.7159010971 | L28: 0.7328363919 | M28: 0.7518244497 | N28: 0.7728652705 | O28: 0.7980116172 | P28: 0.8216183918 | Q28: 0.8518966461 | R28: 0.8698583223 | S28: 0.8929519061 | T28: 0.9206642066 | U28: 0.9409594096 | V28: 0.9667896679 | W28: 0.9833948339 | X28: 1 | Y28: 1.0143 | Z28: 1.02880449 | AA28: 1.043516394 | AB28: 1.058438679 | AC28: 1.073574352
A29: =ROW() -> 29 | C29: ="Inflation Factor (convert nominal to real "&$E$28&" $)" -> Inflation Factor (convert nominal to real 31/12/2015 $) | F29: =1/F28 -> 1.570179844 | G29: 1.570179844 | H29: =1/H28 -> 1.570179844 | I29: 1.484077065 | J29: 1.439138247 | K29: 1.396840994 | L29: 1.364561055 | M29: 1.330097738 | N29: 1.293886578 | O29: 1.253114589 | P29: 1.217110048 | Q29: 1.173851317 | R29: 1.149612499 | S29: 1.119881142 | T29: 1.086172345 | U29: 1.062745098 | V29: 1.034351145 | W29: 1.016885553 | X29: 1 | Y29: 0.985901607 | Z29: 0.9720019787 | AA29: 0.9582983129 | AB29: 0.9447878466 | AC29: 0.9314678563
A30: =ROW() -> 30 | B30: Real Pre-tax WACC
A31: =ROW() -> 31 | C31: WACC | I31: 0.074 | J31: =I31 -> 0.074 | K31: =J31 -> 0.074 | L31: =K31 -> 0.074 | M31: =L31 -> 0.074 | N31: 0.07237578324 | O31: =N31 -> 0.07237578324 | P31: =O31 -> 0.07237578324 | Q31: =P31 -> 0.07237578324 | R31: =Q31 -> 0.07237578324 | S31: =R31 -> 0.07237578324 | T31: =WACC!$M$32 -> 0.05770812338 | U31: =WACC!$M$32 -> 0.05770812338 | V31: =WACC!$M$32 -> 0.05770812338 | W31: =WACC!$M$32 -> 0.05770812338 | X31: =WACC!$M$32 -> 0.05770812338
A32: =ROW() -> 32 | C32: Discounting Factor | I32: =J32/(1+J31) -> 0.4941978894 | J32: 0.5307685333 | K32: 0.5700454047 | L32: 0.6122287647 | M32: 0.6575336933 | N32: 0.7051232093 | O32: 0.7561570539 | P32: 0.8108845129 | Q32: 0.8695729146 | R32: 0.9325089354 | S32: 1 | T32: =S32*(1+T31) -> 1.057708123 | U32: =T32*(1+U31) -> 1.118746474 | V32: =U32*(1+V31) -> 1.183307234 | W32: =V32*(1+W31) -> 1.251593674 | X32: =W32*(1+X31) -> 1.323820796
A33: =ROW() -> 33 | B33: Real Post Tax WACC
A34: =ROW() -> 34 | C34: WACC | Y34: =WACC!O$35 -> 0.04333037563 | Z34: =WACC!P$35 -> 0.04333037563 | AA34: =WACC!Q$35 -> 0.04333037563 | AB34: =WACC!R$35 -> 0.04333037563 | AC34: =WACC!S$35 -> 0.04333037563
A35: =ROW() -> 35 | C35: Discounting Factor | X35: 1 | Y35: =X35/(1+Y34) -> 0.9584691708 | Z35: =Y35/(1+Z34) -> 0.9186631514 | AA35: 0.8805103089 | AB35: 0.8439419857 | AC35: 0.8088923752
A36: =ROW() -> 36 | B36: Nominal Post Tax WACC
A37: =ROW() -> 37 | C37: WACC | Y37: =WACC!O$34 -> 0.05825 | Z37: =WACC!P$34 -> 0.05825 | AA37: =WACC!Q$34 -> 0.05825 | AB37: =WACC!R$34 -> 0.05825 | AC37: =WACC!S$34 -> 0.05825
A38: =ROW() -> 38 | C38: Discounting Factor | X38: 1 | Y38: =X38/(1+Y37) -> 0.9449562958 | Z38: =Y38/(1+Z37) -> 0.8929424009 | AA38: 0.8437915435 | AB38: 0.7973461314 | AC38: 0.7534572467
A39: =ROW() -> 39
A40: Asset Life and Tax Asset Life
A41: =ROW() -> 41 | B41: Opening Capital Base (OCB) | D41: Economic Asset Life (years) | E41: Tax Asset Life (years)
A42: =ROW() -> 42 | C42: Pipeline | D42: 54.5 | E42: 7.692307692
A43: =ROW() -> 43 | C43: Compression | D43: 19.60073141 | E43: 7.692307692
A44: =ROW() -> 44 | C44: Metering | D44: 38.50225195 | E44: 7.692307692
A45: =ROW() -> 45 | C45: Other Depreciable | D45: 16.85 | E45: 7.692307692
A46: =ROW() -> 46 | C46: Non-depreciable
A47: =ROW() -> 47 | C47: Cost of Raising Equity
A48: =ROW() -> 48 | C48: BEP Lease
A49: =ROW() -> 49 | C49: Average | E49: 7.692307692
A50: =ROW() -> 50 | B50: Assets aquired prior to 1-Jan-2001 | D50: Economic Asset Life | E50: Tax Asset Life
A51: =ROW() -> 51 | C51: Pipeline | D51: =D60 -> 70 | E51: =E42 -> 7.692307692
A52: =ROW() -> 52 | C52: Compression | D52: =D61 -> 30 | E52: =E43 -> 7.692307692
A53: =ROW() -> 53 | C53: Metering | D53: 50 | E53: 7.692307692
A54: =ROW() -> 54 | C54: Other Depreciable | D54: 30 | E54: 7.692307692
A55: =ROW() -> 55 | C55: Non-depreciable
A56: =ROW() -> 56 | C56: Cost of Raising Equity
A57: =ROW() -> 57 | C57: BEP Lease
A58: =ROW() -> 58
A59: =ROW() -> 59 | B59: Assets acquired from 1-Jan-2001 onwards | D59: Economic Asset Life | E59: Tax Asset Life
A60: =ROW() -> 60 | C60: Pipeline | D60: 70 | E60: 20
A61: =ROW() -> 61 | C61: Compression | D61: 30 | E61: 20
A62: =ROW() -> 62 | C62: Metering | D62: 50 | E62: 15
A63: =ROW() -> 63 | C63: Other Depreciable | D63: 30 | E63: 20
A64: =ROW() -> 64 | C64: Non-depreciable
A65: =ROW() -> 65 | C65: Cost of Raising Equity | D65: =SUMPRODUCT($D$60:$D$63,Asset!$Y$56:$Y$59)/SUM(Asset!$Y$56:$Y$59) -> 62.59899528 | E65: 5
A66: =ROW() -> 66 | C66: BEP Lease | D66: 57 | E66: 20 | AD66: <-- From protected data
A67: =ROW() -> 67
A68: Approved Asset Values
A69: =ROW() -> 69
A70: Hide | B70: Asset Closing Value (AA2 Approved Model) | H70: Asset Value (Using 8 Cities CPI) [m$ 31/12/2004]
A71: Hide | C71: Pipeline | H71: 1491.144143 | I71: 1465.332204 | J71: 1437.997073 | K71: 1410.691804 | L71: 1383.316745 | M71: 1356.556853
A72: Hide | C72: Compression | H72: 249.7980599 | I72: 234.2300841 | J72: 222.2871855 | K72: 208.8248294 | L72: 194.9820977 | M72: 181.3685957
A73: Hide | C73: Metering | H73: 20.48539349 | I73: 20.58425296 | J73: 20.62911002 | K73: 20.46484178 | L73: 19.89087446 | M73: 21.0188432
A74: Hide | C74: Other Depreciable | H74: 56.26053033 | I74: 58.6075319 | J74: 56.55249282 | K74: 53.60394018 | L74: 50.58698346 | M74: 47.34143322
A75: Hide | C75: Non Depreciable | H75: 12.08624922 | I75: 12.08624922 | J75: 12.08624922 | K75: 12.08624922 | L75: 12.08624922 | M75: 12.08624922
A76: Hide | C76: Cost of Raising Equity
A77: Hide | C77: Total | H77: =SUM(H71:H75) -> 1829.774376 | I77: 1790.840322 | J77: 1749.552111 | K77: 1705.671665 | L77: 1660.86295 | M77: 1618.371975 | N77: =M120+M212-M77 -> 0
A78: Hide | B78: Asset Closing Value (modelled) | H78: ="AA1 [m$ "&$E$28&"]" -> AA1 [m$ 31/12/2015]
A79: Hide | C79: Pipeline | H79: =H71/$M$28 -> 1983.367451 | I79: 1949.03505 | J79: 1912.676655 | K79: 1876.357978 | L79: 1839.946474 | M79: 1804.353202
A80: Hide | C80: Compression | H80: 332.2558345 | I80: 311.5489051 | J80: 295.6636826 | K80: 277.7574333 | L80: 259.3452471 | M80: 241.2379589
A81: Hide | C81: Metering | H81: 27.24757555 | I81: 27.3790683 | J81: 27.43873258 | K81: 27.22023977 | L81: 26.45680713 | M81: 27.9571158
A82: Hide | C82: Other Depreciable | H82: 74.83200414 | I82: 77.95374562 | J82: 75.22034279 | K82: 71.29847958 | L82: 67.28563229 | M82: 62.96873325
A83: Hide | C83: Non Depreciable | H83: 16.07589275 | I83: 16.07589275 | J83: 16.07589275 | K83: 16.07589275 | L83: 16.07589275 | M83: 16.07589275
A84: Hide | C84: Cost of Raising Equity
A85: Hide | C85: Total | H85: =SUM(H79:H83) -> 2433.778758 | I85: 2381.992662 | J85: 2327.075305 | K85: 2268.710024 | L85: 2209.110053 | M85: 2152.592903 | N85: =M128+M220-M85 -> 0
A86: =ROW() -> 86 | B86: Approved Asset Depreciation | I86: AA1 [m$ 31/12/2004] | N86: AA2 [m$ 31/12/2004] | T86: AA3 [m$ 31/12/2010]
A87: =ROW() -> 87 | C87: Pipeline | I87: 27.36044298 | J87: 27.36769462 | K87: 27.37241662 | L87: 27.37508118 | M87: 27.38111859 | N87: 27.39286391 | O87: 27.45714465 | P87: 27.53919085 | Q87: 31.17101727 | R87: 35.0846799 | S87: 36.27857625 | T87: 51.02396609 | U87: 51.32938537 | V87: 51.38438537 | W87: 51.44374251 | X87: 51.45109965
A88: =ROW() -> 88 | C88: Compression | I88: 13.34090349 | J88: 13.37867948 | K88: 13.54985192 | L88: 13.72495936 | M88: 13.79696984 | N88: 12.54002538 | O88: 12.60559336 | P88: 14.89842708 | Q88: 18.80868067 | R88: 20.15568906 | S88: 20.16936446 | T88: 28.89687446 | U88: 30.09022971 | V88: 30.30905305 | W88: 30.37745305 | X88: 30.47051971
A89: =ROW() -> 89 | C89: Metering | I89: 0.5390160353 | J89: 0.5390160353 | K89: 0.5401965349 | L89: 0.5413770345 | M89: 0.5425575341 | N89: 0.5957306903 | O89: 0.6182928278 | P89: 0.6429066893 | Q89: 0.6459834996 | R89: 0.6459834996 | S89: 0.6459834996 | T89: 0.8078240677 | U89: 0.8188130383 | V89: 0.8285190383 | W89: 0.8816190383 | X89: 0.9347190383
A90: =ROW() -> 90 | C90: Other Depreciable | I90: 3.338903877 | J90: 3.538093509 | K90: 3.736220692 | L90: 3.961302615 | M90: 4.147034552 | N90: 3.665652482 | O90: 3.799316054 | P90: 3.905292402 | Q90: 3.958281912 | R90: 4.140843923 | S90: 4.357940926 | T90: 7.061071921 | U90: 9.683287685 | V90: 9.766287685 | W90: 9.829621018 | X90: 9.979621018
A91: =ROW() -> 91 | C91: Non-depreciable | I91: 0 | J91: 0 | K91: 0 | L91: 0 | M91: 0 | N91: 0 | O91: 0 | P91: 0 | Q91: 0 | R91: 0 | S91: 0 | T91: 0 | U91: 0 | V91: 0 | W91: 0 | X91: 0
A92: =ROW() -> 92 | C92: Cost of Raising Equity
A93: =ROW() -> 93 | C93: Total | I93: =SUM(I87:I91) -> 44.57926639 | J93: 44.82348365 | K93: 45.19868577 | L93: 45.60272019 | M93: 45.86768051 | N93: 44.19427246 | O93: 44.48034689 | P93: 46.98581702 | Q93: 54.58396334 | R93: 60.02719638 | S93: 61.45186514 | T93: =SUM(T87:T91) -> 87.78973655 | U93: 91.9217158 | V93: 92.28824514 | W93: 92.53243561 | X93: 92.83595942
A94: =ROW() -> 94 | B94: Approved Asset Depreciation (modelled) | I94: ="AA1 [m$ "&$E$28&"]" -> AA1 [m$ 31/12/2015] | N94: ="AA2 [m$ "&$E$28&"]" -> AA2 [m$ 31/12/2015] | T94: ="AA1 [m$ "&$E$28&"]" -> AA1 [m$ 31/12/2015]
A95: =ROW() -> 95 | C95: Pipeline | I95: =I87/$M$28 -> 36.39206333 | J95: 36.40170872 | K95: 36.40798944 | L95: 36.41153356 | M95: 36.4195639 | N95: 36.43518632 | O95: 36.52068599 | P95: 36.62981546 | Q95: 41.46049956 | R95: 46.66605338 | S95: 48.25405222 | T95: =T87/$S$28 -> 57.1407774 | U95: 57.48281068 | V95: 57.54440414 | W95: 57.61087709 | X95: 57.61911621
A96: =ROW() -> 96 | C96: Compression | I96: =I88/$M$28 -> 17.74470556 | J96: 17.79495132 | K96: 18.02262739 | L96: 18.2555374 | M96: 18.35131837 | N96: 16.67945939 | O96: 16.76667121 | P96: 19.81636416 | Q96: 25.01738361 | R96: 26.80903643 | S96: 26.82722605 | T96: 32.36106476 | U96: 33.6974808 | V96: 33.94253692 | W96: 34.01913679 | X96: 34.1233604
A97: =ROW() -> 97 | C97: Metering | I97: =I89/$M$28 -> 0.7169440094 | J97: 0.7169440094 | K97: 0.7185141892 | L97: 0.7200843691 | M97: 0.7216545489 | N97: 0.7923800436 | O97: 0.8223898918 | P97: 0.8551287333 | Q97: 0.8592211916 | R97: 0.8592211916 | S97: 0.8592211916 | T97: 0.9046669391 | U97: 0.9169732801 | V97: 0.9278428465 | W97: 0.9873085351 | X97: 1.046774224
A98: =ROW() -> 98 | C98: Other Depreciable | I98: =I90/$M$28 -> 4.441068495 | J98: 4.706010174 | K98: 4.969538691 | L98: 5.268919648 | M98: 5.515961277 | N98: 4.875676075 | O98: 5.05346169 | P98: 5.194420591 | Q98: 5.264901819 | R98: 5.507727136 | S98: 5.796487368 | T98: 7.907561284 | U98: 10.84413127 | V98: 10.9370814 | W98: 11.00800721 | X98: 11.17598938
A99: =ROW() -> 99 | C99: Non-depreciable | I99: =I91/$M$28 -> 0 | J99: 0 | K99: 0 | L99: 0 | M99: 0 | N99: 0 | O99: 0 | P99: 0 | Q99: 0 | R99: 0 | S99: 0 | T99: 0 | U99: 0 | V99: 0 | W99: 0 | X99: 0
A100: =ROW() -> 100 | C100: Cost of Raising Equity
A101: =ROW() -> 101 | C101: Total | I101: =SUM(I95:I99) -> 59.29478139 | J101: 59.61961422 | K101: 60.11866971 | L101: 60.65607498 | M101: 61.0084981 | N101: 58.78270184 | O101: 59.16320878 | P101: 62.49572894 | Q101: 72.60200618 | R101: 79.84203813 | S101: 81.73698682 | T101: =SUM(T95:T99) -> 98.31407038 | U101: 102.941396 | V101: 103.3518653 | W101: 103.6253296 | X101: 103.9652402
A102: =ROW() -> 102
A103: Approved DBNGP OCB Values
A104: =ROW() -> 104 | F104: OCB [m$ 31/12/1999]
A105: =ROW() -> 105 | B105: OCB (AA1 & AA2 Approved Model) | E105: Tax Asset Life (years) | F105: Economic Asset Life (years) | G105: CV | H105: ="m$ " &$E$28 -> m$ 31/12/2015 | I105: m$ 31/12/204 | J105: ="m$ " &$E$28 -> m$ 31/12/2015
A106: =ROW() -> 106 | C106: Pipeline | E106: =E42 -> 7.692307692 | F106: =D42 -> 54.5 | G106: 1263.146676 | H106: =G106/$H$28 -> 1983.367451 | I106: 1491.144143 | J106: =I106/$M$28 -> 1983.367451
A107: =ROW() -> 107 | C107: Compression | E107: =E43 -> 7.692307692 | F107: =D43 -> 19.60073141 | G107: 211.6036808 | H107: =G107/$H$28 -> 332.2558345 | I107: 249.7980599 | J107: =I107/$M$28 -> 332.2558345
A108: =ROW() -> 108 | C108: Metering | E108: =E44 -> 7.692307692 | F108: =D44 -> 38.50225195 | G108: 17.35315585 | H108: =G108/$H$28 -> 27.24757555 | I108: 20.48539349 | J108: =I108/$M$28 -> 27.24757555
A109: =ROW() -> 109 | C109: Other Depreciable | E109: =E45 -> 7.692307692 | F109: =D45 -> 16.85 | G109: 47.65823764 | H109: =G109/$H$28 -> 74.83200414 | I109: 56.26053033 | J109: =I109/$M$28 -> 74.83200414
A110: =ROW() -> 110 | C110: Non Depreciable | G110: 10.23824934 | H110: =G110/$H$28 -> 16.07589275 | I110: 12.08624922 | J110: =I110/$M$28 -> 16.07589275
A111: =ROW() -> 111 | C111: Cost of Raising Equity
A112: =ROW() -> 112 | C112: Total | G112: =SUM(G106:G110) -> 1550 | H112: =SUM(H106:H110) -> 2433.778758 | I112: =SUM(I106:I110) -> 1829.774376 | J112: =SUM(J106:J110) -> 2433.778758
A113: Hide | B113: Approved Asset Depreciation (AA2 Approved Model) | H113: OCB [m$ 31/12/2004]
A114: Hide | C114: Pipeline | H114: 1491.144143 | I114: 1463.7837 | J114: 1436.423257 | K114: 1409.062814 | L114: 1381.702371 | M114: 1354.341928
A115: Hide | C115: Compression | H115: 249.7980599 | I115: 236.4571564 | J115: 223.1162529 | K115: 209.7753494 | L115: 196.4344459 | M115: 183.0935424
A116: Hide | C116: Metering | H116: 20.48539349 | I116: 19.94637745 | J116: 19.40736142 | K116: 18.86834538 | L116: 18.32932935 | M116: 17.79031331
A117: Hide | C117: Other Depreciable | H117: 56.26053033 | I117: 52.92162646 | J117: 49.58272258 | K117: 46.2438187 | L117: 42.90491482 | M117: 39.56601095
A118: Hide | C118: Non Depreciable | H118: 12.08624922 | I118: 12.08624922 | J118: 12.08624922 | K118: 12.08624922 | L118: 12.08624922 | M118: 12.08624922
A119: Hide | C119: Cost of Raising Equity
A120: Hide | C120: Total | H120: =SUM(H114:H118) -> 1829.774376 | I120: 1785.195109 | J120: 1740.615843 | K120: 1696.036576 | L120: 1651.45731 | M120: 1606.878044
A121: Hide | B121: OCB Closing Value (modelled) | H121: ="AA1 [m$ "&$E$28&"]" -> AA1 [m$ 31/12/2015]
A122: Hide | C122: Pipeline | H122: =H114/$M$28 -> 1983.367451 | I122: 1946.975388 | J122: 1910.583325 | K122: 1874.191261 | L122: 1837.799198 | M122: 1801.407135
A123: Hide | C123: Compression | H123: 332.2558345 | I123: 314.5111289 | J123: 296.7664233 | K123: 279.0217178 | L123: 261.2770122 | M123: 243.5323067
A124: Hide | C124: Metering | H124: 27.24757555 | I124: 26.53063154 | J124: 25.81368753 | K124: 25.09674352 | L124: 24.37979951 | M124: 23.6628555
A125: Hide | C125: Other Depreciable | H125: 74.83200414 | I125: 70.39093565 | J125: 65.94986715 | K125: 61.50879866 | L125: 57.06773016 | M125: 52.62666167
A126: Hide | C126: Non Depreciable | H126: 16.07589275 | I126: 16.07589275 | J126: 16.07589275 | K126: 16.07589275 | L126: 16.07589275 | M126: 16.07589275
A127: Hide | C127: Cost of Raising Equity
A128: Hide | C128: Total | H128: =SUM(H122:H126) -> 2433.778758 | I128: 2374.483977 | J128: 2315.189195 | K128: 2255.894414 | L128: 2196.599633 | M128: 2137.304851
A129: Hide | B129: Approved OCB Depreciation [m$ 31/12/1999] (AA2 Approved Model) | I129: AA1 OCB Depreciation [m$ 31/12/1999]
A130: Hide | C130: Pipeline | I130: 23.17700324 | J130: 23.17700324 | K130: 23.17700324 | L130: 23.17700324 | M130: 23.17700324
A131: Hide | C131: Compression | I131: 11.30106569 | J131: 11.30106569 | K131: 11.30106569 | L131: 11.30106569 | M131: 11.30106569
A132: Hide | C132: Metering | I132: 0.4565999316 | J132: 0.4565999316 | K132: 0.4565999316 | L132: 0.4565999316 | M132: 0.4565999316
A133: Hide | C133: Other Depreciable | I133: 2.828382056 | J133: 2.828382056 | K133: 2.828382056 | L133: 2.828382056 | M133: 2.828382056
A134: Hide | C134: Non-depreciable | I134: 0 | J134: 0 | K134: 0 | L134: 0 | M134: 0
A135: Hide | C135: Cost of Raising Equity
A136: Hide | C136: Total | I136: =SUM(I130:I134) -> 37.76305091 | J136: =SUM(J130:J134) -> 37.76305091 | K136: =SUM(K130:K134) -> 37.76305091 | L136: =SUM(L130:L134) -> 37.76305091 | M136: =SUM(M130:M134) -> 37.76305091
A137: Hide | B137: Approved OCB Depreciation (modelled) | I137: ="AA1 [m$ "&$E$28&"]" -> AA1 [m$ 31/12/2015]
A138: Hide | C138: Pipeline | I138: =I130/$H$28 -> 36.39206333 | J138: 36.39206333 | K138: 36.39206333 | L138: 36.39206333 | M138: 36.39206333
A139: Hide | C139: Compression | I139: 17.74470556 | J139: 17.74470556 | K139: 17.74470556 | L139: 17.74470556 | M139: 17.74470556
A140: Hide | C140: Metering | I140: 0.7169440094 | J140: 0.7169440094 | K140: 0.7169440094 | L140: 0.7169440094 | M140: 0.7169440094
A141: Hide | C141: Other Depreciable | I141: 4.441068495 | J141: 4.441068495 | K141: 4.441068495 | L141: 4.441068495 | M141: 4.441068495
A142: Hide | C142: Non-depreciable | I142: 0 | J142: 0 | K142: 0 | L142: 0 | M142: 0
A143: Hide | C143: Cost of Raising Equity
A144: Hide | C144: Total | I144: =SUM(I138:I142) -> 59.29478139 | J144: =SUM(J138:J142) -> 59.29478139 | K144: =SUM(K138:K142) -> 59.29478139 | L144: =SUM(L138:L142) -> 59.29478139 | M144: =SUM(M138:M142) -> 59.29478139
A145: =ROW() -> 145 | B145: Approved OCB Depreciation (AA2 Approved Model) | I145: AA1 [m$ 31/12/2004] | N145: AA2 [m$ 31/12/2004] | T145: AA3 [m$ 31/12/2010]
A146: =ROW() -> 146 | C146: Pipeline | I146: 27.36044298 | J146: 27.36044298 | K146: 27.36044298 | L146: 27.36044298 | M146: 27.36044298 | N146: 27.36044298 | O146: 27.36044298 | P146: 27.36044298 | Q146: 27.36044298 | R146: 27.36044298 | S146: 27.36044298 | T146: 32.49636231 | U146: 32.49636231 | V146: 32.49636231 | W146: 32.49636231 | X146: 32.49636231
A147: =ROW() -> 147 | C147: Compression | I147: 13.34090349 | J147: 13.34090349 | K147: 13.34090349 | L147: 13.34090349 | M147: 13.34090349 | N147: 12.54002538 | O147: 12.54002538 | P147: 12.54002538 | Q147: 12.54002538 | R147: 12.54002538 | S147: 12.54002538 | T147: 14.37484303 | U147: 14.37484303 | V147: 14.37484303 | W147: 14.37484303 | X147: 14.37484303
A148: =ROW() -> 148 | C148: Metering | I148: 0.5390160353 | J148: 0.5390160353 | K148: 0.5390160353 | L148: 0.5390160353 | M148: 0.5390160353 | N148: 0.5310184325 | O148: 0.5310184325 | P148: 0.5310184325 | Q148: 0.5310184325 | R148: 0.5310184325 | S148: 0.5310184325 | T148: 0.6306976604 | U148: 0.6306976604 | V148: 0.6306976604 | W148: 0.6306976604 | X148: 0.6306976604
A149: =ROW() -> 149 | C149: Other Depreciable | I149: 3.338903877 | J149: 3.338903877 | K149: 3.338903877 | L149: 3.338903877 | M149: 3.338903877 | N149: 3.338903877 | O149: 3.338903877 | P149: 3.338903877 | Q149: 3.338903877 | R149: 3.338903877 | S149: 3.338903877 | T149: 3.925125351 | U149: 3.925125351 | V149: 3.925125351 | W149: 3.925125351 | X149: 3.925125351
A150: =ROW() -> 150 | C150: Non-depreciable | I150: 0 | J150: 0 | K150: 0 | L150: 0 | M150: 0 | N150: 0 | O150: 0 | P150: 0 | Q150: 0 | R150: 0 | S150: 0 | T150: 0 | U150: 0 | V150: 0 | W150: 0 | X150: 0
A151: =ROW() -> 151 | C151: Cost of Raising Equity
A152: =ROW() -> 152 | C152: Total | I152: =SUM(I146:I150) -> 44.57926639 | J152: 44.57926639 | K152: 44.57926639 | L152: 44.57926639 | M152: 44.57926639 | N152: 43.77039067 | O152: 43.77039067 | P152: 43.77039067 | Q152: 43.77039067 | R152: 43.77039067 | S152: 43.77039067 | T152: 51.42702835 | U152: 51.42702835 | V152: 51.42702835 | W152: 51.42702835 | X152: 51.42702835
A153: =ROW() -> 153 | B153: Approved OCB Depreciation(modelled) | I153: ="AA1 [m$ "&$E$28&"]" -> AA1 [m$ 31/12/2015] | N153: ="AA2 [m$ "&$E$28&"]" -> AA2 [m$ 31/12/2015] | T153: ="AA1 [m$ "&$E$28&"]" -> AA1 [m$ 31/12/2015]
A154: =ROW() -> 154 | C154: Pipeline | I154: =I146/$M$28 -> 36.39206333 | J154: 36.39206333 | K154: 36.39206333 | L154: 36.39206333 | M154: 36.39206333 | N154: 36.39206333 | O154: 36.39206333 | P154: 36.39206333 | Q154: 36.39206333 | R154: 36.39206333 | S154: 36.39206333 | T154: =T146/$S$28 -> 36.39206333 | U154: 36.39206333 | V154: 36.39206333 | W154: 36.39206333 | X154: 36.39206333
A155: =ROW() -> 155 | C155: Compression | I155: =I147/$M$28 -> 17.74470556 | J155: 17.74470556 | K155: 17.74470556 | L155: 17.74470556 | M155: 17.74470556 | N155: 16.67945939 | O155: 16.67945939 | P155: 16.67945939 | Q155: 16.67945939 | R155: 16.67945939 | S155: 16.67945939 | T155: 16.09811562 | U155: 16.09811562 | V155: 16.09811562 | W155: 16.09811562 | X155: 16.09811562
A156: =ROW() -> 156 | C156: Metering | I156: =I148/$M$28 -> 0.7169440094 | J156: 0.7169440094 | K156: 0.7169440094 | L156: 0.7169440094 | M156: 0.7169440094 | N156: 0.7063064159 | O156: 0.7063064159 | P156: 0.7063064159 | Q156: 0.7063064159 | R156: 0.7063064159 | S156: 0.7063064159 | T156: 0.7063064159 | U156: 0.7063064159 | V156: 0.7063064159 | W156: 0.7063064159 | X156: 0.7063064159
A157: =ROW() -> 157 | C157: Other Depreciable | I157: =I149/$M$28 -> 4.441068495 | J157: 4.441068495 | K157: 4.441068495 | L157: 4.441068495 | M157: 4.441068495 | N157: 4.441068495 | O157: 4.441068495 | P157: 4.441068495 | Q157: 4.441068495 | R157: 4.441068495 | S157: 4.441068495 | T157: 4.395673859 | U157: 4.395673859 | V157: 4.395673859 | W157: 4.395673859 | X157: 4.395673859
A158: =ROW() -> 158 | C158: Non-depreciable | I158: =I150/$M$28 -> 0 | J158: 0 | K158: 0 | L158: 0 | M158: 0 | N158: 0 | O158: 0 | P158: 0 | Q158: 0 | R158: 0 | S158: 0 | T158: 0 | U158: 0 | V158: 0 | W158: 0 | X158: 0
A159: =ROW() -> 159 | C159: Cost of Raising Equity
A160: =ROW() -> 160 | C160: Total | I160: =SUM(I154:I158) -> 59.29478139 | J160: 59.29478139 | K160: 59.29478139 | L160: 59.29478139 | M160: 59.29478139 | N160: 58.21889763 | O160: 58.21889763 | P160: 58.21889763 | Q160: 58.21889763 | R160: 58.21889763 | S160: 58.21889763 | T160: =SUM(T154:T158) -> 57.59215922 | U160: 57.59215922 | V160: 57.59215922 | W160: 57.59215922 | X160: 57.59215922
A161: =ROW() -> 161
A162: Redundant & Disposed OCB Assets
A163: =ROW() -> 163 | B163: Redundant & Disposed Asset | I163: AA1 [m$ n$ 31/12/2004] | N163: AA2 [m$ OD] | T163: AA3 [m$ OD] | Y163: AA4 [m$ OD]
A164: =ROW() -> 164 | C164: Pipeline | I164: 0 | J164: 0 | K164: 0 | L164: 0 | M164: 0 | N164: 0 | O164: 0 | P164: 0 | Q164: 0 | R164: 0 | S164: 0 | T164: 0 | U164: 0 | V164: 0 | W164: 0 | X164: 0 | Y164: 0 | Z164: 0 | AA164: 0 | AB164: 0 | AC164: 0
A165: =ROW() -> 165 | C165: Compression | I165: 0 | J165: 0 | K165: 0 | L165: 0 | M165: 0 | N165: 3.508846649 | O165: 0 | P165: 0 | Q165: 0 | R165: 0 | S165: 0 | T165: 0.0009685958129 | U165: 0 | V165: 0 | W165: 0 | X165: 0 | Y165: 0 | Z165: 0 | AA165: 0 | AB165: 0 | AC165: 0
A166: =ROW() -> 166 | C166: Metering | I166: 0 | J166: 0 | K166: 0 | L166: 0 | M166: 0 | N166: 0 | O166: 0 | P166: 0 | Q166: 0 | R166: 0 | S166: 0 | T166: 0 | U166: 0 | V166: 0 | W166: 0.02555031945 | X166: 0 | Y166: 0 | Z166: 0 | AA166: 0 | AB166: 0 | AC166: 0
A167: =ROW() -> 167 | C167: Other Depreciable | I167: 0 | J167: 0 | K167: 0 | L167: 0 | M167: 0 | N167: 3.572792706 | O167: 0 | P167: 0.03405415633 | Q167: 0.02690329251 | R167: 0.08554448117 | S167: 0.01039483546 | T167: 1.734900273 | U167: 0.02510343003 | V167: 0.03485976249 | W167: 0 | X167: 0 | Y167: 0 | Z167: 0 | AA167: 0 | AB167: 0 | AC167: 0
A168: =ROW() -> 168 | C168: Non-depreciable | I168: 0 | J168: 0 | K168: 0 | L168: 0 | M168: 0 | N168: 1.932514863 | O168: 0 | P168: 0 | Q168: 0 | R168: 0 | S168: 0 | T168: 0 | U168: 0 | V168: 0 | W168: 0 | X168: 0 | Y168: 0 | Z168: 0 | AA168: 0 | AB168: 0 | AC168: 0
A169: =ROW() -> 169 | C169: Cost of Raising Equity | Y169: 0 | Z169: 0 | AA169: 0 | AB169: 0 | AC169: 0
A170: =ROW() -> 170 | C170: Total | I170: =SUM(I164:I169) -> 0 | J170: =SUM(J164:J169) -> 0 | K170: 0 | L170: 0 | M170: 0 | N170: 9.014154218 | O170: 0 | P170: 0.03405415633 | Q170: 0.02690329251 | R170: 0.08554448117 | S170: 0.01039483546 | T170: 1.735868869 | U170: 0.02510343003 | V170: 0.03485976249 | W170: 0.02555031945 | X170: 0 | Y170: 0 | Z170: 0 | AA170: 0 | AB170: 0 | AC170: 0
A171: Hide | B171: Redundant & Disposed Asset (Sub68) | I171: AA1 [m$ n$ 31/12/2004] | N171: AA2 [m$ OD] | T171: AA3 [m$ OD] | Y171: AA4 [m$ OD]
A172: Hide | C172: Pipeline | I172: 0 | J172: 0 | K172: 0 | L172: 0 | M172: 0 | N172: 0 | O172: 0 | P172: 0 | Q172: 0 | R172: 0 | S172: 0 | T172: 0 | U172: 0 | V172: 0 | W172: 0 | X172: 0 | Y172: 0 | Z172: 0 | AA172: 0 | AB172: 0 | AC172: 0
A173: Hide | C173: Compression | I173: 0 | J173: 0 | K173: 0 | L173: 0 | M173: 0 | N173: 3.508846649 | O173: 0 | P173: 0 | Q173: 0 | R173: 0 | S173: 0 | T173: 0 | U173: 0 | V173: 0 | W173: 0 | X173: 0 | Y173: 0 | Z173: 0 | AA173: 0 | AB173: 0 | AC173: 0
A174: Hide | C174: Metering | I174: 0 | J174: 0 | K174: 0 | L174: 0 | M174: 0 | N174: 0 | O174: 0 | P174: 0 | Q174: 0 | R174: 0 | S174: 0 | T174: 0 | U174: 0 | V174: 0 | W174: 0 | X174: 0 | Y174: 0 | Z174: 0 | AA174: 0 | AB174: 0 | AC174: 0
A175: Hide | C175: Other Depreciable | I175: 0 | J175: 0 | K175: 0 | L175: 0 | M175: 0 | N175: 0.06394605727 | O175: 0 | P175: 0.03405415633 | Q175: 0.02690329251 | R175: 0.08554448117 | S175: 0.01039483546 | T175: 0 | U175: 0 | V175: 0 | W175: 0 | X175: 0 | Y175: 0 | Z175: 0 | AA175: 0 | AB175: 0 | AC175: 0
A176: Hide | C176: Non-depreciable | I176: 0 | J176: 0 | K176: 0 | L176: 0 | M176: 0 | N176: 1.932514863 | O176: 0 | P176: 0 | Q176: 0 | R176: 0 | S176: 0 | T176: 0 | U176: 0 | V176: 0 | W176: 0 | X176: 0 | Y176: 0 | Z176: 0 | AA176: 0 | AB176: 0 | AC176: 0
A177: Hide | C177: Cost of Raising Equity | Y177: 0 | Z177: 0 | AA177: 0 | AB177: 0 | AC177: 0
A178: Hide | C178: Total | I178: =SUM(I172:I177) -> 0 | J178: =SUM(J172:J177) -> 0 | K178: =SUM(K172:K177) -> 0 | L178: =SUM(L172:L177) -> 0 | M178: =SUM(M172:M177) -> 0 | N178: =SUM(N172:N177) -> 5.50530757 | O178: =SUM(O172:O177) -> 0 | P178: =SUM(P172:P177) -> 0.03405415633 | Q178: =SUM(Q172:Q177) -> 0.02690329251 | R178: =SUM(R172:R177) -> 0.08554448117 | S178: =SUM(S172:S177) -> 0.01039483546 | T178: =SUM(T172:T177) -> 0 | U178: =SUM(U172:U177) -> 0 | V178: =SUM(V172:V177) -> 0 | W178: =SUM(W172:W177) -> 0 | X178: =SUM(X172:X177) -> 0 | Y178: =SUM(Y172:Y177) -> 0 | Z178: =SUM(Z172:Z177) -> 0 | AA178: =SUM(AA172:AA177) -> 0 | AB178: =SUM(AB172:AB177) -> 0 | AC178: =SUM(AC172:AC177) -> 0
A179: Hide | B179: Redundant & Disposed Asset (Sub 69) | I179: AA1 [m$ n$ 31/12/2004] | N179: AA2 [m$ OD] | T179: AA3 [m$ OD] | Y179: AA4 [m$ OD]
A180: Hide | C180: Pipeline | I180: 0 | J180: 0 | K180: 0 | L180: 0 | M180: 0 | N180: 0 | O180: 0 | P180: 0 | Q180: 0 | R180: 0 | S180: 0 | T180: 0 | U180: 0 | V180: 0 | W180: 0 | X180: 0 | Y180: 0 | Z180: 0 | AA180: 0 | AB180: 0 | AC180: 0
A181: Hide | C181: Compression | I181: 0 | J181: 0 | K181: 0 | L181: 0 | M181: 0 | N181: 3.171434526 | O181: 0 | P181: 0 | Q181: 0 | R181: 0 | S181: 0 | T181: 0 | U181: 0 | V181: 0 | W181: 0 | X181: 0 | Y181: 0 | Z181: 0 | AA181: 0 | AB181: 0 | AC181: 0
A182: Hide | C182: Metering | I182: 0 | J182: 0 | K182: 0 | L182: 0 | M182: 0 | N182: 0 | O182: 0 | P182: 0 | Q182: 0 | R182: 0 | S182: 0 | T182: 0 | U182: 0 | V182: 0 | W182: 0 | X182: 0 | Y182: 0 | Z182: 0 | AA182: 0 | AB182: 0 | AC182: 0
A183: Hide | C183: Other Depreciable | I183: 0 | J183: 0 | K183: 0 | L183: 0 | M183: 0 | N183: 0.05779697836 | O183: 0 | P183: 0.02701299752 | Q183: 0.02228250896 | R183: 0.06440658674 | S183: 0.009903227872 | T183: 0 | U183: 0 | V183: 0 | W183: 0 | X183: 0 | Y183: 0 | Z183: 0 | AA183: 0 | AB183: 0 | AC183: 0
A184: Hide | C184: Non-depreciable | I184: 0 | J184: 0 | K184: 0 | L184: 0 | M184: 0 | N184: 1.746683447 | O184: 0 | P184: 0 | Q184: 0 | R184: 0 | S184: 0 | T184: 0 | U184: 0 | V184: 0 | W184: 0 | X184: 0 | Y184: 0 | Z184: 0 | AA184: 0 | AB184: 0 | AC184: 0
A185: Hide | C185: Cost of Raising Equity | Y185: 0 | Z185: 0 | AA185: 0 | AB185: 0 | AC185: 0
A186: Hide | C186: Total | I186: =SUM(I180:I185) -> 0 | J186: =SUM(J180:J185) -> 0 | K186: =SUM(K180:K185) -> 0 | L186: =SUM(L180:L185) -> 0 | M186: =SUM(M180:M185) -> 0 | N186: =SUM(N180:N185) -> 4.975914951 | O186: =SUM(O180:O185) -> 0 | P186: =SUM(P180:P185) -> 0.02701299752 | Q186: =SUM(Q180:Q185) -> 0.02228250896 | R186: =SUM(R180:R185) -> 0.06440658674 | S186: =SUM(S180:S185) -> 0.009903227872 | T186: =SUM(T180:T185) -> 0 | U186: =SUM(U180:U185) -> 0 | V186: =SUM(V180:V185) -> 0 | W186: =SUM(W180:W185) -> 0 | X186: =SUM(X180:X185) -> 0 | Y186: =SUM(Y180:Y185) -> 0 | Z186: =SUM(Z180:Z185) -> 0 | AA186: =SUM(AA180:AA185) -> 0 | AB186: =SUM(AB180:AB185) -> 0 | AC186: =SUM(AC180:AC185) -> 0
A187: Hide | B187: Adjustment to Redundant & Disposed Asset | I187: AA1 [m$ n$ 31/12/2004] | N187: AA2 [m$ OD] | T187: AA3 [m$ OD] | Y187: AA4 [m$ OD]
A188: Hide | C188: Pipeline | I188: 0 | J188: 0 | K188: 0 | L188: 0 | M188: 0 | N188: 0 | O188: 0 | P188: 0 | Q188: 0 | R188: 0 | S188: 0 | T188: 0 | U188: 0 | V188: 0 | W188: 0 | X188: 0 | Y188: 0 | Z188: 0 | AA188: 0 | AB188: 0 | AC188: 0
A189: Hide | C189: Compression | I189: 0 | J189: 0 | K189: 0 | L189: 0 | M189: 0 | N189: 0.6928776192 | O189: 0 | P189: 0 | Q189: 0 | R189: 0 | S189: 0 | T189: 0 | U189: 0 | V189: 0 | W189: 0 | X189: 0 | Y189: 0 | Z189: 0 | AA189: 0 | AB189: 0 | AC189: 0
A190: Hide | C190: Metering | I190: 0 | J190: 0 | K190: 0 | L190: 0 | M190: 0 | N190: 0 | O190: 0 | P190: 0 | Q190: 0 | R190: 0 | S190: 0 | T190: 0 | U190: 0 | V190: 0 | W190: 0 | X190: 0 | Y190: 0 | Z190: 0 | AA190: 0 | AB190: 0 | AC190: 0
A191: Hide | C191: Other Depreciable | I191: 0 | J191: 0 | K191: 0 | L191: 0 | M191: 0 | N191: 0.01149823176 | O191: 0 | P191: 0.005213443503 | Q191: 0.002965772104 | R191: 0.01791284772 | S191: 0.001171320657 | T191: 0 | U191: 0 | V191: 0 | W191: 0 | X191: 0 | Y191: 0 | Z191: 0 | AA191: 0 | AB191: 0 | AC191: 0
A192: Hide | C192: Non-depreciable | I192: 0 | J192: 0 | K192: 0 | L192: 0 | M192: 0 | N192: 0.3474882538 | O192: 0 | P192: 0 | Q192: 0 | R192: 0 | S192: 0 | T192: 0 | U192: 0 | V192: 0 | W192: 0 | X192: 0 | Y192: 0 | Z192: 0 | AA192: 0 | AB192: 0 | AC192: 0
A193: Hide | C193: Cost of Raising Equity | Y193: 0 | Z193: 0 | AA193: 0 | AB193: 0 | AC193: 0
A194: Hide | C194: Total | I194: =SUM(I188:I193) -> 0 | J194: =SUM(J188:J193) -> 0 | K194: =SUM(K188:K193) -> 0 | L194: =SUM(L188:L193) -> 0 | M194: =SUM(M188:M193) -> 0 | N194: =SUM(N188:N193) -> 1.051864105 | O194: =SUM(O188:O193) -> 0 | P194: =SUM(P188:P193) -> 0.005213443503 | Q194: =SUM(Q188:Q193) -> 0.002965772104 | R194: =SUM(R188:R193) -> 0.01791284772 | S194: =SUM(S188:S193) -> 0.001171320657 | T194: =SUM(T188:T193) -> 0 | U194: =SUM(U188:U193) -> 0 | V194: =SUM(V188:V193) -> 0 | W194: =SUM(W188:W193) -> 0 | X194: =SUM(X188:X193) -> 0 | Y194: =SUM(Y188:Y193) -> 0 | Z194: =SUM(Z188:Z193) -> 0 | AA194: =SUM(AA188:AA193) -> 0 | AB194: =SUM(AB188:AB193) -> 0 | AC194: =SUM(AC188:AC193) -> 0
A195: =ROW() -> 195 | B195: Modelled Redundant & Disposed Asset (modelled) | I195: ="AA1 [m$ "&$E$28&"]" -> AA1 [m$ 31/12/2015] | N195: ="AA2 [m$ "&$E$28&"]" -> AA2 [m$ 31/12/2015] | T195: ="AA3 [m$ "&$E$28&"]" -> AA3 [m$ 31/12/2015] | Y195: ="AA4 [m$ "&$E$28&"]" -> AA4 [m$ 31/12/2015]
A196: =ROW() -> 196 | C196: Pipeline | I196: =I164/$M$28 -> 0 | J196: 0 | K196: 0 | L196: 0 | M196: 0 | N196: =(N180+N188)/N$28 -> 0 | O196: 0 | P196: 0 | Q196: 0 | R196: 0 | S196: 0 | T196: =T164/T$28 -> 0 | U196: =U164/U$28 -> 0 | V196: 0 | W196: 0 | X196: 0 | Y196: 0 | Z196: 0 | AA196: 0 | AB196: 0 | AC196: 0
A197: =ROW() -> 197 | C197: Compression | I197: 0 | J197: 0 | K197: 0 | L197: 0 | M197: 0 | N197: 4.999981617 | O197: 0 | P197: 0 | Q197: 0 | R197: 0 | S197: 0 | T197: =T165/T$28 -> 0.001052061985 | U197: 0 | V197: 0 | W197: 0 | X197: 0 | Y197: 0 | Z197: 0 | AA197: 0 | AB197: 0 | AC197: 0
A198: =ROW() -> 198 | C198: Metering | I198: 0 | J198: 0 | K198: 0 | L198: 0 | M198: 0 | N198: 0 | O198: 0 | P198: 0 | Q198: 0 | R198: 0 | S198: 0 | T198: =T166/T$28 -> 0 | U198: 0 | V198: 0 | W198: 0.02598175074 | X198: 0 | Y198: 0 | Z198: 0 | AA198: 0 | AB198: 0 | AC198: 0
A199: =ROW() -> 199 | C199: Other Depreciable | I199: 0 | J199: 0 | K199: 0 | L199: 0 | M199: 0 | N199: 0.08966014229 | O199: 0 | P199: 0.03922312518 | Q199: 0.02963772798 | R199: 0.09463545079 | S199: 0.01240217805 | T199: =T167/T$28 -> 1.884400697 | U199: 0.02667854721 | V199: 0.03605723524 | W199: 0 | X199: 0 | Y199: 0 | Z199: 0 | AA199: 0 | AB199: 0 | AC199: 0
A200: =ROW() -> 200 | C200: Non-depreciable | I200: 0 | J200: 0 | K200: 0 | L200: 0 | M200: 0 | N200: 2.709620656 | O200: 0 | P200: 0 | Q200: 0 | R200: 0 | S200: 0 | T200: =T168/T$28 -> 0 | U200: 0 | V200: 0 | W200: 0 | X200: 0 | Y200: 0 | Z200: 0 | AA200: 0 | AB200: 0 | AC200: 0
A201: =ROW() -> 201 | C201: Cost of Raising Equity | Y201: =Y169/Y$28 -> 0 | Z201: =Z169/Z$28 -> 0 | AA201: =AA169/AA$28 -> 0 | AB201: =AB169/AB$28 -> 0 | AC201: =AC169/AC$28 -> 0
... 894 more rows

Sheet CoS_Tariff_Revenue
A1: =Main!A1 -> ERA, DBNGP Tariff Model, June 2016 [Final Decision]
A2: CoS_Tariff_Revenue
A3: Ref. | B3: =COLUMN() -> 2 | C3: =COLUMN() -> 3 | D3: =COLUMN() -> 4 | E3: =COLUMN() -> 5 | F3: =COLUMN() -> 6 | G3: =COLUMN() -> 7 | H3: =COLUMN() -> 8 | I3: =COLUMN() -> 9 | J3: =COLUMN() -> 10 | K3: =COLUMN() -> 11 | L3: =COLUMN() -> 12 | M3: =COLUMN() -> 13 | N3: =COLUMN() -> 14 | O3: =COLUMN() -> 15 | P3: =COLUMN() -> 16 | Q3: =COLUMN() -> 17 | R3: =COLUMN() -> 18 | S3: =COLUMN() -> 19 | T3: =COLUMN() -> 20 | U3: =COLUMN() -> 21 | V3: =COLUMN() -> 22 | W3: =COLUMN() -> 23 | X3: =COLUMN() -> 24 | Y3: =COLUMN() -> 25 | Z3: =COLUMN() -> 26 | AA3: =COLUMN() -> 27 | AB3: =COLUMN() -> 28 | AC3: =COLUMN() -> 29 | AD3: =COLUMN() -> 30 | AE3: =COLUMN() -> 31
A5: Regulatory Period | I5: =Inputs!I$5 -> AA1 | J5: =Inputs!J$5 -> AA1 | K5: =Inputs!K$5 -> AA1 | L5: =Inputs!L$5 -> AA1 | M5: =Inputs!M$5 -> AA1 | N5: =Inputs!N$5 -> AA2 | O5: =Inputs!O$5 -> AA2 | P5: =Inputs!P$5 -> AA2 | Q5: =Inputs!Q$5 -> AA2 | R5: =Inputs!R$5 -> AA2 | S5: =Inputs!S$5 -> AA2 | T5: =Inputs!T$5 -> AA3 | U5: =Inputs!U$5 -> AA3 | V5: =Inputs!V$5 -> AA3 | W5: =Inputs!W$5 -> AA3 | X5: =Inputs!X$5 -> AA3 | Y5: =Z5 -> AA4 | Z5: =AA5 -> AA4 | AA5: =Inputs!Y$5 -> AA4 | AB5: =Inputs!Z$5 -> AA4 | AC5: =Inputs!AA$5 -> AA4 | AD5: =Inputs!AB$5 -> AA4 | AE5: =Inputs!AC$5 -> AA4
A6: Year | H6: =Inputs!H$6 -> 1999 | I6: =Inputs!I$6 -> 2000 | J6: =Inputs!J$6 -> 2001 | K6: =Inputs!K$6 -> 2002 | L6: =Inputs!L$6 -> 2003 | M6: =Inputs!M$6 -> 2004 | N6: =Inputs!N$6 -> 2005 | O6: =Inputs!O$6 -> 2006 | P6: =Inputs!P$6 -> 2007 | Q6: =Inputs!Q$6 -> 2008 | R6: =Inputs!R$6 -> 2009 | S6: =Inputs!S$6 -> 2010 | T6: =Inputs!T$6 -> 2011 | U6: =Inputs!U$6 -> 2012 | V6: =Inputs!V$6 -> 2013 | W6: =Inputs!W$6 -> 2014 | X6: =Inputs!X$6 -> 2015 | Y6: =Z6 -> 2016 | Z6: 2016 | AA6: =Inputs!Y$6 -> 2016 | AB6: =Inputs!Z$6 -> 2017 | AC6: =Inputs!AA$6 -> 2018 | AD6: =Inputs!AB$6 -> 2019 | AE6: =Inputs!AC$6 -> 2020
A7: Days | H7: =Inputs!H$7 -> 365 | I7: =Inputs!I$7 -> 366 | J7: =Inputs!J$7 -> 365 | K7: =Inputs!K$7 -> 365 | L7: =Inputs!L$7 -> 365 | M7: =Inputs!M$7 -> 366 | N7: =Inputs!N$7 -> 365 | O7: =Inputs!O$7 -> 365 | P7: =Inputs!P$7 -> 365 | Q7: =Inputs!Q$7 -> 366 | R7: =Inputs!R$7 -> 365 | S7: =Inputs!S$7 -> 365 | T7: =Inputs!T$7 -> 365 | U7: =Inputs!U$7 -> 366 | V7: =Inputs!V$7 -> 365 | W7: =Inputs!W$7 -> 365 | X7: =Inputs!X$7 -> 365 | Y7: =DATEVALUE("1/7/2016")-DATEVALUE("1/1/2016") -> 182 | Z7: =AA7-Y7 -> 184 | AA7: =Inputs!Y$7 -> 366 | AB7: =Inputs!Z$7 -> 365 | AC7: =Inputs!AA$7 -> 365 | AD7: =Inputs!AB$7 -> 365 | AE7: =Inputs!AC$7 -> 366
A8: Project Year | H8: =Inputs!H$8 -> 0 | I8: =Inputs!I$8 -> 1 | J8: =Inputs!J$8 -> 2 | K8: =Inputs!K$8 -> 3 | L8: =Inputs!L$8 -> 4 | M8: =Inputs!M$8 -> 5 | N8: =Inputs!N$8 -> 6 | O8: =Inputs!O$8 -> 7 | P8: =Inputs!P$8 -> 8 | Q8: =Inputs!Q$8 -> 9 | R8: =Inputs!R$8 -> 10 | S8: =Inputs!S$8 -> 11 | T8: =Inputs!T$8 -> 12 | U8: =Inputs!U$8 -> 13 | V8: =Inputs!V$8 -> 14 | W8: =Inputs!W$8 -> 15 | X8: =Inputs!X$8 -> 16 | AA8: =Inputs!Y$8 -> 17 | AB8: =Inputs!Z$8 -> 18 | AC8: =Inputs!AA$8 -> 19 | AD8: =Inputs!AB$8 -> 20 | AE8: =Inputs!AC$8 -> 21
A9: Financial Parameters
A10: =ROW() -> 10 | B10: Modelled Inflation
A11: =ROW() -> 11 | C11: Inflation | I11: =Inputs!I$27 -> 0.05801772764 | J11: =Inputs!J$27 -> 0.03122619954 | K11: =Inputs!K$27 -> 0.03028064993 | L11: =Inputs!L$27 -> 0.02365591398 | M11: =Inputs!M$27 -> 0.02591036415 | N11: =Inputs!N$27 -> 0.02798634812 | O11: =Inputs!O$27 -> 0.03253652058 | P11: =Inputs!P$27 -> 0.02958199357 | Q11: =Inputs!Q$27 -> 0.03685196752 | R11: =Inputs!R$27 -> 0.02108433735 | S11: =Inputs!S$27 -> 0.02654867257 | T11: =Inputs!T$27 -> 0.03103448276 | U11: =Inputs!U$27 -> 0.02204408818 | V11: =Inputs!V$27 -> 0.02745098039 | W11: =Inputs!W$27 -> 0.01717557252 | X11: =Inputs!X$27 -> 0.01688555347 | AA11: =Inputs!Y$27 -> 0.0143 | AB11: =Inputs!Z$27 -> 0.0143 | AC11: =Inputs!AA$27 -> 0.0143 | AD11: =Inputs!AB$27 -> 0.0143 | AE11: =Inputs!AC$27 -> 0.0143
A12: =ROW() -> 12 | C12: =Inputs!C28 -> Inflation Factor (convert 31/12/2015 $ to nominal $) | I12: =Inputs!I$28 -> 0.6738194556 | J12: =Inputs!J$28 -> 0.6948602764 | K12: =Inputs!K$28 -> 0.7159010971 | L12: =Inputs!L$28 -> 0.7328363919 | M12: =Inputs!M$28 -> 0.7518244497 | N12: =Inputs!N$28 -> 0.7728652705 | O12: =Inputs!O$28 -> 0.7980116172 | P12: =Inputs!P$28 -> 0.8216183918 | Q12: =Inputs!Q$28 -> 0.8518966461 | R12: =Inputs!R$28 -> 0.8698583223 | S12: =Inputs!S$28 -> 0.8929519061 | T12: =Inputs!T$28 -> 0.9206642066 | U12: =Inputs!U$28 -> 0.9409594096 | V12: =Inputs!V$28 -> 0.9667896679 | W12: =Inputs!W$28 -> 0.9833948339 | X12: =Inputs!X$28 -> 1 | Y12: =AA12 -> 1.0143 | Z12: =AA12 -> 1.0143 | AA12: =Inputs!Y$28 -> 1.0143 | AB12: =Inputs!Z$28 -> 1.02880449 | AC12: =Inputs!AA$28 -> 1.043516394 | AD12: =Inputs!AB$28 -> 1.058438679 | AE12: =Inputs!AC$28 -> 1.073574352
A13: =ROW() -> 13 | C13: =Inputs!C29 -> Inflation Factor (convert nominal to real 31/12/2015 $) | I13: =Inputs!I$29 -> 1.484077065 | J13: =Inputs!J$29 -> 1.439138247 | K13: =Inputs!K$29 -> 1.396840994 | L13: =Inputs!L$29 -> 1.364561055 | M13: =Inputs!M$29 -> 1.330097738 | N13: =Inputs!N$29 -> 1.293886578 | O13: =Inputs!O$29 -> 1.253114589 | P13: =Inputs!P$29 -> 1.217110048 | Q13: =Inputs!Q$29 -> 1.173851317 | R13: =Inputs!R$29 -> 1.149612499 | S13: =Inputs!S$29 -> 1.119881142 | T13: =Inputs!T$29 -> 1.086172345 | U13: =Inputs!U$29 -> 1.062745098 | V13: =Inputs!V$29 -> 1.034351145 | W13: =Inputs!W$29 -> 1.016885553 | X13: =Inputs!X$29 -> 1 | Y13: =AA13 -> 0.985901607 | Z13: =AA13 -> 0.985901607 | AA13: =Inputs!Y$29 -> 0.985901607 | AB13: =Inputs!Z$29 -> 0.9720019787 | AC13: =Inputs!AA$29 -> 0.9582983129 | AD13: =Inputs!AB$29 -> 0.9447878466 | AE13: =Inputs!AC$29 -> 0.9314678563
A14: =ROW() -> 14 | B14: Real Post Tax WACC
A15: =ROW() -> 15 | C15: WACC | AA15: =Inputs!Y$34 -> 0.04333037563 | AB15: =Inputs!Z$34 -> 0.04333037563 | AC15: =Inputs!AA$34 -> 0.04333037563 | AD15: =Inputs!AB$34 -> 0.04333037563 | AE15: =Inputs!AC$34 -> 0.04333037563
A16: =ROW() -> 16 | C16: Discounting Factor | X16: =Inputs!X$35 -> 1 | Y16: =AA16 -> 0.9584691708 | Z16: =AA16 -> 0.9584691708 | AA16: =Inputs!Y$35 -> 0.9584691708 | AB16: =Inputs!Z$35 -> 0.9186631514 | AC16: =Inputs!AA$35 -> 0.8805103089 | AD16: =Inputs!AB$35 -> 0.8439419857 | AE16: =Inputs!AC$35 -> 0.8088923752
A17: =ROW() -> 17 | B17: Nominal Post Tax WACC
A18: =ROW() -> 18 | C18: WACC | AA18: =Inputs!Y$37 -> 0.05825 | AB18: =Inputs!Z$37 -> 0.05825 | AC18: =Inputs!AA$37 -> 0.05825 | AD18: =Inputs!AB$37 -> 0.05825 | AE18: =Inputs!AC$37 -> 0.05825
A19: =ROW() -> 19 | C19: Discounting Factor | X19: =Inputs!X$38 -> 1 | Y19: =AA19 -> 0.9449562958 | Z19: =AA19 -> 0.9449562958 | AA19: =Inputs!Y$38 -> 0.9449562958 | AB19: =Inputs!Z$38 -> 0.8929424009 | AC19: =Inputs!AA$38 -> 0.8437915435 | AD19: =Inputs!AB$38 -> 0.7973461314 | AE19: =Inputs!AC$38 -> 0.7534572467
A20: =ROW() -> 20
A21: ="Capital Base [m$ "&Inputs!$E$28&"]" -> Capital Base [m$ 31/12/2015]
A22: =ROW() -> 22 | B22: Asset Account
A23: =ROW() -> 23 | C23: Opening Value | I23: =Asset!I29 -> 2433.778758 | J23: =Asset!J29 -> 2381.992662 | K23: =Asset!K29 -> 2327.075305 | L23: =Asset!L29 -> 2268.710024 | M23: =Asset!M29 -> 2209.110053 | N23: =Asset!N29 -> 2152.592903 | O23: =Asset!O29 -> 2153.513511 | P23: =Asset!P29 -> 2575.85719 | Q23: =Asset!Q29 -> 2519.682788 | R23: =Asset!R29 -> 3183.54595 | S23: =Asset!S29 -> 3105.08281 | T23: =Asset!T29 -> 3750.78734 | U23: =Asset!U29 -> 3806.55822 | V23: =Asset!V29 -> 3735.551234 | W23: =Asset!W29 -> 3652.53065 | X23: =Asset!X29 -> 3558.840469 | AA23: =Asset!Y29 -> 3476.186331 | AB23: =Asset!Z29 -> 3403.194685 | AC23: =Asset!AA29 -> 3325.595367 | AD23: =Asset!AB29 -> 3240.976857 | AE23: =Asset!AC29 -> 3163.392318
A24: =ROW() -> 24 | C24: Capex | I24: =Asset!I30 -> 7.508685301 | J24: =Asset!J30 -> 4.70225752 | K24: =Asset!K30 -> 1.753387926 | L24: =Asset!L30 -> 1.056104212 | M24: =Asset!M30 -> 4.491348228 | N24: =Asset!N30 -> 67.50257208 | O24: =Asset!O30 -> 481.5068878 | P24: =Asset!P30 -> 6.360549949 | Q24: =Asset!Q30 -> 736.4948064 | R24: =Asset!R30 -> 1.47353372 | S24: =Asset!S30 -> 693.0568228 | T24: =Asset!T30 -> 158.8867551 | U24: =Asset!U30 -> 32.69948975 | V24: =Asset!V30 -> 21.48782152 | W24: =Asset!W30 -> 12.52320285 | X24: =Asset!X30 -> 22.4612722 | AA24: =Asset!Y30 -> 25.28901531 | AB24: =Asset!Z30 -> 23.16507431 | AC24: =Asset!AA30 -> 16.83482281 | AD24: =Asset!AB30 -> 17.96003812 | AE24: =Asset!AC30 -> 21.69495979
A25: =ROW() -> 25 | C25: Depreciation | I25: =Asset!I32 -> -59.29478139 | J25: =Asset!J32 -> -59.61961422 | K25: =Asset!K32 -> -60.11866971 | L25: =Asset!L32 -> -60.65607498 | M25: =Asset!M32 -> -61.0084981 | N25: =Asset!N32 -> -58.78270184 | O25: =Asset!O32 -> -59.16320878 | P25: =Asset!P32 -> -62.49572894 | Q25: =Asset!Q32 -> -72.60200618 | R25: =Asset!R32 -> -79.84203813 | S25: =Asset!S32 -> -81.73698682 | T25: =Asset!T32 -> -98.31407038 | U25: =Asset!U32 -> -103.3119005 | V25: =Asset!V32 -> -103.7223698 | W25: =Asset!W32 -> -103.9958341 | X25: =Asset!X32 -> -104.3357447 | AA25: =Asset!Y32 -> -98.28066171 | AB25: =Asset!Z32 -> -100.7643921 | AC25: =Asset!AA32 -> -101.453333 | AD25: =Asset!AB32 -> -95.54457654 | AE25: =Asset!AC32 -> -86.36169929
A26: =ROW() -> 26 | C26: Asset Adjustment, Redundant Assets & Asset Disposal | I26: =Asset!I31 -> 0 | J26: =Asset!J31 -> 0 | K26: =Asset!K31 -> 0 | L26: =Asset!L31 -> 0 | M26: =Asset!M31 -> 0 | N26: =Asset!N31 -> -7.799262415 | O26: =Asset!O31 -> 0 | P26: =Asset!P31 -> -0.03922312518 | Q26: =Asset!Q31 -> -0.02963772798 | R26: =Asset!R31 -> -0.09463545079 | S26: =Asset!S31 -> -0.01240217805 | T26: =Asset!T31 -> -4.801804802 | U26: =Asset!U31 -> -0.394574954 | V26: =Asset!V31 -> -0.786035779 | W26: =Asset!W31 -> -2.217549898 | X26: =Asset!X31 -> -0.7796653756 | AA26: =Asset!Y31 -> 0 | AB26: =Asset!Z31 -> 0 | AC26: =Asset!AA31 -> 0 | AD26: =Asset!AB31 -> 0 | AE26: =Asset!AC31 -> 0
A27: =ROW() -> 27 | C27: Closing Value | I27: =Asset!I33 -> 2381.992662 | J27: =Asset!J33 -> 2327.075305 | K27: =Asset!K33 -> 2268.710024 | L27: =Asset!L33 -> 2209.110053 | M27: =Asset!M33 -> 2152.592903 | N27: =Asset!N33 -> 2153.513511 | O27: =Asset!O33 -> 2575.85719 | P27: =Asset!P33 -> 2519.682788 | Q27: =Asset!Q33 -> 3183.54595 | R27: =Asset!R33 -> 3105.08281 | S27: =Asset!S33 -> 3750.78734 | T27: =Asset!T33 -> 3806.55822 | U27: =Asset!U33 -> 3735.551234 | V27: =Asset!V33 -> 3652.53065 | W27: =Asset!W33 -> 3558.840469 | X27: =Asset!X33 -> 3476.186331 | AA27: =Asset!Y33 -> 3403.194685 | AB27: =Asset!Z33 -> 3325.595367 | AC27: =Asset!AA33 -> 3240.976857 | AD27: =Asset!AB33 -> 3163.392318 | AE27: =Asset!AC33 -> 3098.725579
A28: Capital Base [m$ nominal]
A29: =ROW() -> 29 | B29: Asset Account
A30: =ROW() -> 30 | C30: Opening Value (start period) | I30: =H36 -> 0 | J30: 1605.032999 | K30: 1616.99219 | L30: 1624.171995 | M30: 1618.91624 | N30: 1618.371975 | O30: 1664.375802 | P30: 2055.563962 | Q30: 2070.21772 | R30: 2712.052118 | S30: 2700.982124 | T30: 3349.272704 | U30: 3504.561903 | V30: 3515.002084 | W30: 3531.228894 | X30: 3499.745332 | AA30: =X36 -> 3476.186331 | AB30: 3451.860369 | AC30: 3421.387445 | AD30: 3382.012483 | AE30: 3348.256785
A31: =ROW() -> 31 | C31: Inflation on Opening Value (start period) | I31: =I30*I$11 -> 0 | J31: 50.11908069 | K31: 48.96357443 | L31: 38.421273 | M31: 41.94670931 | N31: 45.29232147 | O31: 54.15299754 | P31: 60.8076799 | Q31: 76.29159617 | R31: 57.18182175 | S31: 71.70749002 | T31: 103.942946 | U31: 77.25487162 | V31: 96.49025328 | W31: 60.65087795 | X31: 59.09513694 | AA31: 49.70946453 | AB31: 49.36160327 | AC31: 48.92584047 | AD31: 48.36277851 | AE31: =AE30*AE$11 -> 47.88007203
A32: =ROW() -> 32 | C32: Opening Value (end period) | I32: =SUM(I30:I31) -> 0 | J32: 1655.152079 | K32: 1665.955764 | L32: 1662.593268 | M32: 1660.86295 | N32: 1663.664296 | O32: 1718.528799 | P32: 2116.371642 | Q32: 2146.509316 | R32: 2769.233939 | S32: 2772.689614 | T32: 3453.21565 | U32: 3581.816775 | V32: 3611.492337 | W32: 3591.879772 | X32: 3558.840469 | AA32: 3525.895796 | AB32: 3501.221972 | AC32: 3470.313286 | AD32: 3430.375262 | AE32: =SUM(AE30:AE31) -> 3396.136857
A33: =ROW() -> 33 | C33: Capex | I33: =I24*I$12 -> 5.059498241 | J33: 3.26741196 | K33: 1.25525234 | L33: 0.7739516 | M33: 3.37670541 | N33: 52.17039363 | O33: 384.2480902 | P33: 5.22594482 | Q33: 627.4174554 | R33: 1.28176557 | S33: 618.8664109 | T33: 146.2813483 | U33: 30.76889257 | V33: 20.77420383 | W33: 12.31525298 | X33: 22.4612722 | AA33: =AA24*AA$12 -> 25.65064823 | AB33: 23.83233246 | AC33: 17.5674136 | AD33: 19.00959901 | AE33: 23.29115239
A34: =ROW() -> 34 | C34: Depreciation | I34: =I25*I$12 -> -39.95397732 | J34: -41.42730161 | K34: -43.0390216 | L34: -44.45097913 | M34: -45.86768051 | N34: -45.43110875 | O34: -47.21292792 | P34: -51.34764031 | Q34: -61.84940556 | R34: -69.45126134 | S34: -72.98719818 | T34: -90.51424561 | U34: -97.21230487 | V34: -100.2777154 | W34: -102.268966 | X34: -104.3357447 | AA34: -99.68607517 | AB34: -103.666859 | AC34: -105.8682162 | AD34: -101.1280753 | AE34: -92.71570533
A35: =ROW() -> 35 | C35: Asset Adjustment, Redundant Assets & Asset Disposal | I35: =I26*I$12 -> 0 | J35: 0 | K35: 0 | L35: 0 | M35: 0 | N35: -6.027779056 | O35: 0 | P35: -0.03222644103 | Q35: -0.02524828106 | R35: -0.08231943446 | S35: -0.01107454853 | T35: -4.420849809 | U35: -0.3712790157 | V35: -0.7599312697 | W35: -2.180727114 | X35: -0.7796653756 | AA35: 0 | AB35: 0 | AC35: 0 | AD35: 0 | AE35: 0
A36: =ROW() -> 36 | C36: Closing Value | I36: =I27*I$12 -> 1605.032999 | J36: 1616.99219 | K36: 1624.171995 | L36: 1618.91624 | M36: 1618.371975 | N36: 1664.375802 | O36: 2055.563962 | P36: 2070.21772 | Q36: 2712.052118 | R36: 2700.982124 | S36: 3349.272704 | T36: 3504.561903 | U36: 3515.002084 | V36: 3531.228894 | W36: 3499.745332 | X36: 3476.186331 | AA36: 3451.860369 | AB36: 3421.387445 | AC36: 3382.012483 | AD36: 3348.256785 | AE36: 3326.712304
A37: =ROW() -> 37
A38: Cost of Service, Allowable Revenue [m$ nominal]
A39: =ROW() -> 39 | B39: Cost of Service | F39: PV | H39: based nominal post tax WACC
A40: =ROW() -> 40 | C40: OPEX
A41: =ROW() -> 41 | C41: Opex; System Use Gas | F41: =SUMPRODUCT($AA$19:$AE$19,AA41:AE41) -> 155.1563185 | AA41: =Inputs!Y$1143 -> 36.32712851 | AB41: =Inputs!Z$1143 -> 35.29852836 | AC41: =Inputs!AA$1143 -> 36.26661343 | AD41: =Inputs!AB$1143 -> 37.31331563 | AE41: =Inputs!AC$1143 -> 38.43101591
A42: =ROW() -> 42 | C42: Opex; Other Expenses | F42: 298.7086168 | AA42: =Inputs!Y$1144-AA41 -> 67.0073591 | AB42: =Inputs!Z$1144-AB41 -> 69.90838688 | AC42: =Inputs!AA$1144-AC41 -> 72.99402171 | AD42: =Inputs!AB$1144-AD41 -> 70.90124025 | AE42: =Inputs!AC$1144-AE41 -> 72.7856299
A43: =ROW() -> 43 | C43: Depreciation | F43: 426.5896236 | AA43: =-AA$34 -> 99.68607517 | AB43: =-AB$34 -> 103.666859 | AC43: 105.8682162 | AD43: 101.1280753 | AE43: 92.71570533
A44: =ROW() -> 44 | C44: Inflationary Gains on RAB | F44: -206.971012 | AA44: =-AA$31 -> -49.70946453 | AB44: =-AB$31 -> -49.36160327 | AC44: -48.92584047 | AD44: -48.36277851 | AE44: -47.88007203
A45: =ROW() -> 45 | C45: Return on Asset | F45: 843.0812204 | AA45: =AA$18*AA$30 -> 202.4878538 | AB45: =AB$18*AB$30 -> 201.0708665 | AC45: =AC$18*AC$30 -> 199.2958187 | AD45: =AD$18*AD$30 -> 197.0022271 | AE45: =AE$18*AE$30 -> 195.0359577
A46: =ROW() -> 46 | C46: Tax | F46: 75.58340809 | AA46: =-Tax_CoRE!Y38 -> 19.64669678 | AB46: =-Tax_CoRE!Z38 -> 16.25530003 | AC46: =-Tax_CoRE!AA38 -> 16.32361275 | AD46: =-Tax_CoRE!AB38 -> 18.0167938 | AE46: =-Tax_CoRE!AC38 -> 19.06378162
A47: =ROW() -> 47 | C47: Imputation Credits | F47: -30.23336324 | AA47: =-Tax_CoRE!Y39 -> -7.85867871 | AB47: =-Tax_CoRE!Z39 -> -6.502120013 | AC47: =-Tax_CoRE!AA39 -> -6.529445098 | AD47: =-Tax_CoRE!AB39 -> -7.206717521 | AE47: =-Tax_CoRE!AC39 -> -7.62551265
A48: =ROW() -> 48 | C48: Over Depreciation | F48: 0 | AA48: =Asset!$Y$50*AA12 -> 0
A49: =ROW() -> 49 | C49: Net Cost of Service | F49: 1561.914812 | AA49: =SUM(AA40:AA48) -> 367.5869701 | AB49: =SUM(AB40:AB48) -> 370.3362174 | AC49: 375.2929972 | AD49: 368.7921562 | AE49: 362.5265058
A50: =ROW() -> 50 | C50: Total Tariff Revenue | F50: =SUMPRODUCT($AA$19:$AE$19,AA50:AE50) -> 1561.914812 | AA50: =AA168 -> 370.6099215 | AB50: =AB168 -> 361.7533059 | AC50: =AC168 -> 366.3481295 | AD50: =AD168 -> 370.6449042 | AE50: =AE168 -> 376.9637031
A51: =ROW() -> 51 | C51: Check CoS - Revenue (should be 0) | F51: =IF(ROUND(F49-F50,5)=0,"OK",F49-F50) -> OK
A52: =ROW() -> 52
A53: Hide | B53: Cost of Service | F53: PV | H53: based real post tax WACC | AA53: PV | AB53: PV | AC53: PV | AD53: PV | AE53: PV
A54: Hide | C54: OPEX
A55: Hide | C55: Opex; System Use Gas | F55: =SUM(AA55:AE55) -> 155.1563185 | AA55: =AA41*AA$19 -> 34.32754879 | AB55: 31.51955266 | AC55: 30.60146172 | AD55: 29.75162787 | AE55: 28.95612744
A56: Hide | C56: Opex; Other Expenses | F56: 298.7086168 | AA56: 63.31902585 | AB56: 62.42416282 | AC56: 61.59173825 | AD56: 56.53282962 | AE56: 54.8408603
A57: Hide | C57: Depreciation | F57: =SUM(AA57:AE57) -> 426.5896236 | AA57: 94.19898434 | AB57: 92.56853395 | AC57: 89.33070556 | AD57: 80.63407965 | AE57: 69.85732007
A58: Hide | C58: Inflationary Gains on RAB | F58: -206.971012 | AA58: -46.97327147 | AB58: -44.07706854 | AC58: -41.28321045 | AD58: -38.56187435 | AE58: -36.07558725
A59: Hide | C59: Return on Asset | F59: 843.0812204 | AA59: 191.3421722 | AB59: 179.5447023 | AC59: 168.1641265 | AD59: 157.0789637 | AE59: 146.9512557
A60: Hide | C60: Tax | F60: 75.58340809 | AA60: 18.56526981 | AB60: 14.51504664 | AC60: 13.77372639 | AD60: 14.36562084 | AE60: 14.36374441
A61: Hide | C61: Imputation Credits | F61: -30.23336324 | AA61: -7.426107924 | AB61: -5.806018655 | AC61: -5.509490558 | AD61: -5.746248335 | AE61: -5.745497766
A62: Hide | C62: Over Depreciation | F62: 0 | AA62: =AA48*AA$19 -> 0
A63: Hide | C63: Net Cost of Service | F63: 1561.914812 | AA63: =AA49*AA$19 -> 347.3536216 | AB63: =AB49*AB$19 -> 330.6889111 | AC63: 316.6690574 | AD63: 294.054999 | AE63: 273.148223
A64: Hide | C64: Total Revenue | F64: 1561.914812 | AA64: =AA50*AA$19 -> 350.2101786 | AB64: 323.0248655 | AC64: 309.1214536 | AD64: 295.5322805 | AE64: 284.0260339
A65: Hide | C65: Check CoS - Revenue (should be 0) | F65: =IF(ROUND(F63-F64,5)=0,"OK",F63-F64) -> OK
A66: Hide
A67: ="CHECK -- Cost of Service, Allowable Revenue [m$ "&Inputs!$E$28&"]" -> CHECK -- Cost of Service, Allowable Revenue [m$ 31/12/2015]
A68: =ROW() -> 68 | B68: Cost of Service | F68: PV | H68: based on real post tax WACC
A69: =ROW() -> 69 | C69: OPEX
A70: =ROW() -> 70 | C70: Opex; System Use Gas | F70: =SUMPRODUCT($AA$16:$AE$16,AA70:AE70) -> 155.1563185 | AA70: =Inputs!Y$1151 -> 35.81497438 | AB70: =Inputs!Z$1151 -> 34.31023941 | AC70: =Inputs!AA$1151 -> 34.75423446 | AD70: =Inputs!AB$1151 -> 35.25316713 | AE70: =Inputs!AC$1151 -> 35.79725601
A71: =ROW() -> 71 | C71: Opex; Other Expenses | F71: =SUMPRODUCT($AA$16:$AE$16,AA71:AE71) -> 298.7086168 | AA71: =Inputs!Y$1152-AA70 -> 66.06266302 | AB71: =Inputs!Z$1152-AB70 -> 67.95109037 | AC71: =Inputs!AA$1152-AC70 -> 69.95004785 | AD71: =Inputs!AB$1152-AD70 -> 66.9866301 | AE71: =Inputs!AC$1152-AE70 -> 67.79747465
A72: =ROW() -> 72 | C72: Depreciation | F72: 426.5896236 | AA72: =-AA25 -> 98.28066171 | AB72: =-AB25 -> 100.7643921 | AC72: =-AC25 -> 101.453333 | AD72: =-AD25 -> 95.54457654 | AE72: =-AE25 -> 86.36169929
A73: =ROW() -> 73 | C73: Return on Asset | F73: 636.1102084 | AA73: =AA$15*AA$23 -> 150.6244595 | AB73: =AB$15*AB$23 -> 147.461704 | AC73: =AC$15*AC$23 -> 144.0992964 | AD73: =AD$15*AD$23 -> 140.4327446 | AE73: =AE$15*AE$23 -> 137.0709774
A74: =ROW() -> 74 | C74: Tax | F74: 75.58340809 | AA74: =AA46*AA$13 -> 19.36970992 | AB74: =AB46*AB$13 -> 15.8001838 | AC74: =AC46*AC$13 -> 15.64289055 | AD74: =AD46*AD$13 -> 17.02204782 | AE74: =AE46*AE$13 -> 17.7572998
A75: =ROW() -> 75 | C75: Imputation Credits | F75: -30.23336324 | AA75: =AA47*AA$13 -> -7.747883969 | AB75: -6.320073518 | AC75: -6.257156221 | AD75: -6.808819128 | AE75: -7.102919921
A76: =ROW() -> 76 | C76: Over Depreciation | F76: =SUMPRODUCT($AA$16:$AE$16,AA76:AE76) -> 0 | AA76: =Asset!$Y$50 -> 0
A77: =ROW() -> 77 | C77: Net Cost of Service | F77: 1561.914812 | AA77: =SUM(AA69:AA76) -> 362.4045845 | AB77: =SUM(AB69:AB76) -> 359.9675361 | AC77: 359.6426461 | AD77: 348.4303471 | AE77: 337.6817872
A78: =ROW() -> 78 | C78: Total Revenue | F78: 1561.914812 | AA78: =AA178 -> 365.3849172 | AB78: =AB178 -> 351.6249292 | AC78: =AC178 -> 351.0707944 | AD78: =AD178 -> 350.1808009 | AE78: =AE178 -> 351.1295725
A79: =ROW() -> 79 | C79: Check CoS - Revenue (should be 0) | F79: =IF(ROUND(F77-F78,5)=0,"OK",F77-F78) -> OK
A80: =ROW() -> 80
A81: Hide | B81: Cost of Service | F81: PV | H81: based on real post tax WACC | AA81: PV | AB81: PV | AC81: PV | AD81: PV | AE81: PV
A82: Hide | C82: OPEX
A83: Hide | C83: Opex; System Use Gas | F83: =SUM(AA83:AE83) -> 155.1563185 | AA83: =AA70*AA$16 -> 34.32754879 | AB83: =AB70*AB$16 -> 31.51955266 | AC83: 30.60146172 | AD83: 29.75162787 | AE83: 28.95612744
A84: Hide | C84: Opex; Other Expenses | F84: 298.7086168 | AA84: 63.31902585 | AB84: =AB71*AB$16 -> 62.42416282 | AC84: 61.59173825 | AD84: 56.53282962 | AE84: 54.8408603
A85: Hide | C85: Depreciation | F85: 426.5896236 | AA85: 94.19898434 | AB85: 92.56853395 | AC85: 89.33070556 | AD85: 80.63407965 | AE85: 69.85732007
A86: Hide | C86: Return on Asset | F86: 636.1102084 | AA86: 144.3689008 | AB86: 135.4676337 | AC86: 126.880916 | AD86: 118.5170893 | AE86: 110.8756685
A87: Hide | C87: Tax | F87: 75.58340809 | AA87: 18.56526981 | AB87: 14.51504664 | AC87: 13.77372639 | AD87: 14.36562084 | AE87: 14.36374441
A88: Hide | C88: Imputation Credits | F88: -30.23336324 | AA88: -7.426107924 | AB88: -5.806018655 | AC88: -5.509490558 | AD88: -5.746248335 | AE88: -5.745497766
A89: Hide | C89: Over Depreciation | F89: =SUM(AA89:AE89) -> 0 | AA89: 0
A90: Hide | C90: Net Cost of Service | F90: 1561.914812 | AA90: 347.3536216 | AB90: =AB77*AB$16 -> 330.6889111 | AC90: 316.6690574 | AD90: 294.054999 | AE90: 273.148223
A91: Hide | C91: Total Revenue | F91: 1561.914812 | AA91: 350.2101786 | AB91: 323.0248655 | AC91: 309.1214536 | AD91: 295.5322805 | AE91: 284.0260339
A92: Hide | C92: Check CoS - Revenue (should be 0) | F92: =IF(ROUND(F90-F91,5)=0,"OK",F90-F91) -> OK
A93: Hide
A94: Credit Foncier Check
A95: =ROW() -> 95 | B95: Net Cash Flow | F95: PV | H95: based nominal post tax WACC
A96: =ROW() -> 96 | C96: Total Tariff Revenue | F96: =X96+SUMPRODUCT($AA$19:$AE$19,AA96:AE96) -> 1561.914812 | AA96: =AA$50 -> 370.6099215 | AB96: =AB$50 -> 361.7533059 | AC96: 366.3481295 | AD96: 370.6449042 | AE96: 376.9637031
A97: =ROW() -> 97 | C97: Opex | F97: =X97+SUMPRODUCT($AA$19:$AE$19,AA97:AE97) -> -453.8649353 | AA97: =-(AA41+AA42) -> -103.3344876 | AB97: =-(AB41+AB42) -> -105.2069152 | AC97: =-(AC41+AC42) -> -109.2606351 | AD97: =-(AD41+AD42) -> -108.2145559 | AE97: =-(AE41+AE42) -> -111.2166458
A98: =ROW() -> 98 | C98: Tax | F98: -75.58340809 | AA98: =-AA$46 -> -19.64669678 | AB98: =-AB$46 -> -16.25530003 | AC98: -16.32361275 | AD98: -18.0167938 | AE98: -19.06378162
A99: =ROW() -> 99 | C99: Imputation Credits | F99: 30.23336324 | AA99: =-AA$47 -> 7.85867871 | AB99: =-AB$47 -> 6.502120013 | AC99: 6.529445098 | AD99: 7.206717521 | AE99: 7.62551265
A100: =ROW() -> 100 | C100: Over Depreciation | F100: =X100+SUMPRODUCT($AA$19:$AE$19,AA100:AE100) -> 0 | AA100: =-AA$48 -> 0
A101: =ROW() -> 101 | C101: Asset Opening Value | F101: -3476.186331 | X101: =-X$36 -> -3476.186331
A102: =ROW() -> 102 | C102: Capex | F102: -93.04899452 | AA102: =-AA$33 -> -25.65064823 | AB102: =-AB$33 -> -23.83233246 | AC102: -17.5674136 | AD102: -19.00959901 | AE102: -23.29115239
A103: =ROW() -> 103 | C103: Asset Residual Value | F103: 2506.535494 | AE103: =AE36 -> 3326.712304
A104: =ROW() -> 104 | C104: Net Cash Flow (should be 0) | F104: 0 | X104: =SUM(X96:X103) -> -3476.186331 | AA104: 229.8367676 | AB104: 222.9608782 | AC104: 229.7259131 | AD104: 232.610673 | AE104: 3557.72994
A105: =ROW() -> 105
A106: =ROW() -> 106 | F106: IRR | G106: Check
A107: =ROW() -> 107 | C107: Net Cash Flow [m$ OD] | E107: Nominal IRR | F107: =IRR(X107:AE107,0.05) -> 0.05825 | G107: =IF(Recalc_From_Year=Inputs!$Y$6,IF(ABS(F107-WACC!$O$34)<0.00001,"OK","Check"),"") -> OK | X107: =X104 -> -3476.186331 | AA107: =AA104 -> 229.8367676 | AB107: 222.9608782 | AC107: 229.7259131 | AD107: 232.610673 | AE107: 3557.72994
A108: =ROW() -> 108 | C108: ="Net Cash Flow [m$ "&Inputs!$E$28&"]" -> Net Cash Flow [m$ 31/12/2015] | E108: Real IRR | F108: =IRR(X108:AE108,0.05) -> 0.04333037563 | G108: =IF(Recalc_From_Year=Inputs!$Y$6,IF(ABS(F108-WACC!$O$35)<0.00001,"OK","Check"),"") -> OK | X108: =X107*X$13 -> -3476.186331 | AA108: =AA107*AA$13 -> 226.5964385 | AB108: =AB107*AB$13 -> 216.7184148 | AC108: 220.1459549 | AD108: 219.7677369 | AE108: 3313.911081
A109: =ROW() -> 109
A110: =ROW() -> 110
A111: =ROW() -> 111
A112: =ROW() -> 112
A113: =ROW() -> 113 | C113: Credit Foncier Check | F113: (A) | X113: Total Revenue Building Block | AA113: (B) | AB113: (A + B)
A114: =ROW() -> 114 | AB114: Difference
A115: =ROW() -> 115 | F115: PV | AA115: PV | AB115: (should be 0)
A116: =ROW() -> 116 | C116: Total Smoothed Revenue | F116: =F96 -> 1561.914812 | X116: Net Cost of Service | AA116: =-F49 -> -1561.914812 | AB116: =ROUND(AA116+F116,0.000001) -> 0
A117: =ROW() -> 117
A118: =ROW() -> 118 | C118: Asset Opening Value | F118: =F101 -> -3476.186331 | X118: Return on Asset | AA118: =F45 -> 843.0812204
A119: =ROW() -> 119 | C119: Capex | F119: =F102 -> -93.04899452 | X119: Inflationary gains | AA119: =F44 -> -206.971012
A120: =ROW() -> 120 | C120: Asset Residual Value | F120: =F103 -> 2506.535494 | X120: Depreciation | AA120: =F43 -> 426.5896236
A121: =ROW() -> 121 | F121: =SUM(F118:F120) -> -1062.699832 | AA121: =SUM(AA118:AA120) -> 1062.699832 | AB121: =ROUND(AA121+F121,0.000001) -> 0
A122: =ROW() -> 122
A123: =ROW() -> 123 | C123: Opex | F123: =F97 -> -453.8649353 | X123: Opex | AA123: =F41+F42 -> 453.8649353 | AB123: =ROUND(AA123+F123,0.000001) -> 0
A124: =ROW() -> 124 | C124: Tax | F124: =F98 -> -75.58340809 | X124: Tax | AA124: =F46 -> 75.58340809 | AB124: =ROUND(AA124+F124,0.000001) -> 0
A125: =ROW() -> 125 | C125: Imputation Credits | F125: =F99 -> 30.23336324 | X125: Imputation Credits | AA125: =F47 -> -30.23336324 | AB125: =ROUND(AA125+F125,0.000001) -> 0
A126: =ROW() -> 126 | C126: Over Depreciation | F126: =F100 -> 0 | X126: Over Depreciation | AA126: =F48 -> 0 | AB126: =ROUND(AA126+F126,0.000001) -> 0
A127: =ROW() -> 127 | F127: =SUM(F123:F126) -> -499.2149802 | AA127: =SUM(AA123:AA126) -> 499.2149802 | AB127: =ROUND(AA127+F127,0.000001) -> 0
A128: =ROW() -> 128
A129: =ROW() -> 129 | C129: Net Cash Flow (should be 0) | F129: =ROUND(F116+F121+F127,0.00001) -> 0 | AA129: =ROUND(AA116+AA121+AA127,0.00001) -> 0 | AB129: =ROUND(AA129+F129,0.000001) -> 0
A130: =ROW() -> 130
A131: =ROW() -> 131
A132: =ROW() -> 132
A133: ="Cost of Service Tariff [m$ "&Inputs!$E$28&"] (Not used for Reference Tariff)" -> Cost of Service Tariff [m$ 31/12/2015] (Not used for Reference Tariff)
A134: =ROW() -> 134
A135: =ROW() -> 135 | B135: ="Cost of Service Tariff [$/TJ OD]" -> Cost of Service Tariff [$/TJ OD]
A136: =ROW() -> 136 | C136: Capacity Reservation | AA136: =1000*((AA49-AA41)/AA$7)/AA152 -> 1.162142434 | AB136: =1000*((AB49-AB41)/AB$7)/AB152 -> 1.194957185 | AC136: =1000*((AC49-AC41)/AC$7)/AC152 -> 1.211990671 | AD136: =1000*((AD49-AD41)/AD$7)/AD152 -> 1.188951184 | AE136: =1000*((AE49-AE41)/AE$7)/AE152 -> 1.15993193
A137: =ROW() -> 137 | C137: Comodity | AA137: =1000*(AA41/AA$7)/AA153 -> 0.1529912603 | AB137: =1000*(AB41/AB$7)/AB153 -> 0.1512754658 | AC137: =1000*(AC41/AC$7)/AC153 -> 0.1544221856 | AD137: =1000*(AD41/AD$7)/AD153 -> 0.1579477352 | AE137: =1000*(AE41/AE$7)/AE153 -> 0.1613397585
A138: =ROW() -> 138 | C138: Total | AA138: =SUM(AA136:AA137) -> 1.315133694 | AB138: 1.346232651 | AC138: 1.366412857 | AD138: 1.346898919 | AE138: 1.321271689
A139: =ROW() -> 139
A140: =ROW() -> 140 | B140: ="Cost of Service Tariff [$/TJ "&Inputs!$E$28&"]" -> Cost of Service Tariff [$/TJ 31/12/2015]
A141: =ROW() -> 141 | C141: Capacity Reservation | AA141: =1000*((AA77-AA70)/AA$7)/AA152 -> 1.145758093 | AB141: =1000*((AB77-AB70)/AB$7)/AB152 -> 1.161500749 | AC141: =1000*((AC77-AC70)/AC$7)/AC152 -> 1.161448615 | AD141: =1000*((AD77-AD70)/AD$7)/AD152 -> 1.123306629 | AE141: =1000*((AE77-AE70)/AE$7)/AE152 -> 1.080439309
A142: =ROW() -> 142 | C142: Comodity | AA142: =1000*(AA70/AA$7)/AA153 -> 0.1508343294 | AB142: =1000*(AB70/AB$7)/AB153 -> 0.1470400521 | AC142: =1000*(AC70/AC$7)/AC153 -> 0.1479825199 | AD142: =1000*(AD70/AD$7)/AD153 -> 0.1492271007 | AE142: =1000*(AE70/AE$7)/AE153 -> 0.1502827989
A143: =ROW() -> 143 | C143: Total | AA143: =SUM(AA141:AA142) -> 1.296592423 | AB143: 1.308540801 | AC143: 1.309431135 | AD143: 1.27253373 | AE143: 1.230722108
A144: =ROW() -> 144
A145: Tariff and Revenue
A146: =ROW() -> 146
A147: =ROW() -> 147 | Z147: X_Factor_2016 | AB147: X_Factor_2017 | AC147: X_Factor_2018 | AD147: X_Factor_2019 | AE147: X_Factor_2020
A148: =ROW() -> 148 | B148: X_Factor (for real $ calculation) | Z148: =X_Factor_2016 -> -0.03895135402 | AB148: =X_Factor_2017 -> 0 | AC148: =X_Factor_2018 -> 0 | AD148: =X_Factor_2019 -> 0 | AE148: =X_Factor_2020 -> 0
A149: =ROW() -> 149
A150: =ROW() -> 150
A151: =ROW() -> 151 | B151: Load F/H Equivalent [TJ/day] | F151: PV | H151: DWAT =
A152: =ROW() -> 152 | C152: Capacity Reservation | F152: =SUMPRODUCT($AA$19:$AE$19,AA152:AE152) -> 3252.753197 | H152: Rev / | Y152: =Z152 -> 778.8043082 | Z152: =AA152 -> 778.8043082 | AA152: 778.8043082 | AB152: 768.1542805 | AC152: 766.3750471 | AD152: 763.8338892 | AE152: 763.4127312 | AF152: <-- from Load data
A153: =ROW() -> 153 | C153: Comodity | F153: =SUMPRODUCT($AA$19:$AE$19,AA153:AE153) -> 2733.247609 | H153: Throughput | Y153: =Z153 -> 648.7589504 | Z153: 648.7589504 | AA153: 648.7589504 | AB153: 639.2860623 | AC153: 643.4346487 | AD153: 647.2284129 | AE153: 650.8177322 | AF153: <-- from Load data
A154: =ROW() -> 154 | C154: Total | H154: =(F153*1000000)/(F49*365.2*1000) -> 4.791713734 | Y154: =SUM(Y152:Y153) -> 1427.563259 | Z154: 1427.563259 | AA154: 1427.563259 | AB154: 1407.440343 | AC154: 1409.809696 | AD154: 1411.062302 | AE154: =SUM(AE152:AE153) -> 1414.230463
A155: =ROW() -> 155
A156: =ROW() -> 156 | B156: Applied Tariff Allocation
A157: =ROW() -> 157 | C157: Capacity Reservation | Y157: =Y159-Y158 -> 0.9342891127 | Z157: =SolverSheet!I22 -> 0.9006627524 | AB157: =IF(Recalc_From_Year=AB$6,SolverSheet!J22,Z157) -> 0.9006627524 | AC157: =IF(Recalc_From_Year=AC$6,SolverSheet!K22,AB157) -> 0.9006627524 | AD157: =IF(Recalc_From_Year=AD$6,SolverSheet!L22,AC157) -> 0.9006627524 | AE157: =IF(Recalc_From_Year=AE$6,SolverSheet!M22,AD157) -> 0.9006627524
A158: =ROW() -> 158 | C158: Comodity | Y158: =Y167/Y168 -> 0.06571088726 | Z158: =SolverSheet!I23 -> 0.09933724765 | AB158: =IF(Recalc_From_Year=AB$6,SolverSheet!J23,Z158) -> 0.09933724765 | AC158: =IF(Recalc_From_Year=AC$6,SolverSheet!K23,AB158) -> 0.09933724765 | AD158: =IF(Recalc_From_Year=AD$6,SolverSheet!L23,AC158) -> 0.09933724765 | AE158: =IF(Recalc_From_Year=AE$6,SolverSheet!M23,AD158) -> 0.09933724765
A159: =ROW() -> 159 | C159: Total | Y159: 1 | Z159: =SUM(Z157:Z158) -> 1 | AB159: =SUM(AB157:AB158) -> 1 | AC159: =SUM(AC157:AC158) -> 1 | AD159: 1 | AE159: 1
A160: =ROW() -> 160
A161: =ROW() -> 161 | B161: Forecast Full Haul Tariff [$ OD /GJ/day]
A162: =ROW() -> 162 | C162: Capacity Reservation Charge | Y162: 1.241241 | Z162: =Z172*Z$12 -> 1.165106271 | AB162: =AB172*AB$12 -> 1.18176729 | AC162: 1.198666563 | AD162: 1.215807494 | AE162: 1.233193542
A163: =ROW() -> 163 | C163: Comodity Charge | Y163: 0.104799 | Z163: =Z173*Z$12 -> 0.1285036489 | AB163: 0.1303412511 | AC163: 0.132205131 | AD163: 0.1340956644 | AE163: 0.1360132324
A164: =ROW() -> 164 | C164: Total | Y164: 1.346041 | Z164: =SUM(Z162:Z163) -> 1.29360992 | AB164: =SUM(AB162:AB163) -> 1.312108541 | AC164: 1.330871694 | AD164: 1.349903159 | AE164: 1.369206774
A165: =ROW() -> 165 | B165: Forecast Tariff Revenue [m$ OD] | F165: PV
A166: =ROW() -> 166 | C166: Capacity Reservation | F166: =SUMPRODUCT($AA$19:$AE$19,AA166:AE166) -> 1432.700583 | Y166: =Y152*(Y162*Y$7)/1000 -> 175.9364586 | Z166: =Z152*(Z162*Z$7)/1000 -> 166.9597201 | AA166: =SUM(Y166:Z166) -> 342.8961787 | AB166: =AB152*(AB162*AB$7)/1000 -> 331.3395549 | AC166: 335.2992723 | AD166: 338.9663629 | AE166: 344.5654478
A167: =ROW() -> 167 | C167: Comodity | F167: =SUMPRODUCT($AA$19:$AE$19,AA167:AE167) -> 129.2142293 | Y167: =Y153*(Y163*Y$7)/1000 -> 12.37405064 | Z167: =Z153*(Z163*Z$7)/1000 -> 15.3396922 | AA167: 27.71374284 | AB167: 30.41375099 | AC167: 31.04885714 | AD167: 31.67854127 | AE167: 32.39825538
A168: =ROW() -> 168 | C168: Total Regulated Revenue | F168: =SUMPRODUCT($AA$19:$AE$19,AA168:AE168) -> 1561.914812 | Y168: =SUM(Y166:Y167) -> 188.3105092 | Z168: 182.2994123 | AA168: 370.6099215 | AB168: =SUM(AB166:AB167) -> 361.7533059 | AC168: 366.3481295 | AD168: 370.6449042 | AE168: 376.9637031
A169: =ROW() -> 169 | C169: Check PV is identical | F169: =IF(ROUND(F49-F168,6)=0,"OK","Wrong") -> OK
A170: =ROW() -> 170
A171: =ROW() -> 171 | B171: ="Forecast Full Haul Tariff [$ /GJ/day] [$ "&TEXT(Inputs!$E$28,"dd/mm/yyyy")&"]" -> Forecast Full Haul Tariff [$ /GJ/day] [$ 31/12/2015]
A172: =ROW() -> 172 | C172: Capacity Reservation Charge | Y172: =Y162*Y$13 -> 1.223741497 | Z172: =Z$174*Z$157 -> 1.148680145 | AB172: =AB$174*AB157 -> 1.148680145 | AC172: =AC$174*AC157 -> 1.148680145 | AD172: 1.148680145 | AE172: 1.148680145
A173: =ROW() -> 173 | C173: Comodity Charge | Y173: =Y163*Y$13 -> 0.1033215025 | Z173: =Z$174*Z$158 -> 0.126691954 | AB173: =AB$174*AB$158 -> 0.126691954 | AC173: 0.126691954 | AD173: 0.126691954 | AE173: 0.126691954
A174: =ROW() -> 174 | C174: Full Haull Tariff | Y174: =SUM(Y172:Y173) -> 1.327062999 | Z174: =Y174*(1+Z148) -> 1.275372098 | AB174: =Z174*(1+AB148) -> 1.275372098 | AC174: =AB174*(1+AC148) -> 1.275372098 | AD174: =AC174*(1+AD148) -> 1.275372098 | AE174: =AD174*(1+AE148) -> 1.275372098
A175: =ROW() -> 175 | B175: ="Forecast Tariff Revenue [m$ "&TEXT(Inputs!$E$28,"dd/mm/yyyy")&"]" -> Forecast Tariff Revenue [m$ 31/12/2015] | F175: PV
A176: =ROW() -> 176 | C176: Capacity Reservation | F176: =SUMPRODUCT($AA$16:$AE$16,AA176:AE176) -> 1432.700583 | Y176: =Y172*(Y$7*Y152)/1000 -> 173.4560372 | Z176: =Z172*(Z$7*Z152)/1000 -> 164.6058563 | AA176: =SUM(Y176:Z176) -> 338.0618936 | AB176: =AB172*(AB$7*AB152)/1000 -> 322.062703 | AC176: 321.316727 | AD176: 320.2513001 | AE176: 320.951639
A177: =ROW() -> 177 | C177: Comodity | F177: =SUMPRODUCT($AA$16:$AE$16,AA177:AE177) -> 129.2142293 | Y177: =Y173*(Y$7*Y153)/1000 -> 12.19959641 | Z177: =Z173*(Z$7*Z153)/1000 -> 15.12342719 | AA177: =SUM(Y177:Z177) -> 27.32302361 | AB177: 29.56222614 | AC177: 29.75406741 | AD177: 29.92950079 | AE177: 30.17793349
A178: =ROW() -> 178 | C178: Total Regulated Revenue | F178: =SUMPRODUCT($AA$16:$AE$16,AA178:AE178) -> 1561.914812 | Y178: =SUM(Y176:Y177) -> 185.6556337 | Z178: 179.7292835 | AA178: 365.3849172 | AB178: =SUM(AB176:AB177) -> 351.6249292 | AC178: 351.0707944 | AD178: 350.1808009 | AE178: 351.1295725
A179: =ROW() -> 179 | C179: Check CoS - Revenue (should be 0) | F179: =IF(ROUND(F168-F178,5)=0,"OK","Wrong") -> OK
A180: =ROW() -> 180
A181: Forecast Tariff (Excluding GST)
A182: =ROW() -> 182
A183: =ROW() -> 183 | B183: Full Haul T1 Service (T1 Service)
A184: =ROW() -> 184 | B184: Tariff [$ OD /GJ/day]
A185: =ROW() -> 185 | C185: Capacity Reservation Tariff | Z185: =Z162 -> 1.165106271 | AB185: =AB162 -> 1.18176729 | AC185: 1.198666563 | AD185: 1.215807494 | AE185: 1.233193542
A186: =ROW() -> 186 | C186: Comodity Tariff | Z186: =Z163 -> 0.1285036489 | AB186: =AB163 -> 0.1303412511 | AC186: 0.132205131 | AD186: 0.1340956644 | AE186: 0.1360132324
A187: =ROW() -> 187 | C187: Total Tariff | Z187: =Z164 -> 1.29360992 | AB187: 1.312108541 | AC187: 1.330871694 | AD187: 1.349903159 | AE187: 1.369206774
A188: =ROW() -> 188 | B188: ="Tariff [$/GJ/day "&Inputs!$E$28&"]" -> Tariff [$/GJ/day 31/12/2015]
A189: =ROW() -> 189 | C189: Capacity Reservation Tariff | Z189: =Z185*Z$13 -> 1.148680145 | AB189: =AB185*AB$13 -> 1.148680145 | AC189: 1.148680145 | AD189: 1.148680145 | AE189: 1.148680145
A190: =ROW() -> 190 | C190: Comodity Tariff | Z190: =Z186*Z$13 -> 0.126691954 | AB190: 0.126691954 | AC190: 0.126691954 | AD190: 0.126691954 | AE190: 0.126691954
A191: =ROW() -> 191 | C191: Total Tariff | Z191: =Z187*Z$13 -> 1.275372099 | AB191: 1.275372099 | AC191: 1.275372099 | AD191: 1.275372099 | AE191: 1.275372099
A192: =ROW() -> 192
A193: =ROW() -> 193 | B193: Part Haul T1 Service (P1 Service)
A194: =ROW() -> 194 | B194: Tariff [$ OD /GJ/day/km]
A195: =ROW() -> 195 | C195: Capacity Reservation Tariff | Z195: 0.0008328136316 | AB195: 0.0008447228665 | AC195: 0.0008568024035 | AD195: 0.0008690546779 | AE195: 0.0008814821598 | AF195: <-- from Load data
A196: =ROW() -> 196 | C196: Comodity Tariff | Z196: 9.185393062e-05 | AB196: 9.316744182e-05 | AC196: 9.449973624e-05 | AD196: 9.585108247e-05 | AE196: 9.722175295e-05 | AF196: <-- from Load data
A197: =ROW() -> 197 | C197: Total Tariff | Z197: 0.0009246675622 | AB197: 0.0009378903083 | AC197: 0.0009513021398 | AD197: 0.0009649057604 | AE197: 0.0009787039127 | AF197: <-- from Load data
A198: =ROW() -> 198 | B198: ="Tariff [$/GJ/day/km "&Inputs!$E$28&"]" -> Tariff [$/GJ/day/km 31/12/2015]
A199: =ROW() -> 199 | C199: Capacity Reservation Tariff | Z199: =Z195*Z$13 -> 0.0008210722977 | AB199: =AB195*AB$13 -> 0.0008210722977 | AC199: 0.0008210722977 | AD199: 0.0008210722977 | AE199: 0.0008210722977
A200: =ROW() -> 200 | C200: Comodity Tariff | Z200: =Z196*Z$13 -> 9.05589378e-05 | AB200: 9.05589378e-05 | AC200: 9.05589378e-05 | AD200: 9.05589378e-05 | AE200: 9.05589378e-05
A201: =ROW() -> 201 | C201: Total Tariff | Z201: =Z197*Z$13 -> 0.0009116312355 | AB201: 0.0009116312355 | AC201: 0.0009116312355 | AD201: 0.0009116312355 | AE201: 0.0009116312355
... 10 more rows

Sheet Tax_CoRE
A1: =Main!A1 -> ERA, DBNGP Tariff Model, June 2016 [Final Decision]
A2: Tax_Core
A3: Ref. | B3: =COLUMN() -> 2 | C3: =COLUMN() -> 3 | D3: =COLUMN() -> 4 | E3: =COLUMN() -> 5 | F3: =COLUMN() -> 6 | G3: =COLUMN() -> 7 | H3: =COLUMN() -> 8 | I3: =COLUMN() -> 9 | J3: =COLUMN() -> 10 | K3: =COLUMN() -> 11 | L3: =COLUMN() -> 12 | M3: =COLUMN() -> 13 | N3: =COLUMN() -> 14 | Q3: =COLUMN() -> 17 | R3: =COLUMN() -> 18 | S3: =COLUMN() -> 19 | T3: =COLUMN() -> 20 | U3: =COLUMN() -> 21 | V3: =COLUMN() -> 22 | W3: =COLUMN() -> 23 | X3: =COLUMN() -> 24 | Y3: =COLUMN() -> 25 | Z3: =COLUMN() -> 26 | AA3: =COLUMN() -> 27 | AB3: =COLUMN() -> 28 | AC3: =COLUMN() -> 29 | AD3: =COLUMN() -> 30
A5: Regulatory Period | I5: =Inputs!I$5 -> AA1 | J5: =Inputs!J$5 -> AA1 | K5: =Inputs!K$5 -> AA1 | L5: =Inputs!L$5 -> AA1 | M5: =Inputs!M$5 -> AA1 | N5: =Inputs!N$5 -> AA2 | O5: =Inputs!O$5 -> AA2 | P5: =Inputs!P$5 -> AA2 | Q5: =Inputs!Q$5 -> AA2 | R5: =Inputs!R$5 -> AA2 | S5: =Inputs!S$5 -> AA2 | T5: =Inputs!T$5 -> AA3 | U5: =Inputs!U$5 -> AA3 | V5: =Inputs!V$5 -> AA3 | W5: =Inputs!W$5 -> AA3 | X5: =Inputs!X$5 -> AA3 | Y5: =Inputs!Y$5 -> AA4 | Z5: =Inputs!Z$5 -> AA4 | AA5: =Inputs!AA$5 -> AA4 | AB5: =Inputs!AB$5 -> AA4 | AC5: =Inputs!AC$5 -> AA4 | AD5: AA5
A6: Year | H6: =Inputs!H$6 -> 1999 | I6: =Inputs!I$6 -> 2000 | J6: =Inputs!J$6 -> 2001 | K6: =Inputs!K$6 -> 2002 | L6: =Inputs!L$6 -> 2003 | M6: =Inputs!M$6 -> 2004 | N6: =Inputs!N$6 -> 2005 | O6: =Inputs!O$6 -> 2006 | P6: =Inputs!P$6 -> 2007 | Q6: =Inputs!Q$6 -> 2008 | R6: =Inputs!R$6 -> 2009 | S6: =Inputs!S$6 -> 2010 | T6: =Inputs!T$6 -> 2011 | U6: =Inputs!U$6 -> 2012 | V6: =Inputs!V$6 -> 2013 | W6: =Inputs!W$6 -> 2014 | X6: =Inputs!X$6 -> 2015 | Y6: =Inputs!Y$6 -> 2016 | Z6: =Inputs!Z$6 -> 2017 | AA6: =Inputs!AA$6 -> 2018 | AB6: =Inputs!AB$6 -> 2019 | AC6: =Inputs!AC$6 -> 2020 | AD6: =AC6+1 -> 2021
A7: Days | H7: =Inputs!H$7 -> 365 | I7: =Inputs!I$7 -> 366 | J7: =Inputs!J$7 -> 365 | K7: =Inputs!K$7 -> 365 | L7: =Inputs!L$7 -> 365 | M7: =Inputs!M$7 -> 366 | N7: =Inputs!N$7 -> 365 | O7: =Inputs!O$7 -> 365 | P7: =Inputs!P$7 -> 365 | Q7: =Inputs!Q$7 -> 366 | R7: =Inputs!R$7 -> 365 | S7: =Inputs!S$7 -> 365 | T7: =Inputs!T$7 -> 365 | U7: =Inputs!U$7 -> 366 | V7: =Inputs!V$7 -> 365 | W7: =Inputs!W$7 -> 365 | X7: =Inputs!X$7 -> 365 | Y7: =Inputs!Y$7 -> 366 | Z7: =Inputs!Z$7 -> 365 | AA7: =Inputs!AA$7 -> 365 | AB7: =Inputs!AB$7 -> 365 | AC7: =Inputs!AC$7 -> 366 | AD7: 365
A8: Project Year | H8: =Inputs!H$8 -> 0 | I8: =Inputs!I$8 -> 1 | J8: =Inputs!J$8 -> 2 | K8: =Inputs!K$8 -> 3 | L8: =Inputs!L$8 -> 4 | M8: =Inputs!M$8 -> 5 | N8: =Inputs!N$8 -> 6 | O8: =Inputs!O$8 -> 7 | P8: =Inputs!P$8 -> 8 | Q8: =Inputs!Q$8 -> 9 | R8: =Inputs!R$8 -> 10 | S8: =Inputs!S$8 -> 11 | T8: =Inputs!T$8 -> 12 | U8: =Inputs!U$8 -> 13 | V8: =Inputs!V$8 -> 14 | W8: =Inputs!W$8 -> 15 | X8: =Inputs!X$8 -> 16 | Y8: =Inputs!Y$8 -> 17 | Z8: =Inputs!Z$8 -> 18 | AA8: =Inputs!AA$8 -> 19 | AB8: =Inputs!AB$8 -> 20 | AC8: =Inputs!AC$8 -> 21 | AD8: =AC8+1 -> 22
A9: Financial Parameters
A10: =ROW() -> 10 | B10: Modelled Inflation
A11: =ROW() -> 11 | C11: Inflation | S11: =Inputs!S$27 -> 0.02654867257 | T11: =Inputs!T$27 -> 0.03103448276 | U11: =Inputs!U$27 -> 0.02204408818 | V11: =Inputs!V$27 -> 0.02745098039 | W11: =Inputs!W$27 -> 0.01717557252 | X11: =Inputs!X$27 -> 0.01688555347 | Y11: =Inputs!Y$27 -> 0.0143 | Z11: =Inputs!Z$27 -> 0.0143 | AA11: =Inputs!AA$27 -> 0.0143 | AB11: =Inputs!AB$27 -> 0.0143 | AC11: =Inputs!AC$27 -> 0.0143 | AD11: =AC11 -> 0.0143
A12: =ROW() -> 12 | C12: =Inputs!C28 -> Inflation Factor (convert 31/12/2015 $ to nominal $) | S12: =Inputs!S$28 -> 0.8929519061 | T12: =Inputs!T$28 -> 0.9206642066 | U12: =Inputs!U$28 -> 0.9409594096 | V12: =Inputs!V$28 -> 0.9667896679 | W12: =Inputs!W$28 -> 0.9833948339 | X12: =Inputs!X$28 -> 1 | Y12: =Inputs!Y$28 -> 1.0143 | Z12: =Inputs!Z$28 -> 1.02880449 | AA12: =Inputs!AA$28 -> 1.043516394 | AB12: =Inputs!AB$28 -> 1.058438679 | AC12: =Inputs!AC$28 -> 1.073574352
A13: =ROW() -> 13 | B13: Nominal Post Tax WACC
A14: =ROW() -> 14 | C14: WACC | T14: =Inputs!T$37 -> 0 | U14: =Inputs!U$37 -> 0 | V14: =Inputs!V$37 -> 0 | W14: =Inputs!W$37 -> 0 | X14: =Inputs!X$37 -> 0 | Y14: =Inputs!Y$37 -> 0.05825 | Z14: =Inputs!Z$37 -> 0.05825 | AA14: =Inputs!AA$37 -> 0.05825 | AB14: =Inputs!AB$37 -> 0.05825 | AC14: =Inputs!AC$37 -> 0.05825
A15: =ROW() -> 15 | C15: Discounting Factor | T15: =Inputs!T$38 -> 0 | U15: =Inputs!U$38 -> 0 | V15: =Inputs!V$38 -> 0 | W15: =Inputs!W$38 -> 0 | X15: =Inputs!X$38 -> 1 | Y15: =Inputs!Y$38 -> 0.9449562958 | Z15: =Inputs!Z$38 -> 0.8929424009 | AA15: =Inputs!AA$38 -> 0.8437915435 | AB15: =Inputs!AB$38 -> 0.7973461314 | AC15: =Inputs!AC$38 -> 0.7534572467
A16: =ROW() -> 16 | B16: Nominal Cost of Debt (DPn) | Y16: =WACC!O$24 -> 0.05055 | Z16: =WACC!P$24 -> 0.05055 | AA16: =WACC!Q$24 -> 0.05055 | AB16: =WACC!R$24 -> 0.05055 | AC16: =WACC!S$24 -> 0.05055
A17: =ROW() -> 17
A18: Asset Value [m$ nominal]
A19: =ROW() -> 19 | B19: Asset Value (Opening) | Y19: =Asset!X33*X$12 -> 3476.186331 | Z19: =Asset!Y33*Y$12 -> 3451.860369 | AA19: =Asset!Z33*Z$12 -> 3421.387445 | AB19: =Asset!AA33*AA$12 -> 3382.012483 | AC19: =Asset!AB33*AB$12 -> 3348.256785 | AD19: =Asset!AC33*AC$12 -> 3326.712304
A20: =ROW() -> 20 | B20: Equity | Y20: =Y$19*WACC!O11 -> 1390.474532 | Z20: =Z$19*WACC!P11 -> 1380.744147 | AA20: =AA$19*WACC!Q11 -> 1368.554978 | AB20: =AB$19*WACC!R11 -> 1352.804993 | AC20: =AC$19*WACC!S11 -> 1339.302714 | AD20: =AD$19*WACC!S11 -> 1330.684922
A21: =ROW() -> 21 | B21: Debt | Y21: =Y$19*WACC!O10 -> 2085.711799 | Z21: =Z$19*WACC!P10 -> 2071.116221 | AA21: =AA$19*WACC!Q10 -> 2052.832467 | AB21: =AB$19*WACC!R10 -> 2029.20749 | AC21: =AC$19*WACC!S10 -> 2008.954071 | AD21: =AD$19*WACC!S10 -> 1996.027383
A22: =ROW() -> 22 | C22: Check that A=D+E | Y22: =IF(ROUND(Y19-Y20-Y21,8)=0,"OK","CHECK") -> OK | Z22: =IF(ROUND(Z19-Z20-Z21,8)=0,"OK","CHECK") -> OK | AA22: OK | AB22: OK | AC22: OK | AD22: OK
A23: Calculation of Tax Expense - [m$ nominal]
A24: =ROW() -> 24 | B24: Revenue | F24: PV
A25: =ROW() -> 25 | C25: Tariff Revenue | F25: =SUMPRODUCT($Y$15:$AC$15,Y25:AC25) -> 1561.914812 | Y25: =CoS_Tariff_Revenue!AA168 -> 370.6099215 | Z25: =CoS_Tariff_Revenue!AB168 -> 361.7533059 | AA25: =CoS_Tariff_Revenue!AC168 -> 366.3481295 | AB25: =CoS_Tariff_Revenue!AD168 -> 370.6449042 | AC25: =CoS_Tariff_Revenue!AE168 -> 376.9637031
A26: =ROW() -> 26 | C26: Proceeds from Sale of Assets Disposal
A27: =ROW() -> 27 | C27: Total Revenue | F27: =SUMPRODUCT($Y$15:$AC$15,Y27:AC27) -> 1561.914812 | Y27: =SUM(Y25:Y26) -> 370.6099215 | Z27: =SUM(Z25:Z26) -> 361.7533059 | AA27: =SUM(AA25:AA26) -> 366.3481295 | AB27: =SUM(AB25:AB26) -> 370.6449042 | AC27: =SUM(AC25:AC26) -> 376.9637031
A28: =ROW() -> 28 | B28: Expenses
A29: =ROW() -> 29 | C29: Opex; System Use Gas | F29: -155.1563185 | Y29: =-Inputs!Y1143 -> -36.32712851 | Z29: =-Inputs!Z1143 -> -35.29852836 | AA29: =-Inputs!AA1143 -> -36.26661343 | AB29: =-Inputs!AB1143 -> -37.31331563 | AC29: =-Inputs!AC1143 -> -38.43101591
A30: =ROW() -> 30 | C30: Opex; Other Expenses | F30: -298.7086168 | Y30: =-Inputs!Y1144-SUM(Tax_CoRE!Y29:Y29) -> -67.0073591 | Z30: =-Inputs!Z1144-SUM(Tax_CoRE!Z29:Z29) -> -69.90838688 | AA30: =-Inputs!AA1144-SUM(Tax_CoRE!AA29:AA29) -> -72.99402171 | AB30: =-Inputs!AB1144-SUM(Tax_CoRE!AB29:AB29) -> -70.90124025 | AC30: =-Inputs!AC1144-SUM(Tax_CoRE!AC29:AC29) -> -72.7856299
A31: =ROW() -> 31 | C31: Interest on Debt | F31: -438.9811745 | Y31: =-Y21*Y$16 -> -105.4327314 | Z31: =-Z21*Z$16 -> -104.694925 | AA31: =-AA21*AA$16 -> -103.7706812 | AB31: =-AB21*AB$16 -> -102.5764386 | AC31: =-AC21*AC$16 -> -101.5526283
A32: =ROW() -> 32 | C32: Tax Depreciation | F32: -417.1240086 | Y32: =Tax_Asset!Y32 -> -96.35371322 | Z32: =Tax_Asset!Z32 -> -97.66713227 | AA32: =Tax_Asset!AA32 -> -98.90477062 | AB32: =Tax_Asset!AB32 -> -99.79793034 | AC32: =Tax_Asset!AC32 -> -100.6484903
A33: =ROW() -> 33 | C33: Total Expenses | F33: -1309.970118 | Y33: =SUM(Y29:Y32) -> -305.1209323 | Z33: =SUM(Z29:Z32) -> -307.5689725 | AA33: =SUM(AA29:AA32) -> -311.936087 | AB33: =SUM(AB29:AB32) -> -310.5889248 | AC33: =SUM(AC29:AC32) -> -313.4177644
A34: =ROW() -> 34 | B34: Tax
A35: =ROW() -> 35 | C35: Net Income | F35: 251.9446936 | Y35: =Y27+Y33 -> 65.48898925 | Z35: =Z27+Z33 -> 54.18433344 | AA35: =AA27+AA33 -> 54.41204248 | AB35: =AB27+AB33 -> 60.05597934 | AC35: =AC27+AC33 -> 63.54593875
A36: =ROW() -> 36 | C36: Tax Loss Carried Forward | Y36: =IF(Y37<0,Y37,0) -> 0 | Z36: 0 | AA36: 0 | AB36: 0 | AC36: 0
A37: =ROW() -> 37 | C37: Taxable Income | Y37: =Y35+X36 -> 65.48898925 | Z37: 54.18433344 | AA37: 54.41204248 | AB37: 60.05597934 | AC37: 63.54593875
A38: =ROW() -> 38 | C38: Income tax expense | F38: =SUMPRODUCT($Y$15:$AC$15,Y38:AC38) -> -75.58340809 | Y38: =-IF(Y37>0,Y37*WACC!O20) -> -19.64669678 | Z38: =-IF(Z37>0,Z37*WACC!P20) -> -16.25530003 | AA38: =-IF(AA37>0,AA37*WACC!Q20) -> -16.32361275 | AB38: =-IF(AB37>0,AB37*WACC!R20) -> -18.0167938 | AC38: =-IF(AC37>0,AC37*WACC!S20) -> -19.06378162
A39: =ROW() -> 39 | C39: Imputation Credits | F39: 30.23336324 | Y39: =-Y38*WACC!O21 -> 7.85867871 | Z39: =-Z38*WACC!P21 -> 6.502120013 | AA39: =-AA38*WACC!Q21 -> 6.529445098 | AB39: =-AB38*WACC!R21 -> 7.206717521 | AC39: =-AC38*WACC!S21 -> 7.62551265
A40: =ROW() -> 40 | C40: Net Tax Expense | F40: -45.35004486 | Y40: =SUM(Y38:Y39) -> -11.78801807 | Z40: =SUM(Z38:Z39) -> -9.753180019 | AA40: -9.794167647 | AB40: -10.81007628 | AC40: -11.43826897
A41: =ROW() -> 41
A42: Equity Raising Costs, Nominal Calculations [m$ nominal]
A43: =ROW() -> 43 | B43: Yield / cost inputs (ERA Rate of Return Guideline, 16 Dec 2013)
A44: =ROW() -> 44 | C44: Dividend imputation/payout ratio | F44: 0.7
A45: =ROW() -> 45 | C45: Benchmark seasoned equity offering (SEO) raising cost | F45: 0.03
A46: =ROW() -> 46 | C46: Benchmark DRP cost (AER 2010 Victorian DNSP decision) | F46: 0.01
A47: =ROW() -> 47 | C47: Benchmark DRP take-up | F47: 0.25
A48: =ROW() -> 48
A49: =ROW() -> 49 | B49: Dividend assessment
A50: =ROW() -> 50 | C50: Tax payable | Y50: =-Y38 -> 19.64669678 | Z50: =-Z38 -> 16.25530003 | AA50: =-AA38 -> 16.32361275 | AB50: =-AB38 -> 18.0167938 | AC50: =-AC38 -> 19.06378162
A51: =ROW() -> 51 | C51: Dividends | Y51: =(Y50/WACC!O$20*(1-WACC!O$20)*$F$44) -> 32.08960473 | Z51: =(Z50/WACC!P$20*(1-WACC!P$20)*$F$44) -> 26.55032339 | AA51: =(AA50/WACC!Q$20*(1-WACC!Q$20)*$F$44) -> 26.66190082 | AB51: =(AB50/WACC!R$20*(1-WACC!R$20)*$F$44) -> 29.42742988 | AC51: =(AC50/WACC!S$20*(1-WACC!S$20)*$F$44) -> 31.13750999
A52: =ROW() -> 52 | C52: Dividend re-investment (DRP) | Y52: =Y51*$F$47 -> 8.022401183 | Z52: =Z51*$F$47 -> 6.637580847 | AA52: 6.665475204 | AB52: 7.356857469 | AC52: 7.784377497
A53: =ROW() -> 53
A54: =ROW() -> 54 | B54: Benchmark Cash Flows
A55: =ROW() -> 55 | C55: Revenue | Y55: =Y27 -> 370.6099215 | Z55: =Z27 -> 361.7533059 | AA55: =AA27 -> 366.3481295 | AB55: =AB27 -> 370.6449042 | AC55: =AC27 -> 376.9637031
A56: =ROW() -> 56 | C56: Opex | Y56: =Y33-Y57 -> -199.6882008 | Z56: =Z33-Z57 -> -202.8740475 | AA56: =AA33-AA57 -> -208.1654058 | AB56: =AB33-AB57 -> -208.0124862 | AC56: =AC33-AC57 -> -211.8651361
A57: =ROW() -> 57 | C57: Interest | Y57: =Y31 -> -105.4327314 | Z57: =Z31 -> -104.694925 | AA57: =AA31 -> -103.7706812 | AB57: =AB31 -> -102.5764386 | AC57: =AC31 -> -101.5526283
A58: =ROW() -> 58 | C58: Tax | Y58: =Y38 -> -19.64669678 | Z58: =Z38 -> -16.25530003 | AA58: =AA38 -> -16.32361275 | AB58: =AB38 -> -18.0167938 | AC58: =AC38 -> -19.06378162
A59: =ROW() -> 59 | C59: Internal cash flow | Y59: =SUM(Y55:Y58) -> 45.84229248 | Z59: 37.92903341 | AA59: 38.08842974 | AB59: 42.03918554 | AC59: 44.48215712
A60: =ROW() -> 60 | C60: Dividend | Y60: =-Y51 -> -32.08960473 | Z60: -26.55032339 | AA60: -26.66190082 | AB60: -29.42742988 | AC60: -31.13750999
A61: =ROW() -> 61 | C61: Dividend reinvestment | Y61: =Y52 -> 8.022401183 | Z61: 6.637580847 | AA61: 6.665475204 | AB61: 7.356857469 | AC61: 7.784377497
A62: =ROW() -> 62 | C62: Retained cash flow | Y62: =SUM(Y59:Y61) -> 21.77508893 | Z62: 18.01629087 | AA62: 18.09200413 | AB62: 19.96861313 | AC62: 21.12902463
A63: =ROW() -> 63
A64: =ROW() -> 64 | B64: Benchmark capex funding
A65: =ROW() -> 65 | C65: Capex | Y65: =Inputs!Y472 -> 25.65064823 | Z65: =Inputs!Z472 -> 23.83233246 | AA65: =Inputs!AA472 -> 17.5674136 | AB65: =Inputs!AB472 -> 19.00959901 | AC65: =Inputs!AC472 -> 23.29115239
A66: =ROW() -> 66 | C66: less Debt Component | Y66: =(Z19-Y19)*WACC!O$10 -> -14.59557745 | Z66: =(AA19-Z19)*WACC!P$10 -> -18.28375395 | AA66: =(AB19-AA19)*WACC!Q$10 -> -23.62497728 | AB66: =(AC19-AB19)*WACC!R$10 -> -20.2534187 | AC66: =(AD19-AC19)*WACC!S$10 -> -12.92668855
A67: =ROW() -> 67 | C67: Equity Component | Y67: =Y65-Y66 -> 40.24622567 | Z67: 42.11608641 | AA67: 41.19239088 | AB67: 39.26301771 | AC67: 36.21784094
A68: =ROW() -> 68 | C68: Retained cash flows | Y68: =Y62 -> 21.77508893 | Z68: 18.01629087 | AA68: 18.09200413 | AB68: 19.96861313 | AC68: 21.12902463
A69: =ROW() -> 69 | C69: Equity Required (SEO) | Y69: =Y67-Y68 -> 18.47113675 | Z69: 24.09979554 | AA69: 23.10038676 | AB69: 19.29440458 | AC69: 15.0888163
A70: =ROW() -> 70
A71: =ROW() -> 71 | B71: Equity raising costs
A72: =ROW() -> 72 | C72: External Equity Raising Costs | Y72: =Y69*$F$45 -> 0.5541341025 | Z72: =Z69*$F$45 -> 0.7229938662 | AA72: 0.6930116027 | AB72: 0.5788321373 | AC72: 0.4526644891
A73: =ROW() -> 73 | C73: DRP cost | Y73: =Y52*$F$46 -> 0.08022401183 | Z73: =Z52*$F$46 -> 0.06637580847 | AA73: 0.06665475204 | AB73: 0.07356857469 | AC73: 0.07784377497
A74: =ROW() -> 74 | C74: Total Equity Raising Costs | Y74: =SUM(Y72:Y73) -> 0.6343581143 | Z74: =SUM(Z72:Z73) -> 0.7893696747 | AA74: 0.7596663548 | AB74: 0.652400712 | AC74: 0.5305082641
A75: =ROW() -> 75 | C75: Equity Raising Costs (capitalised and included in RAB) | Y75: =MAX(0,SUM(Y72:Y73)) -> 0.6343581143 | Z75: =MAX(0,SUM(Z72:Z73)) -> 0.7893696747 | AA75: 0.7596663548 | AB75: 0.652400712 | AC75: 0.5305082641
A76: =ROW() -> 76 | C76: Equity Raising Costs (manual entry) | Y76: =SolverSheet!I40 -> 2.902335245e-14 | Z76: =SolverSheet!J40 -> 7.254297602e-15 | AA76: =SolverSheet!K40 -> 9.040551624e-15 | AB76: =SolverSheet!L40 -> 2.264307471e-15 | AC76: =SolverSheet!M40 -> 0
A77: =ROW() -> 77 | C77: ="Total Equity Raising Costs [Real " & Inputs!$E$28 & " $M]" -> Total Equity Raising Costs [Real 31/12/2015 $M] | Y77: =Y76/Y12 -> 2.861416982e-14 | Z77: =Z76/Z12 -> 7.051191623e-15 | AA77: =AA76/AA12 -> 8.663545369e-15 | AB77: =AB76/AB12 -> 2.13929018e-15 | AC77: =AC76/AC12 -> 0

Sheet Asset
A1: =Main!A1 -> ERA, DBNGP Tariff Model, June 2016 [Final Decision]
A2: Asset
A3: Ref. | B3: =COLUMN() -> 2 | C3: =COLUMN() -> 3 | D3: =COLUMN() -> 4 | E3: =COLUMN() -> 5 | F3: =COLUMN() -> 6 | G3: =COLUMN() -> 7 | H3: =COLUMN() -> 8 | I3: =COLUMN() -> 9 | J3: =COLUMN() -> 10 | K3: =COLUMN() -> 11 | L3: =COLUMN() -> 12 | M3: =COLUMN() -> 13 | N3: =COLUMN() -> 14 | O3: =COLUMN() -> 15 | P3: =COLUMN() -> 16 | Q3: =COLUMN() -> 17 | R3: =COLUMN() -> 18 | S3: =COLUMN() -> 19 | T3: =COLUMN() -> 20 | U3: =COLUMN() -> 21 | V3: =COLUMN() -> 22 | W3: =COLUMN() -> 23 | X3: =COLUMN() -> 24 | Y3: =COLUMN() -> 25 | Z3: =COLUMN() -> 26 | AA3: =COLUMN() -> 27 | AB3: =COLUMN() -> 28 | AC3: =COLUMN() -> 29
A5: Regulatory Period | I5: =Inputs!I$5 -> AA1 | J5: =Inputs!J$5 -> AA1 | K5: =Inputs!K$5 -> AA1 | L5: =Inputs!L$5 -> AA1 | M5: =Inputs!M$5 -> AA1 | N5: =Inputs!N$5 -> AA2 | O5: =Inputs!O$5 -> AA2 | P5: =Inputs!P$5 -> AA2 | Q5: =Inputs!Q$5 -> AA2 | R5: =Inputs!R$5 -> AA2 | S5: =Inputs!S$5 -> AA2 | T5: =Inputs!T$5 -> AA3 | U5: =Inputs!U$5 -> AA3 | V5: =Inputs!V$5 -> AA3 | W5: =Inputs!W$5 -> AA3 | X5: =Inputs!X$5 -> AA3 | Y5: =Inputs!Y$5 -> AA4 | Z5: =Inputs!Z$5 -> AA4 | AA5: =Inputs!AA$5 -> AA4 | AB5: =Inputs!AB$5 -> AA4 | AC5: =Inputs!AC$5 -> AA4
A6: Year | H6: =Inputs!H$6 -> 1999 | I6: =Inputs!I$6 -> 2000 | J6: =Inputs!J$6 -> 2001 | K6: =Inputs!K$6 -> 2002 | L6: =Inputs!L$6 -> 2003 | M6: =Inputs!M$6 -> 2004 | N6: =Inputs!N$6 -> 2005 | O6: =Inputs!O$6 -> 2006 | P6: =Inputs!P$6 -> 2007 | Q6: =Inputs!Q$6 -> 2008 | R6: =Inputs!R$6 -> 2009 | S6: =Inputs!S$6 -> 2010 | T6: =Inputs!T$6 -> 2011 | U6: =Inputs!U$6 -> 2012 | V6: =Inputs!V$6 -> 2013 | W6: =Inputs!W$6 -> 2014 | X6: =Inputs!X$6 -> 2015 | Y6: =Inputs!Y$6 -> 2016 | Z6: =Inputs!Z$6 -> 2017 | AA6: =Inputs!AA$6 -> 2018 | AB6: =Inputs!AB$6 -> 2019 | AC6: =Inputs!AC$6 -> 2020
A7: Days | H7: =Inputs!H$7 -> 365 | I7: =Inputs!I$7 -> 366 | J7: =Inputs!J$7 -> 365 | K7: =Inputs!K$7 -> 365 | L7: =Inputs!L$7 -> 365 | M7: =Inputs!M$7 -> 366 | N7: =Inputs!N$7 -> 365 | O7: =Inputs!O$7 -> 365 | P7: =Inputs!P$7 -> 365 | Q7: =Inputs!Q$7 -> 366 | R7: =Inputs!R$7 -> 365 | S7: =Inputs!S$7 -> 365 | T7: =Inputs!T$7 -> 365 | U7: =Inputs!U$7 -> 366 | V7: =Inputs!V$7 -> 365 | W7: =Inputs!W$7 -> 365 | X7: =Inputs!X$7 -> 365 | Y7: =Inputs!Y$7 -> 366 | Z7: =Inputs!Z$7 -> 365 | AA7: =Inputs!AA$7 -> 365 | AB7: =Inputs!AB$7 -> 365 | AC7: =Inputs!AC$7 -> 366
A8: Project Year | H8: =Inputs!H$8 -> 0 | I8: =Inputs!I$8 -> 1 | J8: =Inputs!J$8 -> 2 | K8: =Inputs!K$8 -> 3 | L8: =Inputs!L$8 -> 4 | M8: =Inputs!M$8 -> 5 | N8: =Inputs!N$8 -> 6 | O8: =Inputs!O$8 -> 7 | P8: =Inputs!P$8 -> 8 | Q8: =Inputs!Q$8 -> 9 | R8: =Inputs!R$8 -> 10 | S8: =Inputs!S$8 -> 11 | T8: =Inputs!T$8 -> 12 | U8: =Inputs!U$8 -> 13 | V8: =Inputs!V$8 -> 14 | W8: =Inputs!W$8 -> 15 | X8: =Inputs!X$8 -> 16 | Y8: =Inputs!Y$8 -> 17 | Z8: =Inputs!Z$8 -> 18 | AA8: =Inputs!AA$8 -> 19 | AB8: =Inputs!AB$8 -> 20 | AC8: =Inputs!AC$8 -> 21
A9: Financial Parameters
A10: =ROW() -> 10 | B10: Modelled Inflation
A11: =ROW() -> 11 | C11: ="Inflation Factor (convert " &Inputs!$E$28& " $ to nominal $)" -> Inflation Factor (convert 31/12/2015 $ to nominal $) | H11: =Inputs!H28 -> 0.6368697215 | I11: =Inputs!I28 -> 0.6738194556 | J11: =Inputs!J28 -> 0.6948602764 | K11: =Inputs!K28 -> 0.7159010971 | L11: =Inputs!L28 -> 0.7328363919 | M11: =Inputs!M28 -> 0.7518244497 | N11: =Inputs!N28 -> 0.7728652705 | O11: =Inputs!O28 -> 0.7980116172 | P11: =Inputs!P28 -> 0.8216183918 | Q11: =Inputs!Q28 -> 0.8518966461 | R11: =Inputs!R28 -> 0.8698583223 | S11: =Inputs!S28 -> 0.8929519061 | T11: =Inputs!T28 -> 0.9206642066 | U11: =Inputs!U28 -> 0.9409594096 | V11: =Inputs!V28 -> 0.9667896679 | W11: =Inputs!W28 -> 0.9833948339 | X11: =Inputs!X28 -> 1 | Y11: =Inputs!Y28 -> 1.0143 | Z11: =Inputs!Z28 -> 1.02880449 | AA11: =Inputs!AA28 -> 1.043516394 | AB11: =Inputs!AB28 -> 1.058438679 | AC11: =Inputs!AC28 -> 1.073574352
A12: =ROW() -> 12 | C12: ="Inflation Factor (convert nominal to real "&Inputs!$E$28&" $)" -> Inflation Factor (convert nominal to real 31/12/2015 $) | H12: =Inputs!H29 -> 1.570179844 | I12: =Inputs!I29 -> 1.484077065 | J12: =Inputs!J29 -> 1.439138247 | K12: =Inputs!K29 -> 1.396840994 | L12: =Inputs!L29 -> 1.364561055 | M12: =Inputs!M29 -> 1.330097738 | N12: =Inputs!N29 -> 1.293886578 | O12: =Inputs!O29 -> 1.253114589 | P12: =Inputs!P29 -> 1.217110048 | Q12: =Inputs!Q29 -> 1.173851317 | R12: =Inputs!R29 -> 1.149612499 | S12: =Inputs!S29 -> 1.119881142 | T12: =Inputs!T29 -> 1.086172345 | U12: =Inputs!U29 -> 1.062745098 | V12: =Inputs!V29 -> 1.034351145 | W12: =Inputs!W29 -> 1.016885553 | X12: =Inputs!X29 -> 1 | Y12: =Inputs!Y29 -> 0.985901607 | Z12: =Inputs!Z29 -> 0.9720019787 | AA12: =Inputs!AA29 -> 0.9582983129 | AB12: =Inputs!AB29 -> 0.9447878466 | AC12: =Inputs!AC29 -> 0.9314678563
A13: ="DBNGP Asset Account Summary [m$ "&TEXT(Inputs!$E$28,"dd/mm/yyyy")&"]" -> DBNGP Asset Account Summary [m$ 31/12/2015]
A14: All Assets
A15: =ROW() -> 15 | B15: DBNGP Asset Including BEP and Shippers' Financed Capex
A16: =ROW() -> 16 | C16: Opening Value | I16: =I22+I29 -> 2433.778758 | J16: =J22+J29 -> 2381.992662 | K16: 2327.075305 | L16: 2268.710024 | M16: 2209.110053 | N16: 2152.592903 | O16: 2156.867078 | P16: 2594.979821 | Q16: 2548.240576 | R16: 3213.290504 | S16: 3134.827364 | T16: 3780.531893 | U16: 3835.602561 | V16: 3763.895364 | W16: 3680.174567 | X16: 3585.784174 | Y16: 3502.429824 | Z16: 3428.737966 | AA16: 3350.438436 | AB16: 3265.119714 | AC16: 3186.834964
A17: =ROW() -> 17 | C17: Capex | I17: =I23+I30 -> 7.508685301 | J17: 4.70225752 | K17: 1.753387926 | L17: 1.056104212 | M17: 4.491348228 | N17: 70.85613928 | O17: 497.2759516 | P17: 15.79570675 | Q17: 737.6815722 | R17: 1.47353372 | S17: 693.0568228 | T17: 158.8867551 | U17: 32.69948975 | V17: 21.48782152 | W17: 12.52320285 | X17: 22.4612722 | Y17: 25.28901531 | Z17: 23.16507431 | AA17: 16.83482281 | AB17: 17.96003812 | AC17: 21.69495979
A18: =ROW() -> 18 | C18: Redundant & Disposed Asset | I18: 0 | J18: 0 | K18: 0 | L18: 0 | M18: 0 | N18: -7.799262415 | O18: 0 | P18: -0.03922312518 | Q18: -0.02963772798 | R18: -0.09463545079 | S18: -0.01240217805 | T18: -4.801804802 | U18: -0.394574954 | V18: -0.786035779 | W18: -2.217549898 | X18: -0.7796653756 | Y18: 0 | Z18: 0 | AA18: 0 | AB18: 0 | AC18: 0
A19: =ROW() -> 19 | C19: Depreciation | I19: -59.29478139 | J19: -59.61961422 | K19: -60.11866971 | L19: -60.65607498 | M19: -61.0084981 | N19: -58.78270184 | O19: -59.16320878 | P19: -62.49572894 | Q19: -72.60200618 | R19: -79.84203813 | S19: -81.73698682 | T19: -99.01428242 | U19: -104.0121125 | V19: -104.4225818 | W19: -104.6960461 | X19: -105.0359567 | Y19: -98.98087375 | Z19: -101.4646041 | AA19: -102.153545 | AB19: -96.24478858 | AC19: -87.06191133
A20: =ROW() -> 20 | C20: Closing Value | H20: 2433.778758 | I20: 2381.992662 | J20: 2327.075305 | K20: 2268.710024 | L20: 2209.110053 | M20: 2152.592903 | N20: 2156.867078 | O20: 2594.979821 | P20: 2548.240576 | Q20: 3213.290504 | R20: 3134.827364 | S20: 3780.531893 | T20: 3835.602561 | U20: 3763.895364 | V20: 3680.174567 | W20: 3585.784174 | X20: 3502.429824 | Y20: 3428.737966 | Z20: 3350.438436 | AA20: 3265.119714 | AB20: 3186.834964 | AC20: 3121.468012
A21: =ROW() -> 21 | B21: Shippers' Asset Account
A22: =ROW() -> 22 | C22: Opening Value (Starting 01/12/2010) | I22: =Shippers_Asset!I18 -> 0 | J22: =Shippers_Asset!J18 -> 0 | K22: =Shippers_Asset!K18 -> 0 | L22: =Shippers_Asset!L18 -> 0 | M22: =Shippers_Asset!M18 -> 0 | N22: =Shippers_Asset!N18 -> 0 | O22: =Shippers_Asset!O18 -> 3.353567199 | P22: =Shippers_Asset!P18 -> 19.12263103 | Q22: =Shippers_Asset!Q18 -> 28.55778783 | R22: =Shippers_Asset!R18 -> 29.74455365 | S22: =Shippers_Asset!S18 -> 29.74455365 | T22: =Shippers_Asset!T18 -> 29.74455365 | U22: =Shippers_Asset!U18 -> 29.04434161 | V22: =Shippers_Asset!V18 -> 28.34412957 | W22: =Shippers_Asset!W18 -> 27.64391753 | X22: =Shippers_Asset!X18 -> 26.94370549 | Y22: =Shippers_Asset!Y18 -> 26.24349345 | Z22: =Shippers_Asset!Z18 -> 25.54328141 | AA22: =Shippers_Asset!AA18 -> 24.84306937 | AB22: =Shippers_Asset!AB18 -> 24.14285733 | AC22: =Shippers_Asset!AC18 -> 23.44264529
A23: =ROW() -> 23 | C23: Capex | I23: =Shippers_Asset!I19 -> 0 | J23: =Shippers_Asset!J19 -> 0 | K23: =Shippers_Asset!K19 -> 0 | L23: =Shippers_Asset!L19 -> 0 | M23: =Shippers_Asset!M19 -> 0 | N23: =Shippers_Asset!N19 -> 3.353567199 | O23: =Shippers_Asset!O19 -> 15.76906383 | P23: =Shippers_Asset!P19 -> 9.435156805 | Q23: =Shippers_Asset!Q19 -> 1.186765818 | R23: =Shippers_Asset!R19 -> 0 | S23: =Shippers_Asset!S19 -> 0 | T23: =Shippers_Asset!T19 -> 0 | U23: =Shippers_Asset!U19 -> 0 | V23: =Shippers_Asset!V19 -> 0 | W23: =Shippers_Asset!W19 -> 0 | X23: =Shippers_Asset!X19 -> 0 | Y23: =Shippers_Asset!Y19 -> 0 | Z23: =Shippers_Asset!Z19 -> 0 | AA23: =Shippers_Asset!AA19 -> 0 | AB23: =Shippers_Asset!AB19 -> 0 | AC23: =Shippers_Asset!AC19 -> 0
A24: =ROW() -> 24 | C24: Redundant & Disposed Asset | I24: =Shippers_Asset!I20 -> 0 | J24: =Shippers_Asset!J20 -> 0 | K24: =Shippers_Asset!K20 -> 0 | L24: =Shippers_Asset!L20 -> 0 | M24: =Shippers_Asset!M20 -> 0 | N24: =Shippers_Asset!N20 -> 0 | O24: =Shippers_Asset!O20 -> 0 | P24: =Shippers_Asset!P20 -> 0 | Q24: =Shippers_Asset!Q20 -> 0 | R24: =Shippers_Asset!R20 -> 0 | S24: =Shippers_Asset!S20 -> 0 | T24: =Shippers_Asset!T20 -> 0 | U24: =Shippers_Asset!U20 -> 0 | V24: =Shippers_Asset!V20 -> 0 | W24: =Shippers_Asset!W20 -> 0 | X24: =Shippers_Asset!X20 -> 0 | Y24: =Shippers_Asset!Y20 -> 0 | Z24: =Shippers_Asset!Z20 -> 0 | AA24: =Shippers_Asset!AA20 -> 0 | AB24: =Shippers_Asset!AB20 -> 0 | AC24: =Shippers_Asset!AC20 -> 0
A25: =ROW() -> 25 | C25: Depreciation | I25: =Shippers_Asset!I21 -> 0 | J25: =Shippers_Asset!J21 -> 0 | K25: =Shippers_Asset!K21 -> 0 | L25: =Shippers_Asset!L21 -> 0 | M25: =Shippers_Asset!M21 -> 0 | N25: =Shippers_Asset!N21 -> 0 | O25: =Shippers_Asset!O21 -> 0 | P25: =Shippers_Asset!P21 -> 0 | Q25: =Shippers_Asset!Q21 -> 0 | R25: =Shippers_Asset!R21 -> 0 | S25: =Shippers_Asset!S21 -> 0 | T25: =Shippers_Asset!T21 -> -0.7002120398 | U25: =Shippers_Asset!U21 -> -0.7002120398 | V25: =Shippers_Asset!V21 -> -0.7002120398 | W25: =Shippers_Asset!W21 -> -0.7002120398 | X25: =Shippers_Asset!X21 -> -0.7002120398 | Y25: =Shippers_Asset!Y21 -> -0.7002120398 | Z25: =Shippers_Asset!Z21 -> -0.7002120398 | AA25: =Shippers_Asset!AA21 -> -0.7002120398 | AB25: =Shippers_Asset!AB21 -> -0.7002120398 | AC25: =Shippers_Asset!AC21 -> -0.7002120398
A26: =ROW() -> 26 | C26: Closing Value | H26: =Shippers_Asset!H22 -> 0 | I26: =Shippers_Asset!I22 -> 0 | J26: =Shippers_Asset!J22 -> 0 | K26: =Shippers_Asset!K22 -> 0 | L26: =Shippers_Asset!L22 -> 0 | M26: =Shippers_Asset!M22 -> 0 | N26: =Shippers_Asset!N22 -> 3.353567199 | O26: =Shippers_Asset!O22 -> 19.12263103 | P26: =Shippers_Asset!P22 -> 28.55778783 | Q26: =Shippers_Asset!Q22 -> 29.74455365 | R26: =Shippers_Asset!R22 -> 29.74455365 | S26: =Shippers_Asset!S22 -> 29.74455365 | T26: =Shippers_Asset!T22 -> 29.04434161 | U26: =Shippers_Asset!U22 -> 28.34412957 | V26: =Shippers_Asset!V22 -> 27.64391753 | W26: =Shippers_Asset!W22 -> 26.94370549 | X26: =Shippers_Asset!X22 -> 26.24349345 | Y26: =Shippers_Asset!Y22 -> 25.54328141 | Z26: =Shippers_Asset!Z22 -> 24.84306937 | AA26: =Shippers_Asset!AA22 -> 24.14285733 | AB26: =Shippers_Asset!AB22 -> 23.44264529 | AC26: =Shippers_Asset!AC22 -> 22.74243325
A27: DBNGP and BEP Assets
A28: =ROW() -> 28 | B28: DBNGP Asset Including BEP
A29: =ROW() -> 29 | C29: Opening Value | I29: =I35+I42 -> 2433.778758 | J29: 2381.992662 | K29: 2327.075305 | L29: 2268.710024 | M29: 2209.110053 | N29: 2152.592903 | O29: 2153.513511 | P29: 2575.85719 | Q29: 2519.682788 | R29: 3183.54595 | S29: 3105.08281 | T29: 3750.78734 | U29: 3806.55822 | V29: 3735.551234 | W29: 3652.53065 | X29: =X35+X42 -> 3558.840469 | Y29: =Y35+Y42 -> 3476.186331 | Z29: 3403.194685 | AA29: 3325.595367 | AB29: 3240.976857 | AC29: 3163.392318
A30: =ROW() -> 30 | C30: Capex | I30: 7.508685301 | J30: 4.70225752 | K30: 1.753387926 | L30: 1.056104212 | M30: 4.491348228 | N30: 67.50257208 | O30: 481.5068878 | P30: 6.360549949 | Q30: 736.4948064 | R30: 1.47353372 | S30: 693.0568228 | T30: 158.8867551 | U30: 32.69948975 | V30: 21.48782152 | W30: 12.52320285 | X30: =X36+X43 -> 22.4612722 | Y30: 25.28901531 | Z30: 23.16507431 | AA30: 16.83482281 | AB30: 17.96003812 | AC30: 21.69495979
A31: =ROW() -> 31 | C31: Redundant & Disposed Asset | I31: 0 | J31: 0 | K31: 0 | L31: 0 | M31: 0 | N31: -7.799262415 | O31: 0 | P31: -0.03922312518 | Q31: -0.02963772798 | R31: -0.09463545079 | S31: -0.01240217805 | T31: -4.801804802 | U31: -0.394574954 | V31: -0.786035779 | W31: -2.217549898 | X31: =X37+X44 -> -0.7796653756 | Y31: 0 | Z31: 0 | AA31: 0 | AB31: 0 | AC31: 0
A32: =ROW() -> 32 | C32: Depreciation | I32: -59.29478139 | J32: -59.61961422 | K32: -60.11866971 | L32: -60.65607498 | M32: -61.0084981 | N32: -58.78270184 | O32: -59.16320878 | P32: -62.49572894 | Q32: -72.60200618 | R32: -79.84203813 | S32: -81.73698682 | T32: -98.31407038 | U32: -103.3119005 | V32: -103.7223698 | W32: -103.9958341 | X32: =X38+X45 -> -104.3357447 | Y32: -98.28066171 | Z32: -100.7643921 | AA32: -101.453333 | AB32: -95.54457654 | AC32: -86.36169929
A33: =ROW() -> 33 | C33: Closing Value | H33: =H39+H47 -> 2433.778758 | I33: 2381.992662 | J33: 2327.075305 | K33: 2268.710024 | L33: 2209.110053 | M33: 2152.592903 | N33: 2153.513511 | O33: 2575.85719 | P33: 2519.682788 | Q33: 3183.54595 | R33: 3105.08281 | S33: 3750.78734 | T33: 3806.55822 | U33: 3735.551234 | V33: 3652.53065 | W33: 3558.840469 | X33: 3476.186331 | Y33: 3403.194685 | Z33: 3325.595367 | AA33: 3240.976857 | AB33: 3163.392318 | AC33: 3098.725579
A34: =ROW() -> 34 | B34: BEP Asset Account
A35: =ROW() -> 35 | C35: Opening Value (Starting 01/12/2010) | T35: =T108 -> 0 | U35: =U108 -> 21.11875318 | V35: =V108 -> 20.74824874 | W35: 20.37774429 | X35: 20.00723985 | Y35: 19.63673541 | Z35: 19.26623097 | AA35: 18.89572653 | AB35: 18.52522209 | AC35: 18.15471764
A36: =ROW() -> 36 | C36: Capex | T36: =T109 -> 21.11875318 | U36: =U109 -> 0 | V36: 0 | W36: 0 | X36: 0 | Y36: 0 | Z36: 0 | AA36: 0 | AB36: 0 | AC36: 0
A37: =ROW() -> 37 | C37: Redundant & Disposed Asset | T37: =T110 -> 0 | U37: 0 | V37: 0 | W37: 0 | X37: 0 | Y37: 0 | Z37: 0 | AA37: 0 | AB37: 0 | AC37: 0
A38: =ROW() -> 38 | C38: Depreciation | T38: 0 | U38: -0.3705044417 | V38: -0.3705044417 | W38: -0.3705044417 | X38: -0.3705044417 | Y38: -0.3705044417 | Z38: -0.3705044417 | AA38: -0.3705044417 | AB38: -0.3705044417 | AC38: -0.3705044417
A39: =ROW() -> 39 | C39: Closing Value | T39: =SUM(T35:T38) -> 21.11875318 | U39: =SUM(U35:U38) -> 20.74824874 | V39: =SUM(V35:V38) -> 20.37774429 | W39: =SUM(W35:W38) -> 20.00723985 | X39: =SUM(X35:X38) -> 19.63673541 | Y39: =SUM(Y35:Y38) -> 19.26623097 | Z39: 18.89572653 | AA39: 18.52522209 | AB39: 18.15471764 | AC39: 17.7842132
A40: DBNGP Assets
A41: =ROW() -> 41 | B41: DBNGP Asset
A42: =ROW() -> 42 | C42: Opening Value | I42: =H47 -> 2433.778758 | J42: =I47 -> 2381.992662 | K42: 2327.075305 | L42: 2268.710024 | M42: 2209.110053 | N42: 2152.592903 | O42: 2153.513511 | P42: 2575.85719 | Q42: 2519.682788 | R42: 3183.54595 | S42: 3105.08281 | T42: 3750.78734 | U42: 3785.439466 | V42: 3714.802985 | W42: 3632.152906 | X42: 3538.833229 | Y42: 3456.549596 | Z42: 3383.928454 | AA42: 3306.69964 | AB42: 3222.451635 | AC42: 3145.237601
A43: =ROW() -> 43 | C43: Capex | I43: =I70 -> 7.508685301 | J43: =J70 -> 4.70225752 | K43: 1.753387926 | L43: 1.056104212 | M43: 4.491348228 | N43: 67.50257208 | O43: 481.5068878 | P43: 6.360549949 | Q43: 736.4948064 | R43: 1.47353372 | S43: 693.0568228 | T43: 137.7680019 | U43: 32.69948975 | V43: 21.48782152 | W43: 12.52320285 | X43: 22.4612722 | Y43: 25.28901531 | Z43: 23.16507431 | AA43: 16.83482281 | AB43: 17.96003812 | AC43: 21.69495979
A44: =ROW() -> 44 | C44: Redundant & Disposed Asset | I44: =I78 -> 0 | J44: =J78 -> 0 | K44: 0 | L44: 0 | M44: 0 | N44: -7.799262415 | O44: 0 | P44: -0.03922312518 | Q44: -0.02963772798 | R44: -0.09463545079 | S44: -0.01240217805 | T44: -4.801804802 | U44: -0.394574954 | V44: -0.786035779 | W44: -2.217549898 | X44: -0.7796653756 | Y44: 0 | Z44: 0 | AA44: 0 | AB44: 0 | AC44: 0
A45: =ROW() -> 45 | C45: Depreciation | I45: =I86 -> -59.29478139 | J45: =J86 -> -59.61961422 | K45: -60.11866971 | L45: -60.65607498 | M45: -61.0084981 | N45: -58.78270184 | O45: -59.16320878 | P45: -62.49572894 | Q45: -72.60200618 | R45: -79.84203813 | S45: -81.73698682 | T45: -98.31407038 | U45: -102.941396 | V45: -103.3518653 | W45: -103.6253296 | X45: -103.9652402 | Y45: -97.91015727 | Z45: -100.3938876 | AA45: -101.0828285 | AB45: -95.1740721 | AC45: -85.99119485
A46: =ROW() -> 46
A47: =ROW() -> 47 | C47: Closing Value | H47: =H94 -> 2433.778758 | I47: =SUM(I42:I46) -> 2381.992662 | J47: 2327.075305 | K47: 2268.710024 | L47: 2209.110053 | M47: 2152.592903 | N47: 2153.513511 | O47: 2575.85719 | P47: =SUM(P42:P46) -> 2519.682788 | Q47: =SUM(Q42:Q46) -> 3183.54595 | R47: 3105.08281 | S47: =SUM(S42:S46)-S50 -> 3750.78734 | T47: 3785.439466 | U47: 3714.802985 | V47: 3632.152906 | W47: 3538.833229 | X47: 3456.549596 | Y47: =SUM(Y42:Y46)-Y50 -> 3383.928454 | Z47: 3306.69964 | AA47: 3222.451635 | AB47: 3145.237601 | AC47: 3080.941366
A48: =ROW() -> 48 | G48: Check | H48: =IF(ROUND(H47-Inputs!H85,6)=0,"OK","Wrong") -> OK | I48: =IF(ROUND(I47-Inputs!I85,6)=0,"OK","Wrong") -> OK | J48: =IF(ROUND(J47-Inputs!J85,6)=0,"OK","Wrong") -> OK | K48: =IF(ROUND(K47-Inputs!K85,6)=0,"OK","Wrong") -> OK | L48: =IF(ROUND(L47-Inputs!L85,6)=0,"OK","Wrong") -> OK | M48: =IF(ROUND(M47-Inputs!M85,6)=0,"OK","Wrong") -> OK | N48: =IF(ROUND(N47-N155-N206,6)=0,"OK","Wrong") -> OK | O48: =IF(ROUND(O47-O155-O206,6)=0,"OK","Wrong") -> OK | P48: OK | Q48: OK | R48: OK | S48: OK | T48: OK | U48: OK | V48: OK | W48: OK | X48: OK | Y48: OK | Z48: OK | AA48: OK | AB48: OK | AC48: OK
A49: =ROW() -> 49 | B49: Over Depreciation
A50: =ROW() -> 50 | C50: Over Depreciation | S50: =S102 -> -34.3970957 | Y50: =Y102 -> 0
A51: =ROW() -> 51 | C51: Rolled Forward Value | T51: =S50*(1+WACC!M32) -> -36.38208755
A52: =ROW() -> 52
A53: ="DBNGP Asset Account [m$ "&TEXT(Inputs!$E$28,"dd/mm/yyyy")&"]" -> DBNGP Asset Account [m$ 31/12/2015]
A54: Asset Accounts
A55: =ROW() -> 55 | B55: Opening Value
A56: =ROW() -> 56 | C56: Pipeline | I56: =H88 -> 1983.367451 | J56: =I88 -> 1949.03505 | K56: 1912.676655 | L56: 1876.357978 | M56: 1839.946474 | N56: 1804.353202 | O56: 1777.536256 | P56: 2029.082232 | Q56: 1993.847696 | R56: 2531.731835 | S56: 2485.065782 | T56: 3000.201358 | U56: 2993.149109 | V56: 2951.188898 | W56: 2898.497137 | X56: 2841.479033 | Y56: 2786.452733 | Z56: =Y88 -> 2731.906428 | AA56: 2676.121787 | AB56: 2619.450142 | AC56: 2566.493071
A57: =ROW() -> 57 | C57: Compression | I57: 332.2558345 | J57: 311.5489051 | K57: 295.6636826 | L57: 277.7574333 | M57: 259.3452471 | N57: 241.2379589 | O57: 272.8877647 | P57: 448.7271793 | Q57: 429.0759994 | R57: 552.9347436 | S57: 526.1257072 | T57: 577.0456389 | U57: 576.0644837 | V57: 551.1836143 | W57: 522.9850421 | X57: 492.0754729 | Y57: 462.4277368 | Z57: 443.9282465 | AA57: 424.6380837 | AB57: 401.2409048 | AC57: 382.3047923
A58: =ROW() -> 58 | C58: Metering | I58: 27.24757555 | J58: 27.3790683 | K58: 27.43873258 | L58: 27.22023977 | M58: 26.45680713 | N58: 27.9571158 | O58: 27.16473576 | P58: 26.34234587 | Q58: 25.48721714 | R58: 24.62799594 | S58: 23.85635196 | T58: 28.65576528 | U58: 28.1308343 | V58: 29.17968395 | W58: 29.23899616 | X58: 27.75529729 | Y58: 30.3698286 | Z58: 34.22157145 | AA58: 35.77708592 | AB58: 35.44526721 | AC58: 34.89508199
A59: =ROW() -> 59 | C59: Other Depreciable | I59: 74.83200414 | J59: 77.95374562 | K59: 75.22034279 | L59: 71.29847958 | M59: 67.28563229 | N59: 62.96873325 | O59: 62.55848251 | P59: 58.4893399 | Q59: 55.87185931 | R59: 57.18982846 | S59: 52.21319145 | T59: 126.1667107 | U59: 169.3948862 | V59: 164.5920892 | W59: 162.577926 | X59: 158.6690129 | Y59: 158.4478554 | Z59: 154.9586271 | AA59: 151.2491034 | AB59: 147.4017402 | AC59: 142.6310748
A60: =ROW() -> 60 | C60: Non Depreciable | I60: 16.07589275 | J60: 16.07589275 | K60: 16.07589275 | L60: 16.07589275 | M60: 16.07589275 | N60: 16.07589275 | O60: 13.3662721 | P60: 13.21609297 | Q60: 15.40001608 | R60: 17.06154667 | S60: 17.82177761 | T60: 18.71786718 | U60: 18.70015296 | V60: 18.65869938 | W60: 18.85380456 | X60: 18.85441269 | Y60: 18.85144158 | Z60: 18.91358049 | AA60: 18.91358049 | AB60: 18.91358049 | AC60: 18.91358049
A61: =ROW() -> 61 | C61: Cost of Raising Equity | I61: 0 | J61: =I93 -> 0 | K61: =J93 -> 0 | L61: =K93 -> 0 | M61: =L93 -> 0 | N61: =M93 -> 0 | O61: =N93 -> 0 | P61: =O93 -> 0 | Q61: =P93 -> 0 | R61: =Q93 -> 0 | S61: =R93 -> 0 | T61: =S93 -> 0 | U61: =T93 -> 0 | V61: =U93 -> 0 | W61: =V93 -> 0 | X61: =W93 -> 0 | Y61: =X93 -> 0 | Z61: =Y93 -> 2.861416982e-14 | AA61: =Z93 -> 3.520825874e-14 | AB61: =AA93 -> 4.330206076e-14 | AC61: =AB93 -> 4.473321007e-14
A62: =ROW() -> 62 | C62: Total | I62: =SUM(I56:I61) -> 2433.778758 | J62: =SUM(J56:J61) -> 2381.992662 | K62: 2327.075305 | L62: 2268.710024 | M62: 2209.110053 | N62: 2152.592903 | O62: 2153.513511 | P62: 2575.85719 | Q62: 2519.682788 | R62: 3183.54595 | S62: 3105.08281 | T62: 3750.78734 | U62: 3785.439466 | V62: 3714.802985 | W62: 3632.152906 | X62: 3538.833229 | Y62: 3456.549596 | Z62: 3383.928454 | AA62: 3306.69964 | AB62: 3222.451635 | AC62: 3145.237601
A63: =ROW() -> 63 | B63: Capex | H63: Check | I63: =IF(ROUND(I62-I131-I174,6)=0,"OK","Wrong") -> OK | J63: =IF(ROUND(J62-J131-J174,6)=0,"OK","Wrong") -> OK | K63: OK | L63: OK | M63: OK | N63: OK | O63: OK | P63: OK | Q63: OK | R63: OK | S63: OK | T63: OK | U63: OK | V63: OK | W63: OK | X63: OK | Y63: OK | Z63: OK | AA63: OK | AB63: OK | AC63: OK
A64: =ROW() -> 64 | C64: Pipeline | I64: =Inputs!I474 -> 2.059662404 | J64: =Inputs!J474 -> 0.04331302425 | K64: =Inputs!K474 -> 0.08931303536 | L64: =Inputs!L474 -> 2.88468207e-05 | M64: =Inputs!M474 -> 0.8262926276 | N64: =Inputs!N474 -> 9.618239768 | O64: =Inputs!O474 -> 288.0666621 | P64: =Inputs!P474 -> 1.39527938 | Q64: =Inputs!Q474 -> 579.3446393 | R64: =Inputs!R474 -> 0 | S64: =Inputs!S474 -> 548.6968521 | T64: =Inputs!T474 -> 50.08852894 | U64: =Inputs!U474 -> 15.52259984 | V64: =Inputs!V474 -> 4.852642459 | W64: =Inputs!W474 -> 0.5927735242 | X64: =Inputs!X474 -> 2.59281626 | Y64: =Inputs!Y474 -> 3.676501815 | Z64: =Inputs!Z474 -> 2.490687124 | AA64: =Inputs!AA474 -> 1.639264653 | AB64: =Inputs!AB474 -> 5.377256921 | AC64: =Inputs!AC474 -> 7.64634184
A65: =ROW() -> 65 | C65: Compression | I65: =Inputs!I475 -> -2.962223845 | J65: =Inputs!J475 -> 1.909728869 | K65: =Inputs!K475 -> 0.1163780309 | L65: =Inputs!L475 -> -0.1566487162 | M65: =Inputs!M475 -> 0.2440301324 | N65: =Inputs!N475 -> 53.32924684 | O65: =Inputs!O475 -> 192.6060858 | P65: =Inputs!P475 -> 0.1651843257 | Q65: =Inputs!Q475 -> 148.8761278 | R65: =Inputs!R475 -> 0 | S65: =Inputs!S475 -> 58.52601555 | T65: =Inputs!T475 -> 31.46326937 | U65: =Inputs!U475 -> 8.816611382 | V65: =Inputs!V475 -> 5.743964805 | W65: =Inputs!W475 -> 3.109567553 | X65: =Inputs!X475 -> 4.47562428 | Y65: =Inputs!Y475 -> 15.61368904 | Z65: =Inputs!Z475 -> 15.34347288 | AA65: =Inputs!AA475 -> 11.74790587 | AB65: =Inputs!AB475 -> 10.17321383 | AC65: =Inputs!AC475 -> 10.18314425
A66: =ROW() -> 66 | C66: Metering | I66: =Inputs!I476 -> 0.8484367663 | J66: =Inputs!J476 -> 0.7766082885 | K66: =Inputs!K476 -> 0.5000213737 | L66: =Inputs!L476 -> -0.0433482703 | M66: =Inputs!M476 -> 2.221963227 | N66: =Inputs!N476 -> 0 | O66: =Inputs!O476 -> 0 | P66: =Inputs!P476 -> 0 | Q66: =Inputs!Q476 -> 0 | R66: =Inputs!R476 -> 0.08757720429 | S66: =Inputs!S476 -> 5.32563588 | T66: =Inputs!T476 -> 0.3797359556 | U66: =Inputs!U476 -> 1.965822925 | V66: =Inputs!V476 -> 0.9871550641 | W66: =Inputs!W476 -> 1.218937944 | X66: =Inputs!X476 -> 3.66130553 | Y66: =Inputs!Y476 -> 3.603669905 | Z66: =Inputs!Z476 -> 2.683992345 | AA66: =Inputs!AA476 -> 0.850339013 | AB66: =Inputs!AB476 -> 0.6489792836 | AC66: =Inputs!AC476 -> 1.319119056
A67: =ROW() -> 67 | C67: Other Depreciable | I67: =Inputs!I477 -> 7.562809975 | J67: =Inputs!J477 -> 1.972607338 | K67: =Inputs!K477 -> 1.047675486 | L67: =Inputs!L477 -> 1.256072351 | M67: =Inputs!M477 -> 1.199062242 | N67: =Inputs!N477 -> 4.555085478 | O67: =Inputs!O477 -> 0.9843190789 | P67: =Inputs!P477 -> 2.616163126 | Q67: =Inputs!Q477 -> 6.612508696 | R67: =Inputs!R477 -> 0.6257255763 | S67: =Inputs!S477 -> 79.76240876 | T67: =Inputs!T477 -> 55.85418183 | U67: =Inputs!U477 -> 6.435909187 | V67: =Inputs!V477 -> 9.708954008 | W67: =Inputs!W477 -> 7.601315702 | X67: =Inputs!X477 -> 11.73449724 | Y67: =Inputs!Y477 -> 2.395154548 | Z67: =Inputs!Z477 -> 2.646921958 | AA67: =Inputs!AA477 -> 2.597313274 | AB67: =Inputs!AB477 -> 1.760588085 | AC67: =Inputs!AC477 -> 2.546354647
A68: =ROW() -> 68 | C68: Non Depreciable | I68: =Inputs!I478 -> 0 | J68: =Inputs!J478 -> 0 | K68: =Inputs!K478 -> 0 | L68: =Inputs!L478 -> 0 | M68: =Inputs!M478 -> 0 | N68: =Inputs!N478 -> 0 | O68: =Inputs!O478 -> -0.1501791295 | P68: =Inputs!P478 -> 2.183923118 | Q68: =Inputs!Q478 -> 1.661530582 | R68: =Inputs!R478 -> 0.7602309399 | S68: =Inputs!S478 -> 0.7459104409 | T68: =Inputs!T478 -> -0.0177142146 | U68: =Inputs!U478 -> -0.04145358497 | V68: =Inputs!V478 -> 0.1951051874 | W68: =Inputs!W478 -> 0.000608123964 | X68: =Inputs!X478 -> -0.00297111 | Y68: =Inputs!Y478 -> 0 | Z68: =Inputs!Z478 -> 0 | AA68: =Inputs!AA478 -> 0 | AB68: =Inputs!AB478 -> 0 | AC68: =Inputs!AC478 -> 0
A69: =ROW() -> 69 | C69: Cost of Raising Equity | I69: =Inputs!I479 -> 0 | J69: =Inputs!J479 -> 0 | K69: =Inputs!K479 -> 0 | L69: =Inputs!L479 -> 0 | M69: =Inputs!M479 -> 0 | N69: =Inputs!N479 -> 0 | O69: =Inputs!O479 -> 0 | P69: =Inputs!P479 -> 0 | Q69: =Inputs!Q479 -> 0 | R69: =Inputs!R479 -> 0 | S69: =Inputs!S479 -> 0 | T69: =Inputs!T479 -> 0 | U69: =Inputs!U479 -> 0 | V69: =Inputs!V479 -> 0 | W69: =Inputs!W479 -> 0 | X69: =Inputs!X479 -> 0 | Y69: =Inputs!Y479 -> 2.861416982e-14 | Z69: =Inputs!Z479 -> 7.051191623e-15 | AA69: =Inputs!AA479 -> 8.663545369e-15 | AB69: =Inputs!AB479 -> 2.13929018e-15 | AC69: =Inputs!AC479 -> 0
A70: =ROW() -> 70 | C70: Total | I70: =SUM(I64:I69) -> 7.508685301 | J70: =SUM(J64:J69) -> 4.70225752 | K70: =SUM(K64:K69) -> 1.753387926 | L70: =SUM(L64:L69) -> 1.056104212 | M70: =SUM(M64:M69) -> 4.491348228 | N70: =SUM(N64:N69) -> 67.50257208 | O70: =SUM(O64:O69) -> 481.5068878 | P70: =SUM(P64:P69) -> 6.360549949 | Q70: =SUM(Q64:Q69) -> 736.4948064 | R70: =SUM(R64:R69) -> 1.47353372 | S70: =SUM(S64:S69) -> 693.0568228 | T70: =SUM(T64:T69) -> 137.7680019 | U70: =SUM(U64:U69) -> 32.69948975 | V70: =SUM(V64:V69) -> 21.48782152 | W70: =SUM(W64:W69) -> 12.52320285 | X70: =SUM(X64:X69) -> 22.4612722 | Y70: =SUM(Y64:Y69) -> 25.28901531 | Z70: =SUM(Z64:Z69) -> 23.16507431 | AA70: =SUM(AA64:AA69) -> 16.83482281 | AB70: =SUM(AB64:AB69) -> 17.96003812 | AC70: =SUM(AC64:AC69) -> 21.69495979
A71: =ROW() -> 71 | B71: Redundant & Disposed Asset | H71: Check | I71: =IF(ROUND(I70-Inputs!I480,6)=0,"OK","Wrong") -> OK | J71: =IF(ROUND(J70-Inputs!J480,6)=0,"OK","Wrong") -> OK | K71: =IF(ROUND(K70-Inputs!K480,6)=0,"OK","Wrong") -> OK | L71: =IF(ROUND(L70-Inputs!L480,6)=0,"OK","Wrong") -> OK | M71: =IF(ROUND(M70-Inputs!M480,6)=0,"OK","Wrong") -> OK | N71: =IF(ROUND(N70-Inputs!N480,6)=0,"OK","Wrong") -> OK | O71: =IF(ROUND(O70-Inputs!O480,6)=0,"OK","Wrong") -> OK | P71: =IF(ROUND(P70-Inputs!P480,6)=0,"OK","Wrong") -> OK | Q71: =IF(ROUND(Q70-Inputs!Q480,6)=0,"OK","Wrong") -> OK | R71: =IF(ROUND(R70-Inputs!R480,6)=0,"OK","Wrong") -> OK | S71: =IF(ROUND(S70-Inputs!S480,6)=0,"OK","Wrong") -> OK | T71: =IF(ROUND(T70-Inputs!T480,6)=0,"OK","Wrong") -> OK | U71: =IF(ROUND(U70-Inputs!U480,6)=0,"OK","Wrong") -> OK | V71: =IF(ROUND(V70-Inputs!V480,6)=0,"OK","Wrong") -> OK | W71: =IF(ROUND(W70-Inputs!W480,6)=0,"OK","Wrong") -> OK | X71: =IF(ROUND(X70-Inputs!X480,6)=0,"OK","Wrong") -> OK | Y71: =IF(ROUND(Y70-Inputs!Y480,6)=0,"OK","Wrong") -> OK | Z71: =IF(ROUND(Z70-Inputs!Z480,6)=0,"OK","Wrong") -> OK | AA71: =IF(ROUND(AA70-Inputs!AA480,6)=0,"OK","Wrong") -> OK | AB71: =IF(ROUND(AB70-Inputs!AB480,6)=0,"OK","Wrong") -> OK | AC71: =IF(ROUND(AC70-Inputs!AC480,6)=0,"OK","Wrong") -> OK
A72: =ROW() -> 72 | C72: Pipeline | I72: =-(Inputs!I196+Inputs!I1012) -> 0 | J72: =-(Inputs!J196+Inputs!J1012) -> 0 | K72: =-(Inputs!K196+Inputs!K1012) -> 0 | L72: =-(Inputs!L196+Inputs!L1012) -> 0 | M72: =-(Inputs!M196+Inputs!M1012) -> 0 | N72: =-(Inputs!N196+Inputs!N1012) -> 0 | O72: =-(Inputs!O196+Inputs!O1012) -> 0 | P72: =-(Inputs!P196+Inputs!P1012) -> 0 | Q72: =-(Inputs!Q196+Inputs!Q1012) -> 0 | R72: =-(Inputs!R196+Inputs!R1012) -> 0 | S72: =-(Inputs!S196+Inputs!S1012) -> 0 | T72: =-(Inputs!T196+Inputs!T1012) -> 0 | U72: =-(Inputs!U196+Inputs!U1012) -> 0 | V72: =-(Inputs!V196+Inputs!V1012) -> 0 | W72: =-(Inputs!W196+Inputs!W1012) -> 0 | X72: =-(Inputs!X196+Inputs!X1012) -> 0
A73: =ROW() -> 73 | C73: Compression | I73: =-(Inputs!I197+Inputs!I1013) -> 0 | J73: =-(Inputs!J197+Inputs!J1013) -> 0 | K73: =-(Inputs!K197+Inputs!K1013) -> 0 | L73: =-(Inputs!L197+Inputs!L1013) -> 0 | M73: =-(Inputs!M197+Inputs!M1013) -> 0 | N73: =-(Inputs!N197+Inputs!N1013) -> -4.999981617 | O73: =-(Inputs!O197+Inputs!O1013) -> 0 | P73: =-(Inputs!P197+Inputs!P1013) -> 0 | Q73: =-(Inputs!Q197+Inputs!Q1013) -> 0 | R73: =-(Inputs!R197+Inputs!R1013) -> 0 | S73: =-(Inputs!S197+Inputs!S1013) -> 0 | T73: =-(Inputs!T197+Inputs!T1013) -> -0.0833598153 | U73: =-(Inputs!U197+Inputs!U1013) -> 0 | V73: =-(Inputs!V197+Inputs!V1013) -> 0 | W73: =-(Inputs!W197+Inputs!W1013) -> 0 | X73: =-(Inputs!X197+Inputs!X1013) -> 0
A74: =ROW() -> 74 | C74: Metering | I74: =-(Inputs!I198+Inputs!I1014) -> 0 | J74: =-(Inputs!J198+Inputs!J1014) -> 0 | K74: =-(Inputs!K198+Inputs!K1014) -> 0 | L74: =-(Inputs!L198+Inputs!L1014) -> 0 | M74: =-(Inputs!M198+Inputs!M1014) -> 0 | N74: =-(Inputs!N198+Inputs!N1014) -> 0 | O74: =-(Inputs!O198+Inputs!O1014) -> 0 | P74: =-(Inputs!P198+Inputs!P1014) -> 0 | Q74: =-(Inputs!Q198+Inputs!Q1014) -> 0 | R74: =-(Inputs!R198+Inputs!R1014) -> 0 | S74: =-(Inputs!S198+Inputs!S1014) -> 0 | T74: =-(Inputs!T198+Inputs!T1014) -> 0 | U74: =-(Inputs!U198+Inputs!U1014) -> 0 | V74: =-(Inputs!V198+Inputs!V1014) -> 0 | W74: =-(Inputs!W198+Inputs!W1014) -> -1.715328281 | X74: =-(Inputs!X198+Inputs!X1014) -> 0
A75: =ROW() -> 75 | C75: Other Depreciable | I75: =-(Inputs!I199+Inputs!I1015) -> 0 | J75: =-(Inputs!J199+Inputs!J1015) -> 0 | K75: =-(Inputs!K199+Inputs!K1015) -> 0 | L75: =-(Inputs!L199+Inputs!L1015) -> 0 | M75: =-(Inputs!M199+Inputs!M1015) -> 0 | N75: =-(Inputs!N199+Inputs!N1015) -> -0.08966014229 | O75: =-(Inputs!O199+Inputs!O1015) -> 0 | P75: =-(Inputs!P199+Inputs!P1015) -> -0.03922312518 | Q75: =-(Inputs!Q199+Inputs!Q1015) -> -0.02963772798 | R75: =-(Inputs!R199+Inputs!R1015) -> -0.09463545079 | S75: =-(Inputs!S199+Inputs!S1015) -> -0.01240217805 | T75: =-(Inputs!T199+Inputs!T1015) -> -4.718444987 | U75: =-(Inputs!U199+Inputs!U1015) -> -0.394574954 | V75: =-(Inputs!V199+Inputs!V1015) -> -0.786035779 | W75: =-(Inputs!W199+Inputs!W1015) -> -0.5022216174 | X75: =-(Inputs!X199+Inputs!X1015) -> -0.7796653756
A76: =ROW() -> 76 | C76: Non Depreciable | I76: =-(Inputs!I200+Inputs!I1016) -> 0 | J76: =-(Inputs!J200+Inputs!J1016) -> 0 | K76: =-(Inputs!K200+Inputs!K1016) -> 0 | L76: =-(Inputs!L200+Inputs!L1016) -> 0 | M76: =-(Inputs!M200+Inputs!M1016) -> 0 | N76: =-(Inputs!N200+Inputs!N1016) -> -2.709620656 | O76: =-(Inputs!O200+Inputs!O1016) -> 0 | P76: =-(Inputs!P200+Inputs!P1016) -> 0 | Q76: =-(Inputs!Q200+Inputs!Q1016) -> 0 | R76: =-(Inputs!R200+Inputs!R1016) -> 0 | S76: =-(Inputs!S200+Inputs!S1016) -> 0 | T76: =-(Inputs!T200+Inputs!T1016) -> 0 | U76: =-(Inputs!U200+Inputs!U1016) -> 0 | V76: =-(Inputs!V200+Inputs!V1016) -> 0 | W76: =-(Inputs!W200+Inputs!W1016) -> 0 | X76: =-(Inputs!X200+Inputs!X1016) -> 0
A77: =ROW() -> 77 | C77: Cost of Raising Equity | I77: =-(Inputs!I201+Inputs!I1017) -> 0 | J77: =-(Inputs!J201+Inputs!J1017) -> 0 | K77: =-(Inputs!K201+Inputs!K1017) -> 0 | L77: =-(Inputs!L201+Inputs!L1017) -> 0 | M77: =-(Inputs!M201+Inputs!M1017) -> 0 | N77: =-(Inputs!N201+Inputs!N1017) -> 0 | O77: =-(Inputs!O201+Inputs!O1017) -> 0 | P77: =-(Inputs!P201+Inputs!P1017) -> 0 | Q77: =-(Inputs!Q201+Inputs!Q1017) -> 0 | R77: =-(Inputs!R201+Inputs!R1017) -> 0 | S77: =-(Inputs!S201+Inputs!S1017) -> 0 | T77: =-(Inputs!T201+Inputs!T1017) -> 0 | U77: =-(Inputs!U201+Inputs!U1017) -> 0 | V77: =-(Inputs!V201+Inputs!V1017) -> 0 | W77: =-(Inputs!W201+Inputs!W1017) -> 0 | X77: =-(Inputs!X201+Inputs!X1017) -> 0
A78: =ROW() -> 78 | C78: Total | I78: =SUM(I72:I77) -> 0 | J78: =SUM(J72:J77) -> 0 | K78: =SUM(K72:K77) -> 0 | L78: =SUM(L72:L77) -> 0 | M78: =SUM(M72:M77) -> 0 | N78: =SUM(N72:N77) -> -7.799262415 | O78: =SUM(O72:O77) -> 0 | P78: =SUM(P72:P77) -> -0.03922312518 | Q78: =SUM(Q72:Q77) -> -0.02963772798 | R78: =SUM(R72:R77) -> -0.09463545079 | S78: =SUM(S72:S77) -> -0.01240217805 | T78: =SUM(T72:T77) -> -4.801804802 | U78: =SUM(U72:U77) -> -0.394574954 | V78: =SUM(V72:V77) -> -0.786035779 | W78: =SUM(W72:W77) -> -2.217549898 | X78: =SUM(X72:X77) -> -0.7796653756 | Y78: =SUM(Y72:Y77) -> 0 | Z78: =SUM(Z72:Z77) -> 0 | AA78: =SUM(AA72:AA77) -> 0 | AB78: =SUM(AB72:AB77) -> 0 | AC78: =SUM(AC72:AC77) -> 0
A79: =ROW() -> 79 | B79: Depreciation | H79: Check | I79: =IF(ROUND(I78-I139-I190,6)=0,"OK","Wrong") -> OK | J79: =IF(ROUND(J78-J139-J190,6)=0,"OK","Wrong") -> OK | K79: OK | L79: OK | M79: OK | N79: OK | O79: OK | P79: OK | Q79: OK | R79: OK | S79: OK | T79: OK | U79: OK | V79: OK | W79: OK | X79: OK | Y79: OK | Z79: OK | AA79: OK | AB79: OK | AC79: OK
A80: =ROW() -> 80 | C80: Pipeline | I80: =I141+I192 -> -36.39206333 | J80: -36.40170872 | K80: -36.40798944 | L80: -36.41153356 | M80: -36.4195639 | N80: -36.43518632 | O80: -36.52068599 | P80: -36.62981546 | Q80: -41.46049956 | R80: -46.66605338 | S80: -48.25405222 | T80: -57.1407774 | U80: -57.48281068 | V80: -57.54440414 | W80: -57.61087709 | X80: -57.61911621 | Y80: -58.22280694 | Z80: -58.27532839 | AA80: -58.31090964 | AB80: -58.3343277 | AC80: -58.41114566
A81: =ROW() -> 81 | C81: Compression | I81: =I142+I193 -> -17.74470556 | J81: -17.79495132 | K81: -18.02262739 | L81: -18.2555374 | M81: -18.35131837 | N81: -16.67945939 | O81: -16.76667121 | P81: -19.81636416 | Q81: -25.01738361 | R81: -26.80903643 | S81: -26.82722605 | T81: -32.36106476 | U81: -33.6974808 | V81: -33.94253692 | W81: -34.01913679 | X81: -34.1233604 | Y81: -34.11317936 | Z81: -34.63363566 | AA81: -35.14508475 | AB81: -29.10932637 | AC81: -19.7779653
A82: =ROW() -> 82 | C82: Metering | I82: =I143+I194 -> -0.7169440094 | J82: -0.7169440094 | K82: -0.7185141892 | L82: -0.7200843691 | M82: -0.7216545489 | N82: -0.7923800436 | O82: -0.8223898918 | P82: -0.8551287333 | Q82: -0.8592211916 | R82: -0.8592211916 | S82: -0.8592211916 | T82: -0.9046669391 | U82: -0.9169732801 | V82: -0.9278428465 | W82: -0.9873085351 | X82: -1.046774224 | Y82: 0.2480729442 | Z82: -1.128477874 | AA82: -1.182157721 | AB82: -1.199164501 | AC82: -1.212144087
A83: =ROW() -> 83 | C83: Other Depreciable | I83: =I144+I195 -> -4.441068495 | J83: -4.706010174 | K83: -4.969538691 | L83: -5.268919648 | M83: -5.515961277 | N83: -4.875676075 | O83: -5.05346169 | P83: -5.194420591 | Q83: -5.264901819 | R83: -5.507727136 | S83: -5.796487368 | T83: -7.907561284 | U83: -10.84413127 | V83: -10.9370814 | W83: -11.00800721 | X83: -11.17598938 | Y83: -5.884382829 | Z83: -6.35644569 | AA83: -6.444676422 | AB83: -6.531253531 | AC83: -6.589939801
A84: =ROW() -> 84 | C84: Non Depreciable | I84: =I145+I196 -> 0 | J84: 0 | K84: 0 | L84: 0 | M84: 0 | N84: 0 | O84: 0 | P84: 0 | Q84: 0 | R84: 0 | S84: 0 | T84: 0 | U84: 0 | V84: 0 | W84: 0 | X84: 0 | Y84: 0.06213890957 | Z84: 0 | AA84: 0 | AB84: 0 | AC84: 0
A85: =ROW() -> 85 | C85: Cost of Raising Equity | I85: =I146+I197 -> 0 | J85: 0 | K85: 0 | L85: 0 | M85: 0 | N85: 0 | O85: 0 | P85: 0 | Q85: 0 | R85: 0 | S85: 0 | T85: 0 | U85: 0 | V85: 0 | W85: 0 | X85: 0 | Y85: 0 | Z85: -4.571027009e-16 | AA85: -5.697433526e-16 | AB85: -7.081408673e-16 | AC85: -7.423153803e-16
A86: =ROW() -> 86 | C86: Total | I86: =SUM(I80:I85) -> -59.29478139 | J86: =SUM(J80:J85) -> -59.61961422 | K86: =SUM(K80:K85) -> -60.11866971 | L86: =SUM(L80:L85) -> -60.65607498 | M86: =SUM(M80:M85) -> -61.0084981 | N86: =SUM(N80:N85) -> -58.78270184 | O86: =SUM(O80:O85) -> -59.16320878 | P86: =SUM(P80:P85) -> -62.49572894 | Q86: =SUM(Q80:Q85) -> -72.60200618 | R86: =SUM(R80:R85) -> -79.84203813 | S86: =SUM(S80:S85) -> -81.73698682 | T86: =SUM(T80:T85) -> -98.31407038 | U86: =SUM(U80:U85) -> -102.941396 | V86: =SUM(V80:V85) -> -103.3518653 | W86: =SUM(W80:W85) -> -103.6253296 | X86: =SUM(X80:X85) -> -103.9652402 | Y86: =SUM(Y80:Y85) -> -97.91015727 | Z86: =SUM(Z80:Z85) -> -100.3938876 | AA86: =SUM(AA80:AA85) -> -101.0828285 | AB86: =SUM(AB80:AB85) -> -95.1740721 | AC86: =SUM(AC80:AC85) -> -85.99119485
A87: =ROW() -> 87 | B87: Closing Value | H87: Check | I87: =IF(ROUND(I86+Inputs!I101,6)=0,"OK","Wrong") -> OK | J87: =IF(ROUND(J86+Inputs!J101,6)=0,"OK","Wrong") -> OK | K87: =IF(ROUND(K86+Inputs!K101,6)=0,"OK","Wrong") -> OK | L87: =IF(ROUND(L86+Inputs!L101,6)=0,"OK","Wrong") -> OK | M87: =IF(ROUND(M86+Inputs!M101,6)=0,"OK","Wrong") -> OK | N87: =IF(ROUND(N86+Inputs!N101,6)=0,"OK","Wrong") -> OK | O87: =IF(ROUND(O86+Inputs!O101,6)=0,"OK","Wrong") -> OK | P87: =IF(ROUND(P86+Inputs!P101,6)=0,"OK","Wrong") -> OK | Q87: =IF(ROUND(Q86+Inputs!Q101,6)=0,"OK","Wrong") -> OK | R87: =IF(ROUND(R86+Inputs!R101,6)=0,"OK","Wrong") -> OK | S87: =IF(ROUND(S86+Inputs!S101,6)=0,"OK","Wrong") -> OK | T87: =IF(ROUND(T86+Inputs!T101,6)=0,"OK","Wrong") -> OK | U87: =IF(ROUND(U86+Inputs!U101,6)=0,"OK","Wrong") -> OK | V87: =IF(ROUND(V86+Inputs!V101,6)=0,"OK","Wrong") -> OK | W87: =IF(ROUND(W86+Inputs!W101,6)=0,"OK","Wrong") -> OK | X87: =IF(ROUND(X86+Inputs!X101,6)=0,"OK","Wrong") -> OK | Y87: =IF(ROUND(Y86-Y147-Y198,6)=0,"OK","Wrong") -> OK | Z87: OK | AA87: OK | AB87: OK | AC87: OK
A88: =ROW() -> 88 | C88: Pipeline | H88: =H149 -> 1983.367451 | I88: =I56+I64+I72+I80 -> 1949.03505 | J88: =J56+J64+J72+J80 -> 1912.676655 | K88: 1876.357978 | L88: 1839.946474 | M88: 1804.353202 | N88: 1777.536256 | O88: 2029.082232 | P88: 1993.847696 | Q88: 2531.731835 | R88: 2485.065782 | S88: =S56+S64+S72+S80-S96 -> 3000.201358 | T88: =T56+T64+T72+T80 -> 2993.149109 | U88: =U56+U64+U72+U80 -> 2951.188898 | V88: 2898.497137 | W88: 2841.479033 | X88: =X56+X64+X72+X80 -> 2786.452733 | Y88: =MAX(Y56+Y64+Y72+Y80,0) -> 2731.906428 | Z88: 2676.121787 | AA88: 2619.450142 | AB88: 2566.493071 | AC88: 2515.728267
A89: =ROW() -> 89 | C89: Compression | H89: 332.2558345 | I89: 311.5489051 | J89: =J57+J65+J73+J81 -> 295.6636826 | K89: 277.7574333 | L89: 259.3452471 | M89: 241.2379589 | N89: 272.8877647 | O89: 448.7271793 | P89: 429.0759994 | Q89: 552.9347436 | R89: 526.1257072 | S89: =S57+S65+S73+S81-S97 -> 577.0456389 | T89: =T57+T65+T73+T81 -> 576.0644837 | U89: 551.1836143 | V89: 522.9850421 | W89: 492.0754729 | X89: =X57+X65+X73+X81 -> 462.4277368 | Y89: =MAX(Y57+Y65+Y73+Y81,0) -> 443.9282465 | Z89: 424.6380837 | AA89: 401.2409048 | AB89: 382.3047923 | AC89: 372.7099712
A90: =ROW() -> 90 | C90: Metering | H90: 27.24757555 | I90: 27.3790683 | J90: =J58+J66+J74+J82 -> 27.43873258 | K90: 27.22023977 | L90: 26.45680713 | M90: 27.9571158 | N90: 27.16473576 | O90: 26.34234587 | P90: 25.48721714 | Q90: 24.62799594 | R90: 23.85635196 | S90: 28.65576528 | T90: =T58+T66+T74+T82 -> 28.1308343 | U90: 29.17968395 | V90: 29.23899616 | W90: 27.75529729 | X90: =X58+X66+X74+X82 -> 30.3698286 | Y90: 34.22157145 | Z90: 35.77708592 | AA90: 35.44526721 | AB90: 34.89508199 | AC90: 35.00205696
A91: =ROW() -> 91 | C91: Other Depreciable | H91: 74.83200414 | I91: 77.95374562 | J91: =J59+J67+J75+J83 -> 75.22034279 | K91: 71.29847958 | L91: 67.28563229 | M91: 62.96873325 | N91: 62.55848251 | O91: 58.4893399 | P91: 55.87185931 | Q91: 57.18982846 | R91: 52.21319145 | S91: 126.1667107 | T91: =T59+T67+T75+T83 -> 169.3948862 | U91: 164.5920892 | V91: 162.577926 | W91: 158.6690129 | X91: =X59+X67+X75+X83 -> 158.4478554 | Y91: 154.9586271 | Z91: 151.2491034 | AA91: 147.4017402 | AB91: 142.6310748 | AC91: 138.5874896
A92: =ROW() -> 92 | C92: Non Depreciable | H92: 16.07589275 | I92: 16.07589275 | J92: =J60+J68+J76+J84 -> 16.07589275 | K92: 16.07589275 | L92: 16.07589275 | M92: 16.07589275 | N92: 13.3662721 | O92: 13.21609297 | P92: 15.40001608 | Q92: 17.06154667 | R92: 17.82177761 | S92: 18.71786718 | T92: =T60+T68+T76+T84 -> 18.70015296 | U92: 18.65869938 | V92: 18.85380456 | W92: 18.85441269 | X92: =X60+X68+X76+X84 -> 18.85144158 | Y92: 18.91358049 | Z92: 18.91358049 | AA92: 18.91358049 | AB92: 18.91358049 | AC92: 18.91358049
A93: =ROW() -> 93 | C93: Cost of Raising Equity | H93: 0 | I93: 0 | J93: =J61+J69+J77+J85 -> 0 | K93: 0 | L93: 0 | M93: 0 | N93: 0 | O93: 0 | P93: 0 | Q93: 0 | R93: 0 | S93: 0 | T93: =T61+T69+T77+T85 -> 0 | U93: 0 | V93: 0 | W93: 0 | X93: =X61+X69+X77+X85 -> 0 | Y93: 2.861416982e-14 | Z93: 3.520825874e-14 | AA93: 4.330206076e-14 | AB93: 4.473321007e-14 | AC93: 4.399089469e-14
A94: =ROW() -> 94 | C94: Total | H94: =SUM(H88:H93) -> 2433.778758 | I94: =SUM(I88:I93) -> 2381.992662 | J94: 2327.075305 | K94: 2268.710024 | L94: 2209.110053 | M94: 2152.592903 | N94: 2153.513511 | O94: 2575.85719 | P94: 2519.682788 | Q94: 3183.54595 | R94: 3105.08281 | S94: 3750.78734 | T94: 3785.439466 | U94: 3714.802985 | V94: 3632.152906 | W94: 3538.833229 | X94: 3456.549596 | Y94: 3383.928454 | Z94: 3306.69964 | AA94: 3222.451635 | AB94: 3145.237601 | AC94: 3080.941366
A95: =ROW() -> 95 | B95: Over Depreciation | G95: Check | H95: =IF(ROUND(H94-Inputs!H85,6)=0,"OK","Wrong") -> OK | I95: =IF(ROUND(I94-Inputs!I85,6)=0,"OK","Wrong") -> OK | J95: =IF(ROUND(J94-Inputs!J85,6)=0,"OK","Wrong") -> OK | K95: =IF(ROUND(K94-Inputs!K85,6)=0,"OK","Wrong") -> OK | L95: =IF(ROUND(L94-Inputs!L85,6)=0,"OK","Wrong") -> OK | M95: =IF(ROUND(M94-Inputs!M85,6)=0,"OK","Wrong") -> OK | N95: =IF(ROUND(N94-N155-N206,6)=0,"OK","Wrong") -> OK | O95: OK | P95: OK | Q95: OK | R95: OK | S95: OK | T95: OK | U95: OK | V95: OK | W95: OK | X95: OK | Y95: OK | Z95: OK | AA95: OK | AB95: OK | AC95: OK
A96: =ROW() -> 96 | C96: Pipeline | S96: =S157+S208 -> -14.69277573
A97: =ROW() -> 97 | C97: Compression | S97: -19.2211422
A98: =ROW() -> 98 | C98: Metering | S98: -0.3329986395
A99: =ROW() -> 99 | C99: Other Depreciable | S99: 0
A100: =ROW() -> 100 | C100: Non-depreciable | S100: -0.1501791295
A101: =ROW() -> 101 | C101: Cost of Raising Equity | S101: 0
A102: =ROW() -> 102 | C102: Total | S102: =SUM(S96:S101) -> -34.3970957
A103: =ROW() -> 103
A104: ="BEP Asset Account [m$ "&TEXT(Inputs!$E$28,"dd/mm/yyyy")&"]" -> BEP Asset Account [m$ 31/12/2015]
A105: BEP Lease (Capex)
A106: =ROW() -> 106 | B106: BEP Asset Account
A107: =ROW() -> 107 | C107: Life | U107: 57 | V107: =U107-1 -> 56 | W107: 55 | X107: 54 | Y107: 53 | Z107: 52 | AA107: 51 | AB107: 50 | AC107: 49
A108: =ROW() -> 108 | C108: Opening Value (Starting 01/12/2010) | T108: =S112 -> 0 | U108: =T112 -> 21.11875318 | V108: =U112 -> 20.74824874 | W108: =V112 -> 20.37774429 | X108: =W112 -> 20.00723985 | Y108: =X112 -> 19.63673541 | Z108: 19.26623097 | AA108: 18.89572653 | AB108: 18.52522209 | AC108: 18.15471764
A109: =ROW() -> 109 | C109: Capex | T109: =Inputs!$T$320 -> 21.11875318
A110: =ROW() -> 110 | C110: Redundant & Disposed Asset | U110: =Inputs!U328 -> 0 | V110: =Inputs!V328 -> 0 | W110: =Inputs!W328 -> 0 | X110: =Inputs!X328 -> 0 | Y110: =Inputs!Y328 -> 0 | Z110: =Inputs!Z328 -> 0 | AA110: =Inputs!AA328 -> 0 | AB110: =Inputs!AB328 -> 0 | AC110: =Inputs!AC328 -> 0
A111: =ROW() -> 111 | C111: Depreciation | T111: =Inputs!T324 -> 0 | U111: =Inputs!U324 -> -0.3705044417 | V111: =Inputs!V324 -> -0.3705044417 | W111: =Inputs!W324 -> -0.3705044417 | X111: =Inputs!X324 -> -0.3705044417 | Y111: =-Y108/Y107 -> -0.3705044417 | Z111: -0.3705044417 | AA111: -0.3705044417 | AB111: -0.3705044417 | AC111: -0.3705044417
A112: =ROW() -> 112 | C112: Closing Value | T112: =SUM(T108:T111) -> 21.11875318 | U112: =SUM(U108:U111) -> 20.74824874 | V112: =SUM(V108:V111) -> 20.37774429 | W112: =SUM(W108:W111) -> 20.00723985 | X112: =SUM(X108:X111) -> 19.63673541 | Y112: =SUM(Y108:Y111) -> 19.26623097 | Z112: 18.89572653 | AA112: 18.52522209 | AB112: 18.15471764 | AC112: 17.7842132
A113: =ROW() -> 113
A114: ="Opening Capital Base (OCB) [$m "&TEXT(Inputs!$E$28,"dd/mm/yyyy")&"]" -> Opening Capital Base (OCB) [$m 31/12/2015]
A115: Opening Capital Base Accounts
A116: =ROW() -> 116 | B116: Life | I116: Life
A117: =ROW() -> 117 | C117: Pipeline | I117: =Inputs!D42 -> 54.5 | J117: =MAX(I117-1,0) -> 53.5 | K117: =MAX(J117-1,0) -> 52.5 | L117: 51.5 | M117: 50.5 | N117: 49.5 | O117: 48.5 | P117: 47.5 | Q117: 46.5 | R117: 45.5 | S117: 44.5 | T117: 43.5 | U117: 42.5 | V117: 41.5 | W117: 40.5 | X117: 39.5 | Y117: 38.5 | Z117: 37.5 | AA117: 36.5 | AB117: 35.5 | AC117: 34.5
A118: =ROW() -> 118 | C118: Compression | I118: =Inputs!D43 -> 19.60073141 | J118: =MAX(I118-1,0) -> 18.60073141 | K118: 17.60073141 | L118: 16.60073141 | M118: 15.60073141 | N118: 14.60073141 | O118: 13.60073141 | P118: 12.60073141 | Q118: 11.60073141 | R118: 10.60073141 | S118: 9.600731411 | T118: 8.600731411 | U118: 7.600731411 | V118: 6.600731411 | W118: 5.600731411 | X118: 4.600731411 | Y118: 3.600731411 | Z118: 2.600731411 | AA118: 1.600731411 | AB118: 0.6007314111 | AC118: 0
A119: =ROW() -> 119 | C119: Metering | I119: =Inputs!D44 -> 38.50225195 | J119: 37.50225195 | K119: 36.50225195 | L119: 35.50225195 | M119: 34.50225195 | N119: 33.50225195 | O119: 32.50225195 | P119: 31.50225195 | Q119: 30.50225195 | R119: 29.50225195 | S119: 28.50225195 | T119: 27.50225195 | U119: 26.50225195 | V119: 25.50225195 | W119: 24.50225195 | X119: 23.50225195 | Y119: 22.50225195 | Z119: 21.50225195 | AA119: 20.50225195 | AB119: 19.50225195 | AC119: 18.50225195
A120: =ROW() -> 120 | C120: Other Depreciable | I120: =Inputs!D45 -> 16.85 | J120: 15.85 | K120: 14.85 | L120: 13.85 | M120: 12.85 | N120: 11.85 | O120: 10.85 | P120: 9.85 | Q120: 8.85 | R120: 7.85 | S120: 6.85 | T120: 5.85 | U120: 4.85 | V120: 3.85 | W120: 2.85 | X120: 1.85 | Y120: 0.85 | Z120: 0 | AA120: 0 | AB120: 0 | AC120: 0
A121: =ROW() -> 121 | C121: Non Depreciable
A122: =ROW() -> 122 | C122: Cost of Raising Equity
A123: =ROW() -> 123
A124: =ROW() -> 124 | B124: Opening Value
A125: =ROW() -> 125 | C125: Pipeline | I125: =H149 -> 1983.367451 | J125: =I149 -> 1946.975388 | K125: 1910.583325 | L125: 1874.191261 | M125: 1837.799198 | N125: 1801.407135 | O125: 1765.015071 | P125: 1728.623008 | Q125: 1692.230945 | R125: 1655.838881 | S125: 1619.446818 | T125: 1583.054755 | U125: 1546.662691 | V125: 1510.270628 | W125: 1473.878565 | X125: =W149 -> 1437.486501 | Y125: =X149 -> 1401.094438 | Z125: 1364.702375 | AA125: 1328.310311 | AB125: 1291.918248 | AC125: 1255.526185
A126: =ROW() -> 126 | C126: Compression | I126: 332.2558345 | J126: 314.5111289 | K126: 296.7664233 | L126: 279.0217178 | M126: 261.2770122 | N126: 243.5323067 | O126: 221.8528657 | P126: 205.1734063 | Q126: 188.4939469 | R126: 171.8144875 | S126: 155.1350281 | T126: 138.4555687 | U126: 122.356401 | V126: 106.2582854 | W126: 90.16016977 | X126: 74.06205414 | Y126: 57.96393852 | Z126: 41.86611508 | AA126: 25.76829163 | AB126: 9.670468192 | AC126: 0
A127: =ROW() -> 127 | C127: Metering | I127: 27.24757555 | J127: 26.53063154 | K127: 25.81368753 | L127: 25.09674352 | M127: 24.37979951 | N127: 23.6628555 | O127: 22.95654908 | P127: 22.25024267 | Q127: 21.54393625 | R127: 20.83762983 | S127: 20.13132342 | T127: 19.425017 | U127: 18.71871059 | V127: 18.01240417 | W127: 17.30609776 | X127: 16.57380959 | Y127: 15.86750317 | Z127: 15.16235139 | AA127: 14.4571996 | AB127: 13.75204781 | AC127: 13.04689602
A128: =ROW() -> 128 | C128: Other Depreciable | I128: 74.83200414 | J128: 70.39093565 | K128: 65.94986715 | L128: 61.50879866 | M128: 57.06773016 | N128: 52.62666167 | O128: 48.09593303 | P128: 43.65486454 | Q128: 39.17457291 | R128: 34.70386669 | S128: 30.16816275 | T128: 25.71469207 | U128: 19.43461752 | V128: 15.01226511 | W128: 10.58053402 | X128: 6.184860159 | Y128: 1.7891863 | Z128: 0 | AA128: 0 | AB128: 0 | AC128: 0
A129: =ROW() -> 129 | C129: Non Depreciable | I129: 16.07589275 | J129: 16.07589275 | K129: 16.07589275 | L129: 16.07589275 | M129: 16.07589275 | N129: 16.07589275 | O129: 13.3662721 | P129: 13.3662721 | Q129: 13.3662721 | R129: 13.3662721 | S129: 13.3662721 | T129: 13.3662721 | U129: 13.3662721 | V129: 13.3662721 | W129: 13.3662721 | X129: 13.3662721 | Y129: 13.3662721 | Z129: 13.3662721 | AA129: 13.3662721 | AB129: 13.3662721 | AC129: 13.3662721
A130: =ROW() -> 130 | C130: Cost of Raising Equity | I130: 0 | J130: =I154 -> 0 | K130: =J154 -> 0 | L130: =K154 -> 0 | M130: =L154 -> 0 | N130: =M154 -> 0 | O130: =N154 -> 0 | P130: =O154 -> 0 | Q130: =P154 -> 0 | R130: =Q154 -> 0 | S130: =R154 -> 0 | T130: =S154 -> 0 | U130: =T154 -> 0 | V130: =U154 -> 0 | W130: =V154 -> 0 | X130: 0 | Y130: =X154 -> 0 | Z130: =Y154 -> 0 | AA130: =Z154 -> 0 | AB130: =AA154 -> 0 | AC130: =AB154 -> 0
A131: =ROW() -> 131 | C131: Total | I131: =SUM(I125:I130) -> 2433.778758 | J131: =SUM(J125:J130) -> 2374.483977 | K131: =SUM(K125:K130) -> 2315.189195 | L131: =SUM(L125:L130) -> 2255.894414 | M131: =SUM(M125:M130) -> 2196.599633 | N131: =SUM(N125:N130) -> 2137.304851 | O131: =SUM(O125:O130) -> 2071.286691 | P131: =SUM(P125:P130) -> 2013.067794 | Q131: =SUM(Q125:Q130) -> 1954.809673 | R131: =SUM(R125:R130) -> 1896.561137 | S131: =SUM(S125:S130) -> 1838.247604 | T131: =SUM(T125:T130) -> 1780.016305 | U131: =SUM(U125:U130) -> 1720.538693 | V131: =SUM(V125:V130) -> 1662.919855 | W131: =SUM(W125:W130) -> 1605.291638 | X131: =SUM(X125:X130) -> 1547.673497 | Y131: =SUM(Y125:Y130) -> 1490.081338 | Z131: =SUM(Z125:Z130) -> 1435.097113 | AA131: =SUM(AA125:AA130) -> 1381.902075 | AB131: =SUM(AB125:AB130) -> 1328.707036 | AC131: =SUM(AC125:AC130) -> 1281.939353
A132: =ROW() -> 132 | B132: Redundant & Disposed Asset
A133: =ROW() -> 133 | C133: Pipeline | I133: =-Inputs!I196 -> 0 | J133: =-Inputs!J196 -> 0 | K133: =-Inputs!K196 -> 0 | L133: =-Inputs!L196 -> 0 | M133: =-Inputs!M196 -> 0 | N133: =-Inputs!N196 -> 0 | O133: =-Inputs!O196 -> 0 | P133: =-Inputs!P196 -> 0 | Q133: =-Inputs!Q196 -> 0 | R133: =-Inputs!R196 -> 0 | S133: =-Inputs!S196 -> 0 | T133: =-Inputs!T196 -> 0 | U133: =-Inputs!U196 -> 0 | V133: =-Inputs!V196 -> 0 | W133: =-Inputs!W196 -> 0 | X133: =-Inputs!X196 -> 0 | Y133: =-Inputs!Y196 -> 0 | Z133: =-Inputs!Z196 -> 0 | AA133: =-Inputs!AA196 -> 0 | AB133: =-Inputs!AB196 -> 0 | AC133: =-Inputs!AC196 -> 0
A134: =ROW() -> 134 | C134: Compression | I134: =-Inputs!I197 -> 0 | J134: =-Inputs!J197 -> 0 | K134: =-Inputs!K197 -> 0 | L134: =-Inputs!L197 -> 0 | M134: =-Inputs!M197 -> 0 | N134: =-Inputs!N197 -> -4.999981617 | O134: =-Inputs!O197 -> 0 | P134: =-Inputs!P197 -> 0 | Q134: =-Inputs!Q197 -> 0 | R134: =-Inputs!R197 -> 0 | S134: =-Inputs!S197 -> 0 | T134: =-Inputs!T197 -> -0.001052061985 | U134: =-Inputs!U197 -> 0 | V134: =-Inputs!V197 -> 0 | W134: =-Inputs!W197 -> 0 | X134: =-Inputs!X197 -> 0 | Y134: =-Inputs!Y197 -> 0 | Z134: =-Inputs!Z197 -> 0 | AA134: =-Inputs!AA197 -> 0 | AB134: =-Inputs!AB197 -> 0 | AC134: =-Inputs!AC197 -> 0
A135: =ROW() -> 135 | C135: Metering | I135: =-Inputs!I198 -> 0 | J135: =-Inputs!J198 -> 0 | K135: =-Inputs!K198 -> 0 | L135: =-Inputs!L198 -> 0 | M135: =-Inputs!M198 -> 0 | N135: =-Inputs!N198 -> 0 | O135: =-Inputs!O198 -> 0 | P135: =-Inputs!P198 -> 0 | Q135: =-Inputs!Q198 -> 0 | R135: =-Inputs!R198 -> 0 | S135: =-Inputs!S198 -> 0 | T135: =-Inputs!T198 -> 0 | U135: =-Inputs!U198 -> 0 | V135: =-Inputs!V198 -> 0 | W135: =-Inputs!W198 -> -0.02598175074 | X135: =-Inputs!X198 -> 0 | Y135: =-Inputs!Y198 -> 0 | Z135: =-Inputs!Z198 -> 0 | AA135: =-Inputs!AA198 -> 0 | AB135: =-Inputs!AB198 -> 0 | AC135: =-Inputs!AC198 -> 0
A136: =ROW() -> 136 | C136: Other Depreciable | I136: =-Inputs!I199 -> 0 | J136: =-Inputs!J199 -> 0 | K136: =-Inputs!K199 -> 0 | L136: =-Inputs!L199 -> 0 | M136: =-Inputs!M199 -> 0 | N136: =-Inputs!N199 -> -0.08966014229 | O136: =-Inputs!O199 -> 0 | P136: =-Inputs!P199 -> -0.03922312518 | Q136: =-Inputs!Q199 -> -0.02963772798 | R136: =-Inputs!R199 -> -0.09463545079 | S136: =-Inputs!S199 -> -0.01240217805 | T136: =-Inputs!T199 -> -1.884400697 | U136: =-Inputs!U199 -> -0.02667854721 | V136: =-Inputs!V199 -> -0.03605723524 | W136: =-Inputs!W199 -> 0 | X136: =-Inputs!X199 -> 0 | Y136: =-Inputs!Y199 -> 0 | Z136: =-Inputs!Z199 -> 0 | AA136: =-Inputs!AA199 -> 0 | AB136: =-Inputs!AB199 -> 0 | AC136: =-Inputs!AC199 -> 0
A137: =ROW() -> 137 | C137: Non Depreciable | I137: =-Inputs!I200 -> 0 | J137: =-Inputs!J200 -> 0 | K137: =-Inputs!K200 -> 0 | L137: =-Inputs!L200 -> 0 | M137: =-Inputs!M200 -> 0 | N137: =-Inputs!N200 -> -2.709620656 | O137: =-Inputs!O200 -> 0 | P137: =-Inputs!P200 -> 0 | Q137: =-Inputs!Q200 -> 0 | R137: =-Inputs!R200 -> 0 | S137: =-Inputs!S200 -> 0 | T137: =-Inputs!T200 -> 0 | U137: =-Inputs!U200 -> 0 | V137: =-Inputs!V200 -> 0 | W137: =-Inputs!W200 -> 0 | X137: =-Inputs!X200 -> 0 | Y137: =-Inputs!Y200 -> 0 | Z137: =-Inputs!Z200 -> 0 | AA137: =-Inputs!AA200 -> 0 | AB137: =-Inputs!AB200 -> 0 | AC137: =-Inputs!AC200 -> 0
A138: =ROW() -> 138 | C138: Cost of Raising Equity | I138: =-Inputs!I201 -> 0 | J138: =-Inputs!J201 -> 0 | K138: =-Inputs!K201 -> 0 | L138: =-Inputs!L201 -> 0 | M138: =-Inputs!M201 -> 0 | N138: =-Inputs!N201 -> 0 | O138: =-Inputs!O201 -> 0 | P138: =-Inputs!P201 -> 0 | Q138: =-Inputs!Q201 -> 0 | R138: =-Inputs!R201 -> 0 | S138: =-Inputs!S201 -> 0 | T138: =-Inputs!T201 -> 0 | U138: =-Inputs!U201 -> 0 | V138: =-Inputs!V201 -> 0 | W138: =-Inputs!W201 -> 0 | X138: =-Inputs!X201 -> 0 | Y138: =-Inputs!Y201 -> 0 | Z138: =-Inputs!Z201 -> 0 | AA138: =-Inputs!AA201 -> 0 | AB138: =-Inputs!AB201 -> 0 | AC138: =-Inputs!AC201 -> 0
A139: =ROW() -> 139 | C139: Total | I139: =SUM(I133:I138) -> 0 | J139: =SUM(J133:J138) -> 0 | K139: =SUM(K133:K138) -> 0 | L139: =SUM(L133:L138) -> 0 | M139: =SUM(M133:M138) -> 0 | N139: =SUM(N133:N138) -> -7.799262415 | O139: =SUM(O133:O138) -> 0 | P139: =SUM(P133:P138) -> -0.03922312518 | Q139: =SUM(Q133:Q138) -> -0.02963772798 | R139: =SUM(R133:R138) -> -0.09463545079 | S139: =SUM(S133:S138) -> -0.01240217805 | T139: =SUM(T133:T138) -> -1.885452759 | U139: =SUM(U133:U138) -> -0.02667854721 | V139: =SUM(V133:V138) -> -0.03605723524 | W139: =SUM(W133:W138) -> -0.02598175074 | X139: =SUM(X133:X138) -> 0 | Y139: =SUM(Y133:Y138) -> 0 | Z139: =SUM(Z133:Z138) -> 0 | AA139: =SUM(AA133:AA138) -> 0 | AB139: =SUM(AB133:AB138) -> 0 | AC139: =SUM(AC133:AC138) -> 0
A140: =ROW() -> 140 | B140: Depreciation | Z140: =Z128/($H144-(Z$8-1)) -> 0
A141: =ROW() -> 141 | C141: Pipeline | I141: =-Inputs!I154 -> -36.39206333 | J141: =-Inputs!J154 -> -36.39206333 | K141: =-Inputs!K154 -> -36.39206333 | L141: =-Inputs!L154 -> -36.39206333 | M141: =-Inputs!M154 -> -36.39206333 | N141: =-Inputs!N154 -> -36.39206333 | O141: =-Inputs!O154 -> -36.39206333 | P141: =-Inputs!P154 -> -36.39206333 | Q141: =-Inputs!Q154 -> -36.39206333 | R141: =-Inputs!R154 -> -36.39206333 | S141: =-Inputs!S154 -> -36.39206333 | T141: =-Inputs!T154 -> -36.39206333 | U141: =-Inputs!U154 -> -36.39206333 | V141: =-Inputs!V154 -> -36.39206333 | W141: =-Inputs!W154 -> -36.39206333 | X141: =-Inputs!X154 -> -36.39206333 | Y141: =IF(Y117<=0,0,-MIN(IF(Y125/Y117>Y125,Y125,Y125/Y117),Y125)) -> -36.39206333 | Z141: =IF(Z117<=0,0,-MIN(IF(Z125/Z117>Z125,Z125,Z125/Z117),Z125)) -> -36.39206333 | AA141: -36.39206333 | AB141: -36.39206333 | AC141: -36.39206333
A142: =ROW() -> 142 | C142: Compression | I142: =-Inputs!I155 -> -17.74470556 | J142: =-Inputs!J155 -> -17.74470556 | K142: =-Inputs!K155 -> -17.74470556 | L142: =-Inputs!L155 -> -17.74470556 | M142: =-Inputs!M155 -> -17.74470556 | N142: =-Inputs!N155 -> -16.67945939 | O142: =-Inputs!O155 -> -16.67945939 | P142: =-Inputs!P155 -> -16.67945939 | Q142: =-Inputs!Q155 -> -16.67945939 | R142: =-Inputs!R155 -> -16.67945939 | S142: =-Inputs!S155 -> -16.67945939 | T142: =-Inputs!T155 -> -16.09811562 | U142: =-Inputs!U155 -> -16.09811562 | V142: =-Inputs!V155 -> -16.09811562 | W142: =-Inputs!W155 -> -16.09811562 | X142: =-Inputs!X155 -> -16.09811562 | Y142: -16.09782344 | Z142: =IF(Z118<=0,0,-MIN(IF(Z126/Z118>Z126,Z126,Z126/Z118),Z126)) -> -16.09782344 | AA142: -16.09782344 | AB142: -9.670468192 | AC142: 0
A143: =ROW() -> 143 | C143: Metering | I143: =-Inputs!I156 -> -0.7169440094 | J143: =-Inputs!J156 -> -0.7169440094 | K143: =-Inputs!K156 -> -0.7169440094 | L143: =-Inputs!L156 -> -0.7169440094 | M143: =-Inputs!M156 -> -0.7169440094 | N143: =-Inputs!N156 -> -0.7063064159 | O143: =-Inputs!O156 -> -0.7063064159 | P143: =-Inputs!P156 -> -0.7063064159 | Q143: =-Inputs!Q156 -> -0.7063064159 | R143: =-Inputs!R156 -> -0.7063064159 | S143: =-Inputs!S156 -> -0.7063064159 | T143: =-Inputs!T156 -> -0.7063064159 | U143: =-Inputs!U156 -> -0.7063064159 | V143: =-Inputs!V156 -> -0.7063064159 | W143: =-Inputs!W156 -> -0.7063064159 | X143: =-Inputs!X156 -> -0.7063064159 | Y143: -0.705151787 | Z143: -0.705151787 | AA143: -0.705151787 | AB143: -0.705151787 | AC143: -0.705151787
A144: =ROW() -> 144 | C144: Other Depreciable | I144: =-Inputs!I157 -> -4.441068495 | J144: =-Inputs!J157 -> -4.441068495 | K144: =-Inputs!K157 -> -4.441068495 | L144: =-Inputs!L157 -> -4.441068495 | M144: =-Inputs!M157 -> -4.441068495 | N144: =-Inputs!N157 -> -4.441068495 | O144: =-Inputs!O157 -> -4.441068495 | P144: =-Inputs!P157 -> -4.441068495 | Q144: =-Inputs!Q157 -> -4.441068495 | R144: =-Inputs!R157 -> -4.441068495 | S144: =-Inputs!S157 -> -4.441068495 | T144: =-Inputs!T157 -> -4.395673859 | U144: =-Inputs!U157 -> -4.395673859 | V144: =-Inputs!V157 -> -4.395673859 | W144: =-Inputs!W157 -> -4.395673859 | X144: =-Inputs!X157 -> -4.395673859 | Y144: -1.7891863 | Z144: 0 | AA144: 0 | AB144: 0 | AC144: 0
A145: =ROW() -> 145 | C145: Non Depreciable | I145: =-Inputs!I158 -> 0 | J145: =-Inputs!J158 -> 0 | K145: =-Inputs!K158 -> 0 | L145: =-Inputs!L158 -> 0 | M145: =-Inputs!M158 -> 0 | N145: =-Inputs!N158 -> 0 | O145: =-Inputs!O158 -> 0 | P145: =-Inputs!P158 -> 0 | Q145: =-Inputs!Q158 -> 0 | R145: =-Inputs!R158 -> 0 | S145: =-Inputs!S158 -> 0 | T145: =-Inputs!T158 -> 0 | U145: =-Inputs!U158 -> 0 | V145: =-Inputs!V158 -> 0 | W145: =-Inputs!W158 -> 0 | X145: =-Inputs!X158 -> 0
A146: =ROW() -> 146 | C146: Cost of Raising Equity | I146: =-Inputs!I159 -> 0 | J146: =-Inputs!J159 -> 0 | K146: =-Inputs!K159 -> 0 | L146: =-Inputs!L159 -> 0 | M146: =-Inputs!M159 -> 0 | N146: =-Inputs!N159 -> 0 | O146: =-Inputs!O159 -> 0 | P146: =-Inputs!P159 -> 0 | Q146: =-Inputs!Q159 -> 0 | R146: =-Inputs!R159 -> 0 | S146: =-Inputs!S159 -> 0 | T146: =-Inputs!T159 -> 0 | U146: =-Inputs!U159 -> 0 | V146: =-Inputs!V159 -> 0 | W146: =-Inputs!W159 -> 0 | X146: =-Inputs!X159 -> 0 | Y146: 0 | Z146: 0 | AA146: 0 | AB146: 0 | AC146: 0
A147: =ROW() -> 147 | C147: Total | I147: =SUM(I141:I146) -> -59.29478139 | J147: =SUM(J141:J146) -> -59.29478139 | K147: =SUM(K141:K146) -> -59.29478139 | L147: =SUM(L141:L146) -> -59.29478139 | M147: =SUM(M141:M146) -> -59.29478139 | N147: =SUM(N141:N146) -> -58.21889763 | O147: =SUM(O141:O146) -> -58.21889763 | P147: =SUM(P141:P146) -> -58.21889763 | Q147: =SUM(Q141:Q146) -> -58.21889763 | R147: =SUM(R141:R146) -> -58.21889763 | S147: =SUM(S141:S146) -> -58.21889763 | T147: =SUM(T141:T146) -> -57.59215922 | U147: =SUM(U141:U146) -> -57.59215922 | V147: =SUM(V141:V146) -> -57.59215922 | W147: =SUM(W141:W146) -> -57.59215922 | X147: =SUM(X141:X146) -> -57.59215922 | Y147: =SUM(Y141:Y146) -> -54.98422486 | Z147: =SUM(Z141:Z146) -> -53.19503856 | AA147: =SUM(AA141:AA146) -> -53.19503856 | AB147: =SUM(AB141:AB146) -> -46.76768331 | AC147: =SUM(AC141:AC146) -> -37.09721511
A148: =ROW() -> 148 | B148: Closing Value | H148: Check | I148: =IF(ROUND(I147+Inputs!I160,6)=0,"OK","Wrong") -> OK | J148: =IF(ROUND(J147+Inputs!J160,6)=0,"OK","Wrong") -> OK | K148: =IF(ROUND(K147+Inputs!K160,6)=0,"OK","Wrong") -> OK | L148: =IF(ROUND(L147+Inputs!L160,6)=0,"OK","Wrong") -> OK | M148: =IF(ROUND(M147+Inputs!M160,6)=0,"OK","Wrong") -> OK | N148: =IF(ROUND(N147+Inputs!N160,6)=0,"OK","Wrong") -> OK | O148: =IF(ROUND(O147+Inputs!O160,6)=0,"OK","Wrong") -> OK | P148: =IF(ROUND(P147+Inputs!P160,6)=0,"OK","Wrong") -> OK | Q148: =IF(ROUND(Q147+Inputs!Q160,6)=0,"OK","Wrong") -> OK | R148: =IF(ROUND(R147+Inputs!R160,6)=0,"OK","Wrong") -> OK | S148: =IF(ROUND(S147+Inputs!S160,6)=0,"OK","Wrong") -> OK | T148: =IF(ROUND(T147+Inputs!T160,6)=0,"OK","Wrong") -> OK | U148: =IF(ROUND(U147+Inputs!U160,6)=0,"OK","Wrong") -> OK | V148: =IF(ROUND(V147+Inputs!V160,6)=0,"OK","Wrong") -> OK | W148: =IF(ROUND(W147+Inputs!W160,6)=0,"OK","Wrong") -> OK | X148: =IF(ROUND(X147+Inputs!X160,6)=0,"OK","Wrong") -> OK
A149: =ROW() -> 149 | C149: Pipeline | H149: =Inputs!H106 -> 1983.367451 | I149: =I125+I133+I141 -> 1946.975388 | J149: =J125+J133+J141 -> 1910.583325 | K149: 1874.191261 | L149: 1837.799198 | M149: 1801.407135 | N149: 1765.015071 | O149: 1728.623008 | P149: 1692.230945 | Q149: 1655.838881 | R149: 1619.446818 | S149: =(S125+S133+S141-S157)*(S125+S133+S141-S157>0) -> 1583.054755 | T149: =T125+T133+T141 -> 1546.662691 | U149: 1510.270628 | V149: 1473.878565 | W149: 1437.486501 | X149: =X125+X133+X141 -> 1401.094438 | Y149: =Y125+Y133+Y141 -> 1364.702375 | Z149: 1328.310311 | AA149: 1291.918248 | AB149: 1255.526185 | AC149: 1219.134121
A150: =ROW() -> 150 | C150: Compression | H150: =Inputs!H107 -> 332.2558345 | I150: 314.5111289 | J150: =J126+J134+J142 -> 296.7664233 | K150: 279.0217178 | L150: 261.2770122 | M150: 243.5323067 | N150: 221.8528657 | O150: 205.1734063 | P150: 188.4939469 | Q150: 171.8144875 | R150: 155.1350281 | S150: =(S126+S134+S142-S158)*(S126+S134+S142-S158>0) -> 138.4555687 | T150: =T126+T134+T142 -> 122.356401 | U150: 106.2582854 | V150: 90.16016977 | W150: 74.06205414 | X150: =X126+X134+X142 -> 57.96393852 | Y150: 41.86611508 | Z150: 25.76829163 | AA150: 9.670468192 | AB150: 0 | AC150: 0
A151: =ROW() -> 151 | C151: Metering | H151: =Inputs!H108 -> 27.24757555 | I151: 26.53063154 | J151: =J127+J135+J143 -> 25.81368753 | K151: 25.09674352 | L151: 24.37979951 | M151: 23.6628555 | N151: 22.95654908 | O151: 22.25024267 | P151: 21.54393625 | Q151: 20.83762983 | R151: 20.13132342 | S151: 19.425017 | T151: =T127+T135+T143 -> 18.71871059 | U151: 18.01240417 | V151: 17.30609776 | W151: 16.57380959 | X151: =X127+X135+X143 -> 15.86750317 | Y151: 15.16235139 | Z151: 14.4571996 | AA151: 13.75204781 | AB151: 13.04689602 | AC151: 12.34174424
A152: =ROW() -> 152 | C152: Other Depreciable | H152: =Inputs!H109 -> 74.83200414 | I152: 70.39093565 | J152: =J128+J136+J144 -> 65.94986715 | K152: 61.50879866 | L152: 57.06773016 | M152: 52.62666167 | N152: 48.09593303 | O152: 43.65486454 | P152: 39.17457291 | Q152: 34.70386669 | R152: 30.16816275 | S152: 25.71469207 | T152: =T128+T136+T144 -> 19.43461752 | U152: 15.01226511 | V152: 10.58053402 | W152: 6.184860159 | X152: =X128+X136+X144 -> 1.7891863 | Y152: 0 | Z152: 0 | AA152: 0 | AB152: 0 | AC152: 0
A153: =ROW() -> 153 | C153: Non Depreciable | H153: =Inputs!H110 -> 16.07589275 | I153: 16.07589275 | J153: =J129+J137+J145 -> 16.07589275 | K153: 16.07589275 | L153: 16.07589275 | M153: 16.07589275 | N153: 13.3662721 | O153: 13.3662721 | P153: 13.3662721 | Q153: 13.3662721 | R153: 13.3662721 | S153: 13.3662721 | T153: =T129+T137+T145 -> 13.3662721 | U153: 13.3662721 | V153: 13.3662721 | W153: 13.3662721 | X153: =X129+X137+X145 -> 13.3662721 | Y153: 13.3662721 | Z153: 13.3662721 | AA153: 13.3662721 | AB153: 13.3662721 | AC153: 13.3662721
A154: =ROW() -> 154 | C154: Cost of Raising Equity | H154: =Inputs!H111 -> 0 | I154: 0 | J154: =J130+J138+J146 -> 0 | K154: 0 | L154: 0 | M154: 0 | N154: 0 | O154: 0 | P154: 0 | Q154: 0 | R154: 0 | S154: 0 | T154: =T130+T138+T146 -> 0 | U154: 0 | V154: 0 | W154: 0 | X154: =X130+X138+X146 -> 0 | Y154: 0 | Z154: 0 | AA154: 0 | AB154: 0 | AC154: 0
A155: =ROW() -> 155 | C155: Total | H155: =SUM(H149:H154) -> 2433.778758 | I155: 2374.483977 | J155: =SUM(J149:J154) -> 2315.189195 | K155: =SUM(K149:K154) -> 2255.894414 | L155: =SUM(L149:L154) -> 2196.599633 | M155: =SUM(M149:M154) -> 2137.304851 | N155: =SUM(N149:N154) -> 2071.286691 | O155: =SUM(O149:O154) -> 2013.067794 | P155: =SUM(P149:P154) -> 1954.809673 | Q155: =SUM(Q149:Q154) -> 1896.561137 | R155: =SUM(R149:R154) -> 1838.247604 | S155: =SUM(S149:S154) -> 1780.016305 | T155: =SUM(T149:T154) -> 1720.538693 | U155: =SUM(U149:U154) -> 1662.919855 | V155: =SUM(V149:V154) -> 1605.291638 | W155: =SUM(W149:W154) -> 1547.673497 | X155: 1490.081338 | Y155: =SUM(Y149:Y154) -> 1435.097113 | Z155: =SUM(Z149:Z154) -> 1381.902075 | AA155: =SUM(AA149:AA154) -> 1328.707036 | AB155: =SUM(AB149:AB154) -> 1281.939353 | AC155: =SUM(AC149:AC154) -> 1244.842138
A156: =ROW() -> 156 | B156: Over Depreciation | G156: Check | H156: =IF(ROUND(H155-Inputs!H128,6)=0,"OK","Wrong") -> OK | I156: =IF(ROUND(I155-Inputs!I128,6)=0,"OK","Wrong") -> OK | J156: =IF(ROUND(J155-Inputs!J128,6)=0,"OK","Wrong") -> OK | K156: =IF(ROUND(K155-Inputs!K128,6)=0,"OK","Wrong") -> OK | L156: =IF(ROUND(L155-Inputs!L128,6)=0,"OK","Wrong") -> OK | M156: =IF(ROUND(M155-Inputs!M128,6)=0,"OK","Wrong") -> OK
A157: =ROW() -> 157 | C157: Pipeline | H157: =H155-Inputs!H128 -> 0 | I157: =I155-Inputs!I128 -> 0 | J157: =J155-Inputs!J128 -> 0 | K157: =K155-Inputs!K128 -> 0 | L157: =L155-Inputs!L128 -> 0 | M157: =M155-Inputs!M128 -> 0 | S157: =(S125+S133+S141)*(S125+S133+S141<0) -> 0
A158: =ROW() -> 158 | C158: Compression | S158: 0
A159: =ROW() -> 159 | C159: Metering | S159: 0
A160: =ROW() -> 160 | C160: Other Depreciable | S160: 0
A161: =ROW() -> 161 | C161: Non-depreciable | S161: 0
A162: =ROW() -> 162 | C162: Cost of Raising Equity | S162: 0
A163: =ROW() -> 163 | C163: Total | S163: =SUM(S157:S161) -> 0
A164: =ROW() -> 164
A165: ="Total Capex Account [$m "&TEXT(Inputs!$E$28,"dd/mm/yyyy")&"]" -> Total Capex Account [$m 31/12/2015]
A166: Capex Account
A167: =ROW() -> 167 | B167: Opening Value
A168: =ROW() -> 168 | C168: Pipeline | I168: =I227+I285+I343+I401+I459+I517+I575+I633+I691+I749+I807+I865+I923+I981+I1039+I1097 -> 0 | J168: 2.059662404 | K168: 2.093330038 | L168: 2.166716964 | M168: 2.14727558 | N168: 2.94606763 | O168: 12.5211844 | P168: 300.4592238 | Q168: 301.6167511 | R168: 875.8929541 | S168: 865.6189641 | T168: =S200 -> 1417.146603 | U168: =T200 -> 1446.486418 | V168: 1440.91827 | W168: 1424.618572 | X168: 1403.992532 | Y168: 1385.358295 | Z168: 1367.204053 | AA168: 1347.811475 | AB168: 1327.531894 | AC168: 1310.966886
A169: =ROW() -> 169 | C169: Compression | I169: =I228+I286+I344+I402+I460+I518+I576+I634+I692+I750+I808+I866+I924+I982+I1040+I1098 -> 0 | J169: -2.962223845 | K169: -1.10274073 | L169: -1.264284532 | M169: -1.931765091 | N169: -2.294347771 | O169: 51.03489907 | P169: 243.553773 | Q169: 240.5820526 | R169: 381.1202561 | S169: 370.9906791 | T169: =S201 -> 438.5900702 | U169: 453.7080827 | V169: 444.9253289 | W169: 432.8248724 | X169: 418.0134188 | Y169: 404.4637983 | Z169: 402.0621314 | AA169: 398.8697921 | AB169: 391.5704366 | AC169: 382.3047923
A170: =ROW() -> 170 | C170: Metering | I170: =I229+I287+I345+I403+I461+I519+I577+I635+I693+I751+I809+I867+I925+I983+I1041+I1099 -> 0 | J170: 0.8484367663 | K170: 1.625045055 | L170: 2.123496249 | M170: 2.077007619 | N170: 4.294260306 | O170: 4.208186678 | P170: 4.092103202 | Q170: 3.943280885 | R170: 3.790366109 | S170: 3.725028538 | T170: 9.230748281 | U170: 9.412123714 | V170: 11.16727977 | W170: 11.93289841 | X170: 11.1814877 | Y170: 14.50232542 | Z170: 19.05922006 | AA170: 21.31988632 | AB170: 21.6932194 | AC170: 21.84818597
A171: =ROW() -> 171 | C171: Other Depreciable | I171: =I230+I288+I346+I404+I462+I520+I578+I636+I694+I752+I810+I868+I926+I984+I1042+I1100 -> 0 | J171: 7.562809975 | K171: 9.270475634 | L171: 9.789680924 | M171: 10.21790212 | N171: 10.34207158 | O171: 14.46254948 | P171: 14.83447536 | Q171: 16.69728639 | R171: 22.48596177 | S171: 22.0450287 | T171: 100.4520186 | U171: 149.9602687 | V171: 149.5798241 | W171: 151.997392 | X171: 152.4841527 | Y171: 156.6586691 | Z171: 154.9586271 | AA171: 151.2491034 | AB171: 147.4017402 | AC171: 142.6310748
A172: =ROW() -> 172 | C172: Non-depreciable | I172: =I231+I289+I347+I405+I463+I521+I579+I637+I695+I753+I811+I869+I927+I985+I1043+I1101 -> 0 | J172: 0 | K172: 0 | L172: 0 | M172: 0 | N172: 0 | O172: 0 | P172: -0.1501791295 | Q172: 2.033743989 | R172: 3.69527457 | S172: 4.45550551 | T172: 5.351595081 | U172: 5.333880866 | V172: 5.292427281 | W172: 5.487532469 | X172: 5.488140593 | Y172: 5.485169483 | Z172: 5.547308392 | AA172: 5.547308392 | AB172: 5.547308392 | AC172: 5.547308392
A173: =ROW() -> 173 | C173: Cost of Raising Equity | I173: 0 | J173: 0 | K173: 0 | L173: 0 | M173: 0 | N173: 0 | O173: 0 | P173: 0 | Q173: 0 | R173: 0 | S173: 0 | T173: =S205 -> 0 | U173: =T205 -> 0 | V173: =U205 -> 0 | W173: =V205 -> 0 | X173: =W205 -> 0 | Y173: =X205 -> 0 | Z173: =Y205 -> 2.861416982e-14 | AA173: =Z205 -> 3.520825874e-14 | AB173: =AA205 -> 4.330206076e-14 | AC173: =AB205 -> 4.473321007e-14
A174: =ROW() -> 174 | C174: Total | I174: =SUM(I168:I173) -> 0 | J174: =SUM(J168:J173) -> 7.508685301 | K174: =SUM(K168:K173) -> 11.88611 | L174: =SUM(L168:L173) -> 12.8156096 | M174: =SUM(M168:M173) -> 12.51042023 | N174: =SUM(N168:N173) -> 15.28805175 | O174: =SUM(O168:O173) -> 82.22681962 | P174: =SUM(P168:P173) -> 562.7893963 | Q174: =SUM(Q168:Q173) -> 564.8731149 | R174: =SUM(R168:R173) -> 1286.984813 | S174: =SUM(S168:S173) -> 1266.835206 | T174: =SUM(T168:T173) -> 1970.771035 | U174: =SUM(U168:U173) -> 2064.900774 | V174: =SUM(V168:V173) -> 2051.88313 | W174: =SUM(W168:W173) -> 2026.861267 | X174: =SUM(X168:X173) -> 1991.159732 | Y174: =SUM(Y168:Y173) -> 1966.468257 | Z174: =SUM(Z168:Z173) -> 1948.83134 | AA174: =SUM(AA168:AA173) -> 1924.797566 | AB174: =SUM(AB168:AB173) -> 1893.744598 | AC174: =SUM(AC168:AC173) -> 1863.298248
A175: =ROW() -> 175 | B175: Capex | H175: Check | I175: =IF(ROUND(I174-(I233+I291+I349+I407+I465+I523+I581+I639+I697+I755+I813+I871+I929+I987+I1045+I1103+I1161+I1219+I1277+I1335+I1393),5)<0.00001,"OK","Wrong") -> OK | J175: =IF(ROUND(J174-(J233+J291+J349+J407+J465+J523+J581+J639+J697+J755+J813+J871+J929+J987+J1045+J1103+J1161+J1219+J1277+J1335+J1393),5)<0.00001,"OK","Wrong") -> OK | K175: OK | L175: OK | M175: OK | N175: OK | O175: OK | P175: OK | Q175: OK | R175: OK | S175: OK | T175: OK | U175: OK | V175: OK | W175: OK | X175: OK | Y175: OK | Z175: OK | AA175: OK | AB175: OK | AC175: OK
A176: =ROW() -> 176 | C176: Pipeline | I176: =Inputs!I474 -> 2.059662404 | J176: =Inputs!J474 -> 0.04331302425 | K176: =Inputs!K474 -> 0.08931303536 | L176: =Inputs!L474 -> 2.88468207e-05 | M176: =Inputs!M474 -> 0.8262926276 | N176: =Inputs!N474 -> 9.618239768 | O176: =Inputs!O474 -> 288.0666621 | P176: =Inputs!P474 -> 1.39527938 | Q176: =Inputs!Q474 -> 579.3446393 | R176: =Inputs!R474 -> 0 | S176: =Inputs!S474 -> 548.6968521 | T176: =Inputs!T474 -> 50.08852894 | U176: =Inputs!U474 -> 15.52259984 | V176: =Inputs!V474 -> 4.852642459 | W176: =Inputs!W474 -> 0.5927735242 | X176: =Inputs!X474 -> 2.59281626 | Y176: =Inputs!Y474 -> 3.676501815 | Z176: =Inputs!Z474 -> 2.490687124 | AA176: =Inputs!AA474 -> 1.639264653 | AB176: =Inputs!AB474 -> 5.377256921 | AC176: =Inputs!AC474 -> 7.64634184
A177: =ROW() -> 177 | C177: Compression | I177: =Inputs!I475 -> -2.962223845 | J177: =Inputs!J475 -> 1.909728869 | K177: =Inputs!K475 -> 0.1163780309 | L177: =Inputs!L475 -> -0.1566487162 | M177: =Inputs!M475 -> 0.2440301324 | N177: =Inputs!N475 -> 53.32924684 | O177: =Inputs!O475 -> 192.6060858 | P177: =Inputs!P475 -> 0.1651843257 | Q177: =Inputs!Q475 -> 148.8761278 | R177: =Inputs!R475 -> 0 | S177: =Inputs!S475 -> 58.52601555 | T177: =Inputs!T475 -> 31.46326937 | U177: =Inputs!U475 -> 8.816611382 | V177: =Inputs!V475 -> 5.743964805 | W177: =Inputs!W475 -> 3.109567553 | X177: =Inputs!X475 -> 4.47562428 | Y177: =Inputs!Y475 -> 15.61368904 | Z177: =Inputs!Z475 -> 15.34347288 | AA177: =Inputs!AA475 -> 11.74790587 | AB177: =Inputs!AB475 -> 10.17321383 | AC177: =Inputs!AC475 -> 10.18314425
A178: =ROW() -> 178 | C178: Metering | I178: =Inputs!I476 -> 0.8484367663 | J178: =Inputs!J476 -> 0.7766082885 | K178: =Inputs!K476 -> 0.5000213737 | L178: =Inputs!L476 -> -0.0433482703 | M178: =Inputs!M476 -> 2.221963227 | N178: =Inputs!N476 -> 0 | O178: =Inputs!O476 -> 0 | P178: =Inputs!P476 -> 0 | Q178: =Inputs!Q476 -> 0 | R178: =Inputs!R476 -> 0.08757720429 | S178: =Inputs!S476 -> 5.32563588 | T178: =Inputs!T476 -> 0.3797359556 | U178: =Inputs!U476 -> 1.965822925 | V178: =Inputs!V476 -> 0.9871550641 | W178: =Inputs!W476 -> 1.218937944 | X178: =Inputs!X476 -> 3.66130553 | Y178: =Inputs!Y476 -> 3.603669905 | Z178: =Inputs!Z476 -> 2.683992345 | AA178: =Inputs!AA476 -> 0.850339013 | AB178: =Inputs!AB476 -> 0.6489792836 | AC178: =Inputs!AC476 -> 1.319119056
A179: =ROW() -> 179 | C179: Other Depreciable | I179: =Inputs!I477 -> 7.562809975 | J179: =Inputs!J477 -> 1.972607338 | K179: =Inputs!K477 -> 1.047675486 | L179: =Inputs!L477 -> 1.256072351 | M179: =Inputs!M477 -> 1.199062242 | N179: =Inputs!N477 -> 4.555085478 | O179: =Inputs!O477 -> 0.9843190789 | P179: =Inputs!P477 -> 2.616163126 | Q179: =Inputs!Q477 -> 6.612508696 | R179: =Inputs!R477 -> 0.6257255763 | S179: =Inputs!S477 -> 79.76240876 | T179: =Inputs!T477 -> 55.85418183 | U179: =Inputs!U477 -> 6.435909187 | V179: =Inputs!V477 -> 9.708954008 | W179: =Inputs!W477 -> 7.601315702 | X179: =Inputs!X477 -> 11.73449724 | Y179: =Inputs!Y477 -> 2.395154548 | Z179: =Inputs!Z477 -> 2.646921958 | AA179: =Inputs!AA477 -> 2.597313274 | AB179: =Inputs!AB477 -> 1.760588085 | AC179: =Inputs!AC477 -> 2.546354647
A180: =ROW() -> 180 | C180: Non-depreciable | I180: =Inputs!I478 -> 0 | J180: =Inputs!J478 -> 0 | K180: =Inputs!K478 -> 0 | L180: =Inputs!L478 -> 0 | M180: =Inputs!M478 -> 0 | N180: =Inputs!N478 -> 0 | O180: =Inputs!O478 -> -0.1501791295 | P180: =Inputs!P478 -> 2.183923118 | Q180: =Inputs!Q478 -> 1.661530582 | R180: =Inputs!R478 -> 0.7602309399 | S180: =Inputs!S478 -> 0.7459104409 | T180: =Inputs!T478 -> -0.0177142146 | U180: =Inputs!U478 -> -0.04145358497 | V180: =Inputs!V478 -> 0.1951051874 | W180: =Inputs!W478 -> 0.000608123964 | X180: =Inputs!X478 -> -0.00297111 | Y180: =Inputs!Y478 -> 0 | Z180: =Inputs!Z478 -> 0 | AA180: =Inputs!AA478 -> 0 | AB180: =Inputs!AB478 -> 0 | AC180: =Inputs!AC478 -> 0
A181: =ROW() -> 181 | C181: Cost of Raising Equity | I181: =Inputs!I479 -> 0 | J181: =Inputs!J479 -> 0 | K181: =Inputs!K479 -> 0 | L181: =Inputs!L479 -> 0 | M181: =Inputs!M479 -> 0 | N181: =Inputs!N479 -> 0 | O181: =Inputs!O479 -> 0 | P181: =Inputs!P479 -> 0 | Q181: =Inputs!Q479 -> 0 | R181: =Inputs!R479 -> 0 | S181: =Inputs!S479 -> 0 | T181: =Inputs!T479 -> 0 | U181: =Inputs!U479 -> 0 | V181: =Inputs!V479 -> 0 | W181: =Inputs!W479 -> 0 | X181: =Inputs!X479 -> 0 | Y181: =Inputs!Y479 -> 2.861416982e-14 | Z181: =Inputs!Z479 -> 7.051191623e-15 | AA181: =Inputs!AA479 -> 8.663545369e-15 | AB181: =Inputs!AB479 -> 2.13929018e-15 | AC181: =Inputs!AC479 -> 0
A182: =ROW() -> 182 | C182: Total | I182: =SUM(I176:I181) -> 7.508685301 | J182: =SUM(J176:J181) -> 4.70225752 | K182: =SUM(K176:K181) -> 1.753387926 | L182: =SUM(L176:L181) -> 1.056104212 | M182: =SUM(M176:M181) -> 4.491348228 | N182: =SUM(N176:N181) -> 67.50257208 | O182: =SUM(O176:O181) -> 481.5068878 | P182: =SUM(P176:P181) -> 6.360549949 | Q182: =SUM(Q176:Q181) -> 736.4948064 | R182: =SUM(R176:R181) -> 1.47353372 | S182: =SUM(S176:S181) -> 693.0568228 | T182: =SUM(T176:T181) -> 137.7680019 | U182: =SUM(U176:U181) -> 32.69948975 | V182: =SUM(V176:V181) -> 21.48782152 | W182: =SUM(W176:W181) -> 12.52320285 | X182: =SUM(X176:X181) -> 22.4612722 | Y182: =SUM(Y176:Y181) -> 25.28901531 | Z182: =SUM(Z176:Z181) -> 23.16507431 | AA182: =SUM(AA176:AA181) -> 16.83482281 | AB182: =SUM(AB176:AB181) -> 17.96003812 | AC182: =SUM(AC176:AC181) -> 21.69495979
A183: =ROW() -> 183 | B183: Redundant & Disposed Asset | H183: Check | I183: =IF(ROUND(I182-Inputs!I480,6)=0,"OK","Wrong") -> OK | J183: =IF(ROUND(J182-Inputs!J480,6)=0,"OK","Wrong") -> OK | K183: =IF(ROUND(K182-Inputs!K480,6)=0,"OK","Wrong") -> OK | L183: =IF(ROUND(L182-Inputs!L480,6)=0,"OK","Wrong") -> OK | M183: =IF(ROUND(M182-Inputs!M480,6)=0,"OK","Wrong") -> OK | N183: =IF(ROUND(N182-Inputs!N480,6)=0,"OK","Wrong") -> OK | O183: =IF(ROUND(O182-Inputs!O480,6)=0,"OK","Wrong") -> OK | P183: =IF(ROUND(P182-Inputs!P480,6)=0,"OK","Wrong") -> OK | Q183: =IF(ROUND(Q182-Inputs!Q480,6)=0,"OK","Wrong") -> OK | R183: =IF(ROUND(R182-Inputs!R480,6)=0,"OK","Wrong") -> OK | S183: =IF(ROUND(S182-Inputs!S480,6)=0,"OK","Wrong") -> OK | T183: =IF(ROUND(T182-Inputs!T480,6)=0,"OK","Wrong") -> OK | U183: =IF(ROUND(U182-Inputs!U480,6)=0,"OK","Wrong") -> OK | V183: =IF(ROUND(V182-Inputs!V480,6)=0,"OK","Wrong") -> OK | W183: =IF(ROUND(W182-Inputs!W480,6)=0,"OK","Wrong") -> OK | X183: =IF(ROUND(X182-Inputs!X480,6)=0,"OK","Wrong") -> OK | Y183: =IF(ROUND(Y182-Inputs!Y480,6)=0,"OK","Wrong") -> OK | Z183: =IF(ROUND(Z182-Inputs!Z480,6)=0,"OK","Wrong") -> OK | AA183: =IF(ROUND(AA182-Inputs!AA480,6)=0,"OK","Wrong") -> OK | AB183: =IF(ROUND(AB182-Inputs!AB480,6)=0,"OK","Wrong") -> OK | AC183: =IF(ROUND(AC182-Inputs!AC480,6)=0,"OK","Wrong") -> OK
A184: =ROW() -> 184 | C184: Pipeline | I184: =-Inputs!I1012 -> 0 | J184: =-Inputs!J1012 -> 0 | K184: =-Inputs!K1012 -> 0 | L184: =-Inputs!L1012 -> 0 | M184: =-Inputs!M1012 -> 0 | N184: =-Inputs!N1012 -> 0 | O184: =-Inputs!O1012 -> 0 | P184: =-Inputs!P1012 -> 0 | Q184: =-Inputs!Q1012 -> 0 | R184: =-Inputs!R1012 -> 0 | S184: =-Inputs!S1012 -> 0 | T184: =-Inputs!T1012 -> 0 | U184: =-Inputs!U1012 -> 0 | V184: =-Inputs!V1012 -> 0 | W184: =-Inputs!W1012 -> 0 | X184: =-Inputs!X1012 -> 0 | Y184: =-Inputs!Y1012 -> 0 | Z184: =-Inputs!Z1012 -> 0 | AA184: =-Inputs!AA1012 -> 0 | AB184: =-Inputs!AB1012 -> 0 | AC184: =-Inputs!AC1012 -> 0
A185: =ROW() -> 185 | C185: Compression | I185: =-Inputs!I1013 -> 0 | J185: =-Inputs!J1013 -> 0 | K185: =-Inputs!K1013 -> 0 | L185: =-Inputs!L1013 -> 0 | M185: =-Inputs!M1013 -> 0 | N185: =-Inputs!N1013 -> 0 | O185: =-Inputs!O1013 -> 0 | P185: =-Inputs!P1013 -> 0 | Q185: =-Inputs!Q1013 -> 0 | R185: =-Inputs!R1013 -> 0 | S185: =-Inputs!S1013 -> 0 | T185: =-Inputs!T1013 -> -0.08230775331 | U185: =-Inputs!U1013 -> 0 | V185: =-Inputs!V1013 -> 0 | W185: =-Inputs!W1013 -> 0 | X185: =-Inputs!X1013 -> 0 | Y185: =-Inputs!Y1013 -> 0 | Z185: =-Inputs!Z1013 -> 0 | AA185: =-Inputs!AA1013 -> 0 | AB185: =-Inputs!AB1013 -> 0 | AC185: =-Inputs!AC1013 -> 0
A186: =ROW() -> 186 | C186: Metering | I186: =-Inputs!I1014 -> 0 | J186: =-Inputs!J1014 -> 0 | K186: =-Inputs!K1014 -> 0 | L186: =-Inputs!L1014 -> 0 | M186: =-Inputs!M1014 -> 0 | N186: =-Inputs!N1014 -> 0 | O186: =-Inputs!O1014 -> 0 | P186: =-Inputs!P1014 -> 0 | Q186: =-Inputs!Q1014 -> 0 | R186: =-Inputs!R1014 -> 0 | S186: =-Inputs!S1014 -> 0 | T186: =-Inputs!T1014 -> 0 | U186: =-Inputs!U1014 -> 0 | V186: =-Inputs!V1014 -> 0 | W186: =-Inputs!W1014 -> -1.68934653 | X186: =-Inputs!X1014 -> 0 | Y186: =-Inputs!Y1014 -> 0 | Z186: =-Inputs!Z1014 -> 0 | AA186: =-Inputs!AA1014 -> 0 | AB186: =-Inputs!AB1014 -> 0 | AC186: =-Inputs!AC1014 -> 0
A187: =ROW() -> 187 | C187: Other Depreciable | I187: =-Inputs!I1015 -> 0 | J187: =-Inputs!J1015 -> 0 | K187: =-Inputs!K1015 -> 0 | L187: =-Inputs!L1015 -> 0 | M187: =-Inputs!M1015 -> 0 | N187: =-Inputs!N1015 -> 0 | O187: =-Inputs!O1015 -> 0 | P187: =-Inputs!P1015 -> 0 | Q187: =-Inputs!Q1015 -> 0 | R187: =-Inputs!R1015 -> 0 | S187: =-Inputs!S1015 -> 0 | T187: =-Inputs!T1015 -> -2.83404429 | U187: =-Inputs!U1015 -> -0.3678964067 | V187: =-Inputs!V1015 -> -0.7499785437 | W187: =-Inputs!W1015 -> -0.5022216174 | X187: =-Inputs!X1015 -> -0.7796653756 | Y187: =-Inputs!Y1015 -> 0 | Z187: =-Inputs!Z1015 -> 0 | AA187: =-Inputs!AA1015 -> 0 | AB187: =-Inputs!AB1015 -> 0 | AC187: =-Inputs!AC1015 -> 0
A188: =ROW() -> 188 | C188: Non Depreciable | I188: =-Inputs!I1016 -> 0 | J188: =-Inputs!J1016 -> 0 | K188: =-Inputs!K1016 -> 0 | L188: =-Inputs!L1016 -> 0 | M188: =-Inputs!M1016 -> 0 | N188: =-Inputs!N1016 -> 0 | O188: =-Inputs!O1016 -> 0 | P188: =-Inputs!P1016 -> 0 | Q188: =-Inputs!Q1016 -> 0 | R188: =-Inputs!R1016 -> 0 | S188: =-Inputs!S1016 -> 0 | T188: =-Inputs!T1016 -> 0 | U188: =-Inputs!U1016 -> 0 | V188: =-Inputs!V1016 -> 0 | W188: =-Inputs!W1016 -> 0 | X188: =-Inputs!X1016 -> 0 | Y188: =-Inputs!Y1016 -> 0 | Z188: =-Inputs!Z1016 -> 0 | AA188: =-Inputs!AA1016 -> 0 | AB188: =-Inputs!AB1016 -> 0 | AC188: =-Inputs!AC1016 -> 0
A189: =ROW() -> 189 | C189: Cost of Raising Equity | I189: =-Inputs!I1017 -> 0 | J189: =-Inputs!J1017 -> 0 | K189: =-Inputs!K1017 -> 0 | L189: =-Inputs!L1017 -> 0 | M189: =-Inputs!M1017 -> 0 | N189: =-Inputs!N1017 -> 0 | O189: =-Inputs!O1017 -> 0 | P189: =-Inputs!P1017 -> 0 | Q189: =-Inputs!Q1017 -> 0 | R189: =-Inputs!R1017 -> 0 | S189: =-Inputs!S1017 -> 0 | T189: =-Inputs!T1017 -> 0 | U189: =-Inputs!U1017 -> 0 | V189: =-Inputs!V1017 -> 0 | W189: =-Inputs!W1017 -> 0 | X189: =-Inputs!X1017 -> 0 | Y189: =-Inputs!Y1017 -> 0 | Z189: =-Inputs!Z1017 -> 0 | AA189: =-Inputs!AA1017 -> 0 | AB189: =-Inputs!AB1017 -> 0 | AC189: =-Inputs!AC1017 -> 0
A190: =ROW() -> 190 | C190: Total | I190: =SUM(I184:I189) -> 0 | J190: =SUM(J184:J189) -> 0 | K190: =SUM(K184:K189) -> 0 | L190: =SUM(L184:L189) -> 0 | M190: =SUM(M184:M189) -> 0 | N190: =SUM(N184:N189) -> 0 | O190: =SUM(O184:O189) -> 0 | P190: =SUM(P184:P189) -> 0 | Q190: =SUM(Q184:Q189) -> 0 | R190: =SUM(R184:R189) -> 0 | S190: =SUM(S184:S189) -> 0 | T190: =SUM(T184:T189) -> -2.916352043 | U190: =SUM(U184:U189) -> -0.3678964067 | V190: =SUM(V184:V189) -> -0.7499785437 | W190: =SUM(W184:W189) -> -2.191568148 | X190: =SUM(X184:X189) -> -0.7796653756 | Y190: =SUM(Y184:Y189) -> 0 | Z190: =SUM(Z184:Z189) -> 0 | AA190: =SUM(AA184:AA189) -> 0 | AB190: =SUM(AB184:AB189) -> 0 | AC190: =SUM(AC184:AC189) -> 0
A191: =ROW() -> 191 | B191: Depreciation | H191: Check | I191: =IF(ROUND(I190-(I249+I307+I365+I423+I481+I539+I597+I655+I713+I771+I829+I887+I945+I1003+I1061+I1119+I1177+I1235+I1293+I1351+I1409),5)<0.00001,"OK","Wrong") -> OK | J191: =IF(ROUND(J190-(J249+J307+J365+J423+J481+J539+J597+J655+J713+J771+J829+J887+J945+J1003+J1061+J1119+J1177+J1235+J1293+J1351+J1409),5)<0.00001,"OK","Wrong") -> OK | K191: OK | L191: OK | M191: OK | N191: OK | O191: OK | P191: OK | Q191: OK | R191: OK | S191: OK | T191: OK | U191: OK | V191: OK | W191: OK | X191: OK | Y191: OK | Z191: OK | AA191: OK | AB191: OK | AC191: OK
A192: =ROW() -> 192 | C192: Pipeline | I192: =I251+I309+I367+I425+I483+I541+I599+I657+I715+I773+I831+I889+I947+I1005+I1063+I1121 -> 0 | J192: -0.00964539047 | K192: -0.01592610985 | L192: -0.01947023007 | M192: -0.02750057841 | N192: -0.04312299912 | O192: -0.1286226633 | P192: -0.237752135 | Q192: -5.068436235 | R192: -10.27399005 | S192: -11.86198889 | T192: -20.74871407 | U192: -21.09074736 | V192: -21.15234082 | W192: -21.21881376 | X192: =X251+X309+X367+X425+X483+X541+X599+X657+X715+X773+X831+X889+X947+X1005+X1063+X1121+X1179+X1237+X1295+X1353+X1411 -> -21.22705289 | Y192: =Y251+Y309+Y367+Y425+Y483+Y541+Y599+Y657+Y715+Y773+Y831+Y889+Y947+Y1005+Y1063+Y1121+Y1179+Y1237+Y1295+Y1353+Y1411 -> -21.83074361 | Z192: -21.88326507 | AA192: -21.91884631 | AB192: -21.94226438 | AC192: -22.01908233
A193: =ROW() -> 193 | C193: Compression | I193: =I252+I310+I368+I426+I484+I542+I600+I658+I716+I774+I832+I890+I948+I1006+I1064+I1122 -> 0 | J193: -0.05024575501 | K193: -0.2779218324 | L193: -0.5108318426 | M193: -0.6066128131 | N193: 0 | O193: -0.08721182173 | P193: -3.136904765 | Q193: -8.33792422 | R193: -10.12957703 | S193: -10.14776665 | T193: -16.26294914 | U193: -17.59936518 | V193: -17.8444213 | W193: -17.92102117 | X193: =X252+X310+X368+X426+X484+X542+X600+X658+X716+X774+X832+X890+X948+X1006+X1064+X1122+X1180+X1238+X1296+X1354+X1412 -> -18.02524478 | Y193: -18.01535591 | Z193: -18.53581221 | AA193: -19.04726131 | AB193: -19.43885817 | AC193: -19.7779653
A194: =ROW() -> 194 | C194: Metering | I194: =I253+I311+I369+I427+I485+I543+I601+I659+I717+I775+I833+I891+I949+I1007+I1065+I1123 -> 0 | J194: 0 | K194: -0.001570179844 | L194: -0.003140359688 | M194: -0.004710539532 | N194: -0.0860736277 | O194: -0.1160834758 | P194: -0.1488223173 | Q194: -0.1529147757 | R194: -0.1529147757 | S194: -0.1529147757 | T194: -0.1983605232 | U194: -0.2106668642 | V194: -0.2215364305 | W194: -0.2810021191 | X194: =X253+X311+X369+X427+X485+X543+X601+X659+X717+X775+X833+X891+X949+X1007+X1065+X1123+X1181+X1239+X1297+X1355+X1413 -> -0.3404678078 | Y194: 0.9532247312 | Z194: -0.4233260871 | AA194: -0.477005934 | AB194: -0.4940127142 | AC194: -0.5069922999
A195: =ROW() -> 195 | C195: Other Depreciable | I195: =I254+I312+I370+I428+I486+I544+I602+I660+I718+I776+I834+I892+I950+I1008+I1066+I1124 -> 0 | J195: -0.264941679 | K195: -0.5284701962 | L195: -0.8278511531 | M195: -1.074892782 | N195: -0.4346075797 | O195: -0.6123931952 | P195: -0.7533520961 | Q195: -0.8238333234 | R195: -1.066658641 | S195: -1.355418873 | T195: -3.511887425 | U195: -6.448457409 | V195: -6.541407543 | W195: -6.612333349 | X195: =X254+X312+X370+X428+X486+X544+X602+X660+X718+X776+X834+X892+X950+X1008+X1066+X1124+X1182+X1240+X1298+X1356+X1414 -> -6.78031552 | Y195: -4.095196529 | Z195: -6.35644569 | AA195: -6.444676422 | AB195: -6.531253531 | AC195: -6.589939801
A196: =ROW() -> 196 | C196: Non-depreciable | I196: =I255+I313+I371+I429+I487+I545+I603+I661+I719+I777+I835+I893+I951+I1009+I1067+I1125 -> 0 | J196: 0 | K196: 0 | L196: 0 | M196: 0 | N196: 0 | O196: 0 | P196: 0 | Q196: 0 | R196: 0 | S196: 0 | T196: 0 | U196: 0 | V196: 0 | W196: 0 | X196: =X255+X313+X371+X429+X487+X545+X603+X661+X719+X777+X835+X893+X951+X1009+X1067+X1125+X1183+X1241+X1299+X1357+X1415 -> 0 | Y196: 0.06213890957 | Z196: 0 | AA196: 0 | AB196: 0 | AC196: 0
A197: =ROW() -> 197 | C197: Cost of Raising Equity | I197: =I256+I314+I372+I430+I488+I546+I604+I662+I720+I778+I836+I894+I952+I1010+I1068+I1126 -> 0 | J197: 0 | K197: 0 | L197: 0 | M197: 0 | N197: 0 | O197: 0 | P197: 0 | Q197: 0 | R197: 0 | S197: 0 | T197: 0 | U197: 0 | V197: 0 | W197: 0 | X197: =X256+X314+X372+X430+X488+X546+X604+X662+X720+X778+X836+X894+X952+X1010+X1068+X1126+X1184+X1242+X1300+X1358+X1416 -> 0 | Y197: 0 | Z197: -4.571027009e-16 | AA197: -5.697433526e-16 | AB197: -7.081408673e-16 | AC197: -7.423153803e-16
A198: =ROW() -> 198 | C198: Total | I198: =SUM(I192:I197) -> 0 | J198: =SUM(J192:J197) -> -0.3248328245 | K198: =SUM(K192:K197) -> -0.8238883182 | L198: =SUM(L192:L197) -> -1.361293585 | M198: =SUM(M192:M197) -> -1.713716713 | N198: =SUM(N192:N197) -> -0.5638042066 | O198: =SUM(O192:O197) -> -0.9443111561 | P198: =SUM(P192:P197) -> -4.276831314 | Q198: =SUM(Q192:Q197) -> -14.38310855 | R198: =SUM(R192:R197) -> -21.6231405 | S198: =SUM(S192:S197) -> -23.5180892 | T198: =SUM(T192:T197) -> -40.72191116 | U198: =SUM(U192:U197) -> -45.34923681 | V198: =SUM(V192:V197) -> -45.75970609 | W198: =SUM(W192:W197) -> -46.0331704 | X198: =SUM(X192:X197) -> -46.37308099 | Y198: =SUM(Y192:Y197) -> -42.92593241 | Z198: -47.19884906 | AA198: =SUM(AA192:AA197) -> -47.88778998 | AB198: =SUM(AB192:AB197) -> -48.4063888 | AC198: =SUM(AC192:AC197) -> -48.89397974
A199: =ROW() -> 199 | B199: Closing Value | H199: Check | I199: =IF(ROUND(I198+Inputs!I741,6)=0,"OK","Wrong") -> OK | J199: =IF(ROUND(J198+Inputs!J741,6)=0,"OK","Wrong") -> OK | K199: =IF(ROUND(K198+Inputs!K741,6)=0,"OK","Wrong") -> OK | L199: =IF(ROUND(L198+Inputs!L741,6)=0,"OK","Wrong") -> OK | M199: =IF(ROUND(M198+Inputs!M741,6)=0,"OK","Wrong") -> OK | N199: =IF(ROUND(N198+Inputs!N741,6)=0,"OK","Wrong") -> OK | O199: =IF(ROUND(O198+Inputs!O741,6)=0,"OK","Wrong") -> OK | P199: =IF(ROUND(P198+Inputs!P741,6)=0,"OK","Wrong") -> OK | Q199: =IF(ROUND(Q198+Inputs!Q741,6)=0,"OK","Wrong") -> OK | R199: =IF(ROUND(R198+Inputs!R741,6)=0,"OK","Wrong") -> OK | S199: =IF(ROUND(S198+Inputs!S741,6)=0,"OK","Wrong") -> OK | T199: =IF(ROUND(T198+Inputs!T741,6)=0,"OK","Wrong") -> OK | U199: =IF(ROUND(U198+Inputs!U741,6)=0,"OK","Wrong") -> OK | V199: =IF(ROUND(V198+Inputs!V741,6)=0,"OK","Wrong") -> OK | W199: =IF(ROUND(W198+Inputs!W741,6)=0,"OK","Wrong") -> OK | X199: =IF(ROUND(X198+Inputs!X741,6)=0,"OK","Wrong") -> OK
A200: =ROW() -> 200 | C200: Pipeline | I200: =I168+I176+I184+I192 -> 2.059662404 | J200: =J168+J176+J184+J192 -> 2.093330038 | K200: 2.166716964 | L200: 2.14727558 | M200: 2.94606763 | N200: 12.5211844 | O200: 300.4592238 | P200: 301.6167511 | Q200: 875.8929541 | R200: 865.6189641 | S200: =S168+S176+S184+S192-S208 -> 1417.146603 | T200: =T168+T176+T184+T192 -> 1446.486418 | U200: 1440.91827 | V200: 1424.618572 | W200: 1403.992532 | X200: =X168+X176+X184+X192 -> 1385.358295 | Y200: =MAX(Y168+Y176+Y184+Y192,0) -> 1367.204053 | Z200: =Z168+Z176+Z184+Z192 -> 1347.811475 | AA200: 1327.531894 | AB200: 1310.966886 | AC200: 1296.594146
A201: =ROW() -> 201 | C201: Compression | I201: -2.962223845 | J201: =J169+J177+J185+J193 -> -1.10274073 | K201: -1.264284532 | L201: -1.931765091 | M201: -2.294347771 | N201: 51.03489907 | O201: 243.553773 | P201: 240.5820526 | Q201: 381.1202561 | R201: 370.9906791 | S201: =S169+S177+S185+S193-S209 -> 438.5900702 | T201: =T169+T177+T185+T193 -> 453.7080827 | U201: 444.9253289 | V201: 432.8248724 | W201: 418.0134188 | X201: =X169+X177+X185+X193 -> 404.4637983 | Y201: =MAX(Y169+Y177+Y185+Y193,0) -> 402.0621314 | Z201: =Z169+Z177+Z185+Z193 -> 398.8697921 | AA201: 391.5704366 | AB201: 382.3047923 | AC201: 372.7099712
... 1232 more rows

Sheet Shippers_Asset
A1: =Main!A1 -> ERA, DBNGP Tariff Model, June 2016 [Final Decision]
A2: Shippers_Asset
A3: Ref. | B3: =COLUMN() -> 2 | C3: =COLUMN() -> 3 | D3: =COLUMN() -> 4 | E3: =COLUMN() -> 5 | F3: =COLUMN() -> 6 | G3: =COLUMN() -> 7 | H3: =COLUMN() -> 8 | I3: =COLUMN() -> 9 | J3: =COLUMN() -> 10 | K3: =COLUMN() -> 11 | L3: =COLUMN() -> 12 | M3: =COLUMN() -> 13 | N3: =COLUMN() -> 14 | O3: =COLUMN() -> 15 | P3: =COLUMN() -> 16 | Q3: =COLUMN() -> 17 | R3: =COLUMN() -> 18 | S3: =COLUMN() -> 19 | T3: =COLUMN() -> 20 | U3: =COLUMN() -> 21 | V3: =COLUMN() -> 22 | W3: =COLUMN() -> 23 | X3: =COLUMN() -> 24 | Y3: =COLUMN() -> 25 | Z3: =COLUMN() -> 26 | AA3: =COLUMN() -> 27 | AB3: =COLUMN() -> 28 | AC3: =COLUMN() -> 29
A5: Regulatory Period | I5: =Inputs!I$5 -> AA1 | J5: =Inputs!J$5 -> AA1 | K5: =Inputs!K$5 -> AA1 | L5: =Inputs!L$5 -> AA1 | M5: =Inputs!M$5 -> AA1 | N5: =Inputs!N$5 -> AA2 | O5: =Inputs!O$5 -> AA2 | P5: =Inputs!P$5 -> AA2 | Q5: =Inputs!Q$5 -> AA2 | R5: =Inputs!R$5 -> AA2 | S5: =Inputs!S$5 -> AA2 | T5: =Inputs!T$5 -> AA3 | U5: =Inputs!U$5 -> AA3 | V5: =Inputs!V$5 -> AA3 | W5: =Inputs!W$5 -> AA3 | X5: =Inputs!X$5 -> AA3 | Y5: =Inputs!Y$5 -> AA4 | Z5: =Inputs!Z$5 -> AA4 | AA5: =Inputs!AA$5 -> AA4 | AB5: =Inputs!AB$5 -> AA4 | AC5: =Inputs!AC$5 -> AA4
A6: Year | H6: =Inputs!H$6 -> 1999 | I6: =Inputs!I$6 -> 2000 | J6: =Inputs!J$6 -> 2001 | K6: =Inputs!K$6 -> 2002 | L6: =Inputs!L$6 -> 2003 | M6: =Inputs!M$6 -> 2004 | N6: =Inputs!N$6 -> 2005 | O6: =Inputs!O$6 -> 2006 | P6: =Inputs!P$6 -> 2007 | Q6: =Inputs!Q$6 -> 2008 | R6: =Inputs!R$6 -> 2009 | S6: =Inputs!S$6 -> 2010 | T6: =Inputs!T$6 -> 2011 | U6: =Inputs!U$6 -> 2012 | V6: =Inputs!V$6 -> 2013 | W6: =Inputs!W$6 -> 2014 | X6: =Inputs!X$6 -> 2015 | Y6: =Inputs!Y$6 -> 2016 | Z6: =Inputs!Z$6 -> 2017 | AA6: =Inputs!AA$6 -> 2018 | AB6: =Inputs!AB$6 -> 2019 | AC6: =Inputs!AC$6 -> 2020
A7: Days | H7: =Inputs!H$7 -> 365 | I7: =Inputs!I$7 -> 366 | J7: =Inputs!J$7 -> 365 | K7: =Inputs!K$7 -> 365 | L7: =Inputs!L$7 -> 365 | M7: =Inputs!M$7 -> 366 | N7: =Inputs!N$7 -> 365 | O7: =Inputs!O$7 -> 365 | P7: =Inputs!P$7 -> 365 | Q7: =Inputs!Q$7 -> 366 | R7: =Inputs!R$7 -> 365 | S7: =Inputs!S$7 -> 365 | T7: =Inputs!T$7 -> 365 | U7: =Inputs!U$7 -> 366 | V7: =Inputs!V$7 -> 365 | W7: =Inputs!W$7 -> 365 | X7: =Inputs!X$7 -> 365 | Y7: =Inputs!Y$7 -> 366 | Z7: =Inputs!Z$7 -> 365 | AA7: =Inputs!AA$7 -> 365 | AB7: =Inputs!AB$7 -> 365 | AC7: =Inputs!AC$7 -> 366
A8: Project Year | H8: =Inputs!H$8 -> 0 | I8: =Inputs!I$8 -> 1 | J8: =Inputs!J$8 -> 2 | K8: =Inputs!K$8 -> 3 | L8: =Inputs!L$8 -> 4 | M8: =Inputs!M$8 -> 5 | N8: =Inputs!N$8 -> 6 | O8: =Inputs!O$8 -> 7 | P8: =Inputs!P$8 -> 8 | Q8: =Inputs!Q$8 -> 9 | R8: =Inputs!R$8 -> 10 | S8: =Inputs!S$8 -> 11 | T8: =Inputs!T$8 -> 12 | U8: =Inputs!U$8 -> 13 | V8: =Inputs!V$8 -> 14 | W8: =Inputs!W$8 -> 15 | X8: =Inputs!X$8 -> 16 | Y8: =Inputs!Y$8 -> 17 | Z8: =Inputs!Z$8 -> 18 | AA8: =Inputs!AA$8 -> 19 | AB8: =Inputs!AB$8 -> 20 | AC8: =Inputs!AC$8 -> 21
A9: ="Shipperss Asset Account Summary [m$ "&TEXT(Inputs!$E$28,"dd/mm/yyyy")&"]" -> Shipperss Asset Account Summary [m$ 31/12/2015]
A10: Shippers' Assets
A11: =ROW() -> 11
A12: =ROW() -> 12
A13: =ROW() -> 13
A14: =ROW() -> 14
A15: =ROW() -> 15
A16: =ROW() -> 16
A17: =ROW() -> 17 | B17: Shippers' Asset
A18: =ROW() -> 18 | C18: Opening Value | I18: =H22 -> 0 | J18: =I22 -> 0 | K18: 0 | L18: 0 | M18: 0 | N18: 0 | O18: 3.353567199 | P18: 19.12263103 | Q18: 28.55778783 | R18: 29.74455365 | S18: 29.74455365 | T18: =S22 -> 29.74455365 | U18: =T22 -> 29.04434161 | V18: =U22 -> 28.34412957 | W18: =V22 -> 27.64391753 | X18: =W22 -> 26.94370549 | Y18: =X22 -> 26.24349345 | Z18: 25.54328141 | AA18: 24.84306937 | AB18: 24.14285733 | AC18: 23.44264529
A19: =ROW() -> 19 | C19: Capex | I19: =I63 -> 0 | J19: 0 | K19: 0 | L19: 0 | M19: 0 | N19: 3.353567199 | O19: 15.76906383 | P19: 9.435156805 | Q19: 1.186765818 | R19: 0 | S19: 0 | T19: 0 | U19: 0 | V19: 0 | W19: 0 | X19: 0 | Y19: 0 | Z19: 0 | AA19: 0 | AB19: 0 | AC19: 0
A20: =ROW() -> 20 | C20: Redundant & Disposed Asset | I20: =I70 -> 0 | J20: 0 | K20: 0 | L20: 0 | M20: 0 | N20: 0 | O20: 0 | P20: 0 | Q20: 0 | R20: 0 | S20: 0 | T20: 0 | U20: 0 | V20: 0 | W20: 0 | X20: 0 | Y20: 0 | Z20: 0 | AA20: 0 | AB20: 0 | AC20: 0
A21: =ROW() -> 21 | C21: Depreciation | I21: =I77 -> 0 | J21: 0 | K21: 0 | L21: 0 | M21: 0 | N21: 0 | O21: 0 | P21: 0 | Q21: 0 | R21: 0 | S21: 0 | T21: -0.7002120398 | U21: -0.7002120398 | V21: -0.7002120398 | W21: -0.7002120398 | X21: -0.7002120398 | Y21: -0.7002120398 | Z21: -0.7002120398 | AA21: -0.7002120398 | AB21: -0.7002120398 | AC21: -0.7002120398
A22: =ROW() -> 22 | C22: Closing Value | H22: =H84 -> 0 | I22: =SUM(I18:I21) -> 0 | J22: =SUM(J18:J21) -> 0 | K22: 0 | L22: 0 | M22: 0 | N22: 3.353567199 | O22: 19.12263103 | P22: 28.55778783 | Q22: 29.74455365 | R22: 29.74455365 | S22: 29.74455365 | T22: 29.04434161 | U22: 28.34412957 | V22: 27.64391753 | W22: 26.94370549 | X22: 26.24349345 | Y22: 25.54328141 | Z22: 24.84306937 | AA22: 24.14285733 | AB22: 23.44264529 | AC22: 22.74243325
A23: =ROW() -> 23
A24: =ROW() -> 24
A25: =ROW() -> 25
A26: =ROW() -> 26
A27: =ROW() -> 27
A28: =ROW() -> 28
A29: =ROW() -> 29
A30: =ROW() -> 30
A31: =ROW() -> 31
A32: =ROW() -> 32
A33: =ROW() -> 33
A34: =ROW() -> 34
A35: =ROW() -> 35
A36: =ROW() -> 36
A37: =ROW() -> 37
A38: =ROW() -> 38
A39: =ROW() -> 39
A40: =ROW() -> 40
A41: =ROW() -> 41
A42: =ROW() -> 42
A43: =ROW() -> 43
A44: =ROW() -> 44
A45: =ROW() -> 45
A46: =ROW() -> 46
A47: =ROW() -> 47
A48: ="Shippers' Asset Account (Using ERA Method) [m$ "&TEXT(Inputs!$E$28,"dd/mm/yyyy")&"]" -> Shippers' Asset Account (Using ERA Method) [m$ 31/12/2015]
A49: Total Asset Accounts
A50: =ROW() -> 50 | B50: Opening Value
A51: =ROW() -> 51 | C51: Pipeline | I51: =H79 -> 0 | J51: =I79 -> 0 | K51: 0 | L51: 0 | M51: 0 | N51: 0 | O51: 0.8388988544 | P51: 6.533994893 | Q51: 6.533994893 | R51: 6.533994893 | S51: 6.533994893 | T51: 6.533994893 | U51: 6.434799423 | V51: 6.335603953 | W51: 6.236408482 | X51: 6.137213012 | Y51: 6.038017542 | Z51: =Y79 -> 5.938822072 | AA51: 5.839626602 | AB51: 5.740431132 | AC51: 5.641235662
A52: =ROW() -> 52 | C52: Compression | I52: =H80 -> 0 | J52: 0 | K52: 0 | L52: 0 | M52: 0 | N52: 0 | O52: 0 | P52: 0 | Q52: 6.16849288 | R52: 6.16849288 | S52: 6.16849288 | T52: 6.16849288 | U52: 5.940030181 | V52: 5.711567482 | W52: 5.483104783 | X52: 5.254642083 | Y52: 5.026179384 | Z52: 4.797716685 | AA52: 4.569253985 | AB52: 4.340791286 | AC52: 4.112328587
A53: =ROW() -> 53 | C53: Metering | I53: =H81 -> 0 | J53: 0 | K53: 0 | L53: 0 | M53: 0 | N53: 0 | O53: 2.365981265 | P53: 12.43994906 | Q53: 15.7036907 | R53: 16.83966045 | S53: 16.83966045 | T53: 16.83966045 | U53: 16.47497644 | V53: 16.11029243 | W53: 15.74560842 | X53: 15.38092441 | Y53: 15.0162404 | Z53: 14.65155639 | AA53: 14.28687239 | AB53: 13.92218838 | AC53: 13.55750437
A54: =ROW() -> 54 | C54: Other Depreciable | I54: =H82 -> 0 | J54: 0 | K54: 0 | L54: 0 | M54: 0 | N54: 0 | O54: 0.1486870796 | P54: 0.1486870796 | Q54: 0.1516093608 | R54: 0.2024054289 | S54: 0.2024054289 | T54: 0.2024054289 | U54: 0.1945355678 | V54: 0.1866657067 | W54: 0.1787958456 | X54: 0.1709259844 | Y54: 0.1630561233 | Z54: 0.1551862622 | AA54: 0.1473164011 | AB54: 0.13944654 | AC54: 0.1315766789
A55: =ROW() -> 55 | C55: Non Depreciable | I55: =H83 -> 0 | J55: 0 | K55: 0 | L55: 0 | M55: 0 | N55: 0 | O55: 0 | P55: 0 | Q55: 0 | R55: 0 | S55: 0 | T55: 0 | U55: 0 | V55: 0 | W55: 0 | X55: 0 | Y55: 0 | Z55: 0 | AA55: 0 | AB55: 0 | AC55: 0
A56: =ROW() -> 56 | C56: Total | I56: =SUM(I51:I55) -> 0 | J56: 0 | K56: 0 | L56: =SUM(L51:L55) -> 0 | M56: =SUM(M51:M55) -> 0 | N56: =SUM(N51:N55) -> 0 | O56: 3.353567199 | P56: 19.12263103 | Q56: 28.55778783 | R56: 29.74455365 | S56: 29.74455365 | T56: =SUM(T51:T55) -> 29.74455365 | U56: =SUM(U51:U55) -> 29.04434161 | V56: =SUM(V51:V55) -> 28.34412957 | W56: =SUM(W51:W55) -> 27.64391753 | X56: =SUM(X51:X55) -> 26.94370549 | Y56: =SUM(Y51:Y55) -> 26.24349345 | Z56: 25.54328141 | AA56: 24.84306937 | AB56: 24.14285733 | AC56: 23.44264529
A57: =ROW() -> 57 | B57: Capex
A58: =ROW() -> 58 | C58: Pipeline | I58: 0 | J58: 0 | K58: 0 | L58: 0 | M58: 0 | N58: 0.8388988544 | O58: 5.695096038 | P58: 0 | Q58: 0 | R58: 0 | S58: 0 | T58: 0 | U58: 0 | V58: 0 | W58: 0 | X58: 0 | Y58: 0 | Z58: 0 | AA58: 0 | AB58: 0 | AC58: 0
A59: =ROW() -> 59 | C59: Compression | I59: 0 | J59: 0 | K59: 0 | L59: 0 | M59: 0 | N59: 0 | O59: 0 | P59: 6.16849288 | Q59: 0 | R59: 0 | S59: 0 | T59: 0 | U59: 0 | V59: 0 | W59: 0 | X59: 0 | Y59: 0 | Z59: 0 | AA59: 0 | AB59: 0 | AC59: 0
A60: =ROW() -> 60 | C60: Metering | I60: 0 | J60: 0 | K60: 0 | L60: 0 | M60: 0 | N60: 2.365981265 | O60: 10.07396779 | P60: 3.263741643 | Q60: 1.13596975 | R60: 0 | S60: 0 | T60: 0 | U60: 0 | V60: 0 | W60: 0 | X60: 0 | Y60: 0 | Z60: 0 | AA60: 0 | AB60: 0 | AC60: 0
A61: =ROW() -> 61 | C61: Other Depreciable | I61: 0 | J61: 0 | K61: 0 | L61: 0 | M61: 0 | N61: 0.1486870796 | O61: 0 | P61: 0.002922281225 | Q61: 0.05079606804 | R61: 0 | S61: 0 | T61: 0 | U61: 0 | V61: 0 | W61: 0 | X61: 0 | Y61: 0 | Z61: 0 | AA61: 0 | AB61: 0 | AC61: 0
A62: =ROW() -> 62 | C62: Non Depreciable | I62: 0 | J62: 0 | K62: 0 | L62: 0 | M62: 0 | N62: 0 | O62: 0 | P62: 0 | Q62: 0 | R62: 0 | S62: 0 | T62: 0 | U62: 0 | V62: 0 | W62: 0 | X62: 0 | Y62: 0 | Z62: 0 | AA62: 0 | AB62: 0 | AC62: 0
A63: =ROW() -> 63 | C63: Total | I63: =SUM(I58:I62) -> 0 | J63: 0 | K63: 0 | L63: 0 | M63: 0 | N63: 3.353567199 | O63: 15.76906383 | P63: 9.435156805 | Q63: 1.186765818 | R63: 0 | S63: 0 | T63: =SUM(T58:T62) -> 0 | U63: =SUM(U58:U62) -> 0 | V63: =SUM(V58:V62) -> 0 | W63: =SUM(W58:W62) -> 0 | X63: =SUM(X58:X62) -> 0 | Y63: =SUM(Y58:Y62) -> 0 | Z63: 0 | AA63: 0 | AB63: 0 | AC63: 0
A64: =ROW() -> 64 | B64: Redundant & Disposed Asset
A65: =ROW() -> 65 | C65: Pipeline | I65: 0 | J65: 0 | K65: 0 | L65: 0 | M65: 0 | N65: 0 | O65: 0 | P65: 0 | Q65: 0 | R65: 0 | S65: 0 | T65: 0 | U65: 0 | V65: 0 | W65: 0 | X65: 0 | Y65: 0 | Z65: 0 | AA65: 0 | AB65: 0 | AC65: 0
A66: =ROW() -> 66 | C66: Compression | I66: 0 | J66: 0 | K66: 0 | L66: 0 | M66: 0 | N66: 0 | O66: 0 | P66: 0 | Q66: 0 | R66: 0 | S66: 0 | T66: 0 | U66: 0 | V66: 0 | W66: 0 | X66: 0 | Y66: 0 | Z66: 0 | AA66: 0 | AB66: 0 | AC66: 0
A67: =ROW() -> 67 | C67: Metering | I67: 0 | J67: 0 | K67: 0 | L67: 0 | M67: 0 | N67: 0 | O67: 0 | P67: 0 | Q67: 0 | R67: 0 | S67: 0 | T67: 0 | U67: 0 | V67: 0 | W67: 0 | X67: 0 | Y67: 0 | Z67: 0 | AA67: 0 | AB67: 0 | AC67: 0
A68: =ROW() -> 68 | C68: Other Depreciable | I68: 0 | J68: 0 | K68: 0 | L68: 0 | M68: 0 | N68: 0 | O68: 0 | P68: 0 | Q68: 0 | R68: 0 | S68: 0 | T68: 0 | U68: 0 | V68: 0 | W68: 0 | X68: 0 | Y68: 0 | Z68: 0 | AA68: 0 | AB68: 0 | AC68: 0
A69: =ROW() -> 69 | C69: Non Depreciable | I69: 0 | J69: 0 | K69: 0 | L69: 0 | M69: 0 | N69: 0 | O69: 0 | P69: 0 | Q69: 0 | R69: 0 | S69: 0 | T69: 0 | U69: 0 | V69: 0 | W69: 0 | X69: 0 | Y69: 0 | Z69: 0 | AA69: 0 | AB69: 0 | AC69: 0
A70: =ROW() -> 70 | C70: Total | I70: =SUM(I65:I69) -> 0 | J70: 0 | K70: 0 | L70: 0 | M70: 0 | N70: 0 | O70: 0 | P70: 0 | Q70: 0 | R70: 0 | S70: 0 | T70: 0 | U70: 0 | V70: 0 | W70: 0 | X70: 0 | Y70: 0 | Z70: 0 | AA70: 0 | AB70: 0 | AC70: 0
A71: =ROW() -> 71 | B71: Depreciation
A72: =ROW() -> 72 | C72: Pipeline | I72: =I165 -> 0 | J72: =J165 -> 0 | K72: 0 | L72: 0 | M72: 0 | N72: 0 | O72: 0 | P72: 0 | Q72: 0 | R72: 0 | S72: 0 | T72: -0.09919547014 | U72: -0.09919547014 | V72: -0.09919547014 | W72: -0.09919547014 | X72: -0.09919547014 | Y72: -0.09919547014 | Z72: -0.09919547014 | AA72: -0.09919547014 | AB72: -0.09919547014 | AC72: -0.09919547014
A73: =ROW() -> 73 | C73: Compression | I73: =I166 -> 0 | J73: 0 | K73: 0 | L73: 0 | M73: 0 | N73: 0 | O73: 0 | P73: 0 | Q73: 0 | R73: 0 | S73: 0 | T73: -0.2284626993 | U73: -0.2284626993 | V73: -0.2284626993 | W73: -0.2284626993 | X73: -0.2284626993 | Y73: -0.2284626993 | Z73: -0.2284626993 | AA73: -0.2284626993 | AB73: -0.2284626993 | AC73: -0.2284626993
A74: =ROW() -> 74 | C74: Metering | I74: 0 | J74: 0 | K74: 0 | L74: 0 | M74: 0 | N74: 0 | O74: 0 | P74: 0 | Q74: 0 | R74: 0 | S74: 0 | T74: -0.3646840093 | U74: -0.3646840093 | V74: -0.3646840093 | W74: -0.3646840093 | X74: -0.3646840093 | Y74: -0.3646840093 | Z74: -0.3646840093 | AA74: -0.3646840093 | AB74: -0.3646840093 | AC74: -0.3646840093
A75: =ROW() -> 75 | C75: Other Depreciable | I75: 0 | J75: 0 | K75: 0 | L75: 0 | M75: 0 | N75: 0 | O75: 0 | P75: 0 | Q75: 0 | R75: 0 | S75: 0 | T75: -0.00786986111 | U75: -0.00786986111 | V75: -0.00786986111 | W75: -0.00786986111 | X75: -0.00786986111 | Y75: -0.00786986111 | Z75: -0.00786986111 | AA75: -0.00786986111 | AB75: -0.00786986111 | AC75: -0.00786986111
A76: =ROW() -> 76 | C76: Non Depreciable | I76: 0 | J76: 0 | K76: 0 | L76: 0 | M76: 0 | N76: 0 | O76: 0 | P76: 0 | Q76: 0 | R76: 0 | S76: 0 | T76: 0 | U76: 0 | V76: 0 | W76: 0 | X76: 0 | Y76: 0 | Z76: 0 | AA76: 0 | AB76: 0 | AC76: 0
A77: =ROW() -> 77 | C77: Total | I77: =SUM(I72:I76) -> 0 | J77: 0 | K77: 0 | L77: 0 | M77: =SUM(M72:M76) -> 0 | N77: =SUM(N72:N76) -> 0 | O77: 0 | P77: 0 | Q77: 0 | R77: 0 | S77: 0 | T77: =SUM(T72:T76) -> -0.7002120398 | U77: =SUM(U72:U76) -> -0.7002120398 | V77: =SUM(V72:V76) -> -0.7002120398 | W77: =SUM(W72:W76) -> -0.7002120398 | X77: =SUM(X72:X76) -> -0.7002120398 | Y77: =SUM(Y72:Y76) -> -0.7002120398 | Z77: -0.7002120398 | AA77: -0.7002120398 | AB77: -0.7002120398 | AC77: -0.7002120398
A78: =ROW() -> 78 | B78: Closing Value
A79: =ROW() -> 79 | C79: Pipeline | H79: =H136 -> 0 | I79: =I51+I58+I65+I72 -> 0 | J79: =J51+J58+J65+J72 -> 0 | K79: 0 | L79: 0 | M79: 0 | N79: 0.8388988544 | O79: 6.533994893 | P79: 6.533994893 | Q79: 6.533994893 | R79: 6.533994893 | S79: 6.533994893 | T79: 6.434799423 | U79: 6.335603953 | V79: 6.236408482 | W79: 6.137213012 | X79: 6.038017542 | Y79: 5.938822072 | Z79: 5.839626602 | AA79: 5.740431132 | AB79: 5.641235662 | AC79: 5.542040192
A80: =ROW() -> 80 | C80: Compression | H80: =H137 -> 0 | I80: =I52+I59+I66+I73 -> 0 | J80: 0 | K80: 0 | L80: 0 | M80: 0 | N80: 0 | O80: 0 | P80: 6.16849288 | Q80: 6.16849288 | R80: 6.16849288 | S80: 6.16849288 | T80: 5.940030181 | U80: 5.711567482 | V80: 5.483104783 | W80: 5.254642083 | X80: 5.026179384 | Y80: 4.797716685 | Z80: 4.569253985 | AA80: 4.340791286 | AB80: 4.112328587 | AC80: 3.883865888
A81: =ROW() -> 81 | C81: Metering | H81: =H138 -> 0 | I81: 0 | J81: 0 | K81: 0 | L81: 0 | M81: 0 | N81: 2.365981265 | O81: 12.43994906 | P81: 15.7036907 | Q81: 16.83966045 | R81: 16.83966045 | S81: 16.83966045 | T81: 16.47497644 | U81: 16.11029243 | V81: 15.74560842 | W81: 15.38092441 | X81: 15.0162404 | Y81: 14.65155639 | Z81: 14.28687239 | AA81: 13.92218838 | AB81: 13.55750437 | AC81: 13.19282036
A82: =ROW() -> 82 | C82: Other Depreciable | H82: =H139 -> 0 | I82: 0 | J82: 0 | K82: 0 | L82: 0 | M82: 0 | N82: 0.1486870796 | O82: 0.1486870796 | P82: 0.1516093608 | Q82: 0.2024054289 | R82: 0.2024054289 | S82: 0.2024054289 | T82: 0.1945355678 | U82: 0.1866657067 | V82: 0.1787958456 | W82: 0.1709259844 | X82: 0.1630561233 | Y82: 0.1551862622 | Z82: 0.1473164011 | AA82: 0.13944654 | AB82: 0.1315766789 | AC82: 0.1237068178
A83: =ROW() -> 83 | C83: Non Depreciable | H83: =H140 -> 0 | I83: 0 | J83: 0 | K83: 0 | L83: 0 | M83: 0 | N83: 0 | O83: 0 | P83: 0 | Q83: 0 | R83: 0 | S83: 0 | T83: 0 | U83: 0 | V83: 0 | W83: 0 | X83: 0 | Y83: 0 | Z83: 0 | AA83: 0 | AB83: 0 | AC83: 0
A84: =ROW() -> 84 | C84: Total | H84: =SUM(H79:H83) -> 0 | I84: 0 | J84: 0 | K84: 0 | L84: 0 | M84: =SUM(M79:M83) -> 0 | N84: =SUM(N79:N83) -> 3.353567199 | O84: 19.12263103 | P84: 28.55778783 | Q84: 29.74455365 | R84: =SUM(R79:R83) -> 29.74455365 | S84: 29.74455365 | T84: 29.04434161 | U84: 28.34412957 | V84: 27.64391753 | W84: 26.94370549 | X84: 26.24349345 | Y84: 25.54328141 | Z84: 24.84306937 | AA84: 24.14285733 | AB84: 23.44264529 | AC84: 22.74243325
A85: =ROW() -> 85
A86: =ROW() -> 86
A87: =ROW() -> 87
A88: =ROW() -> 88
A89: =ROW() -> 89
A90: =ROW() -> 90
A91: =ROW() -> 91
A92: =ROW() -> 92
A93: =ROW() -> 93
A94: =ROW() -> 94
A95: =ROW() -> 95
A96: =ROW() -> 96
A97: =ROW() -> 97
A98: =ROW() -> 98
A99: =ROW() -> 99
A100: =ROW() -> 100
A101: =ROW() -> 101
A102: =ROW() -> 102
A103: =ROW() -> 103
A104: =ROW() -> 104
A105: =ROW() -> 105
A106: =ROW() -> 106
A107: =ROW() -> 107
A108: =ROW() -> 108
A109: =ROW() -> 109
A110: =ROW() -> 110
A111: =ROW() -> 111
A112: =ROW() -> 112
A113: =ROW() -> 113
A114: =ROW() -> 114
A115: =ROW() -> 115
A116: =ROW() -> 116
A117: =ROW() -> 117
A118: =ROW() -> 118
A119: =ROW() -> 119
A120: =ROW() -> 120
A121: =ROW() -> 121
A122: =ROW() -> 122
A123: =ROW() -> 123
A124: =ROW() -> 124
A125: =ROW() -> 125
A126: =ROW() -> 126
A127: =ROW() -> 127
A128: =ROW() -> 128
A129: =ROW() -> 129
A130: =ROW() -> 130
A131: =ROW() -> 131
A132: =ROW() -> 132
A133: =ROW() -> 133
A134: =ROW() -> 134
A135: =ROW() -> 135
A136: =ROW() -> 136
A137: =ROW() -> 137
A138: =ROW() -> 138
A139: =ROW() -> 139
A140: =ROW() -> 140
A141: =ROW() -> 141
A142: =ROW() -> 142
A143: =ROW() -> 143
A144: =ROW() -> 144
A145: =ROW() -> 145
A146: =ROW() -> 146
A147: =ROW() -> 147
A148: ="Total Capex Account [$m "&TEXT(Inputs!$E$28,"dd/mm/yyyy")&"]" -> Total Capex Account [$m 31/12/2015]
A149: Capex
A150: =ROW() -> 150 | B150: Opening Value
A151: =ROW() -> 151 | C151: Pipeline | I151: =H172 -> 0 | J151: 0 | K151: 0 | L151: 0 | M151: 0 | N151: 0 | O151: 0.8388988544 | P151: 6.533994893 | Q151: 6.533994893 | R151: 6.533994893 | S151: 6.533994893 | T151: =S172 -> 6.533994893 | U151: =T172 -> 6.434799423 | V151: =U172 -> 6.335603953 | W151: =V172 -> 6.236408482 | X151: =W172 -> 6.137213012 | Y151: =X172 -> 6.038017542 | Z151: 5.938822072 | AA151: 5.839626602 | AB151: 5.740431132 | AC151: 5.641235662
A152: =ROW() -> 152 | C152: Compression | I152: 0 | J152: 0 | K152: 0 | L152: 0 | M152: 0 | N152: 0 | O152: 0 | P152: 0 | Q152: 6.16849288 | R152: 6.16849288 | S152: 6.16849288 | T152: 6.16849288 | U152: 5.940030181 | V152: 5.711567482 | W152: 5.483104783 | X152: 5.254642083 | Y152: 5.026179384 | Z152: 4.797716685 | AA152: 4.569253985 | AB152: 4.340791286 | AC152: 4.112328587
A153: =ROW() -> 153 | C153: Metering | I153: 0 | J153: 0 | K153: 0 | L153: 0 | M153: 0 | N153: 0 | O153: 2.365981265 | P153: 12.43994906 | Q153: 15.7036907 | R153: 16.83966045 | S153: 16.83966045 | T153: 16.83966045 | U153: 16.47497644 | V153: 16.11029243 | W153: 15.74560842 | X153: 15.38092441 | Y153: 15.0162404 | Z153: 14.65155639 | AA153: 14.28687239 | AB153: 13.92218838 | AC153: 13.55750437
A154: =ROW() -> 154 | C154: Other Depreciable | I154: 0 | J154: 0 | K154: 0 | L154: 0 | M154: 0 | N154: 0 | O154: 0.1486870796 | P154: 0.1486870796 | Q154: 0.1516093608 | R154: 0.2024054289 | S154: 0.2024054289 | T154: 0.2024054289 | U154: 0.1945355678 | V154: 0.1866657067 | W154: 0.1787958456 | X154: 0.1709259844 | Y154: 0.1630561233 | Z154: 0.1551862622 | AA154: 0.1473164011 | AB154: 0.13944654 | AC154: 0.1315766789
A155: =ROW() -> 155 | C155: Non-depreciable | I155: 0 | J155: 0 | K155: 0 | L155: 0 | M155: 0 | N155: 0 | O155: 0 | P155: 0 | Q155: 0 | R155: 0 | S155: 0 | T155: 0 | U155: 0 | V155: 0 | W155: 0 | X155: 0 | Y155: 0 | Z155: 0 | AA155: 0 | AB155: 0 | AC155: 0
A156: =ROW() -> 156 | C156: Total | I156: =SUM(I151:I155) -> 0 | J156: 0 | K156: 0 | L156: 0 | M156: 0 | N156: 0 | O156: 3.353567199 | P156: 19.12263103 | Q156: 28.55778783 | R156: 29.74455365 | S156: 29.74455365 | T156: =SUM(T151:T155) -> 29.74455365 | U156: =SUM(U151:U155) -> 29.04434161 | V156: =SUM(V151:V155) -> 28.34412957 | W156: =SUM(W151:W155) -> 27.64391753 | X156: =SUM(X151:X155) -> 26.94370549 | Y156: =SUM(Y151:Y155) -> 26.24349345 | Z156: 25.54328141 | AA156: 24.84306937 | AB156: 24.14285733 | AC156: 23.44264529
A157: =ROW() -> 157 | B157: Capex
A158: =ROW() -> 158 | C158: Pipeline | I158: 0 | J158: 0 | K158: 0 | L158: 0 | M158: 0 | N158: 0.8388988544 | O158: 5.695096038 | P158: 0 | Q158: 0 | R158: 0 | S158: 0 | T158: 0 | U158: 0 | V158: 0 | W158: 0 | X158: 0 | Y158: 0 | Z158: 0 | AA158: 0 | AB158: 0 | AC158: 0
A159: =ROW() -> 159 | C159: Compression | I159: 0 | J159: 0 | K159: 0 | L159: 0 | M159: 0 | N159: 0 | O159: 0 | P159: 6.16849288 | Q159: 0 | R159: 0 | S159: 0 | T159: 0 | U159: 0 | V159: 0 | W159: 0 | X159: 0 | Y159: 0 | Z159: 0 | AA159: 0 | AB159: 0 | AC159: 0
A160: =ROW() -> 160 | C160: Metering | I160: 0 | J160: 0 | K160: 0 | L160: 0 | M160: 0 | N160: 2.365981265 | O160: 10.07396779 | P160: 3.263741643 | Q160: 1.13596975 | R160: 0 | S160: 0 | T160: 0 | U160: 0 | V160: 0 | W160: 0 | X160: 0 | Y160: 0 | Z160: 0 | AA160: 0 | AB160: 0 | AC160: 0
A161: =ROW() -> 161 | C161: Other Depreciable | I161: 0 | J161: 0 | K161: 0 | L161: 0 | M161: 0 | N161: 0.1486870796 | O161: 0 | P161: 0.002922281225 | Q161: 0.05079606804 | R161: 0 | S161: 0 | T161: 0 | U161: 0 | V161: 0 | W161: 0 | X161: 0 | Y161: 0 | Z161: 0 | AA161: 0 | AB161: 0 | AC161: 0
A162: =ROW() -> 162 | C162: Non-depreciable | I162: 0 | J162: 0 | K162: 0 | L162: 0 | M162: 0 | N162: 0 | O162: 0 | P162: 0 | Q162: 0 | R162: 0 | S162: 0 | T162: 0 | U162: 0 | V162: 0 | W162: 0 | X162: 0 | Y162: 0 | Z162: 0 | AA162: 0 | AB162: 0 | AC162: 0
A163: =ROW() -> 163 | C163: Total | I163: =SUM(I158:I162) -> 0 | J163: 0 | K163: 0 | L163: 0 | M163: 0 | N163: 3.353567199 | O163: 15.76906383 | P163: 9.435156805 | Q163: 1.186765818 | R163: 0 | S163: 0 | T163: 0 | U163: 0 | V163: 0 | W163: 0 | X163: 0 | Y163: 0 | Z163: 0 | AA163: 0 | AB163: 0 | AC163: 0
A164: =ROW() -> 164 | B164: Depreciation | H164: Check | I164: =IF(ROUND(I163-Inputs!I282,6)=0,"OK","Wrong") -> OK | J164: =IF(ROUND(J163-Inputs!J282,6)=0,"OK","Wrong") -> OK | K164: =IF(ROUND(K163-Inputs!K282,6)=0,"OK","Wrong") -> OK | L164: =IF(ROUND(L163-Inputs!L282,6)=0,"OK","Wrong") -> OK | M164: =IF(ROUND(M163-Inputs!M282,6)=0,"OK","Wrong") -> OK | N164: =IF(ROUND(N163-Inputs!N282,6)=0,"OK","Wrong") -> OK | O164: =IF(ROUND(O163-Inputs!O282,6)=0,"OK","Wrong") -> OK | P164: =IF(ROUND(P163-Inputs!P282,6)=0,"OK","Wrong") -> OK | Q164: =IF(ROUND(Q163-Inputs!Q282,6)=0,"OK","Wrong") -> OK | R164: =IF(ROUND(R163-Inputs!R282,6)=0,"OK","Wrong") -> OK | S164: =IF(ROUND(S163-Inputs!S282,6)=0,"OK","Wrong") -> OK | T164: =IF(ROUND(T163-Inputs!T282,6)=0,"OK","Wrong") -> OK | U164: =IF(ROUND(U163-Inputs!U282,6)=0,"OK","Wrong") -> OK | V164: =IF(ROUND(V163-Inputs!V282,6)=0,"OK","Wrong") -> OK | W164: =IF(ROUND(W163-Inputs!W282,6)=0,"OK","Wrong") -> OK | X164: =IF(ROUND(X163-Inputs!X282,6)=0,"OK","Wrong") -> OK | Y164: =IF(ROUND(Y163-Inputs!Y282,6)=0,"OK","Wrong") -> OK | Z164: =IF(ROUND(Z163-Inputs!Z282,6)=0,"OK","Wrong") -> OK | AA164: =IF(ROUND(AA163-Inputs!AA282,6)=0,"OK","Wrong") -> OK | AB164: =IF(ROUND(AB163-Inputs!AB282,6)=0,"OK","Wrong") -> OK | AC164: =IF(ROUND(AC163-Inputs!AC282,6)=0,"OK","Wrong") -> OK
A165: =ROW() -> 165 | C165: Pipeline | I165: =I210+I254+I298+I342+I386+I430+I474+I518+I562+I606+I650+I694+I738+I782+I826+I869 -> 0 | J165: 0 | K165: 0 | L165: 0 | M165: 0 | N165: 0 | O165: 0 | P165: 0 | Q165: 0 | R165: 0 | S165: 0 | T165: -0.09919547014 | U165: -0.09919547014 | V165: -0.09919547014 | W165: -0.09919547014 | X165: -0.09919547014 | Y165: -0.09919547014 | Z165: -0.09919547014 | AA165: -0.09919547014 | AB165: -0.09919547014 | AC165: -0.09919547014
A166: =ROW() -> 166 | C166: Compression | I166: 0 | J166: 0 | K166: 0 | L166: 0 | M166: 0 | N166: 0 | O166: 0 | P166: 0 | Q166: 0 | R166: 0 | S166: 0 | T166: -0.2284626993 | U166: -0.2284626993 | V166: -0.2284626993 | W166: -0.2284626993 | X166: -0.2284626993 | Y166: -0.2284626993 | Z166: -0.2284626993 | AA166: -0.2284626993 | AB166: -0.2284626993 | AC166: -0.2284626993
A167: =ROW() -> 167 | C167: Metering | I167: 0 | J167: 0 | K167: 0 | L167: 0 | M167: 0 | N167: 0 | O167: 0 | P167: 0 | Q167: 0 | R167: 0 | S167: 0 | T167: -0.3646840093 | U167: -0.3646840093 | V167: -0.3646840093 | W167: -0.3646840093 | X167: -0.3646840093 | Y167: -0.3646840093 | Z167: -0.3646840093 | AA167: -0.3646840093 | AB167: -0.3646840093 | AC167: -0.3646840093
A168: =ROW() -> 168 | C168: Other Depreciable | I168: 0 | J168: 0 | K168: 0 | L168: 0 | M168: 0 | N168: 0 | O168: 0 | P168: 0 | Q168: 0 | R168: 0 | S168: 0 | T168: -0.00786986111 | U168: -0.00786986111 | V168: -0.00786986111 | W168: -0.00786986111 | X168: -0.00786986111 | Y168: -0.00786986111 | Z168: -0.00786986111 | AA168: -0.00786986111 | AB168: -0.00786986111 | AC168: -0.00786986111
A169: =ROW() -> 169 | C169: Non-depreciable | I169: 0 | J169: 0 | K169: 0 | L169: 0 | M169: 0 | N169: 0 | O169: 0 | P169: 0 | Q169: 0 | R169: 0 | S169: 0 | T169: 0 | U169: 0 | V169: 0 | W169: 0 | X169: 0 | Y169: 0 | Z169: 0 | AA169: 0 | AB169: 0 | AC169: 0
A170: =ROW() -> 170 | C170: Total | I170: =SUM(I165:I169) -> 0 | J170: 0 | K170: 0 | L170: 0 | M170: 0 | N170: 0 | O170: 0 | P170: 0 | Q170: 0 | R170: 0 | S170: =SUM(S165:S169) -> 0 | T170: -0.7002120398 | U170: -0.7002120398 | V170: -0.7002120398 | W170: -0.7002120398 | X170: -0.7002120398 | Y170: =SUM(Y165:Y169) -> -0.7002120398 | Z170: -0.7002120398 | AA170: -0.7002120398 | AB170: -0.7002120398 | AC170: -0.7002120398
A171: =ROW() -> 171 | B171: Closing Value | H171: Check | I171: =IF(ROUND(I170+Inputs!I314,6)=0,"OK","Wrong") -> OK | J171: =IF(ROUND(J170+Inputs!J314,6)=0,"OK","Wrong") -> OK | K171: =IF(ROUND(K170+Inputs!K314,6)=0,"OK","Wrong") -> OK | L171: =IF(ROUND(L170+Inputs!L314,6)=0,"OK","Wrong") -> OK | M171: =IF(ROUND(M170+Inputs!M314,6)=0,"OK","Wrong") -> OK | N171: =IF(ROUND(N170+Inputs!N314,6)=0,"OK","Wrong") -> OK | O171: =IF(ROUND(O170+Inputs!O314,6)=0,"OK","Wrong") -> OK | P171: =IF(ROUND(P170+Inputs!P314,6)=0,"OK","Wrong") -> OK | Q171: =IF(ROUND(Q170+Inputs!Q314,6)=0,"OK","Wrong") -> OK | R171: =IF(ROUND(R170+Inputs!R314,6)=0,"OK","Wrong") -> OK
A172: =ROW() -> 172 | C172: Pipeline | I172: =I151+I158+I165 -> 0 | J172: 0 | K172: 0 | L172: 0 | M172: 0 | N172: 0.8388988544 | O172: 6.533994893 | P172: 6.533994893 | Q172: 6.533994893 | R172: 6.533994893 | S172: =S151+S158+S165-S179 -> 6.533994893 | T172: 6.434799423 | U172: 6.335603953 | V172: 6.236408482 | W172: 6.137213012 | X172: 6.038017542 | Y172: 5.938822072 | Z172: 5.839626602 | AA172: 5.740431132 | AB172: 5.641235662 | AC172: 5.542040192
A173: =ROW() -> 173 | C173: Compression | I173: 0 | J173: 0 | K173: 0 | L173: 0 | M173: 0 | N173: 0 | O173: 0 | P173: 6.16849288 | Q173: 6.16849288 | R173: 6.16849288 | S173: =S152+S159+S166-S180 -> 6.16849288 | T173: 5.940030181 | U173: 5.711567482 | V173: 5.483104783 | W173: 5.254642083 | X173: 5.026179384 | Y173: 4.797716685 | Z173: 4.569253985 | AA173: 4.340791286 | AB173: 4.112328587 | AC173: 3.883865888
A174: =ROW() -> 174 | C174: Metering | I174: 0 | J174: 0 | K174: 0 | L174: 0 | M174: 0 | N174: 2.365981265 | O174: 12.43994906 | P174: 15.7036907 | Q174: 16.83966045 | R174: 16.83966045 | S174: =S153+S160+S167-S181 -> 16.83966045 | T174: 16.47497644 | U174: 16.11029243 | V174: 15.74560842 | W174: 15.38092441 | X174: 15.0162404 | Y174: 14.65155639 | Z174: 14.28687239 | AA174: 13.92218838 | AB174: 13.55750437 | AC174: 13.19282036
A175: =ROW() -> 175 | C175: Other Depreciable | I175: 0 | J175: 0 | K175: 0 | L175: 0 | M175: 0 | N175: 0.1486870796 | O175: 0.1486870796 | P175: 0.1516093608 | Q175: 0.2024054289 | R175: 0.2024054289 | S175: =S154+S161+S168-S182 -> 0.2024054289 | T175: 0.1945355678 | U175: 0.1866657067 | V175: 0.1787958456 | W175: 0.1709259844 | X175: 0.1630561233 | Y175: 0.1551862622 | Z175: 0.1473164011 | AA175: 0.13944654 | AB175: 0.1315766789 | AC175: 0.1237068178
A176: =ROW() -> 176 | C176: Non-depreciable | I176: 0 | J176: 0 | K176: 0 | L176: 0 | M176: 0 | N176: 0 | O176: 0 | P176: 0 | Q176: 0 | R176: 0 | S176: =S155+S162+S169-S183 -> 0 | T176: 0 | U176: 0 | V176: 0 | W176: 0 | X176: 0 | Y176: 0 | Z176: 0 | AA176: 0 | AB176: 0 | AC176: 0
A177: =ROW() -> 177 | C177: Total | I177: =SUM(I172:I176) -> 0 | J177: 0 | K177: 0 | L177: 0 | M177: 0 | N177: 3.353567199 | O177: 19.12263103 | P177: 28.55778783 | Q177: 29.74455365 | R177: 29.74455365 | S177: 29.74455365 | T177: 29.04434161 | U177: 28.34412957 | V177: 27.64391753 | W177: 26.94370549 | X177: 26.24349345 | Y177: =SUM(Y172:Y176) -> 25.54328141 | Z177: 24.84306937 | AA177: 24.14285733 | AB177: 23.44264529 | AC177: 22.74243325
A178: =ROW() -> 178 | B178: Over Depreciation
A179: =ROW() -> 179 | C179: Pipeline | S179: =S224+S268+S312+S356+S444+S488+S532+S576+S620+S664+S708+S752+S796+S840+S883 -> 0
A180: =ROW() -> 180 | C180: Compression | S180: =S225+S269+S313+S357+S445+S489+S533+S577+S621+S665+S709+S753+S797+S841+S884 -> 0
A181: =ROW() -> 181 | C181: Metering | S181: 0
A182: =ROW() -> 182 | C182: Other Depreciable | S182: 0
A183: =ROW() -> 183 | C183: Non-depreciable | S183: 0
A184: =ROW() -> 184 | C184: Total | S184: =SUM(S179:S182) -> 0
A185: =ROW() -> 185
A186: Shippers' Capex Account [m$ 31/12/2010]
A187: 2000 Capex
A188: =ROW() -> 188 | B188: Life
A189: =ROW() -> 189 | C189: Pipeline | J189: =Inputs!$D$60 -> 70 | K189: =J189-1 -> 69 | L189: =K189-1 -> 68 | M189: =L189-1 -> 67 | N189: =M189-1 -> 66 | O189: =N189-1 -> 65 | P189: 64 | Q189: 63 | R189: 62 | S189: 61 | T189: 60 | U189: 59 | V189: 58 | W189: 57 | X189: 56 | Y189: 55 | Z189: 54 | AA189: 53 | AB189: 52 | AC189: 51
A190: =ROW() -> 190 | C190: Compression | J190: =Inputs!$D$61 -> 30 | K190: =J190-1 -> 29 | L190: 28 | M190: 27 | N190: 26 | O190: 25 | P190: 24 | Q190: 23 | R190: 22 | S190: 21 | T190: 20 | U190: 19 | V190: 18 | W190: 17 | X190: 16 | Y190: 15 | Z190: 14 | AA190: 13 | AB190: 12 | AC190: 11
A191: =ROW() -> 191 | C191: Metering | J191: =Inputs!$D$62 -> 50 | K191: 49 | L191: 48 | M191: 47 | N191: 46 | O191: 45 | P191: 44 | Q191: 43 | R191: 42 | S191: 41 | T191: 40 | U191: 39 | V191: 38 | W191: 37 | X191: 36 | Y191: 35 | Z191: 34 | AA191: 33 | AB191: 32 | AC191: 31
A192: =ROW() -> 192 | C192: Other Depreciable | J192: =Inputs!$D$63 -> 30 | K192: 29 | L192: 28 | M192: 27 | N192: 26 | O192: 25 | P192: 24 | Q192: 23 | R192: 22 | S192: 21 | T192: 20 | U192: 19 | V192: 18 | W192: 17 | X192: 16 | Y192: 15 | Z192: 14 | AA192: 13 | AB192: 12 | AC192: 11
A193: =ROW() -> 193 | C193: Non Depreciable
A194: =ROW() -> 194
A195: =ROW() -> 195 | B195: Opening Value
A196: =ROW() -> 196 | C196: Pipeline | I196: =H217 -> 0 | J196: 0 | K196: 0 | L196: 0 | M196: 0 | N196: 0 | O196: 0 | P196: 0 | Q196: 0 | R196: 0 | S196: 0 | T196: 0 | U196: 0 | V196: 0 | W196: 0 | X196: 0 | Y196: =X217 -> 0 | Z196: 0 | AA196: 0 | AB196: 0 | AC196: 0
A197: =ROW() -> 197 | C197: Compression | I197: 0 | J197: 0 | K197: 0 | L197: 0 | M197: 0 | N197: 0 | O197: 0 | P197: 0 | Q197: 0 | R197: 0 | S197: 0 | T197: 0 | U197: 0 | V197: 0 | W197: 0 | X197: 0 | Y197: 0 | Z197: 0 | AA197: 0 | AB197: 0 | AC197: 0
A198: =ROW() -> 198 | C198: Metering | I198: 0 | J198: 0 | K198: 0 | L198: 0 | M198: 0 | N198: 0 | O198: 0 | P198: 0 | Q198: 0 | R198: 0 | S198: 0 | T198: 0 | U198: 0 | V198: 0 | W198: 0 | X198: 0 | Y198: 0 | Z198: 0 | AA198: 0 | AB198: 0 | AC198: 0
A199: =ROW() -> 199 | C199: Other Depreciable | I199: 0 | J199: 0 | K199: 0 | L199: 0 | M199: 0 | N199: 0 | O199: 0 | P199: 0 | Q199: 0 | R199: 0 | S199: 0 | T199: 0 | U199: 0 | V199: 0 | W199: 0 | X199: 0 | Y199: 0 | Z199: 0 | AA199: 0 | AB199: 0 | AC199: 0
A200: =ROW() -> 200 | C200: Non Depreciable | I200: 0 | J200: 0 | K200: 0 | L200: 0 | M200: 0 | N200: 0 | O200: 0 | P200: 0 | Q200: 0 | R200: 0 | S200: 0 | T200: 0 | U200: 0 | V200: 0 | W200: 0 | X200: 0 | Y200: 0 | Z200: 0 | AA200: 0 | AB200: 0 | AC200: 0
A201: =ROW() -> 201 | C201: Total | I201: =SUM(I196:I200) -> 0 | J201: 0 | K201: 0 | L201: =SUM(L196:L200) -> 0 | M201: =SUM(M196:M200) -> 0 | N201: =SUM(N196:N200) -> 0 | O201: 0 | P201: 0 | Q201: 0 | R201: 0 | S201: 0 | T201: 0 | U201: 0 | V201: 0 | W201: 0 | X201: 0 | Y201: 0 | Z201: 0 | AA201: 0 | AB201: 0 | AC201: 0
... 909 more rows

Sheet Tax_Asset
A1: =Main!A1 -> ERA, DBNGP Tariff Model, June 2016 [Final Decision]
A2: Tax_Asset
A3: Ref. | B3: =COLUMN() -> 2 | C3: =COLUMN() -> 3 | D3: =COLUMN() -> 4 | E3: =COLUMN() -> 5 | F3: =COLUMN() -> 6 | G3: =COLUMN() -> 7 | H3: =COLUMN() -> 8 | I3: =COLUMN() -> 9 | J3: =COLUMN() -> 10 | K3: =COLUMN() -> 11 | L3: =COLUMN() -> 12 | M3: =COLUMN() -> 13 | N3: =COLUMN() -> 14 | O3: =COLUMN() -> 15 | P3: =COLUMN() -> 16 | Q3: =COLUMN() -> 17 | R3: =COLUMN() -> 18 | S3: =COLUMN() -> 19 | T3: =COLUMN() -> 20 | U3: =COLUMN() -> 21 | V3: =COLUMN() -> 22 | W3: =COLUMN() -> 23 | X3: =COLUMN() -> 24 | Y3: =COLUMN() -> 25 | Z3: =COLUMN() -> 26 | AA3: =COLUMN() -> 27 | AB3: =COLUMN() -> 28 | AC3: =COLUMN() -> 29
A5: Regulatory Period | I5: =Inputs!I$5 -> AA1 | J5: =Inputs!J$5 -> AA1 | K5: =Inputs!K$5 -> AA1 | L5: =Inputs!L$5 -> AA1 | M5: =Inputs!M$5 -> AA1 | N5: =Inputs!N$5 -> AA2 | O5: =Inputs!O$5 -> AA2 | P5: =Inputs!P$5 -> AA2 | Q5: =Inputs!Q$5 -> AA2 | R5: =Inputs!R$5 -> AA2 | S5: =Inputs!S$5 -> AA2 | T5: =Inputs!T$5 -> AA3 | U5: =Inputs!U$5 -> AA3 | V5: =Inputs!V$5 -> AA3 | W5: =Inputs!W$5 -> AA3 | X5: =Inputs!X$5 -> AA3 | Y5: =Inputs!Y$5 -> AA4 | Z5: =Inputs!Z$5 -> AA4 | AA5: =Inputs!AA$5 -> AA4 | AB5: =Inputs!AB$5 -> AA4 | AC5: =Inputs!AC$5 -> AA4
A6: Year | F6: =Inputs!F$6 -> 1997 | G6: =Inputs!G$6 -> 1998 | H6: =Inputs!H$6 -> 1999 | I6: =Inputs!I$6 -> 2000 | J6: =Inputs!J$6 -> 2001 | K6: =Inputs!K$6 -> 2002 | L6: =Inputs!L$6 -> 2003 | M6: =Inputs!M$6 -> 2004 | N6: =Inputs!N$6 -> 2005 | O6: =Inputs!O$6 -> 2006 | P6: =Inputs!P$6 -> 2007 | Q6: =Inputs!Q$6 -> 2008 | R6: =Inputs!R$6 -> 2009 | S6: =Inputs!S$6 -> 2010 | T6: =Inputs!T$6 -> 2011 | U6: =Inputs!U$6 -> 2012 | V6: =Inputs!V$6 -> 2013 | W6: =Inputs!W$6 -> 2014 | X6: =Inputs!X$6 -> 2015 | Y6: =Inputs!Y$6 -> 2016 | Z6: =Inputs!Z$6 -> 2017 | AA6: =Inputs!AA$6 -> 2018 | AB6: =Inputs!AB$6 -> 2019 | AC6: =Inputs!AC$6 -> 2020
A7: Days | F7: =Inputs!F$7 -> 365 | G7: =Inputs!G$7 -> 365 | H7: =Inputs!H$7 -> 365 | I7: =Inputs!I$7 -> 366 | J7: =Inputs!J$7 -> 365 | K7: =Inputs!K$7 -> 365 | L7: =Inputs!L$7 -> 365 | M7: =Inputs!M$7 -> 366 | N7: =Inputs!N$7 -> 365 | O7: =Inputs!O$7 -> 365 | P7: =Inputs!P$7 -> 365 | Q7: =Inputs!Q$7 -> 366 | R7: =Inputs!R$7 -> 365 | S7: =Inputs!S$7 -> 365 | T7: =Inputs!T$7 -> 365 | U7: =Inputs!U$7 -> 366 | V7: =Inputs!V$7 -> 365 | W7: =Inputs!W$7 -> 365 | X7: =Inputs!X$7 -> 365 | Y7: =Inputs!Y$7 -> 366 | Z7: =Inputs!Z$7 -> 365 | AA7: =Inputs!AA$7 -> 365 | AB7: =Inputs!AB$7 -> 365 | AC7: =Inputs!AC$7 -> 366
A8: Project Year | F8: =Inputs!F$8 -> 0 | G8: =Inputs!G$8 -> 0 | H8: =Inputs!H$8 -> 0 | I8: =Inputs!I$8 -> 1 | J8: =Inputs!J$8 -> 2 | K8: =Inputs!K$8 -> 3 | L8: =Inputs!L$8 -> 4 | M8: =Inputs!M$8 -> 5 | N8: =Inputs!N$8 -> 6 | O8: =Inputs!O$8 -> 7 | P8: =Inputs!P$8 -> 8 | Q8: =Inputs!Q$8 -> 9 | R8: =Inputs!R$8 -> 10 | S8: =Inputs!S$8 -> 11 | T8: =Inputs!T$8 -> 12 | U8: =Inputs!U$8 -> 13 | V8: =Inputs!V$8 -> 14 | W8: =Inputs!W$8 -> 15 | X8: =Inputs!X$8 -> 16 | Y8: =Inputs!Y$8 -> 17 | Z8: =Inputs!Z$8 -> 18 | AA8: =Inputs!AA$8 -> 19 | AB8: =Inputs!AB$8 -> 20 | AC8: =Inputs!AC$8 -> 21
A9: Financial Parameters
A10: =ROW() -> 10 | B10: Modelled Inflation
A11: =ROW() -> 11 | C11: ="Inflation Factor (convert " &Inputs!$E$28& " $ to nominal $)" -> Inflation Factor (convert 31/12/2015 $ to nominal $) | F11: =Inputs!F28 -> 0.6368697215 | G11: =Inputs!G28 -> 0.6368697215 | H11: =Inputs!H28 -> 0.6368697215 | I11: =Inputs!I28 -> 0.6738194556 | J11: =Inputs!J28 -> 0.6948602764 | K11: =Inputs!K28 -> 0.7159010971 | L11: =Inputs!L28 -> 0.7328363919 | M11: =Inputs!M28 -> 0.7518244497 | N11: =Inputs!N28 -> 0.7728652705 | O11: =Inputs!O28 -> 0.7980116172 | P11: =Inputs!P28 -> 0.8216183918 | Q11: =Inputs!Q28 -> 0.8518966461 | R11: =Inputs!R28 -> 0.8698583223 | S11: =Inputs!S28 -> 0.8929519061 | T11: =Inputs!T28 -> 0.9206642066 | U11: =Inputs!U28 -> 0.9409594096 | V11: =Inputs!V28 -> 0.9667896679 | W11: =Inputs!W28 -> 0.9833948339 | X11: =Inputs!X28 -> 1 | Y11: =Inputs!Y28 -> 1.0143 | Z11: =Inputs!Z28 -> 1.02880449 | AA11: =Inputs!AA28 -> 1.043516394 | AB11: =Inputs!AB28 -> 1.058438679 | AC11: =Inputs!AC28 -> 1.073574352
A12: =ROW() -> 12 | C12: ="Inflation Factor (convert nominal to real "&Inputs!$E$28&" $)" -> Inflation Factor (convert nominal to real 31/12/2015 $) | F12: =Inputs!F29 -> 1.570179844 | G12: =Inputs!G29 -> 1.570179844 | H12: =Inputs!H29 -> 1.570179844 | I12: =Inputs!I29 -> 1.484077065 | J12: =Inputs!J29 -> 1.439138247 | K12: =Inputs!K29 -> 1.396840994 | L12: =Inputs!L29 -> 1.364561055 | M12: =Inputs!M29 -> 1.330097738 | N12: =Inputs!N29 -> 1.293886578 | O12: =Inputs!O29 -> 1.253114589 | P12: =Inputs!P29 -> 1.217110048 | Q12: =Inputs!Q29 -> 1.173851317 | R12: =Inputs!R29 -> 1.149612499 | S12: =Inputs!S29 -> 1.119881142 | T12: =Inputs!T29 -> 1.086172345 | U12: =Inputs!U29 -> 1.062745098 | V12: =Inputs!V29 -> 1.034351145 | W12: =Inputs!W29 -> 1.016885553 | X12: =Inputs!X29 -> 1 | Y12: =Inputs!Y29 -> 0.985901607 | Z12: =Inputs!Z29 -> 0.9720019787 | AA12: =Inputs!AA29 -> 0.9582983129 | AB12: =Inputs!AB29 -> 0.9447878466 | AC12: =Inputs!AC29 -> 0.9314678563
A13: DBNGP Asset Account Summary [m$ OD]
A14: All Tax Assets
A15: =ROW() -> 15 | B15: DBNGP Asset Including BEP and Shippers' Financed Capex
A16: =ROW() -> 16 | C16: Opening Value | G16: =G22+G29 -> 0 | H16: =H22+H29 -> 0 | I16: =I22+I29 -> 1550 | J16: =J22+J29 -> 1354.890471 | K16: 1159.067644 | L16: 959.0642887 | M16: 758.5109042 | N16: 560.6608128 | O16: 409.3706278 | P16: 603.936533 | Q16: 457.2239588 | R16: 1063.06939 | S16: 1011.255672 | T16: 1577.131687 | U16: 1637.579688 | V16: 1576.147915 | W16: 1502.807225 | X16: 1419.906993 | Y16: 1346.088249 | Z16: 1275.045451 | AA16: 1200.855758 | AB16: 1119.147985 | AC16: 1037.973343
A17: =ROW() -> 17 | C17: Capex | G17: =G23+G30 -> 0 | H17: 0 | I17: =I23+I30 -> 5.059498241 | J17: 3.26741196 | K17: 1.25525234 | L17: 0.7739516 | M17: 3.37670541 | N17: 54.76224925 | O17: 396.8319864 | P17: 12.97804318 | Q17: 628.4284572 | R17: 1.28176557 | S17: 618.8664109 | T17: 146.2813483 | U17: 30.76889257 | V17: 20.77420383 | W17: 12.31525298 | X17: 22.4612722 | Y17: 25.65064823 | Z17: 23.83233246 | AA17: 17.5674136 | AB17: 19.00959901 | AC17: 23.29115239
A18: =ROW() -> 18 | C18: Redundant & Disposed Asset | G18: =G24+G31 -> 0 | H18: 0 | I18: 0 | J18: 0 | K18: 0 | L18: 0 | M18: 0 | N18: -6.027779056 | O18: 0 | P18: -0.03222644103 | Q18: -0.02524828106 | R18: -0.08231943446 | S18: -0.01107454853 | T18: -4.420849809 | U18: -0.3712790157 | V18: -0.7599312697 | W18: -2.180727114 | X18: -0.7796653756 | Y18: 0 | Z18: 0 | AA18: 0 | AB18: 0 | AC18: 0
A19: =ROW() -> 19 | C19: Depreciation | G19: =G25+G32 -> 0 | H19: 0 | I19: -200.1690276 | J19: -199.0902388 | K19: -201.2586074 | L19: -201.3273361 | M19: -201.2267969 | N19: -200.1089851 | O19: -202.7175048 | P19: -160.5230709 | Q19: -23.09203945 | R19: -53.70007324 | S19: -53.80361141 | T19: -82.00195815 | U19: -92.56152243 | V19: -93.81399473 | W19: -93.48216196 | X19: -95.87563355 | Y19: -97.06393829 | Z19: -98.38751356 | AA19: -99.63545336 | AB19: -100.5390619 | AC19: -101.40022
A20: =ROW() -> 20 | C20: Closing Value | F20: =F26+F33 -> 0 | G20: 0 | H20: 1550 | I20: 1354.890471 | J20: 1159.067644 | K20: 959.0642887 | L20: 758.5109042 | M20: 560.6608128 | N20: 409.2862978 | O20: 603.4851093 | P20: 456.3592789 | Q20: 1062.535128 | R20: 1010.568763 | S20: 1576.307397 | T20: 1636.990227 | U20: 1575.415779 | V20: 1502.348193 | W20: 1419.459589 | X20: 1345.712967 | Y20: 1274.674958 | Z20: 1200.49027 | AA20: 1118.787719 | AB20: 1037.618522 | AC20: 959.8642751
A21: =ROW() -> 21 | B21: Shippers' Asset Account
A22: =ROW() -> 22 | C22: Opening Value (Starting 01/12/2010) | I22: =Shippers_Asset!I18*I$11 -> 0 | J22: =Shippers_Asset!J18*J$11 -> 0 | K22: =Shippers_Asset!K18*K$11 -> 0 | L22: =Shippers_Asset!L18*L$11 -> 0 | M22: =Shippers_Asset!M18*M$11 -> 0 | N22: =Shippers_Asset!N18*N$11 -> 0 | O22: =Shippers_Asset!O18*O$11 -> 2.676185584 | P22: =Shippers_Asset!P18*P$11 -> 15.71150535 | Q22: =Shippers_Asset!Q18*Q$11 -> 24.32828367 | R22: =Shippers_Asset!R18*R$11 -> 25.87354754 | S22: =Shippers_Asset!S18*S$11 -> 26.56045588 | T22: =Shippers_Asset!T18*T$11 -> 27.38474589 | U22: =Shippers_Asset!U18*U$11 -> 27.32954654 | V22: =Shippers_Asset!V18*V$11 -> 27.40281162 | W22: =Shippers_Asset!W18*W$11 -> 27.18488569 | X22: =Shippers_Asset!X18*X$11 -> 26.94370549 | Y22: =Shippers_Asset!Y18*Y$11 -> 26.61877541 | Z22: =Shippers_Asset!Z18*Z$11 -> 26.27904261 | AA22: =Shippers_Asset!AA18*AA$11 -> 25.92415017 | AB22: =Shippers_Asset!AB18*AB$11 -> 25.55373402 | AC22: =Shippers_Asset!AC18*AC$11 -> 25.16742272
A23: =ROW() -> 23 | C23: Capex | I23: =Shippers_Asset!I19*I$11 -> 0 | J23: =Shippers_Asset!J19*J$11 -> 0 | K23: =Shippers_Asset!K19*K$11 -> 0 | L23: =Shippers_Asset!L19*L$11 -> 0 | M23: =Shippers_Asset!M19*M$11 -> 0 | N23: =Shippers_Asset!N19*N$11 -> 2.59185562 | O23: =Shippers_Asset!O19*O$11 -> 12.58389613 | P23: =Shippers_Asset!P19*P$11 -> 7.75209836 | Q23: =Shippers_Asset!Q19*Q$11 -> 1.01100182 | R23: =Shippers_Asset!R19*R$11 -> 0 | S23: =Shippers_Asset!S19*S$11 -> 0 | T23: =Shippers_Asset!T19*T$11 -> 0 | U23: =Shippers_Asset!U19*U$11 -> 0 | V23: =Shippers_Asset!V19*V$11 -> 0 | W23: =Shippers_Asset!W19*W$11 -> 0 | X23: =Shippers_Asset!X19*X$11 -> 0 | Y23: =Shippers_Asset!Y19*Y$11 -> 0 | Z23: =Shippers_Asset!Z19*Z$11 -> 0 | AA23: =Shippers_Asset!AA19*AA$11 -> 0 | AB23: =Shippers_Asset!AB19*AB$11 -> 0 | AC23: =Shippers_Asset!AC19*AC$11 -> 0
A24: =ROW() -> 24 | C24: Redundant & Disposed Asset | I24: =Shippers_Asset!I20*I$11 -> 0 | J24: =Shippers_Asset!J20*J$11 -> 0 | K24: =Shippers_Asset!K20*K$11 -> 0 | L24: =Shippers_Asset!L20*L$11 -> 0 | M24: =Shippers_Asset!M20*M$11 -> 0 | N24: =Shippers_Asset!N20*N$11 -> 0 | O24: =Shippers_Asset!O20*O$11 -> 0 | P24: =Shippers_Asset!P20*P$11 -> 0 | Q24: =Shippers_Asset!Q20*Q$11 -> 0 | R24: =Shippers_Asset!R20*R$11 -> 0 | S24: =Shippers_Asset!S20*S$11 -> 0 | T24: =Shippers_Asset!T20*T$11 -> 0 | U24: =Shippers_Asset!U20*U$11 -> 0 | V24: =Shippers_Asset!V20*V$11 -> 0 | W24: =Shippers_Asset!W20*W$11 -> 0 | X24: =Shippers_Asset!X20*X$11 -> 0 | Y24: =Shippers_Asset!Y20*Y$11 -> 0 | Z24: =Shippers_Asset!Z20*Z$11 -> 0 | AA24: =Shippers_Asset!AA20*AA$11 -> 0 | AB24: =Shippers_Asset!AB20*AB$11 -> 0 | AC24: =Shippers_Asset!AC20*AC$11 -> 0
A25: =ROW() -> 25 | C25: Depreciation | I25: =Shippers_Asset!I21*I$11 -> 0 | J25: =Shippers_Asset!J21*J$11 -> 0 | K25: =Shippers_Asset!K21*K$11 -> 0 | L25: =Shippers_Asset!L21*L$11 -> 0 | M25: =Shippers_Asset!M21*M$11 -> 0 | N25: =Shippers_Asset!N21*N$11 -> 0 | O25: =Shippers_Asset!O21*O$11 -> 0 | P25: =Shippers_Asset!P21*P$11 -> 0 | Q25: =Shippers_Asset!Q21*Q$11 -> 0 | R25: =Shippers_Asset!R21*R$11 -> 0 | S25: =Shippers_Asset!S21*S$11 -> 0 | T25: =Shippers_Asset!T21*T$11 -> -0.6446601621 | U25: =Shippers_Asset!U21*U$11 -> -0.6588711076 | V25: =Shippers_Asset!V21*V$11 -> -0.6769577654 | W25: =Shippers_Asset!W21*W$11 -> -0.6885849026 | X25: =Shippers_Asset!X21*X$11 -> -0.7002120398 | Y25: =Shippers_Asset!Y21*Y$11 -> -0.710225072 | Z25: =Shippers_Asset!Z21*Z$11 -> -0.7203812905 | AA25: =Shippers_Asset!AA21*AA$11 -> -0.730682743 | AB25: =Shippers_Asset!AB21*AB$11 -> -0.7411315062 | AC25: =Shippers_Asset!AC21*AC$11 -> -0.7517296867
A26: =ROW() -> 26 | C26: Closing Value | I26: =Shippers_Asset!I22*I$11 -> 0 | J26: =Shippers_Asset!J22*J$11 -> 0 | K26: =Shippers_Asset!K22*K$11 -> 0 | L26: =Shippers_Asset!L22*L$11 -> 0 | M26: =Shippers_Asset!M22*M$11 -> 0 | N26: =Shippers_Asset!N22*N$11 -> 2.59185562 | O26: =Shippers_Asset!O22*O$11 -> 15.26008171 | P26: =Shippers_Asset!P22*P$11 -> 23.46360371 | Q26: =Shippers_Asset!Q22*Q$11 -> 25.33928549 | R26: =Shippers_Asset!R22*R$11 -> 25.87354754 | S26: =Shippers_Asset!S22*S$11 -> 26.56045588 | T26: =Shippers_Asset!T22*T$11 -> 26.74008573 | U26: =Shippers_Asset!U22*U$11 -> 26.67067543 | V26: =Shippers_Asset!V22*V$11 -> 26.72585385 | W26: =Shippers_Asset!W22*W$11 -> 26.49630079 | X26: =Shippers_Asset!X22*X$11 -> 26.24349345 | Y26: =Shippers_Asset!Y22*Y$11 -> 25.90855034 | Z26: =Shippers_Asset!Z22*Z$11 -> 25.55866132 | AA26: =Shippers_Asset!AA22*AA$11 -> 25.19346743 | AB26: =Shippers_Asset!AB22*AB$11 -> 24.81260251 | AC26: =Shippers_Asset!AC22*AC$11 -> 24.41569304
A27: DBNGP and BEP Tax Assets
A28: =ROW() -> 28 | B28: DBNGP Asset Including BEP
A29: =ROW() -> 29 | C29: Opening Value | G29: =G35+G42 -> 0 | H29: 0 | I29: =I35+I42 -> 1550 | J29: 1354.890471 | K29: 1159.067644 | L29: 959.0642887 | M29: 758.5109042 | N29: 560.6608128 | O29: 406.6944422 | P29: 588.2250276 | Q29: 432.8956751 | R29: 1037.195843 | S29: 984.6952157 | T29: 1549.746941 | U29: 1610.250141 | V29: 1548.745103 | W29: 1475.622339 | X29: =X35+X42 -> 1392.963288 | Y29: =Y35+Y42 -> 1319.469473 | Z29: 1248.766408 | AA29: 1174.931608 | AB29: 1093.594251 | AC29: 1012.80592
A30: =ROW() -> 30 | C30: Capex | G30: =G36+G43 -> 0 | H30: 0 | I30: 5.059498241 | J30: 3.26741196 | K30: 1.25525234 | L30: 0.7739516 | M30: 3.37670541 | N30: 52.17039363 | O30: 384.2480902 | P30: 5.22594482 | Q30: 627.4174554 | R30: 1.28176557 | S30: 618.8664109 | T30: 146.2813483 | U30: 30.76889257 | V30: 20.77420383 | W30: 12.31525298 | X30: =X36+X43 -> 22.4612722 | Y30: 25.65064823 | Z30: 23.83233246 | AA30: 17.5674136 | AB30: 19.00959901 | AC30: 23.29115239
A31: =ROW() -> 31 | C31: Redundant & Disposed Asset | G31: =G37+G44 -> 0 | H31: 0 | I31: 0 | J31: 0 | K31: 0 | L31: 0 | M31: 0 | N31: -6.027779056 | O31: 0 | P31: -0.03222644103 | Q31: -0.02524828106 | R31: -0.08231943446 | S31: -0.01107454853 | T31: -4.420849809 | U31: -0.3712790157 | V31: -0.7599312697 | W31: -2.180727114 | X31: =X37+X44 -> -0.7796653756 | Y31: 0 | Z31: 0 | AA31: 0 | AB31: 0 | AC31: 0
A32: =ROW() -> 32 | C32: Depreciation | G32: =G38+G45 -> 0 | H32: 0 | I32: -200.1690276 | J32: -199.0902388 | K32: -201.2586074 | L32: -201.3273361 | M32: -201.2267969 | N32: -200.1089851 | O32: -202.7175048 | P32: -160.5230709 | Q32: -23.09203945 | R32: -53.70007324 | S32: -53.80361141 | T32: -81.35729799 | U32: -91.90265132 | V32: -93.13703697 | W32: -92.79357706 | X32: =X38+X45 -> -95.17542151 | Y32: -96.35371322 | Z32: -97.66713227 | AA32: -98.90477062 | AB32: -99.79793034 | AC32: -100.6484903
A33: =ROW() -> 33 | C33: Closing Value | F33: =F39+F47 -> 0 | G33: 0 | H33: 1550 | I33: =I39+I47 -> 1354.890471 | J33: 1159.067644 | K33: 959.0642887 | L33: 758.5109042 | M33: 560.6608128 | N33: 406.6944422 | O33: 588.2250276 | P33: 432.8956751 | Q33: 1037.195843 | R33: 984.6952157 | S33: 1549.746941 | T33: 1610.250141 | U33: 1548.745103 | V33: 1475.622339 | W33: 1392.963288 | X33: 1319.469473 | Y33: 1248.766408 | Z33: 1174.931608 | AA33: 1093.594251 | AB33: 1012.80592 | AC33: 935.4485821
A34: =ROW() -> 34 | B34: BEP Asset Account
A35: =ROW() -> 35 | C35: Opening Value (Starting 01/12/2010) | T35: =T108 -> 0 | U35: =U108 -> 19.44328014 | V35: =V108 -> 18.47111613 | W35: 17.49895213 | X35: 16.52678812 | Y35: 15.55462411 | Z35: 14.58246011 | AA35: 13.6102961 | AB35: 12.63813209 | AC35: 11.66596808
A36: =ROW() -> 36 | C36: Capex | T36: =T109 -> 19.44328014 | U36: =U109 -> 0 | V36: 0 | W36: 0 | X36: 0 | Y36: 0 | Z36: 0 | AA36: 0 | AB36: 0 | AC36: 0
A37: =ROW() -> 37 | C37: Redundant & Disposed Asset | T37: =T110 -> 0 | U37: 0 | V37: 0 | W37: 0 | X37: 0 | Y37: 0 | Z37: 0 | AA37: 0 | AB37: 0 | AC37: 0
A38: =ROW() -> 38 | C38: Depreciation | T38: 0 | U38: -0.972164007 | V38: -0.972164007 | W38: -0.972164007 | X38: -0.972164007 | Y38: -0.972164007 | Z38: -0.972164007 | AA38: -0.972164007 | AB38: -0.972164007 | AC38: -0.972164007
A39: =ROW() -> 39 | C39: Closing Value | T39: =SUM(T35:T38) -> 19.44328014 | U39: =SUM(U35:U38) -> 18.47111613 | V39: =SUM(V35:V38) -> 17.49895213 | W39: =SUM(W35:W38) -> 16.52678812 | X39: =SUM(X35:X38) -> 15.55462411 | Y39: =SUM(Y35:Y38) -> 14.58246011 | Z39: 13.6102961 | AA39: 12.63813209 | AB39: 11.66596808 | AC39: 10.69380408
A40: DBNGP Tax Assets
A41: =ROW() -> 41 | B41: DBNGP Asset
A42: =ROW() -> 42 | C42: Opening Value | G42: =F47 -> 0 | H42: =G47 -> 0 | I42: =H47 -> 1550 | J42: =I47 -> 1354.890471 | K42: 1159.067644 | L42: 959.0642887 | M42: 758.5109042 | N42: 560.6608128 | O42: 406.6944422 | P42: 588.2250276 | Q42: 432.8956751 | R42: 1037.195843 | S42: 984.6952157 | T42: 1549.746941 | U42: 1590.806861 | V42: 1530.273987 | W42: 1458.123387 | X42: 1376.4365 | Y42: 1303.914849 | Z42: 1234.183948 | AA42: 1161.321312 | AB42: 1080.956119 | AC42: 1001.139952
A43: =ROW() -> 43 | C43: Capex | G43: =G182 -> 0 | H43: 0 | I43: 5.059498241 | J43: 3.26741196 | K43: 1.25525234 | L43: =L182 -> 0.7739516 | M43: =M182 -> 3.37670541 | N43: 52.17039363 | O43: 384.2480902 | P43: 5.22594482 | Q43: 627.4174554 | R43: 1.28176557 | S43: 618.8664109 | T43: 126.8380682 | U43: 30.76889257 | V43: 20.77420383 | W43: 12.31525298 | X43: 22.4612722 | Y43: 25.65064823 | Z43: 23.83233246 | AA43: 17.5674136 | AB43: 19.00959901 | AC43: 23.29115239
A44: =ROW() -> 44 | C44: Redundant & Disposed Asset | G44: =G139+G190 -> 0 | H44: 0 | I44: 0 | J44: 0 | K44: 0 | L44: 0 | M44: 0 | N44: =N139+N190 -> -6.027779056 | O44: =O139+O190 -> 0 | P44: -0.03222644103 | Q44: -0.02524828106 | R44: -0.08231943446 | S44: -0.01107454853 | T44: -4.420849809 | U44: -0.3712790157 | V44: -0.7599312697 | W44: -2.180727114 | X44: -0.7796653756 | Y44: 0 | Z44: 0 | AA44: 0 | AB44: 0 | AC44: 0
A45: =ROW() -> 45 | C45: Depreciation | G45: =G147+G198 -> 0 | H45: 0 | I45: -200.1690276 | J45: -199.0902388 | K45: =K147+K198 -> -201.2586074 | L45: =L147+L198 -> -201.3273361 | M45: -201.2267969 | N45: -200.1089851 | O45: -202.7175048 | P45: -160.5230709 | Q45: -23.09203945 | R45: -53.70007324 | S45: -53.80361141 | T45: -81.35729799 | U45: -90.93048732 | V45: -92.16487296 | W45: -91.82141305 | X45: -94.20325751 | Y45: -95.38154921 | Z45: -96.69496827 | AA45: -97.93260661 | AB45: -98.82576634 | AC45: -99.67632628
A46: =ROW() -> 46 | C46: Adjustment -- for negative capex | I46: =(I155-(I131+I139+I147)) + (I206-(I174+I182+I190+I198)) -> 0 | J46: 0 | K46: 0 | L46: 1.776356839e-15 | M46: 0 | N46: 0 | O46: 0 | P46: =(P155-(P131+P139+P147)) + (P206-(P174+P182+P190+P198)) -> 5.684341886e-14 | Q46: =(Q155-(Q131+Q139+Q147)) + (Q206-(Q174+Q182+Q190+Q198)) -> 2.273736754e-13 | R46: -2.273736754e-13 | S46: 0 | T46: 4.547473509e-13 | U46: 0 | V46: -2.273736754e-13 | W46: 2.273736754e-13 | X46: -2.273736754e-13 | Y46: 2.273736754e-13 | Z46: 0 | AA46: -2.273736754e-13 | AB46: -1.136868377e-13 | AC46: -1.136868377e-13
A47: =ROW() -> 47 | C47: Closing Value | F47: =F155+F206 -> 0 | G47: =G155+G206 -> 0 | H47: 1550 | I47: =SUM(I42:I46) -> 1354.890471 | J47: 1159.067644 | K47: 959.0642887 | L47: 758.5109042 | M47: 560.6608128 | N47: 406.6944422 | O47: 588.2250276 | P47: =SUM(P42:P46) -> 432.8956751 | Q47: =SUM(Q42:Q46) -> 1037.195843 | R47: 984.6952157 | S47: 1549.746941 | T47: 1590.806861 | U47: 1530.273987 | V47: 1458.123387 | W47: 1376.4365 | X47: 1303.914849 | Y47: 1234.183948 | Z47: 1161.321312 | AA47: 1080.956119 | AB47: 1001.139952 | AC47: 924.754778
A48: =ROW() -> 48 | E48: Check | G48: =IF(ROUND(G47-G155-G206,6)=0,"OK","Wrong") -> OK | H48: OK | I48: =IF(ROUND(I47-I155-I206,6)=0,"OK","Wrong") -> OK | J48: =IF(ROUND(J47-J155-J206,6)=0,"OK","Wrong") -> OK | K48: OK | L48: OK | M48: OK | N48: OK | O48: OK | P48: OK | Q48: OK | R48: OK | S48: OK | T48: OK | U48: OK | V48: OK | W48: OK | X48: OK | Y48: OK | Z48: OK | AA48: OK | AB48: OK | AC48: OK
A49: =ROW() -> 49 | B49: Over Depreciation
A50: =ROW() -> 50 | C50: Over Depreciation
A51: =ROW() -> 51 | C51: Rolled Forward Value
A52: =ROW() -> 52 | I52: =I47-(I155+I206) -> 0
A53: DBNGP Asset Account [m$ OD]
A54: Asset Accounts
A55: =ROW() -> 55 | B55: Opening Value
A56: =ROW() -> 56 | C56: Pipeline | G56: =F88 -> 0 | H56: =G88 -> 0 | I56: =H88 -> 1263.146676 | J56: =I88 -> 1100.325449 | K56: 935.9660584 | L56: 771.6390056 | M56: 607.2448378 | N56: 443.4718747 | O56: 286.4802268 | P56: 351.5638381 | Q56: 226.9451336 | R56: 708.4031922 | S56: 671.7673136 | T56: 1125.091335 | U56: 1110.072177 | V56: 1061.238704 | W56: 1001.760272 | X56: 937.9387123 | Y56: 876.0978916 | Z56: =Y88 -> 815.2636896 | AA56: 753.0763881 | AB56: 689.9091345 | AC56: 630.6372482
A57: =ROW() -> 57 | C57: Compression | G57: 0 | H57: 0 | I57: 211.6036808 | J57: 182.0991982 | K57: 157.9137185 | L57: 130.4222054 | M57: 102.7284136 | N57: 75.44768526 | O57: 86.64684444 | P57: 212.1350708 | Q57: 184.3945386 | R57: 301.3892269 | S57: 285.2154876 | T57: 321.3026654 | U57: 331.4119444 | V57: 319.4776134 | W57: 304.3856112 | X57: 286.5206755 | Y57: 269.9205348 | Z57: 264.4579534 | AA57: 258.1519928 | AB57: 247.530459 | AC57: 234.8045593
A58: =ROW() -> 58 | C58: Metering | G58: 0 | H58: 0 | I58: 17.35315585 | J58: 15.66893879 | K58: 13.87834266 | L58: 11.87010252 | M58: 9.448264947 | N58: 8.760488034 | O58: 6.259049232 | P58: 3.75761043 | Q58: 1.950297862 | R58: 1.727637049 | S58: 1.632608383 | T58: 6.211858017 | U58: 6.068144463 | V58: 7.401273898 | W58: 7.715697766 | X58: 8.13922967 | Y58: 11.04091423 | Z58: 13.69240862 | AA58: 15.24229945 | AB58: 14.73414272 | AC58: 13.96639188
A59: =ROW() -> 59 | C59: Other Depreciable | G59: 0 | H59: 0 | I59: 47.65823764 | J59: 46.55863525 | K59: 41.07127493 | L59: 34.89472584 | M59: 28.85113864 | N59: 22.74251545 | O59: 19.16424412 | P59: 12.74427531 | Q59: 9.547431341 | R59: 14.20206058 | S59: 13.9447869 | T59: 84.34000094 | U59: 130.4698225 | V59: 129.3780118 | W59: 131.2167834 | X59: 130.792262 | Y59: 133.8128593 | Z59: 127.7213052 | AA59: 121.8020407 | AB59: 115.7337917 | AC59: 108.6831613
A60: =ROW() -> 60 | C60: Non Depreciable | G60: 0 | H60: 0 | I60: 10.23824934 | J60: 10.23824934 | K60: 10.23824934 | L60: 10.23824934 | M60: 10.23824934 | N60: 10.23824934 | O60: 8.144077639 | P60: 8.024232949 | Q60: 10.05827373 | R60: 11.47372606 | S60: 12.13501927 | T60: 12.80108142 | U60: 12.78477258 | V60: 12.77838412 | W60: 13.04502208 | X60: 13.04562011 | Y60: 13.042649 | Z60: 13.04859122 | AA60: 13.04859122 | AB60: 13.04859122 | AC60: 13.04859122
A61: =ROW() -> 61 | C61: Cost of Raising Equity | G61: 0 | H61: 0 | I61: 0 | J61: =I93 -> 0 | K61: =J93 -> 0 | L61: =K93 -> 0 | M61: =L93 -> 0 | N61: =M93 -> 0 | O61: =N93 -> 0 | P61: =O93 -> 0 | Q61: =P93 -> 0 | R61: =Q93 -> 0 | S61: =R93 -> 0 | T61: =S93 -> 0 | U61: =T93 -> 0 | V61: =U93 -> 0 | W61: =V93 -> 0 | X61: =W93 -> 0 | Y61: =X93 -> 0 | Z61: =Y93 -> 2.902335245e-14 | AA61: =Z93 -> 3.627765005e-14 | AB61: =AA93 -> 4.386734215e-14 | AC61: =AB93 -> 4.287267978e-14
A62: =ROW() -> 62 | C62: Total | G62: =SUM(G56:G61) -> 0 | H62: 0 | I62: =SUM(I56:I61) -> 1550 | J62: =SUM(J56:J61) -> 1354.890471 | K62: 1159.067644 | L62: 959.0642887 | M62: 758.5109042 | N62: 560.6608128 | O62: 406.6944422 | P62: 588.2250276 | Q62: 432.8956751 | R62: 1037.195843 | S62: 984.6952157 | T62: 1549.746941 | U62: 1590.806861 | V62: 1530.273987 | W62: 1458.123387 | X62: 1376.4365 | Y62: 1303.914849 | Z62: 1234.183948 | AA62: 1161.321312 | AB62: 1080.956119 | AC62: 1001.139952
A63: =ROW() -> 63 | B63: Capex | E63: Check | F63: =IF(ROUND(F62-F131-F174,6)=0,"OK","Wrong") -> OK | G63: =IF(ROUND(G62-G131-G174,6)=0,"OK","Wrong") -> OK | H63: OK | I63: =IF(ROUND(I62-I131-I174,6)=0,"OK","Wrong") -> OK | J63: =IF(ROUND(J62-J131-J174,6)=0,"OK","Wrong") -> OK | K63: OK | L63: OK | M63: OK | N63: OK | O63: OK | P63: OK | Q63: OK | R63: OK | S63: OK | T63: OK | U63: OK | V63: OK | W63: OK | X63: OK | Y63: OK | Z63: OK | AA63: OK | AB63: OK | AC63: OK
A64: =ROW() -> 64 | C64: Pipeline | I64: =Inputs!I474*I$11 -> 1.3878406 | J64: =Inputs!J474*J$11 -> 0.0300965 | K64: =Inputs!K474*K$11 -> 0.0639393 | L64: =Inputs!L474*L$11 -> 2.114e-05 | M64: =Inputs!M474*M$11 -> 0.621227 | N64: =Inputs!N474*N$11 -> 7.43360348 | O64: =Inputs!O474*O$11 -> 229.8805429 | P64: =Inputs!P474*P$11 -> 1.1463872 | Q64: =Inputs!Q474*Q$11 -> 493.5417551 | R64: =Inputs!R474*R$11 -> 0 | S64: =Inputs!S474*S$11 -> 489.9599 | T64: =Inputs!T474*T$11 -> 46.11471576 | U64: =Inputs!U474*U$11 -> 14.60613638 | V64: =Inputs!V474*V$11 -> 4.691484591 | W64: =Inputs!W474*W$11 -> 0.5829304214 | X64: =Inputs!X474*X$11 -> 2.59281626 | Y64: =Inputs!Y474*Y$11 -> 3.729075791 | Z64: =Inputs!Z474*Z$11 -> 2.562430097 | AA64: =Inputs!AA474*AA$11 -> 1.71059954 | AB64: =Inputs!AB474*AB$11 -> 5.69149671 | AC64: =Inputs!AC474*AC$11 -> 8.208916484
A65: =ROW() -> 65 | C65: Compression | I65: =Inputs!I475*I$11 -> -1.996004059 | J65: =Inputs!J475*J$11 -> 1.32699473 | K65: =Inputs!K475*K$11 -> 0.08331516 | L65: =Inputs!L475*L$11 -> -0.11479788 | M65: =Inputs!M475*M$11 -> 0.18346782 | N65: =Inputs!N475*N$11 -> 41.21632278 | O65: =Inputs!O475*O$11 -> 153.701894 | P65: =Inputs!P475*P$11 -> 0.13571848 | Q65: =Inputs!Q475*Q$11 -> 126.827074 | R65: =Inputs!R475*R$11 -> 0 | S65: =Inputs!S475*S$11 -> 52.26091714 | T65: =Inputs!T475*T$11 -> 28.96710593 | U65: =Inputs!U475*U$11 -> 8.29607344 | V65: =Inputs!V475*V$11 -> 5.553205826 | W65: =Inputs!W475*W$11 -> 3.057932667 | X65: =Inputs!X475*X$11 -> 4.47562428 | Y65: =Inputs!Y475*Y$11 -> 15.83696479 | Z65: =Inputs!Z475*Z$11 -> 15.78543379 | AA65: =Inputs!AA475*AA$11 -> 12.25913238 | AB65: =Inputs!AB475*AB$11 -> 10.767723 | AC65: =Inputs!AC475*AC$11 -> 10.93236248
A66: =ROW() -> 66 | C66: Metering | I66: =Inputs!I476*I$11 -> 0.5716932 | J66: =Inputs!J476*J$11 -> 0.53963425 | K66: =Inputs!K476*K$11 -> 0.35796585 | L66: =Inputs!L476*L$11 -> -0.03176719 | M66: =Inputs!M476*M$11 -> 1.67052628 | N66: =Inputs!N476*N$11 -> 0 | O66: =Inputs!O476*O$11 -> 0 | P66: =Inputs!P476*P$11 -> 0 | Q66: =Inputs!Q476*Q$11 -> 0 | R66: =Inputs!R476*R$11 -> 0.07617976 | S66: =Inputs!S476*S$11 -> 4.75553671 | T66: =Inputs!T476*T$11 -> 0.3496093023 | U66: =Inputs!U476*U$11 -> 1.849759579 | V66: =Inputs!V476*V$11 -> 0.9543713166 | W66: =Inputs!W476*W$11 -> 1.198697277 | X66: =Inputs!X476*X$11 -> 3.66130553 | Y66: =Inputs!Y476*Y$11 -> 3.655202384 | Z66: =Inputs!Z476*Z$11 -> 2.761303376 | AA66: =Inputs!AA476*AA$11 -> 0.8873427007 | AB66: =Inputs!AB476*AB$11 -> 0.6869047754 | AC66: =Inputs!AC476*AC$11 -> 1.416172386
A67: =ROW() -> 67 | C67: Other Depreciable | I67: =Inputs!I477*I$11 -> 5.0959685 | J67: =Inputs!J477*J$11 -> 1.37068648 | K67: =Inputs!K477*K$11 -> 0.75003203 | L67: =Inputs!L477*L$11 -> 0.92049553 | M67: =Inputs!M477*M$11 -> 0.90148431 | N67: =Inputs!N477*N$11 -> 3.52046737 | O67: =Inputs!O477*O$11 -> 0.78549806 | P67: =Inputs!P477*P$11 -> 2.14948774 | Q67: =Inputs!Q477*Q$11 -> 5.63317398 | R67: =Inputs!R477*R$11 -> 0.5442926 | S67: =Inputs!S477*S$11 -> 71.22399494 | T67: =Inputs!T477*T$11 -> 51.42294601 | U67: =Inputs!U477*U$11 -> 6.055929309 | V67: =Inputs!V477*V$11 -> 9.386516421 | W67: =Inputs!W477*W$11 -> 7.475094592 | X67: =Inputs!X477*X$11 -> 11.73449724 | Y67: =Inputs!Y477*Y$11 -> 2.429405258 | Z67: =Inputs!Z477*Z$11 -> 2.723165195 | AA67: =Inputs!AA477*AA$11 -> 2.710338982 | AB67: =Inputs!AB477*AB$11 -> 1.863474526 | AC67: =Inputs!AC477*AC$11 -> 2.73370104
A68: =ROW() -> 68 | C68: Non Depreciable | I68: =Inputs!I478*I$11 -> 0 | J68: =Inputs!J478*J$11 -> 0 | K68: =Inputs!K478*K$11 -> 0 | L68: =Inputs!L478*L$11 -> 0 | M68: =Inputs!M478*M$11 -> 0 | N68: =Inputs!N478*N$11 -> 0 | O68: =Inputs!O478*O$11 -> -0.11984469 | P68: =Inputs!P478*P$11 -> 1.7943514 | Q68: =Inputs!Q478*Q$11 -> 1.41545233 | R68: =Inputs!R478*R$11 -> 0.66129321 | S68: =Inputs!S478*S$11 -> 0.66606215 | T68: =Inputs!T478*T$11 -> -0.01630884333 | U68: =Inputs!U478*U$11 -> -0.03900614084 | V68: =Inputs!V478*V$11 -> 0.1886256794 | W68: =Inputs!W478*W$11 -> 0.0005980259646 | X68: =Inputs!X478*X$11 -> -0.00297111 | Y68: =Inputs!Y478*Y$11 -> 0 | Z68: =Inputs!Z478*Z$11 -> 0 | AA68: =Inputs!AA478*AA$11 -> 0 | AB68: =Inputs!AB478*AB$11 -> 0 | AC68: =Inputs!AC478*AC$11 -> 0
A69: =ROW() -> 69 | C69: Cost of Raising Equity | I69: =Inputs!I479*I$11 -> 0 | J69: =Inputs!J479*J$11 -> 0 | K69: =Inputs!K479*K$11 -> 0 | L69: =Inputs!L479*L$11 -> 0 | M69: =Inputs!M479*M$11 -> 0 | N69: =Inputs!N479*N$11 -> 0 | O69: =Inputs!O479*O$11 -> 0 | P69: =Inputs!P479*P$11 -> 0 | Q69: =Inputs!Q479*Q$11 -> 0 | R69: =Inputs!R479*R$11 -> 0 | S69: =Inputs!S479*S$11 -> 0 | T69: =Inputs!T479*T$11 -> 0 | U69: =Inputs!U479*U$11 -> 0 | V69: =Inputs!V479*V$11 -> 0 | W69: =Inputs!W479*W$11 -> 0 | X69: =Inputs!X479*X$11 -> 0 | Y69: =Inputs!Y479*Y$11 -> 2.902335245e-14 | Z69: =Inputs!Z479*Z$11 -> 7.254297602e-15 | AA69: =Inputs!AA479*AA$11 -> 9.040551624e-15 | AB69: =Inputs!AB479*AB$11 -> 2.264307471e-15 | AC69: =Inputs!AC479*AC$11 -> 0
A70: =ROW() -> 70 | C70: Total | I70: =SUM(I64:I69) -> 5.059498241 | J70: =SUM(J64:J69) -> 3.26741196 | K70: =SUM(K64:K69) -> 1.25525234 | L70: =SUM(L64:L69) -> 0.7739516 | M70: =SUM(M64:M69) -> 3.37670541 | N70: =SUM(N64:N69) -> 52.17039363 | O70: =SUM(O64:O69) -> 384.2480902 | P70: =SUM(P64:P69) -> 5.22594482 | Q70: =SUM(Q64:Q69) -> 627.4174554 | R70: =SUM(R64:R69) -> 1.28176557 | S70: =SUM(S64:S69) -> 618.8664109 | T70: =SUM(T64:T69) -> 126.8380682 | U70: =SUM(U64:U69) -> 30.76889257 | V70: =SUM(V64:V69) -> 20.77420383 | W70: =SUM(W64:W69) -> 12.31525298 | X70: =SUM(X64:X69) -> 22.4612722 | Y70: =SUM(Y64:Y69) -> 25.65064823 | Z70: =SUM(Z64:Z69) -> 23.83233246 | AA70: =SUM(AA64:AA69) -> 17.5674136 | AB70: =SUM(AB64:AB69) -> 19.00959901 | AC70: =SUM(AC64:AC69) -> 23.29115239
A71: =ROW() -> 71 | B71: Redundant & Disposed Asset | E71: Check | I71: =IF(ROUND(I70-Inputs!I480*I$11,6)=0,"OK","Wrong") -> OK | J71: =IF(ROUND(J70-Inputs!J480*J$11,6)=0,"OK","Wrong") -> OK | K71: =IF(ROUND(K70-Inputs!K480*K$11,6)=0,"OK","Wrong") -> OK | L71: =IF(ROUND(L70-Inputs!L480*L$11,6)=0,"OK","Wrong") -> OK | M71: =IF(ROUND(M70-Inputs!M480*M$11,6)=0,"OK","Wrong") -> OK | N71: =IF(ROUND(N70-Inputs!N480*N$11,6)=0,"OK","Wrong") -> OK | O71: =IF(ROUND(O70-Inputs!O480*O$11,6)=0,"OK","Wrong") -> OK | P71: =IF(ROUND(P70-Inputs!P480*P$11,6)=0,"OK","Wrong") -> OK | Q71: =IF(ROUND(Q70-Inputs!Q480*Q$11,6)=0,"OK","Wrong") -> OK | R71: =IF(ROUND(R70-Inputs!R480*R$11,6)=0,"OK","Wrong") -> OK | S71: =IF(ROUND(S70-Inputs!S480*S$11,6)=0,"OK","Wrong") -> OK | T71: =IF(ROUND(T70-Inputs!T480*T$11,6)=0,"OK","Wrong") -> OK | U71: =IF(ROUND(U70-Inputs!U480*U$11,6)=0,"OK","Wrong") -> OK | V71: =IF(ROUND(V70-Inputs!V480*V$11,6)=0,"OK","Wrong") -> OK | W71: =IF(ROUND(W70-Inputs!W480*W$11,6)=0,"OK","Wrong") -> OK | X71: =IF(ROUND(X70-Inputs!X480*X$11,6)=0,"OK","Wrong") -> OK | Y71: =IF(ROUND(Y70-Inputs!Y480*Y$11,6)=0,"OK","Wrong") -> OK | Z71: =IF(ROUND(Z70-Inputs!Z480*Z$11,6)=0,"OK","Wrong") -> OK | AA71: =IF(ROUND(AA70-Inputs!AA480*AA$11,6)=0,"OK","Wrong") -> OK | AB71: =IF(ROUND(AB70-Inputs!AB480*AB$11,6)=0,"OK","Wrong") -> OK | AC71: =IF(ROUND(AC70-Inputs!AC480*AC$11,6)=0,"OK","Wrong") -> OK
A72: =ROW() -> 72 | C72: Pipeline | I72: =-(Inputs!I196+Inputs!I1012)*I$11 -> 0 | J72: =-(Inputs!J196+Inputs!J1012)*J$11 -> 0 | K72: =-(Inputs!K196+Inputs!K1012)*K$11 -> 0 | L72: =-(Inputs!L196+Inputs!L1012)*L$11 -> 0 | M72: =-(Inputs!M196+Inputs!M1012)*M$11 -> 0 | N72: =-(Inputs!N196+Inputs!N1012)*N$11 -> 0 | O72: =-(Inputs!O196+Inputs!O1012)*O$11 -> 0 | P72: =-(Inputs!P196+Inputs!P1012)*P$11 -> 0 | Q72: =-(Inputs!Q196+Inputs!Q1012)*Q$11 -> 0 | R72: =-(Inputs!R196+Inputs!R1012)*R$11 -> 0 | S72: =-(Inputs!S196+Inputs!S1012)*S$11 -> 0 | T72: =-Inputs!T196*T$11+T184 -> 0 | U72: =-Inputs!U196*U$11+U184 -> 0 | V72: =-Inputs!V196*V$11+V184 -> 0 | W72: =-Inputs!W196*W$11+W184 -> 0 | X72: =-Inputs!X196*X$11+X184 -> 0 | Y72: =-Inputs!Y196*Y$11+Y184 -> 0 | Z72: =-Inputs!Z196*Z$11+Z184 -> 0 | AA72: =-Inputs!AA196*AA$11+AA184 -> 0 | AB72: =-Inputs!AB196*AB$11+AB184 -> 0 | AC72: =-Inputs!AC196*AC$11+AC184 -> 0
A73: =ROW() -> 73 | C73: Compression | I73: =-(Inputs!I197+Inputs!I1013)*I$11 -> 0 | J73: =-(Inputs!J197+Inputs!J1013)*J$11 -> 0 | K73: =-(Inputs!K197+Inputs!K1013)*K$11 -> 0 | L73: =-(Inputs!L197+Inputs!L1013)*L$11 -> 0 | M73: =-(Inputs!M197+Inputs!M1013)*M$11 -> 0 | N73: =-(Inputs!N197+Inputs!N1013)*N$11 -> -3.864312145 | O73: =-(Inputs!O197+Inputs!O1013)*O$11 -> 0 | P73: =-(Inputs!P197+Inputs!P1013)*P$11 -> 0 | Q73: =-(Inputs!Q197+Inputs!Q1013)*Q$11 -> 0 | R73: =-(Inputs!R197+Inputs!R1013)*R$11 -> 0 | S73: =-(Inputs!S197+Inputs!S1013)*S$11 -> 0 | T73: =-Inputs!T197*T$11+T185 -> -0.07674639822 | U73: =-Inputs!U197*U$11+U185 -> 0 | V73: =-Inputs!V197*V$11+V185 -> 0 | W73: =-Inputs!W197*W$11+W185 -> 0 | X73: =-Inputs!X197*X$11+X185 -> 0 | Y73: =-Inputs!Y197*Y$11+Y185 -> 0 | Z73: =-Inputs!Z197*Z$11+Z185 -> 0 | AA73: =-Inputs!AA197*AA$11+AA185 -> 0 | AB73: =-Inputs!AB197*AB$11+AB185 -> 0 | AC73: =-Inputs!AC197*AC$11+AC185 -> 0
A74: =ROW() -> 74 | C74: Metering | I74: =-(Inputs!I198+Inputs!I1014)*I$11 -> 0 | J74: =-(Inputs!J198+Inputs!J1014)*J$11 -> 0 | K74: =-(Inputs!K198+Inputs!K1014)*K$11 -> 0 | L74: =-(Inputs!L198+Inputs!L1014)*L$11 -> 0 | M74: =-(Inputs!M198+Inputs!M1014)*M$11 -> 0 | N74: =-(Inputs!N198+Inputs!N1014)*N$11 -> 0 | O74: =-(Inputs!O198+Inputs!O1014)*O$11 -> 0 | P74: =-(Inputs!P198+Inputs!P1014)*P$11 -> 0 | Q74: =-(Inputs!Q198+Inputs!Q1014)*Q$11 -> 0 | R74: =-(Inputs!R198+Inputs!R1014)*R$11 -> 0 | S74: =-(Inputs!S198+Inputs!S1014)*S$11 -> 0 | T74: =-Inputs!T198*T$11+T186 -> 0 | U74: =-Inputs!U198*U$11+U186 -> 0 | V74: =-Inputs!V198*V$11+V186 -> 0 | W74: =-Inputs!W198*W$11+W186 -> -1.68684497 | X74: =-Inputs!X198*X$11+X186 -> 0 | Y74: =-Inputs!Y198*Y$11+Y186 -> 0 | Z74: =-Inputs!Z198*Z$11+Z186 -> 0 | AA74: =-Inputs!AA198*AA$11+AA186 -> 0 | AB74: =-Inputs!AB198*AB$11+AB186 -> 0 | AC74: =-Inputs!AC198*AC$11+AC186 -> 0
A75: =ROW() -> 75 | C75: Other Depreciable | I75: =-(Inputs!I199+Inputs!I1015)*I$11 -> 0 | J75: =-(Inputs!J199+Inputs!J1015)*J$11 -> 0 | K75: =-(Inputs!K199+Inputs!K1015)*K$11 -> 0 | L75: =-(Inputs!L199+Inputs!L1015)*L$11 -> 0 | M75: =-(Inputs!M199+Inputs!M1015)*M$11 -> 0 | N75: =-(Inputs!N199+Inputs!N1015)*N$11 -> -0.06929521012 | O75: =-(Inputs!O199+Inputs!O1015)*O$11 -> 0 | P75: =-(Inputs!P199+Inputs!P1015)*P$11 -> -0.03222644103 | Q75: =-(Inputs!Q199+Inputs!Q1015)*Q$11 -> -0.02524828106 | R75: =-(Inputs!R199+Inputs!R1015)*R$11 -> -0.08231943446 | S75: =-(Inputs!S199+Inputs!S1015)*S$11 -> -0.01107454853 | T75: =-Inputs!T199*T$11+T187 -> -4.34410341 | U75: =-Inputs!U199*U$11+U187 -> -0.3712790157 | V75: =-Inputs!V199*V$11+V187 -> -0.7599312697 | W75: =-Inputs!W199*W$11+W187 -> -0.493882144 | X75: =-Inputs!X199*X$11+X187 -> -0.7796653756 | Y75: =-Inputs!Y199*Y$11+Y187 -> 0 | Z75: =-Inputs!Z199*Z$11+Z187 -> 0 | AA75: =-Inputs!AA199*AA$11+AA187 -> 0 | AB75: =-Inputs!AB199*AB$11+AB187 -> 0 | AC75: =-Inputs!AC199*AC$11+AC187 -> 0
A76: =ROW() -> 76 | C76: Non Depreciable | I76: =-(Inputs!I200+Inputs!I1016)*I$11 -> 0 | J76: =-(Inputs!J200+Inputs!J1016)*J$11 -> 0 | K76: =-(Inputs!K200+Inputs!K1016)*K$11 -> 0 | L76: =-(Inputs!L200+Inputs!L1016)*L$11 -> 0 | M76: =-(Inputs!M200+Inputs!M1016)*M$11 -> 0 | N76: =-(Inputs!N200+Inputs!N1016)*N$11 -> -2.094171701 | O76: =-(Inputs!O200+Inputs!O1016)*O$11 -> 0 | P76: =-(Inputs!P200+Inputs!P1016)*P$11 -> 0 | Q76: =-(Inputs!Q200+Inputs!Q1016)*Q$11 -> 0 | R76: =-(Inputs!R200+Inputs!R1016)*R$11 -> 0 | S76: =-(Inputs!S200+Inputs!S1016)*S$11 -> 0 | T76: =-Inputs!T200*T$11+T188 -> 0 | U76: =-Inputs!U200*U$11+U188 -> 0 | V76: =-Inputs!V200*V$11+V188 -> 0 | W76: =-Inputs!W200*W$11+W188 -> 0 | X76: =-Inputs!X200*X$11+X188 -> 0 | Y76: =-Inputs!Y200*Y$11+Y188 -> 0 | Z76: =-Inputs!Z200*Z$11+Z188 -> 0 | AA76: =-Inputs!AA200*AA$11+AA188 -> 0 | AB76: =-Inputs!AB200*AB$11+AB188 -> 0 | AC76: =-Inputs!AC200*AC$11+AC188 -> 0
A77: =ROW() -> 77 | C77: Cost of Raising Equity
A78: =ROW() -> 78 | C78: Total | I78: =SUM(I72:I77) -> 0 | J78: =SUM(J72:J77) -> 0 | K78: =SUM(K72:K77) -> 0 | L78: =SUM(L72:L77) -> 0 | M78: =SUM(M72:M77) -> 0 | N78: =SUM(N72:N77) -> -6.027779056 | O78: =SUM(O72:O77) -> 0 | P78: =SUM(P72:P77) -> -0.03222644103 | Q78: =SUM(Q72:Q77) -> -0.02524828106 | R78: =SUM(R72:R77) -> -0.08231943446 | S78: =SUM(S72:S77) -> -0.01107454853 | T78: =SUM(T72:T77) -> -4.420849809 | U78: =SUM(U72:U77) -> -0.3712790157 | V78: =SUM(V72:V77) -> -0.7599312697 | W78: =SUM(W72:W77) -> -2.180727114 | X78: =SUM(X72:X77) -> -0.7796653756 | Y78: =SUM(Y72:Y77) -> 0 | Z78: =SUM(Z72:Z77) -> 0 | AA78: =SUM(AA72:AA77) -> 0 | AB78: =SUM(AB72:AB77) -> 0 | AC78: =SUM(AC72:AC77) -> 0
A79: =ROW() -> 79 | B79: Depreciation | E79: Check | I79: =IF(ROUND(I78-I139-I190,6)=0,"OK","Wrong") -> OK | J79: =IF(ROUND(J78-J139-J190,6)=0,"OK","Wrong") -> OK | K79: OK | L79: OK | M79: OK | N79: OK | O79: OK | P79: OK | Q79: OK | R79: OK | S79: OK | T79: OK | U79: OK | V79: OK | W79: OK | X79: OK | Y79: OK | Z79: OK | AA79: OK | AB79: OK | AC79: OK
A80: =ROW() -> 80 | C80: Pipeline | G80: =G141+G192 -> 0 | H80: 0 | I80: =I141+I192 -> -164.2090679 | J80: -164.3894872 | K80: -164.390992 | L80: -164.394189 | M80: -164.3941901 | N80: -164.4252514 | O80: -164.7969316 | P80: -125.7650917 | Q80: -12.08369653 | R80: -36.63587863 | S80: -36.63587863 | T80: -61.13387363 | U80: -63.43960942 | V80: -64.16991624 | W80: -64.40449047 | X80: -64.43363699 | Y80: -64.5632778 | Z80: -64.74973159 | AA80: -64.8778531 | AB80: -64.96338307 | AC80: -65.24795791
A81: =ROW() -> 81 | C81: Compression | G81: =G142+G193 -> 0 | H81: 0 | I81: =I142+I193 -> -27.5084785 | J81: -25.51247444 | K81: -27.57482824 | L81: -27.578994 | M81: -27.46419612 | N81: -26.15285145 | O81: -28.21366759 | P81: -27.87625073 | Q81: -9.832385647 | R81: -16.17373935 | S81: -16.17373935 | T81: -18.78108049 | U81: -20.23040439 | V81: -20.64520806 | W81: -20.92286835 | X81: -21.07576498 | Y81: -21.2995462 | Z81: -22.09139444 | AA81: -22.88066613 | AB81: -23.49362275 | AC81: -24.0320089
A82: =ROW() -> 82 | C82: Metering | G82: =G143+G194 -> 0 | H82: 0 | I82: =I143+I194 -> -2.255910261 | J82: -2.330230377 | K82: -2.366205993 | L82: -2.390070383 | M82: -2.358303193 | N82: -2.501438802 | O82: -2.501438802 | P82: -1.807312568 | Q82: -0.2226608133 | R82: -0.1712084253 | S82: -0.176287076 | T82: -0.4933228567 | U82: -0.5166301435 | V82: -0.6399474487 | W82: 0.9116795968 | X82: -0.759620965 | Y82: -1.003708 | Z82: -1.211412543 | AA82: -1.395499434 | AB82: -1.454655614 | AC82: -1.389080847
A83: =ROW() -> 83 | C83: Other Depreciable | G83: =G144+G195 -> 0 | H83: 0 | I83: =I144+I195 -> -6.195570893 | J83: -6.858046798 | K83: -6.926581122 | L83: -6.964082724 | M83: -7.0101075 | N83: -7.029443495 | O83: -7.205466863 | P83: -5.314105272 | Q83: -0.9532964599 | R83: -0.7192468405 | S83: -0.8177063565 | T83: -0.9490210052 | U83: -6.776461053 | V83: -6.787813495 | W83: -7.405733833 | X83: -7.93423457 | Y83: -8.520959432 | Z83: -8.642429695 | AA83: -8.778587955 | AB83: -8.914104904 | AC83: -9.00727863
A84: =ROW() -> 84 | C84: Non Depreciable | G84: =G145+G196 -> 0 | H84: 0 | I84: =I145+I196 -> 0 | J84: 0 | K84: 0 | L84: 0 | M84: 0 | N84: 0 | O84: 0 | P84: 0.23968938 | Q84: 0 | R84: 0 | S84: 0 | T84: 0 | U84: 0.03261768667 | V84: 0.07801228167 | W84: 0 | X84: 0 | Y84: 0.00594222 | Z84: 0 | AA84: 0 | AB84: 0 | AC84: 0
A85: =ROW() -> 85 | C85: Cost of Raising Equity | G85: =G146+G197 -> 0 | H85: 0 | I85: 0 | J85: 0 | K85: 0 | L85: 0 | M85: 0 | N85: 0 | O85: 0 | P85: 0 | Q85: 0 | R85: 0 | S85: 0 | T85: 0 | U85: 0 | V85: 0 | W85: 0 | X85: 0 | Y85: 0 | Z85: 0 | AA85: -1.45085952e-15 | AB85: -3.258969845e-15 | AC85: -1.903721015e-15
A86: =ROW() -> 86 | C86: Total | G86: =SUM(G80:G85) -> 0 | H86: 0 | I86: =SUM(I80:I85) -> -200.1690276 | J86: =SUM(J80:J85) -> -199.0902388 | K86: =SUM(K80:K85) -> -201.2586074 | L86: =SUM(L80:L85) -> -201.3273361 | M86: =SUM(M80:M85) -> -201.2267969 | N86: =SUM(N80:N85) -> -200.1089851 | O86: =SUM(O80:O85) -> -202.7175048 | P86: =SUM(P80:P85) -> -160.5230709 | Q86: =SUM(Q80:Q85) -> -23.09203945 | R86: =SUM(R80:R85) -> -53.70007324 | S86: =SUM(S80:S85) -> -53.80361141 | T86: =SUM(T80:T85) -> -81.35729799 | U86: =SUM(U80:U85) -> -90.93048732 | V86: =SUM(V80:V85) -> -92.16487296 | W86: =SUM(W80:W85) -> -91.82141305 | X86: =SUM(X80:X85) -> -94.20325751 | Y86: =SUM(Y80:Y85) -> -95.38154921 | Z86: =SUM(Z80:Z85) -> -96.69496827 | AA86: =SUM(AA80:AA85) -> -97.93260661 | AB86: =SUM(AB80:AB85) -> -98.82576634 | AC86: =SUM(AC80:AC85) -> -99.67632628
A87: =ROW() -> 87 | B87: Closing Value | E87: Check | F87: =IF(ROUND(F86-F147-F198,6)=0,"OK","Wrong") -> OK | G87: =IF(ROUND(G86-G147-G198,6)=0,"OK","Wrong") -> OK | H87: OK | I87: =IF(ROUND(I86-I147-I198,6)=0,"OK","Wrong") -> OK | J87: =IF(ROUND(J86-J147-J198,6)=0,"OK","Wrong") -> OK | K87: OK | L87: OK | M87: OK | N87: OK | O87: OK | P87: OK | Q87: OK | R87: OK | S87: OK | T87: OK | U87: OK | V87: OK | W87: OK | X87: OK | Y87: OK | Z87: OK | AA87: OK | AB87: OK | AC87: OK
A88: =ROW() -> 88 | C88: Pipeline | F88: =F149+F200 -> 0 | G88: 0 | H88: 1263.146676 | I88: =I149+I200 -> 1100.325449 | J88: 935.9660584 | K88: 771.6390056 | L88: 607.2448378 | M88: 443.4718747 | N88: 286.4802268 | O88: 351.5638381 | P88: 226.9451336 | Q88: 708.4031922 | R88: 671.7673136 | S88: 1125.091335 | T88: 1110.072177 | U88: 1061.238704 | V88: 1001.760272 | W88: 937.9387123 | X88: 876.0978916 | Y88: 815.2636896 | Z88: 753.0763881 | AA88: 689.9091345 | AB88: 630.6372482 | AC88: 573.5982068
A89: =ROW() -> 89 | C89: Compression | F89: =F150+F201 -> 0 | G89: 0 | H89: 211.6036808 | I89: =I150+I201 -> 182.0991982 | J89: 157.9137185 | K89: 130.4222054 | L89: 102.7284136 | M89: 75.44768526 | N89: 86.64684444 | O89: 212.1350708 | P89: 184.3945386 | Q89: 301.3892269 | R89: 285.2154876 | S89: 321.3026654 | T89: 331.4119444 | U89: 319.4776134 | V89: 304.3856112 | W89: 286.5206755 | X89: 269.9205348 | Y89: 264.4579534 | Z89: 258.1519928 | AA89: 247.530459 | AB89: 234.8045593 | AC89: 221.7049129
A90: =ROW() -> 90 | C90: Metering | F90: =F151+F202 -> 0 | G90: 0 | H90: 17.35315585 | I90: =I151+I202 -> 15.66893879 | J90: 13.87834266 | K90: 11.87010252 | L90: 9.448264947 | M90: 8.760488034 | N90: 6.259049232 | O90: 3.75761043 | P90: 1.950297862 | Q90: 1.727637049 | R90: 1.632608383 | S90: 6.211858017 | T90: 6.068144463 | U90: 7.401273898 | V90: 7.715697766 | W90: 8.13922967 | X90: 11.04091423 | Y90: 13.69240862 | Z90: 15.24229945 | AA90: 14.73414272 | AB90: 13.96639188 | AC90: 13.99348342
A91: =ROW() -> 91 | C91: Other Depreciable | F91: =F152+F203 -> 0 | G91: 0 | H91: 47.65823764 | I91: =I152+I203 -> 46.55863525 | J91: 41.07127493 | K91: 34.89472584 | L91: 28.85113864 | M91: 22.74251545 | N91: 19.16424412 | O91: 12.74427531 | P91: 9.547431341 | Q91: 14.20206058 | R91: 13.9447869 | S91: 84.34000094 | T91: 130.4698225 | U91: 129.3780118 | V91: 131.2167834 | W91: 130.792262 | X91: 133.8128593 | Y91: 127.7213052 | Z91: 121.8020407 | AA91: 115.7337917 | AB91: 108.6831613 | AC91: 102.4095837
A92: =ROW() -> 92 | C92: Non Depreciable | F92: =F153+F204 -> 0 | G92: 0 | H92: 10.23824934 | I92: =I153+I204 -> 10.23824934 | J92: 10.23824934 | K92: 10.23824934 | L92: 10.23824934 | M92: 10.23824934 | N92: 8.144077639 | O92: 8.024232949 | P92: 10.05827373 | Q92: 11.47372606 | R92: 12.13501927 | S92: 12.80108142 | T92: 12.78477258 | U92: 12.77838412 | V92: 13.04502208 | W92: 13.04562011 | X92: 13.042649 | Y92: 13.04859122 | Z92: 13.04859122 | AA92: 13.04859122 | AB92: 13.04859122 | AC92: 13.04859122
A93: =ROW() -> 93 | C93: Cost of Raising Equity | F93: =F154+F205 -> 0 | G93: 0 | H93: 0 | I93: =I154+I205 -> 0 | J93: 0 | K93: 0 | L93: 0 | M93: 0 | N93: 0 | O93: 0 | P93: 0 | Q93: 0 | R93: 0 | S93: 0 | T93: 0 | U93: 0 | V93: 0 | W93: 0 | X93: 0 | Y93: 2.902335245e-14 | Z93: 3.627765005e-14 | AA93: 4.386734215e-14 | AB93: 4.287267978e-14 | AC93: 4.096895876e-14
A94: =ROW() -> 94 | C94: Total | F94: =SUM(F88:F93) -> 0 | G94: 0 | H94: 1550 | I94: =SUM(I88:I93) -> 1354.890471 | J94: 1159.067644 | K94: 959.0642887 | L94: 758.5109042 | M94: 560.6608128 | N94: 406.6944422 | O94: 588.2250276 | P94: 432.8956751 | Q94: 1037.195843 | R94: 984.6952157 | S94: 1549.746941 | T94: 1590.806861 | U94: 1530.273987 | V94: 1458.123387 | W94: 1376.4365 | X94: 1303.914849 | Y94: 1234.183948 | Z94: 1161.321312 | AA94: 1080.956119 | AB94: 1001.139952 | AC94: 924.754778
A95: =ROW() -> 95 | B95: Over Depreciation | E95: Check | F95: =IF(ROUND(F94-F155-F206,6)=0,"OK","Wrong") -> OK | G95: =IF(ROUND(G94-G155-G206,6)=0,"OK","Wrong") -> OK | H95: OK | I95: =IF(ROUND(I94-I155-I206,6)=0,"OK","Wrong") -> OK | J95: =IF(ROUND(J94-J155-J206,6)=0,"OK","Wrong") -> OK | K95: OK | L95: OK | M95: OK | N95: OK | O95: OK | P95: OK | Q95: OK | R95: OK | S95: OK | T95: OK | U95: OK | V95: OK | W95: OK | X95: OK | Y95: OK | Z95: OK | AA95: OK | AB95: OK | AC95: OK
A96: =ROW() -> 96 | C96: Pipeline
A97: =ROW() -> 97 | C97: Compression
A98: =ROW() -> 98 | C98: Metering
A99: =ROW() -> 99 | C99: Other Depreciable
A100: =ROW() -> 100 | C100: Non-depreciable
A101: =ROW() -> 101 | C101: Cost of Raising Equity
A102: =ROW() -> 102 | C102: Total
A103: =ROW() -> 103
A104: BEP Asset Account [m$ OD]
A105: BEP Lease (Capex)
A106: =ROW() -> 106 | B106: BEP Asset Account
A107: =ROW() -> 107 | C107: Life | U107: =Inputs!$E$324 -> 20 | V107: =U107-1 -> 19 | W107: 18 | X107: 17 | Y107: 16 | Z107: 15 | AA107: 14 | AB107: 13 | AC107: 12
A108: =ROW() -> 108 | C108: Opening Value (Starting 01/12/2010) | T108: =S112 -> 0 | U108: =T112 -> 19.44328014 | V108: =U112 -> 18.47111613 | W108: =V112 -> 17.49895213 | X108: =W112 -> 16.52678812 | Y108: =X112 -> 15.55462411 | Z108: 14.58246011 | AA108: 13.6102961 | AB108: 12.63813209 | AC108: 11.66596808
A109: =ROW() -> 109 | C109: Capex | T109: =Inputs!$T$320*$T$11 -> 19.44328014
A110: =ROW() -> 110 | C110: Redundant & Disposed Asset | U110: =Inputs!U328*U$11 -> 0 | V110: =Inputs!V328*V$11 -> 0 | W110: =Inputs!W328*W$11 -> 0 | X110: =Inputs!X328*X$11 -> 0 | Y110: =Inputs!Y328*Y$11 -> 0 | Z110: =Inputs!Z328*Z$11 -> 0 | AA110: =Inputs!AA328*AA$11 -> 0 | AB110: =Inputs!AB328*AB$11 -> 0 | AC110: =Inputs!AC328*AC$11 -> 0
A111: =ROW() -> 111 | C111: Depreciation | U111: =-U108/U107 -> -0.972164007 | V111: -0.972164007 | W111: -0.972164007 | X111: -0.972164007 | Y111: -0.972164007 | Z111: -0.972164007 | AA111: -0.972164007 | AB111: -0.972164007 | AC111: -0.972164007
A112: =ROW() -> 112 | C112: Closing Value | T112: =SUM(T108:T111) -> 19.44328014 | U112: =SUM(U108:U111) -> 18.47111613 | V112: =SUM(V108:V111) -> 17.49895213 | W112: =SUM(W108:W111) -> 16.52678812 | X112: =SUM(X108:X111) -> 15.55462411 | Y112: =SUM(Y108:Y111) -> 14.58246011 | Z112: 13.6102961 | AA112: 12.63813209 | AB112: 11.66596808 | AC112: 10.69380408
A113: =ROW() -> 113
A114: Opening Capital Base [$m OD]
A115: Opening Capital Base Accounts
A116: =ROW() -> 116 | B116: Life | I116: Life
A117: =ROW() -> 117 | C117: Pipeline | I117: =Inputs!$E$42 -> 7.692307692 | J117: =MAX(I117-1,0) -> 6.692307692 | K117: =MAX(J117-1,0) -> 5.692307692 | L117: 4.692307692 | M117: 3.692307692 | N117: 2.692307692 | O117: 1.692307692 | P117: 0.6923076923 | Q117: 0 | R117: 0 | S117: 0 | T117: 0 | U117: 0 | V117: 0 | W117: 0 | X117: 0 | Y117: 0 | Z117: 0 | AA117: 0 | AB117: 0 | AC117: 0
A118: =ROW() -> 118 | C118: Compression | I118: =Inputs!$E$42 -> 7.692307692 | J118: =MAX(I118-1,0) -> 6.692307692 | K118: 5.692307692 | L118: 4.692307692 | M118: 3.692307692 | N118: 2.692307692 | O118: 1.692307692 | P118: 0.6923076923 | Q118: 0 | R118: 0 | S118: 0 | T118: 0 | U118: 0 | V118: 0 | W118: 0 | X118: 0 | Y118: 0 | Z118: 0 | AA118: 0 | AB118: 0 | AC118: 0
A119: =ROW() -> 119 | C119: Metering | I119: =Inputs!$E$42 -> 7.692307692 | J119: 6.692307692 | K119: 5.692307692 | L119: 4.692307692 | M119: 3.692307692 | N119: 2.692307692 | O119: 1.692307692 | P119: 0.6923076923 | Q119: 0 | R119: 0 | S119: 0 | T119: 0 | U119: 0 | V119: 0 | W119: 0 | X119: 0 | Y119: 0 | Z119: 0 | AA119: 0 | AB119: 0 | AC119: 0
A120: =ROW() -> 120 | C120: Other Depreciable | I120: =Inputs!$E$42 -> 7.692307692 | J120: 6.692307692 | K120: 5.692307692 | L120: 4.692307692 | M120: 3.692307692 | N120: 2.692307692 | O120: 1.692307692 | P120: 0.6923076923 | Q120: 0 | R120: 0 | S120: 0 | T120: 0 | U120: 0 | V120: 0 | W120: 0 | X120: 0 | Y120: 0 | Z120: 0 | AA120: 0 | AB120: 0 | AC120: 0
A121: =ROW() -> 121 | C121: Non Depreciable
A122: =ROW() -> 122 | C122: Cost of Raising Equity
A123: =ROW() -> 123
A124: =ROW() -> 124 | B124: Opening Value
A125: =ROW() -> 125 | C125: Pipeline | I125: =H149 -> 1263.146676 | J125: =I149 -> 1098.937608 | K125: 934.7285405 | L125: 770.5194726 | M125: 606.3104047 | N125: 442.1013367 | O125: 277.8922688 | P125: 113.6832009 | Q125: 0 | R125: 0 | S125: 0 | T125: 0 | U125: 0 | V125: 0 | W125: 0 | X125: =W149 -> 0 | Y125: =X149 -> 0 | Z125: 0 | AA125: 0 | AB125: 0 | AC125: 0
A126: =ROW() -> 126 | C126: Compression | I126: 211.6036808 | J126: 184.0952023 | K126: 156.5867238 | L126: 129.0782453 | M126: 101.5697668 | N126: 74.06128827 | O126: 44.12381357 | P126: 18.050651 | Q126: 0 | R126: 0 | S126: 0 | T126: 0 | U126: 0 | V126: 0 | W126: 0 | X126: 0 | Y126: 0 | Z126: 0 | AA126: 0 | AB126: 0 | AC126: 0
A127: =ROW() -> 127 | C127: Metering | I127: 17.35315585 | J127: 15.09724559 | K127: 12.84133533 | L127: 10.58542507 | M127: 8.329514808 | N127: 6.073604548 | O127: 3.817694287 | P127: 1.561784027 | Q127: 0 | R127: 0 | S127: 0 | T127: 0 | U127: 0 | V127: 0 | W127: 0 | X127: 0 | Y127: 0 | Z127: 0 | AA127: 0 | AB127: 0 | AC127: 0
A128: =ROW() -> 128 | C128: Other Depreciable | I128: 47.65823764 | J128: 41.46266675 | K128: 35.26709585 | L128: 29.07152496 | M128: 22.87595407 | N128: 16.68038317 | O128: 10.44125529 | P128: 4.271422619 | Q128: 0 | R128: 0 | S128: 0 | T128: 0 | U128: 0 | V128: 0 | W128: 0 | X128: 0 | Y128: 0 | Z128: 0 | AA128: 0 | AB128: 0 | AC128: 0
A129: =ROW() -> 129 | C129: Non Depreciable | I129: 10.23824934 | J129: 10.23824934 | K129: 10.23824934 | L129: 10.23824934 | M129: 10.23824934 | N129: 10.23824934 | O129: 8.144077639 | P129: 8.144077639 | Q129: 8.263922329 | R129: 8.263922329 | S129: 8.263922329 | T129: 8.263922329 | U129: 8.263922329 | V129: 8.280231172 | W129: 8.319237313 | X129: 8.319237313 | Y129: 8.319237313 | Z129: 8.322208423 | AA129: 8.322208423 | AB129: 8.322208423 | AC129: 8.322208423
A130: =ROW() -> 130 | C130: Cost of Raising Equity | I130: 0 | J130: =I154 -> 0 | K130: =J154 -> 0 | L130: =K154 -> 0 | M130: =L154 -> 0 | N130: =M154 -> 0 | O130: =N154 -> 0 | P130: =O154 -> 0 | Q130: =P154 -> 0 | R130: =Q154 -> 0 | S130: =R154 -> 0 | T130: =S154 -> 0 | U130: =T154 -> 0 | V130: =U154 -> 0 | W130: =V154 -> 0 | X130: 0 | Y130: =X154 -> 0 | Z130: =Y154 -> 0 | AA130: =Z154 -> 0 | AB130: =AA154 -> 0 | AC130: =AB154 -> 0
A131: =ROW() -> 131 | C131: Total | I131: =H155 -> 1550 | J131: =I155 -> 1349.830972 | K131: =J155 -> 1149.661945 | L131: =K155 -> 949.4929172 | M131: =L155 -> 749.3238897 | N131: =M155 -> 549.1548621 | O131: =N155 -> 344.4191096 | P131: =O155 -> 145.7111362 | Q131: =P155 -> 8.263922329 | R131: =Q155 -> 8.263922329 | S131: =R155 -> 8.263922329 | T131: =S155 -> 8.263922329 | U131: =T155 -> 8.263922329 | V131: =U155 -> 8.280231172 | W131: =V155 -> 8.319237313 | X131: =W155 -> 8.319237313 | Y131: =X155 -> 8.319237313 | Z131: =Y155 -> 8.322208423 | AA131: =Z155 -> 8.322208423 | AB131: =AA155 -> 8.322208423 | AC131: =AB155 -> 8.322208423
A132: =ROW() -> 132 | B132: Redundant & Disposed Asset
A133: =ROW() -> 133 | C133: Pipeline | N133: =-Inputs!N196*N$11 -> 0 | O133: =-Inputs!O196*O$11 -> 0 | P133: =-Inputs!P196*P$11 -> 0 | Q133: =-Inputs!Q196*Q$11 -> 0 | R133: =-Inputs!R196*R$11 -> 0 | S133: =-Inputs!S196*S$11 -> 0 | T133: =-Inputs!T196*T$11 -> 0 | U133: =-Inputs!U196*U$11 -> 0 | V133: =-Inputs!V196*V$11 -> 0 | W133: =-Inputs!W196*W$11 -> 0 | X133: =-Inputs!X196*X$11 -> 0 | Y133: =-Inputs!Y196*Y$11 -> 0 | Z133: =-Inputs!Z196*Z$11 -> 0 | AA133: =-Inputs!AA196*AA$11 -> 0 | AB133: =-Inputs!AB196*AB$11 -> 0 | AC133: =-Inputs!AC196*AC$11 -> 0
A134: =ROW() -> 134 | C134: Compression | N134: =-Inputs!N197*N$11 -> -3.864312145 | O134: =-Inputs!O197*O$11 -> 0 | P134: =-Inputs!P197*P$11 -> 0 | Q134: =-Inputs!Q197*Q$11 -> 0 | R134: =-Inputs!R197*R$11 -> 0 | S134: =-Inputs!S197*S$11 -> 0 | T134: =-Inputs!T197*T$11 -> -0.0009685958129 | U134: =-Inputs!U197*U$11 -> 0 | V134: =-Inputs!V197*V$11 -> 0 | W134: =-Inputs!W197*W$11 -> 0 | X134: =-Inputs!X197*X$11 -> 0 | Y134: =-Inputs!Y197*Y$11 -> 0 | Z134: =-Inputs!Z197*Z$11 -> 0 | AA134: =-Inputs!AA197*AA$11 -> 0 | AB134: =-Inputs!AB197*AB$11 -> 0 | AC134: =-Inputs!AC197*AC$11 -> 0
A135: =ROW() -> 135 | C135: Metering | N135: =-Inputs!N198*N$11 -> 0 | O135: =-Inputs!O198*O$11 -> 0 | P135: =-Inputs!P198*P$11 -> 0 | Q135: =-Inputs!Q198*Q$11 -> 0 | R135: =-Inputs!R198*R$11 -> 0 | S135: =-Inputs!S198*S$11 -> 0 | T135: =-Inputs!T198*T$11 -> 0 | U135: =-Inputs!U198*U$11 -> 0 | V135: =-Inputs!V198*V$11 -> 0 | W135: =-Inputs!W198*W$11 -> -0.02555031945 | X135: =-Inputs!X198*X$11 -> 0 | Y135: =-Inputs!Y198*Y$11 -> 0 | Z135: =-Inputs!Z198*Z$11 -> 0 | AA135: =-Inputs!AA198*AA$11 -> 0 | AB135: =-Inputs!AB198*AB$11 -> 0 | AC135: =-Inputs!AC198*AC$11 -> 0
A136: =ROW() -> 136 | C136: Other Depreciable | N136: =-Inputs!N199*N$11 -> -0.06929521012 | O136: =-Inputs!O199*O$11 -> 0 | P136: =-Inputs!P199*P$11 -> -0.03222644103 | Q136: =-Inputs!Q199*Q$11 -> -0.02524828106 | R136: =-Inputs!R199*R$11 -> -0.08231943446 | S136: =-Inputs!S199*S$11 -> -0.01107454853 | T136: =-Inputs!T199*T$11 -> -1.734900273 | U136: =-Inputs!U199*U$11 -> -0.02510343003 | V136: =-Inputs!V199*V$11 -> -0.03485976249 | W136: =-Inputs!W199*W$11 -> 0 | X136: =-Inputs!X199*X$11 -> 0 | Y136: =-Inputs!Y199*Y$11 -> 0 | Z136: =-Inputs!Z199*Z$11 -> 0 | AA136: =-Inputs!AA199*AA$11 -> 0 | AB136: =-Inputs!AB199*AB$11 -> 0 | AC136: =-Inputs!AC199*AC$11 -> 0
A137: =ROW() -> 137 | C137: Non Depreciable | N137: =-Inputs!N200*N$11 -> -2.094171701 | O137: =-Inputs!O200*O$11 -> 0 | P137: =-Inputs!P200*P$11 -> 0 | Q137: =-Inputs!Q200*Q$11 -> 0 | R137: =-Inputs!R200*R$11 -> 0 | S137: =-Inputs!S200*S$11 -> 0 | T137: =-Inputs!T200*T$11 -> 0 | U137: =-Inputs!U200*U$11 -> 0 | V137: =-Inputs!V200*V$11 -> 0 | W137: =-Inputs!W200*W$11 -> 0 | X137: =-Inputs!X200*X$11 -> 0 | Y137: =-Inputs!Y200*Y$11 -> 0 | Z137: =-Inputs!Z200*Z$11 -> 0 | AA137: =-Inputs!AA200*AA$11 -> 0 | AB137: =-Inputs!AB200*AB$11 -> 0 | AC137: =-Inputs!AC200*AC$11 -> 0
A138: =ROW() -> 138 | C138: Cost of Raising Equity | N138: =-Inputs!N201*N$11 -> 0 | O138: =-Inputs!O201*O$11 -> 0 | P138: =-Inputs!P201*P$11 -> 0 | Q138: =-Inputs!Q201*Q$11 -> 0 | R138: =-Inputs!R201*R$11 -> 0 | S138: =-Inputs!S201*S$11 -> 0 | T138: =-Inputs!T201*T$11 -> 0 | U138: =-Inputs!U201*U$11 -> 0 | V138: =-Inputs!V201*V$11 -> 0 | W138: =-Inputs!W201*W$11 -> 0 | X138: =-Inputs!X201*X$11 -> 0 | Y138: =-Inputs!Y201*Y$11 -> 0 | Z138: =-Inputs!Z201*Z$11 -> 0 | AA138: =-Inputs!AA201*AA$11 -> 0 | AB138: =-Inputs!AB201*AB$11 -> 0 | AC138: =-Inputs!AC201*AC$11 -> 0
A139: =ROW() -> 139 | C139: Total | I139: =SUM(I133:I138) -> 0 | J139: =SUM(J133:J138) -> 0 | K139: =SUM(K133:K138) -> 0 | L139: =SUM(L133:L138) -> 0 | M139: =SUM(M133:M138) -> 0 | N139: =SUM(N133:N138) -> -6.027779056 | O139: =SUM(O133:O138) -> 0 | P139: =SUM(P133:P138) -> -0.03222644103 | Q139: =SUM(Q133:Q138) -> -0.02524828106 | R139: =SUM(R133:R138) -> -0.08231943446 | S139: =SUM(S133:S138) -> -0.01107454853 | T139: =SUM(T133:T138) -> -1.735868869 | U139: =SUM(U133:U138) -> -0.02510343003 | V139: =SUM(V133:V138) -> -0.03485976249 | W139: =SUM(W133:W138) -> -0.02555031945 | X139: =SUM(X133:X138) -> 0 | Y139: =SUM(Y133:Y138) -> 0 | Z139: =SUM(Z133:Z138) -> 0 | AA139: =SUM(AA133:AA138) -> 0 | AB139: =SUM(AB133:AB138) -> 0 | AC139: =SUM(AC133:AC138) -> 0
A140: =ROW() -> 140 | B140: Depreciation
A141: =ROW() -> 141 | C141: Pipeline | I141: =IF(I117<=0,0,-MIN(((I125+I133)/I117)*((I125+I133)>0),(I125+I133)))+IF(I117<=0,-I125-I133,0) -> -164.2090679 | J141: -164.2090679 | K141: -164.2090679 | L141: -164.2090679 | M141: -164.2090679 | N141: -164.2090679 | O141: -164.2090679 | P141: -113.6832009 | Q141: 0 | R141: 0 | S141: 0 | T141: 0 | U141: 0 | V141: 0 | W141: 0 | X141: 0 | Y141: 0 | Z141: 0 | AA141: 0 | AB141: 0 | AC141: 0
A142: =ROW() -> 142 | C142: Compression | I142: =IF(I118<=0,0,-MIN(((I126+I134)/I118)*((I126+I134)>0),(I126+I134)))+IF(I118<=0,-I126-I134,0) -> -27.5084785 | J142: -27.5084785 | K142: -27.5084785 | L142: -27.5084785 | M142: -27.5084785 | N142: -26.07316256 | O142: -26.07316256 | P142: -18.050651 | Q142: 0 | R142: 0 | S142: 0 | T142: 0.0009685958129 | U142: 0 | V142: 0 | W142: 0 | X142: 0 | Y142: 0 | Z142: 0 | AA142: 0 | AB142: 0 | AC142: 0
A143: =ROW() -> 143 | C143: Metering | I143: =IF(I119<=0,0,-MIN(((I127+I135)/I119)*((I127+I135)>0),(I127+I135)))+IF(I119<=0,-I127-I135,0) -> -2.255910261 | J143: -2.255910261 | K143: -2.255910261 | L143: -2.255910261 | M143: -2.255910261 | N143: -2.255910261 | O143: -2.255910261 | P143: -1.561784027 | Q143: 0 | R143: 0 | S143: 0 | T143: 0 | U143: 0 | V143: 0 | W143: 0.02555031945 | X143: 0 | Y143: 0 | Z143: 0 | AA143: 0 | AB143: 0 | AC143: 0
A144: =ROW() -> 144 | C144: Other Depreciable | I144: =IF(I120<=0,0,-MIN(((I128+I136)/I120)*((I128+I136)>0),(I128+I136)))+IF(I120<=0,-I128-I136,0) -> -6.195570893 | J144: -6.195570893 | K144: -6.195570893 | L144: -6.195570893 | M144: -6.195570893 | N144: -6.169832672 | O144: -6.169832672 | P144: -4.239196178 | Q144: =IF(Q120<=0,0,-MIN(((Q128+Q136)/Q120)*((Q128+Q136)>0),(Q128+Q136)))+IF(Q120<=0,-Q128-Q136,0) -> 0.02524828106 | R144: =IF(R120<=0,0,-MIN(((R128+R136)/R120)*((R128+R136)>0),(R128+R136)))+IF(R120<=0,-R128-R136,0) -> 0.08231943446 | S144: 0.01107454853 | T144: 1.734900273 | U144: 0.02510343003 | V144: 0.03485976249 | W144: 0 | X144: 0 | Y144: 0 | Z144: 0 | AA144: 0 | AB144: 0 | AC144: 0
A145: =ROW() -> 145 | C145: Non Depreciable | I145: =I196 -> 0 | J145: =J196 -> 0 | K145: 0 | L145: 0 | M145: 0 | N145: 0 | O145: 0 | P145: 0.11984469 | Q145: 0 | R145: 0 | S145: 0 | T145: 0 | U145: 0.01630884333 | V145: 0.03900614084 | W145: 0 | X145: 0 | Y145: 0.00297111 | Z145: 0 | AA145: 0 | AB145: 0 | AC145: 0
A146: =ROW() -> 146 | C146: Cost of Raising Equity | I146: =IF(I122<=0,0,-MIN(((I130+I138)/I122)*((I130+I138)>0),(I130+I138))) -> 0 | J146: 0 | K146: 0 | L146: 0 | M146: 0 | N146: 0 | O146: 0 | P146: 0 | Q146: 0 | R146: 0 | S146: 0 | T146: =IF(T122<=0,0,-MIN(((T130+T138)/T122)*((T130+T138)>0),(T130+T138))) -> 0 | U146: =IF(U122<=0,0,-MIN(((U130+U138)/U122)*((U130+U138)>0),(U130+U138))) -> 0 | V146: 0 | W146: 0 | X146: 0 | Y146: 0 | Z146: 0 | AA146: 0 | AB146: 0 | AC146: 0
